Workbook

Sheet Change Log
C1: =Index!C1 -> EDPR16 JEN ACS Public Lighting - Forecast Charges Model
C2: Change Log
B6: Copyright Jemena Limited. All rights reserved. Jemena is not liable for any loss caused by reliance on this document.
B8: Model change log
C10: Starting model name ----> | D10: AER - Preliminary decision Jemena - Public lighting model - October 2015
C12: Model changes to above model
C14: Model sheet | D14: Reference | E14: Cell reference | F14: Type | G14: Legend | H14: Comments
C16: DNSP Inputs General | D16: Change 1 | E16: B26:F26 | F16: Assumption | H16: Updated pre-tax real WACC
D17: Change 2 | E17: D31:D35 | F17: Assumption | H17: Updated forecast CPI
D18: Change 3 | E18: A80:O104 | F18: Assumption | H18: Included real cost escalators
C21: Model sheet | D21: Reference | E21: Cell reference | F21: Type | G21: Legend | H21: Comments
C23: DNSP Inputs O & M | D23: Change 4 | E23: C45:H45 | F23: Assumption | H23: Substituted MV80 traffic management costs with Citipower for 2016-20
E24: C49:H49
D25: Change 5 | E25: C165:H165 | F25: Assumption | H25: Substituted T5 (2 x 14W) traffic management costs with Citipower for 2016-20
E26: C169:H169
D27: Change 6 | E27: C196:H196 | F27: Assumption | H27: Substituted LED18W traffic management costs with Citipower for 2016-20
E28: C200:H200
D29: Change 7 | E29: D157:H158 | F29: Assumption | H29: Substituted T5 (2 x 14W) urban and rural repairs per day with AusNet
D30: Change 8 | E30: D12:D13 | F30: Assumption | H30: Updated labour rates by escalating with internal labour (WPI) real cost escalator
C33: Model sheet | D33: Reference | E33: Cell reference | F33: Type | G33: Legend | H33: Comments
C35: DNSP Inputs Capex | D35: Change 9 | E35: C30:C31 | F35: Assumption | H35: Updated 2015 forecast replacement quantities
E36: C49:C50 | F36: Assumption
E37: C65:C66 | F37: Assumption
E38: C81:C82 | F38: Assumption
E39: C85:C86 | F39: Assumption
E40: C108:C109 | F40: Assumption
E41: C123:C124 | F41: Assumption
D42: Change 10 | E42: C115 | F42: Assumption | H42: Updated LED 18W luminaire unit cost
D43: Change 11 | E43: Rows 127-134 | F43: Assumption | H43: Included calculations for frangible poles capex
C46: Model sheet | D46: Reference | E46: Cell reference | F46: Type | G46: Legend | H46: Comments
C48: PL Tariffs - Excl. RR | D48: Change 12 | F48: Labelling | H48: Renamed worksheet previously named "PL Tariffs" to denote PL tariffs excluding revenue recovery
C51: Model sheet | D51: Reference | E51: Cell reference | F51: Type | G51: Legend | H51: Comments
C53: PL Tariff Components - Excl. RR | D53: Change 13 | F53: Labelling | H53: Renamed worksheet previously named "PL Tariffs" to denote PL tariff components excluding revenue recovery
C56: Model sheet | D56: Reference | E56: Cell reference | F56: Type | G56: Legend | H56: Comments
C58: Tariff Adjust. for Rev Recovery | D58: Change 14 | E58: New worksheet | F58: Structure | H58: Inserted new worksheet which includes calculations for true-up of revenue under-recovery
C61: Model sheet | D61: Reference | E61: Cell reference | F61: Type | G61: Legend | H61: Comments
C63: Output|Capex Forecast Model | D63: Change 15 | E63: New worksheet | F63: Structure | H63: Inserted new worksheet which includes calculations for output to Capex Forecast model
C66: Model sheet | D66: Reference | E66: Cell reference | F66: Type | G66: Legend | H66: Comments
C68: Output|RIN | D68: Change 16 | E68: New worksheet | F68: Structure | H68: Inserted new worksheet which include calculations for output to RIN
C71: Model sheet | D71: Reference | E71: Cell reference | F71: Type | G71: Legend | H71: Comments
C73: Capex 2016-2020 | D73: Change 17 | E73: Row 22 | F73: Structure | H73: Include calculations for frangible poles capex
E74: Rows 141-153 | F74: Structure
C77: Model sheet | D77: Reference | E77: Cell reference | F77: Type | G77: Legend | H77: Comments
C79: Cashflow Summary | D79: Change 18 | E79: Rows 4-38 | F79: Structure | H79: Include Public Lighting - Revenue section including revenue recovery
B81: End

Sheet Index
C1: EDPR16 JEN ACS Public Lighting - Forecast Charges Model
C2: Index
B6: Copyright Jemena Limited. All rights reserved. Jemena is not liable for any loss caused by reliance on this document.
B8: Where does this model fit into our submission model suite?
B52: End

Sheet Instructions
A1: ='DNSP Inputs O & M'!$A$3 -> Jemena
A3: Instructions
A5: This model is to be used for the setting of Public Lighting Tariffs for the Regulatory Period 2016 to 2020 based on forecast inflation rates and Real Pre Tax WACC.
A7: Distributor data input fields are shaded | C7: and located in tabs "DNSP Inputs General" , "DNSP Inputs O & M" and "DNSP Inputs Capex"
A8: NOTE : All Distributor data input fields have been populated with AER Preliminary Decision data in this model.
A12: This model will also to be used for the annual Public Lighting Tariff Approvals in the Regulatory Period 2016 to 2020 based on actual inflation rates and Real Pre Tax WACC.

Sheet DNSP Inputs General
A1: ='DNSP Inputs O & M'!$A$3 -> Jemena
D2: 2009 | E2: 2010 | F2: 2011 | G2: 2012 | H2: 2013 | I2: 2014 | J2: 2015 | K2: 2016 | L2: 2017 | M2: 2018 | N2: 2019 | O2: 2020
A3: Capital Expenditure | D3: Nominal $ - Actual | J3: Real 2015 $ - Forecast
A4: (Net of customer contributions)
A6: Poles and Brackets | D6: 82127 | E6: 138408.8836 | F6: 240569.2298 | G6: 377.0936847 | H6: 464412.5602 | I6: 728309.1598 | J6: 446763.9946 | K6: ='Capex 2016-2020'!B24 -> 464472.6441 | L6: ='Capex 2016-2020'!C24 -> 477934.0248 | M6: ='Capex 2016-2020'!D24 -> 483936.4366 | N6: ='Capex 2016-2020'!E24 -> 463238.1533 | O6: ='Capex 2016-2020'!F24 -> 456438.4546
A8: Existing Lights
A9: Luminaires | D9: 584487 | E9: 160929.5545 | F9: 415008.1449 | G9: 203015.002 | H9: 457113.916 | I9: 459265.214 | J9: -1151949.305 | K9: ='Capex 2016-2020'!B13-'Capex 2016-2020'!B31 -> 247963.6241 | L9: ='Capex 2016-2020'!C13-'Capex 2016-2020'!C31 -> 258001.6281 | M9: ='Capex 2016-2020'!D13-'Capex 2016-2020'!D31 -> 263408.731 | N9: ='Capex 2016-2020'!E13-'Capex 2016-2020'!E31 -> 253513.5002 | O9: ='Capex 2016-2020'!F13-'Capex 2016-2020'!F31 -> 251829.025
A11: Energy Efficient Lights
A12: Luminaires and Ballasts | D12: 0 | E12: 137050.5593 | F12: 39381.39129 | G12: 321713.6016 | H12: 1127.370805 | I12: 3240.069195 | J12: 218756.5314 | K12: ='Capex 2016-2020'!B18 -> 182855.7393 | L12: ='Capex 2016-2020'!C18 -> 192080.673 | M12: ='Capex 2016-2020'!D18 -> 198454.2097 | N12: ='Capex 2016-2020'!E18 -> 193523.8024 | O12: ='Capex 2016-2020'!F18 -> 194266.9442
A14: Total Net Capex | D14: =SUM(D6,D9,D12) -> 666614 | E14: =SUM(E6,E9,E12) -> 436388.9974 | F14: 694958.7659 | G14: 525105.6972 | H14: 922653.847 | I14: 1190814.443 | J14: -486428.7788 | K14: 895292.0075 | L14: 928016.3259 | M14: 945799.3772 | N14: 910275.4559 | O14: 902534.4239
F17: 2011 | G17: 2012 | H17: 2013 | I17: 2014 | J17: 2015 | K17: 2016 | L17: 2017 | M17: 2018 | N17: 2019 | O17: 2020
A18: Operating and Maintenance Expenditure | F18: Nominal $ - Actual | J18: Real 2015 $ - Forecast
A20: Total O & M | F20: 2525965.799 | G20: 3432769.624 | H20: 2915803.923 | I20: 4304154.449 | K20: ='Cashflow Summary'!K118 -> 3082390.81 | L20: ='Cashflow Summary'!L118 -> 3140330.566 | M20: ='Cashflow Summary'!M118 -> 3188045.328 | N20: ='Cashflow Summary'!N118 -> 3154228.392 | O20: ='Cashflow Summary'!O118 -> 3164374.523
A24: WACC
A25: Regulatory Period | B25: 2016 | C25: 2017 | D25: 2018 | E25: 2019 | F25: 2020
A26: Real Pre Tax WACC | B26: 0.04723374708 | C26: 0.04723374708 | D26: 0.04723374708 | E26: 0.04723374708 | F26: 0.04723374708
A29: CPI Index | B29: CPI Index | C29: Actual CPI | D29: F'cast CPI
A30: 2014-09-30 | B30: 106.4
A31: 2015-09-30 | C31: =IF(B31="","",B31/B30-1) ->  | D31: 0.02323079821
A32: 2016-09-30 | D32: 0.02323079821
A33: 2017-06-30 | D33: 0.02323079821
A34: 2018-06-30 | D34: 0.02323079821
A35: 2019-06-30 | D35: 0.02323079821
A38: Number Of Lights | E38: =J$2 -> 2015 | F38: =F$2 -> 2011 | G38: 2012 | H38: 2013 | I38: 2014 | J38: 2015 | K38: 2016 | L38: 2017 | M38: 2018 | N38: 2019 | O38: 2020
E39: Actual Prices | F39: Actual Volumes | J39: Forecast Volumes
A40: Existing Lights | B40: Reference Light | D40: Price Factor
A41: Mercury Vapour 80 watt | B41: =A$41 -> Mercury Vapour 80 watt | D41: 1 | E41: 48.83 | F41: 43472.6 | G41: 41124.85 | H41: 45947 | I41: 35373 | J41: 13619.0208 | K41: 13422.9069 | L41: 13229.61704 | M41: 13039.11056 | N41: 12851.34736 | O41: 12666.28796
A42: Sodium High Pressure 150 watt | B42: =$A42 -> Sodium High Pressure 150 watt | D42: 1 | E42: 91.54 | F42: 14085 | G42: 14085 | H42: 15110 | I42: 15248 | J42: 15491.35529 | K42: 15707.2076 | L42: 15920.07047 | M42: 16130.38213 | N42: 16338.51658 | O42: 16544.793
A43: Sodium High Pressure 250 watt | B43: =A$43 -> Sodium High Pressure 250 watt | D43: 1 | E43: 93.95 | F43: 4192 | G43: 4192 | H43: 4706 | I43: 4722 | J43: 4732.459821 | K43: 4742.405991 | L43: 4751.863732 | M43: 4760.857031 | N43: 4769.408695 | O43: 4777.540411
A44: 55W Ind | B44: =A$41 -> Mercury Vapour 80 watt | D44: 1.25 | E44: 61.03 | F44: 0 | G44: 0 | H44: 0 | I44: 0 | J44: 0 | K44: 0 | L44: 0 | M44: 0 | N44: 0 | O44: 0
A45: Fluorescent 20 watt | B45: Mercury Vapour 80 watt | D45: 1.25 | E45: 61.03 | F45: 3 | G45: 2 | H45: 2 | I45: 13 | J45: 0 | K45: 0 | L45: 0 | M45: 0 | N45: 0 | O45: 0
A46: Fluorescent 40 watt | B46: Mercury Vapour 80 watt | D46: 1.25 | E46: 61.03 | F46: 173 | G46: 120 | H46: 54 | I46: 34 | J46: 21.40740741 | K46: 0 | L46: 0 | M46: 0 | N46: 0 | O46: 0
A47: Fluorescent 80 watt | B47: Mercury Vapour 80 watt | D47: 1.25 | E47: 61.03 | F47: 7 | G47: 6 | H47: 0 | I47: 0 | J47: 0 | K47: 0 | L47: 0 | M47: 0 | N47: 0 | O47: 0
A48: Mercury Vapour 50 watt | B48: Mercury Vapour 80 watt | D48: 1.25 | E48: 61.03 | F48: 76 | G48: 66 | H48: 36 | I48: 17 | J48: 17 | K48: 0 | L48: 0 | M48: 0 | N48: 0 | O48: 0
A49: Mercury Vapour 125 watt | B49: Mercury Vapour 80 watt | D49: 1.47 | E49: 71.77 | F49: 407 | G49: 378 | H49: 469 | I49: 365 | J49: 359.744 | K49: 354.5636864 | L49: 349.4579693 | M49: 344.4257746 | N49: 339.4660434 | O49: 334.5777324
A50: Mercury Vapour 250 watt | B50: =A$43 -> Sodium High Pressure 250 watt | D50: 0.96 | E50: 90.19 | F50: 199 | G50: 199 | H50: 191 | I50: 163 | J50: 139.104712 | K50: 118.7123982 | L50: 101.3095336 | M50: 86.4578742 | N50: 73.78342144 | O50: 62.96700364
A51: Mercury Vapour 400 watt | B51: =A$43 -> Sodium High Pressure 250 watt | D51: 1.08 | E51: 101.47 | F51: 184 | G51: 184 | H51: 224 | I51: 213 | J51: 202.5401786 | K51: 192.5940091 | L51: 183.1362676 | M51: 174.1429687 | N51: 165.5913051 | O51: 157.4595892
A52: Sodium High Pressure 50 watt | B52: =A$42 -> Sodium High Pressure 150 watt | D52: 1.25 | E52: 112.91 | F52: 0 | G52: 0 | H52: 4 | I52: 4 | J52: 0 | K52: 0 | L52: 0 | M52: 0 | N52: 0 | O52: 0
A53: Sodium Low Pressure 90 watt | B53: =A$42 -> Sodium High Pressure 150 watt | D53: 1.06 | E53: 97.03 | F53: 10 | G53: 10 | H53: 14 | I53: 11 | J53: 0 | K53: 0 | L53: 0 | M53: 0 | N53: 0 | O53: 0
A54: Sodium High Pressure 100 watt | B54: =A$42 -> Sodium High Pressure 150 watt | D54: 1.37 | E54: 125.41 | F54: 960 | G54: 960 | H54: 1189 | I54: 1182 | J54: 1164.9792 | K54: 1148.2035 | L54: 1131.669369 | M54: 1115.37333 | N54: 1099.311954 | O54: 1083.481862
A55: Sodium High Pressure 400 watt | B55: =A$43 -> Sodium High Pressure 250 watt | D55: 1.33 | E55: 124.96 | F55: 273 | G55: 273 | H55: 296 | I55: 288 | J55: 288 | K55: 288 | L55: 288 | M55: 288 | N55: 288 | O55: 288
A56: Metal Halide 70 watt | B56: =A$41 -> Mercury Vapour 80 watt | D56: 2.57 | E56: 125.48 | F56: 13 | G56: 12 | H56: 12 | I56: 12 | J56: 12 | K56: 12 | L56: 12 | M56: 12 | N56: 12 | O56: 12
A57: Metal Halide 150 watt | B57: =A$42 -> Sodium High Pressure 150 watt | D57: 2.22 | E57: 203.22 | F57: 16 | G57: 16 | H57: 40 | I57: 33 | J57: 33 | K57: 33 | L57: 33 | M57: 33 | N57: 33 | O57: 33
A58: Metal Halide 250 watt | B58: =A$43 -> Sodium High Pressure 250 watt | D58: 2.15 | E58: 202 | F58: 29 | G58: 29 | H58: 74 | I58: 72 | J58: 72 | K58: 72 | L58: 72 | M58: 72 | N58: 72 | O58: 72
A59: Incandescent 100 watt | B59: =A$41 -> Mercury Vapour 80 watt | D59: 1.56 | E59: 76.17 | F59: 5 | G59: 4 | H59: 0 | I59: 0 | J59: 0 | K59: 0 | L59: 0 | M59: 0 | N59: 0 | O59: 0
A60: Incandescent 150 watt | B60: =A$41 -> Mercury Vapour 80 watt | D60: 1.95 | E60: 95.21 | F60: 2 | G60: 0 | H60: 3 | I60: 1 | J60: 0 | K60: 0 | L60: 0 | M60: 0 | N60: 0 | O60: 0
A61: Sodium High Pressure 250 watt (24 hrs) | B61: =A$43 -> Sodium High Pressure 250 watt | D61: =1.56 -> 1.56 | E61: 144.62 | F61: 0 | G61: 0 | H61: 0 | I61: 0 | J61: 0 | K61: 0 | L61: 0 | M61: 0 | N61: 0 | O61: 0
A62: Metal Halide 100 watt | B62: =A$42 -> Sodium High Pressure 150 watt | D62: 2.22 | E62: 200.52 | F62: 0 | G62: 0 | H62: 0 | I62: 0 | J62: 0 | K62: 0 | L62: 0 | M62: 0 | N62: 0 | O62: 0
A65: Total Existing Lights | F65: =SUM(F41:F64) -> 64106.6 | G65: 61660.85 | H65: 68371 | I65: 57751 | J65: 36152.61141 | K65: 36091.59409 | L65: 36072.12438 | M65: 36055.74966 | N65: 36042.42536 | O65: 36032.10756
A67: Energy Efficient Lights | B67: Reference Light | D67: Price Factor
A68: T5 2X14W | B68: =A68 -> T5 2X14W | D68: 1 | E68: 30.01 | F68: 585 | G68: 1177 | H68: 1535 | I68: 12536 | J68: 34586.13259 | K68: 35086.08 | L68: 35564.62 | M68: 36043.16 | N68: 36521.7 | O68: 37000.24
A69: T5 (2x24W) | B69: T5 2X14W | D69: 1.126245847 | F69: 0 | G69: 0 | H69: 22 | I69: 332 | J69: 333 | K69: 333 | L69: 333 | M69: 333 | N69: 333 | O69: 333
A70: LED 18W | B70: =A70 -> LED 18W | D70: 1 | F70: 0 | G70: 0 | H70: 0 | I70: 0 | J70: 221.256 | K70: 456.3259136 | L70: 671.2556204 | M70: 883.0903395 | N70: 1091.874639 | O70: 1297.652444
A71: Compact Fluoro 32W | B71: T5 2X14W | D71: 0.8625368732 | F71: 0 | G71: 0 | H71: 1 | I71: 8 | J71: 8 | K71: 8 | L71: 8 | M71: 8 | N71: 8 | O71: 8
A72: Compact Fluoro 42W | B72: T5 2X14W | D72: 0.9727574751 | F72: 0 | G72: 0 | H72: 101 | I72: 68 | J72: 68 | K72: 68 | L72: 68 | M72: 68 | N72: 68 | O72: 68
A73: Total Energy Efficient Lights | F73: =SUM(F68:F72) -> 585 | G73: 1177 | H73: 1659 | I73: 12944 | J73: 35216.38859 | K73: 35951.40591 | L73: 36644.87562 | M73: 37335.25034 | N73: 38022.57464 | O73: 38706.89244
A75: Total Number of Lights | F75: =SUM(F65,F73) -> 64691.6 | G75: 62837.85 | H75: 70030 | I75: 70695 | J75: 71369 | K75: 72043 | L75: 72717 | M75: 73391 | N75: 74065 | O75: 74739
A80: Input | Cost escalators | J80: =J$2 -> 2015 | K80: =K$2 -> 2016 | L80: 2017 | M80: 2018 | N80: 2019 | O80: 2020
A82: Annual rate of change
A83: Internal labour | J83: 0.0126 | K83: 0.004014119935 | L83: 0.003716198869 | M83: 0.007850022856 | N83: 0.009573685443 | O83: 0.01019291291
A84: External labour | J84: 0 | K84: 0 | L84: 0 | M84: 0 | N84: 0 | O84: 0
A85: Aluminium | J85: 0 | K85: 0 | L85: 0 | M85: 0 | N85: 0 | O85: 0
A86: Copper | J86: 0 | K86: 0 | L86: 0 | M86: 0 | N86: 0 | O86: 0
A87: Steel | J87: 0 | K87: 0 | L87: 0 | M87: 0 | N87: 0 | O87: 0
A88: Oil | J88: 0 | K88: 0 | L88: 0 | M88: 0 | N88: 0 | O88: 0
A89: Concrete | J89: 0 | K89: 0 | L89: 0 | M89: 0 | N89: 0 | O89: 0
A90: Wood | J90: 0 | K90: 0 | L90: 0 | M90: 0 | N90: 0 | O90: 0
A91: General | J91: 0.02372566166 | K91: 0.02709421143 | L91: 0.03820473227 | M91: 0.01422089919 | N91: -0.06112686805 | O91: -0.02405741318
A92: Other | J92: 0 | K92: 0 | L92: 0 | M92: 0 | N92: 0 | O92: 0
A94: Annual rate of change
A95: Internal labour | J95: 1 | K95: =J95*(1+K83) -> 1.00401412 | L95: =K95*(1+L83) -> 1.007745236 | M95: 1.015656059 | N95: 1.025379631 | O95: 1.035831236
A96: External labour | J96: 1 | K96: =J96*(1+K84) -> 1 | L96: 1 | M96: 1 | N96: 1 | O96: 1
A97: Aluminium | J97: 1 | K97: 1 | L97: 1 | M97: 1 | N97: 1 | O97: 1
A98: Copper | J98: 1 | K98: 1 | L98: 1 | M98: 1 | N98: 1 | O98: 1
A99: Steel | J99: 1 | K99: 1 | L99: 1 | M99: 1 | N99: 1 | O99: 1
A100: Oil | J100: 1 | K100: 1 | L100: 1 | M100: 1 | N100: 1 | O100: 1
A101: Concrete | J101: 1 | K101: 1 | L101: 1 | M101: 1 | N101: 1 | O101: 1
A102: Wood | J102: 1 | K102: 1 | L102: 1 | M102: 1 | N102: 1 | O102: 1
A103: General | J103: 1 | K103: 1.027094211 | L103: 1.066334071 | M103: 1.0814983 | N103: 1.015389696 | O103: 0.9909620468
A104: Other | J104: 1 | K104: 1 | L104: 1 | M104: 1 | N104: 1 | O104: 1

Sheet DNSP Inputs O & M
A1: Public Lighting Cost Build-up Model
A3: Jemena | C3: O & M Data Inputs
C5: Real 2015 $
A7: Input parameters | C7: 2015 | D7: 2016 | E7: 2017 | F7: 2018 | G7: 2019 | H7: 2020
A9: Inputs - all lamps
A11: Material premium for rural areas | C11: 0.05 | D11: 0.05 | E11: 0.05 | F11: 0.05 | G11: 0.05 | H11: 0.05
A12: Labour rate (per hour) | C12: 89.64428472 | D12: =C12*(1+'DNSP Inputs General'!K$83) -> 90.00412763 | E12: =D12*(1+'DNSP Inputs General'!L$83) -> 90.33860087 | F12: =E12*(1+'DNSP Inputs General'!M$83) -> 91.04776095 | G12: =F12*(1+'DNSP Inputs General'!N$83) -> 91.91942357 | H12: =G12*(1+'DNSP Inputs General'!O$83) -> 92.85635025
A13: Labour rate for night patrols (per hour) | C13: 103.0909274 | D13: =C13*(1+'DNSP Inputs General'!K$83) -> 103.5047468 | E13: =D13*(1+'DNSP Inputs General'!L$83) -> 103.889391 | F13: =E13*(1+'DNSP Inputs General'!M$83) -> 104.7049251 | G13: =F13*(1+'DNSP Inputs General'!N$83) -> 105.7073371 | H13: =G13*(1+'DNSP Inputs General'!O$83) -> 106.7848028
A14: Elevated platform vehicle (per hour) - urban MV,urban T5 | C14: 39.70489021 | D14: 40.7806629 | E14: 42.33867721 | F14: 42.94077127 | G14: 40.31593641 | H14: 39.34603927
A15: Elevated platform vehicle (per hour) - rural MV, rural T5, S-HP | C15: 51.04914455 | D15: 52.43228087 | E15: 54.43544212 | F15: 55.20956306 | G15: 51.83477538 | H15: 50.58776477
A16: Patrol vehicle (per hour) | C16: 11.34425434 | D16: 11.65161797 | E16: 12.09676492 | F16: 12.26879179 | G16: 11.51883897 | H16: 11.2417255
A17: Number of hours in a day | C17: 8 | D17: 8 | E17: 8 | F17: 8 | G17: 8 | H17: 8
A18: Indirect overheads | C18: 0.25 | D18: 0.25 | E18: 0.25 | F18: 0.25 | G18: 0.25 | H18: 0.25
D19: =C12*'DNSP Inputs General'!K95 -> 90.00412763 | E19: =D12*'DNSP Inputs General'!L95 -> 90.70123085 | F19: =E12*'DNSP Inputs General'!M95 -> 91.75294735 | G19: =F12*'DNSP Inputs General'!N95 -> 93.35851951 | H19: =G12*'DNSP Inputs General'!O95 -> 95.21301014
A22: Inputs - MV80
A24: Depreciation period | B24: years | C24: 20 | D24: =C24 -> 20 | E24: =D24 -> 20 | F24: =E24 -> 20 | G24: =F24 -> 20 | H24: =G24 -> 20
A25: Lamps - bulk change | B25: years | C25: 4 | D25: 4 | E25: 4 | F25: 4 | G25: 4 | H25: 4
A26: PE cells - bulk change | B26: years | C26: 8 | D26: 8 | E26: 8 | F26: 8 | G26: 8 | H26: 8
A27: Proportion of lamps that fail between bulk change | C27: 0.196 | D27: 0.256 | E27: 0.256 | F27: 0.256 | G27: 0.256 | H27: 0.256
A29: Unit cost - lamp | C29: 5.543170982 | D29: 5.693358829 | E29: 5.910872079 | F29: 5.994929995 | G29: 5.6284787 | H29: 5.493072062
A30: Unit cost - PE cell | C30: 22.37888504 | D30: 22.98522328 | E30: 23.86336758 | F30: 24.20272613 | G30: 22.72328928 | H30: 22.17662572
A31: Unit cost - luminaire | C31: 192.3128576 | D31: 197.5234228 | E31: 205.0697523 | F31: 207.9860286 | G31: 195.2724941 | H31: 190.574743
A32: Unit cost - miscellaneous materials (bulk lamp) | C32: 1.212947699 | D32: 1.24581156 | E32: 1.293407457 | F32: 1.311800874 | G32: 1.231614595 | H32: 1.201985134
A33: Unit cost - miscellaneous materials (repair) | C33: 12.12947699 | D33: 12.4581156 | E33: 12.93407457 | F33: 13.11800874 | G33: 12.31614595 | H33: 12.01985134
A34: Number of men in crew | C34: 2 | D34: 2 | E34: 2 | F34: 2 | G34: 2 | H34: 2
A35: Number of bulk lamp changes in 1 day - urban | C35: 90 | D35: 85 | E35: 85 | F35: 85 | G35: 85 | H35: 85
A36: Number of bulk lamp changes in 1 day - rural | C36: 75 | D36: 70 | E36: 70 | F36: 70 | G36: 70 | H36: 70
A37: Number of repairs in 1 day - urban | C37: 30 | D37: 15 | E37: 15 | F37: 15 | G37: 15 | H37: 15
A38: Number of repairs in 1 day - rural | C38: 25 | D38: 12 | E38: 12 | F38: 12 | G38: 12 | H38: 12
A39: % of repairs - lamps | C39: 0.6 | D39: 0.6 | E39: 0.6 | F39: 0.6 | G39: 0.6 | H39: 0.6
A40: % of repairs - PE cells | C40: 0.5 | D40: 0.5 | E40: 0.5 | F40: 0.5 | G40: 0.5 | H40: 0.5
A41: % of repairs - luminaires | C41: 0.15 | D41: 0.15 | E41: 0.15 | F41: 0.15 | G41: 0.15 | H41: 0.15
A42: % of repairs - other | C42: 0.1 | D42: 0.1 | E42: 0.1 | F42: 0.1 | G42: 0.1 | H42: 0.1
A44: Other Maintenance and Repair costs
A45: Traffic control costs | C45: 3441.865179 | D45: =D48*D49 -> 41618.53763 | E45: =E48*E49 -> 32294.5508 | F45: 31689.70279 | G45: 31839.57605 | H45: 31605.99538
A46: Other costs : Describe……………………………………. | C46: 0 | D46: 0 | E46: 0 | F46: 0 | G46: 0 | H46: 0
C47: =SUM(C45:C46) -> 3441.865179 | D47: 41618.53763 | E47: 32294.5508 | F47: 31689.70279 | G47: 31839.57605 | H47: 31605.99538
A48: Number of Lights | C48: ='DNSP Inputs General'!J41 -> 13619.0208 | D48: ='DNSP Inputs General'!K41 -> 13422.9069 | E48: ='DNSP Inputs General'!L41 -> 13229.61704 | F48: ='DNSP Inputs General'!M41 -> 13039.11056 | G48: ='DNSP Inputs General'!N41 -> 12851.34736 | H48: ='DNSP Inputs General'!O41 -> 12666.28796
A49: Unit Cost | C49: =IF(C48=0,0,C47/C48) -> 0.252724864 | D49: 3.100560701 | E49: 2.441079791 | F49: 2.430357703 | G49: 2.477528243 | H49: 2.495284765
A51: Location of selected public lighting assets within distributors' areas (%)
A52: Urban | C52: 0.97 | D52: 0.97 | E52: 0.97 | F52: 0.97 | G52: 0.97 | H52: 0.97
A53: Rural | C53: 0.03 | D53: 0.03 | E53: 0.03 | F53: 0.03 | G53: 0.03 | H53: 0.03
A57: Inputs - S-HP150
A59: Depreciation period | B59: years | C59: 20 | D59: =C59 -> 20 | E59: =D59 -> 20 | F59: =E59 -> 20 | G59: =F59 -> 20 | H59: =G59 -> 20
A60: Number of patrols per year | C60: 3 | D60: 3 | E60: 3 | F60: 3 | G60: 3 | H60: 3
A61: Lamps - frequency of replacement | B61: years | C61: 5 | D61: 5 | E61: 5 | F61: 5 | G61: 5 | H61: 5
A62: PE cells - frequency of replacement | B62: years | C62: 10 | D62: 10 | E62: 10 | F62: 10 | G62: 10 | H62: 10
A65: Unit cost - lamp | C65: 40.08792144 | D65: 41.17407206 | E65: 42.74711646 | F65: 43.35501889 | G65: 40.70486237 | H65: 39.72560868
A66: Unit cost - PE cell | C66: 21.77241119 | D66: 22.3623175 | E66: 23.21666385 | F66: 23.54682569 | G66: 22.10748198 | H66: 21.57563315
A67: Unit cost - miscellaneous materials | C67: 2.425895397 | D67: 2.49162312 | E67: 2.586814914 | F67: 2.623601748 | G67: 2.46322919 | H67: 2.403970268
A68: Number of men in crew - road patrols | C68: 2 | D68: 2 | E68: 2 | F68: 2 | G68: 2 | H68: 2
A69: Number of men in crew - repairs | C69: 2 | D69: 2 | E69: 2 | F69: 2 | G69: 2 | H69: 2
A70: Number of lamps patrolled in 1 day - urban | C70: 2500 | D70: 3000 | E70: 3000 | F70: 3000 | G70: 3000 | H70: 3000
A71: Number of lamps patrolled in 1 day - rural | C71: 2000 | D71: 2000 | E71: 2000 | F71: 2000 | G71: 2000 | H71: 2000
A72: Number of repairs in 1 day - urban | C72: 20 | D72: 15 | E72: 15 | F72: 15 | G72: 15 | H72: 15
A73: Number of repairs in 1 day - rural | C73: 16 | D73: 12 | E73: 12 | F73: 12 | G73: 12 | H73: 12
A75: Other Maintenance and Repair costs | J75: Submission Model | M75: =C$7 -> 2015 | N75: =D$7 -> 2016 | O75: 2017 | P75: 2018 | Q75: 2019
A76: Traffic control costs | C76: 73423.27712 | D76: 88431.5788 | E76: 89629.99673 | F76: 90814.05137 | G76: 91985.84834 | H76: 93147.18457 | J76: Traffic control unit cost - urban | M76: 17.43821386 | N76: 17.72225755 | O76: 17.98602887 | P76: 18.27493572 | Q76: 18.62499705
A77: Other costs : Describe……………………………………. | C77: 0 | D77: 0 | E77: 0 | F77: 0 | G77: 0 | H77: 0 | J77: Traffic control unit cost - rural | M77: 19.92938727 | N77: 20.25400863 | O77: 20.55546157 | P77: 20.88564082 | Q77: 21.28571091
C78: =SUM(C76:C77) -> 73423.27712 | D78: 88431.5788 | E78: 89629.99673 | F78: 90814.05137 | G78: 91985.84834 | H78: 93147.18457 | J78: Traffic control unit cost - Overall | M78: =M76*D83+M77*D84 -> 17.56277253 | N78: =N76*E83+N77*E84 -> 17.8488451 | O78: 18.11450051 | P78: 18.40547097 | Q78: 18.75803274
A79: Number of Lights | C79: ='DNSP Inputs General'!J42 -> 15491.35529 | D79: ='DNSP Inputs General'!K42 -> 15707.2076 | E79: ='DNSP Inputs General'!L42 -> 15920.07047 | F79: ='DNSP Inputs General'!M42 -> 16130.38213 | G79: ='DNSP Inputs General'!N42 -> 16338.51658 | H79: ='DNSP Inputs General'!O42 -> 16544.793 | J79: Total Cost | M79: =M78*D79 -> 275862.1142 | N79: =N78*E79 -> 284154.8718 | O79: 292193.8152 | P79: 300718.0926 | Q79: 310347.7687
A80: Unit Cost | C80: =IF(C79=0,0,C78/C79) -> 4.739629022 | D80: 5.63 | E80: 5.63 | F80: 5.63 | G80: 5.63 | H80: 5.63
A82: Location of selected public lighting assets within distributors' areas (%)
A83: Urban | C83: 0.95 | D83: 0.95 | E83: 0.95 | F83: 0.95 | G83: 0.95 | H83: 0.95
A84: Rural | C84: 0.05 | D84: 0.05 | E84: 0.05 | F84: 0.05 | G84: 0.05 | H84: 0.05
A88: Inputs - S-HP250
A90: Depreciation period | B90: years | C90: =C59 -> 20 | D90: 20 | E90: 20 | F90: 20 | G90: 20 | H90: 20
A91: Number of patrols per year | C91: 3 | D91: 3 | E91: 3 | F91: 3 | G91: 3 | H91: 3
A92: Lamps - frequency of replacement | B92: years | C92: 5 | D92: 5 | E92: 5 | F92: 5 | G92: 5 | H92: 5
A93: PE cells - frequency of replacement | B93: years | C93: 10 | D93: 10 | E93: 10 | F93: 10 | G93: 10 | H93: 10
A96: Unit cost - lamp | C96: 40.28199307 | D96: 41.37340191 | E96: 42.95406165 | F96: 43.56490703 | G96: 40.90192071 | H96: 39.9179263
A97: Unit cost - PE cell | C97: 21.77241119 | D97: 22.3623175 | E97: 23.21666385 | F97: 23.54682569 | G97: 22.10748198 | H97: 21.57563315
A98: Unit cost - miscellaneous materials | C98: 2.425895397 | D98: 2.49162312 | E98: 2.586814914 | F98: 2.623601748 | G98: 2.46322919 | H98: 2.403970268
A99: Number of men in crew - road patrols | C99: =C68 -> 2 | D99: 2 | E99: 2 | F99: 2 | G99: 2 | H99: 2
A100: Number of men in crew - repairs | C100: 2 | D100: 2 | E100: 2 | F100: 2 | G100: 2 | H100: 2
A101: Number of lamps patrolled in 1 day - urban | C101: 2500 | D101: 3000 | E101: 3000 | F101: 3000 | G101: 3000 | H101: 3000
A102: Number of lamps patrolled in 1 day - rural | C102: 2000 | D102: 2000 | E102: 2000 | F102: 2000 | G102: 2000 | H102: 2000
A103: Number of repairs in 1 day - urban | C103: 20 | D103: =D72 -> 15 | E103: 15 | F103: 15 | G103: 15 | H103: 15
A104: Number of repairs in 1 day - rural | C104: 16 | D104: =D73 -> 12 | E104: 12 | F104: 12 | G104: 12 | H104: 12
A106: Other Maintenance and Repair costs | J106: Submission Model | M106: =C$7 -> 2015 | N106: =D$7 -> 2016 | O106: =E$7 -> 2017 | P106: =F$7 -> 2018 | Q106: =G$7 -> 2019
A107: Traffic control costs | C107: 23570.09753 | D107: 25988.38483 | E107: 26040.21325 | F107: 26089.49653 | G107: 26136.35965 | H107: 26180.92145 | J107: Trafffic control unit cost - urban | M107: 17.43821386 | N107: 17.72225755 | O107: 17.98602887 | P107: 18.27493572 | Q107: 18.62499705
A108: Other costs : Describe……………………………………. | C108: 0 | D108: 0 | E108: 0 | F108: 0 | G108: 0 | H108: 0 | J108: Trafffic control unit cost - rural | M108: 19.92938727 | N108: 20.25400863 | O108: 20.55546157 | P108: 20.88564082 | Q108: 21.28571091
C109: =SUM(C107:C108) -> 23570.09753 | D109: 25988.38483 | E109: 26040.21325 | F109: 26089.49653 | G109: 26136.35965 | H109: 26180.92145 | J109: Traffic control unit cost - Overall | M109: =M107*D114+M108*D115 -> 17.63750773 | N109: =N107*E114+N108*E115 -> 17.92479764 | O109: =O107*F114+O108*F115 -> 18.19158349 | P109: =P107*G114+P108*G115 -> 18.48379213 | Q109: =Q107*H114+Q108*H115 -> 18.83785416
A110: Number of Lights | C110: ='DNSP Inputs General'!J43 -> 4732.459821 | D110: ='DNSP Inputs General'!K43 -> 4742.405991 | E110: ='DNSP Inputs General'!L43 -> 4751.863732 | F110: ='DNSP Inputs General'!M43 -> 4760.857031 | G110: ='DNSP Inputs General'!N43 -> 4769.408695 | H110: ='DNSP Inputs General'!O43 -> 4777.540411 | J110: Total Cost | M110: =M109*D110 -> 83644.22233 | N110: =N109*E110 -> 85176.1958 | O110: =O109*F110 -> 86607.52816 | P110: =P109*G110 -> 88156.75888 | Q110: =Q109*H110 -> 89998.60949
A111: Unit Cost | C111: =IF(C110=0,0,C109/C110) -> 4.980517199 | D111: 5.48 | E111: 5.48 | F111: 5.48 | G111: 5.48 | H111: 5.48
A113: Location of selected public lighting assets within distributors' areas (%)
A114: Urban | C114: 0.92 | D114: 0.92 | E114: 0.92 | F114: 0.92 | G114: 0.92 | H114: 0.92
A115: Rural | C115: 0.08 | D115: 0.08 | E115: 0.08 | F115: 0.08 | G115: 0.08 | H115: 0.08
A119: Dedicated street lighting poles
A121: Period of inspection | B121: years | C121: 5 | D121: 5 | E121: 5 | F121: 5 | G121: 5 | H121: 5
A122: Pole inspection rate | B122: per day | C122: 75 | D122: 75 | E122: 75 | F122: 75 | G122: 75 | H122: 75
A123: Depreciation of dedicated street lighting pole & bracket | B123: years | C123: 35 | D123: =C123 -> 35 | E123: =D123 -> 35 | F123: =E123 -> 35 | G123: =F123 -> 35 | H123: =G123 -> 35
A124: Proportion of lights on dedicated poles | C124: 0.1908204 | D124: 0.3383266143 | E124: 0.3383266143 | F124: 0.3383266143 | G124: 0.3383266143 | H124: 0.3383266143
A128: Other direct costs
A129: Call centre
A130: Number of calls | C130: 4222 | D130: 4222 | E130: 4222 | F130: 4222 | G130: 4222 | H130: 4222
A131: Average cost per call $ | C131: 11.34425434 | D131: 11.34425434 | E131: 11.34425434 | F131: 11.34425434 | G131: 11.34425434 | H131: 11.34425434
C132: =C130*C131 -> 47895.44184 | D132: 47895.44184 | E132: 47895.44184 | F132: 47895.44184 | G132: 47895.44184 | H132: 47895.44184
A134: GIS and other | C134: 113442.5434 | D134: 113442.5434 | E134: 113442.5434 | F134: 113442.5434 | G134: 113442.5434 | H134: 113442.5434
A135: Complaints handling | C135: 34032.76303 | D135: 34032.76303 | E135: 34032.76303 | F135: 34032.76303 | G135: 34032.76303 | H135: 34032.76303
A136: Account management
A139: ENERGY EFFICIENT LIGHTS
A141: Inputs - T5 (2 X 14W)
A143: Depreciation period | B143: years | C143: 20 | D143: =C143 -> 20 | E143: =D143 -> 20 | F143: =E143 -> 20 | G143: =F143 -> 20 | H143: =G143 -> 20
A144: Lamps - bulk change | B144: years | C144: 4 | D144: 4 | E144: 4 | F144: 4 | G144: 4 | H144: 4
A145: PE cells - bulk change | B145: years | C145: 8 | D145: 8 | E145: 8 | F145: 8 | G145: 8 | H145: 8
A146: Ballast unit life | B146: years | C146: 20 | D146: =C146 -> 20 | E146: =D146 -> 20 | F146: =E146 -> 20 | G146: =F146 -> 20 | H146: =G146 -> 20
A147: Proportion of luminaires that fail between bulk change | C147: 0.114 | D147: 0.114 | E147: 0.114 | F147: 0.114 | G147: 0.114 | H147: 0.114
A149: Unit cost - lamp | C149: 9.703581588 | D149: 9.96649248 | E149: 10.34725966 | F149: 10.49440699 | G149: 9.852916761 | H149: 9.615881072
A150: Unit cost - PE cell | C150: 16.37479393 | D150: 16.81845606 | E150: 17.46100067 | F150: 17.7093118 | G150: 16.62679703 | H150: 16.22679931
A151: Unit cost - luminaire | C151: 234.0989058 | D151: 240.4416311 | E151: 249.6276392 | F151: 253.1775687 | G151: 237.7016169 | H151: 231.9831309
A152: Unit cost - miscellaneous materials (bulk lamp) | C152: 1.212947699 | D152: 1.24581156 | E152: 1.293407457 | F152: 1.311800874 | G152: 1.231614595 | H152: 1.201985134
A153: Unit cost - miscellaneous materials (repair) | C153: 12.12947699 | D153: 12.4581156 | E153: 12.93407457 | F153: 13.11800874 | G153: 12.31614595 | H153: 12.01985134
A154: Number of men in crew | C154: 2 | D154: 2 | E154: 2 | F154: 2 | G154: 2 | H154: 2
A155: Number of bulk lamp changes in 1 day - urban | C155: 77 | D155: 74 | E155: 74 | F155: 74 | G155: 74 | H155: 74
A156: Number of bulk lamp changes in 1 day - rural | C156: 64 | D156: 61 | E156: 61 | F156: 61 | G156: 61 | H156: 61
A157: Number of repairs in 1 day - urban | C157: 26 | D157: 20 | E157: 20 | F157: 20 | G157: 20 | H157: 20
A158: Number of repairs in 1 day - rural | C158: 21 | D158: 15 | E158: 15 | F158: 15 | G158: 15 | H158: 15
A159: % of repairs - lamps | C159: 0.6 | D159: 0.6 | E159: 0.6 | F159: 0.6 | G159: 0.6 | H159: 0.6
A160: % of repairs - PE cells | C160: 0.5 | D160: 0.5 | E160: 0.5 | F160: 0.5 | G160: 0.5 | H160: 0.5
A161: % of repairs - luminaires | C161: 0.15 | D161: 0.15 | E161: 0.15 | F161: 0.15 | G161: 0.15 | H161: 0.15
A162: % of repairs - other | C162: 0.1 | D162: 0.1 | E162: 0.1 | F162: 0.1 | G162: 0.1 | H162: 0.1
A164: Other Maintenance and Repair costs
A165: Traffic control costs | C165: 1663.049276 | D165: =D168*D169 -> 69825.26023 | E165: =E168*E169 -> 73051.10058 | F165: 73900.33335 | G165: 76303.84138 | H165: 77853.30024
A166: Other costs : Describe……………………………………. | C166: 0 | D166: 0 | E166: 0 | F166: 0 | G166: 0 | H166: 0
C167: =SUM(C165:C166) -> 1663.049276 | D167: 69825.26023 | E167: 73051.10058 | F167: 73900.33335 | G167: 76303.84138 | H167: 77853.30024
A168: Number of Lights | C168: ='DNSP Inputs General'!J68 -> 34586.13259 | D168: ='DNSP Inputs General'!K68 -> 35086.08 | E168: ='DNSP Inputs General'!L68 -> 35564.62 | F168: ='DNSP Inputs General'!M68 -> 36043.16 | G168: ='DNSP Inputs General'!N68 -> 36521.7 | H168: ='DNSP Inputs General'!O68 -> 37000.24
A169: Unit Cost | C169: =IF(C168=0,0,C167/C168) -> 0.04808427979 | D169: 1.990112895 | E169: 2.054038552 | F169: 2.050328921 | G169: 2.089274086 | H169: 2.104129601
A171: Location of selected public lighting assets within distributors' areas (%)
A172: Urban | C172: 0.97 | D172: 0.97 | E172: 0.97 | F172: 0.97 | G172: 0.97 | H172: 0.97
A173: Rural | C173: 0.03 | D173: 0.03 | E173: 0.03 | F173: 0.03 | G173: 0.03 | H173: 0.03
A177: Inputs -LED18W
A179: Depreciation period | B179: years | D179: 20 | E179: =D179 -> 20 | F179: =E179 -> 20 | G179: =F179 -> 20 | H179: =G179 -> 20
A180: PE cells - bulk change | B180: years | D180: 8 | E180: 8 | F180: 8 | G180: 8 | H180: 8
A181: Ballast unit life | B181: years | D181: 20 | E181: =D181 -> 20 | F181: =E181 -> 20 | G181: =F181 -> 20 | H181: =G181 -> 20
A182: Proportion of luminaires that fail between bulk change | D182: 0.1 | E182: 0.1 | F182: 0.1 | G182: 0.1 | H182: 0.1
A183: Unit cost - PE cell | D183: 15.90519239 | E183: 16.512846 | F183: 16.74767352 | G183: 15.72394069 | H183: 15.34566335
A184: Unit cost - luminaire | D184: 314.6194988 | E184: 326.6394526 | F184: 331.2845593 | G184: 311.0341717 | H184: 303.5514942
A185: Unit cost - miscellaneous materials (repair) | D185: 12.4581156 | E185: 12.93407457 | F185: 13.11800874 | G185: 12.31614595 | H185: 12.01985134
A186: Number of men in crew | D186: 2 | E186: 2 | F186: 2 | G186: 2 | H186: 2
A187: Number of bulk PE cells changes in 1 day - urban | D187: 77 | E187: 77 | F187: 77 | G187: 77 | H187: 77
A188: Number of bulk PE cells changes in 1 day - rural | D188: 64 | E188: 64 | F188: 64 | G188: 64 | H188: 64
A189: Number of repairs in 1 day - urban | D189: 26 | E189: 26 | F189: 26 | G189: 26 | H189: 26
A190: Number of repairs in 1 day - rural | D190: 21 | E190: 21 | F190: 21 | G190: 21 | H190: 21
A191: % of repairs - PE cells | D191: 0.5 | E191: 0.5 | F191: 0.5 | G191: 0.5 | H191: 0.5
A192: % of repairs - luminaires | D192: 0.15 | E192: 0.15 | F192: 0.15 | G192: 0.15 | H192: 0.15
A193: % of repairs - other | D193: 0.1 | E193: 0.1 | F193: 0.1 | G193: 0.1 | H193: 0.1
A195: Other Maintenance and Repair costs
A196: Traffic control costs | D196: =D199*D200 -> 272.9632348 | E196: =E199*E200 -> 738.4303343 | F196: 1313.415472 | G196: 1656.734166 | H196: 1983.290003
A197: Other costs : Describe……………………………………. | D197: 0 | E197: 0 | F197: 0 | G197: 0 | H197: 0
C198: =SUM(C196:C197) -> 0 | D198: 272.9632348 | E198: 738.4303343 | F198: 1313.415472 | G198: 1656.734166 | H198: 1983.290003
A199: Number of Lights | C199: ='DNSP Inputs General'!J70 -> 221.256 | D199: ='DNSP Inputs General'!K70 -> 456.3259136 | E199: ='DNSP Inputs General'!L70 -> 671.2556204 | F199: ='DNSP Inputs General'!M70 -> 883.0903395 | G199: ='DNSP Inputs General'!N70 -> 1091.874639 | H199: ='DNSP Inputs General'!O70 -> 1297.652444
A200: Unit Cost | C200: =IF(C199=0,0,C198/C199) -> 0 | D200: 0.5981760549 | E200: 1.100073224 | F200: 1.487294576 | G200: 1.517330019 | H200: 1.52836764
A202: Location of selected public lighting assets within distributors' areas (%)
A203: Urban | D203: 1 | E203: 1 | F203: 1 | G203: 1 | H203: 1
A204: Rural | D204: 0 | E204: 0 | F204: 0 | G204: 0 | H204: 0

Sheet DNSP Inputs Capex
A1: Public Lighting Cost Build-up Model
A3: ='DNSP Inputs O & M'!$A$3 -> Jemena | C3: Capex Data Inputs
C5: Real 2015 $
A7: Input parameters | C7: 2015 | D7: 2016 | E7: 2017 | F7: 2018 | G7: 2019 | H7: 2020
A9: Inputs - all lamps
A11: Material premium for rural areas | C11: ='DNSP Inputs O & M'!C11 -> 0.05 | D11: ='DNSP Inputs O & M'!D11 -> 0.05 | E11: ='DNSP Inputs O & M'!E11 -> 0.05 | F11: ='DNSP Inputs O & M'!F11 -> 0.05 | G11: ='DNSP Inputs O & M'!G11 -> 0.05 | H11: ='DNSP Inputs O & M'!H11 -> 0.05
A12: Labour rate (per hour) | C12: ='DNSP Inputs O & M'!C12 -> 89.64428472 | D12: ='DNSP Inputs O & M'!D12 -> 90.00412763 | E12: ='DNSP Inputs O & M'!E12 -> 90.33860087 | F12: ='DNSP Inputs O & M'!F12 -> 91.04776095 | G12: ='DNSP Inputs O & M'!G12 -> 91.91942357 | H12: ='DNSP Inputs O & M'!H12 -> 92.85635025
A13: Elevated platform vehicle (per hour) - urban MV,urban T5 | C13: ='DNSP Inputs O & M'!C14 -> 39.70489021 | D13: ='DNSP Inputs O & M'!D14 -> 40.7806629 | E13: ='DNSP Inputs O & M'!E14 -> 42.33867721 | F13: ='DNSP Inputs O & M'!F14 -> 42.94077127 | G13: ='DNSP Inputs O & M'!G14 -> 40.31593641 | H13: ='DNSP Inputs O & M'!H14 -> 39.34603927
A14: Elevated platform vehicle (per hour) - rural MV, rural T5, S-HP | C14: ='DNSP Inputs O & M'!C15 -> 51.04914455 | D14: ='DNSP Inputs O & M'!D15 -> 52.43228087 | E14: ='DNSP Inputs O & M'!E15 -> 54.43544212 | F14: ='DNSP Inputs O & M'!F15 -> 55.20956306 | G14: ='DNSP Inputs O & M'!G15 -> 51.83477538 | H14: ='DNSP Inputs O & M'!H15 -> 50.58776477
A15: Number of hours in a day | C15: ='DNSP Inputs O & M'!C17 -> 8 | D15: ='DNSP Inputs O & M'!D17 -> 8 | E15: ='DNSP Inputs O & M'!E17 -> 8 | F15: ='DNSP Inputs O & M'!F17 -> 8 | G15: ='DNSP Inputs O & M'!G17 -> 8 | H15: ='DNSP Inputs O & M'!H17 -> 8
A16: Indirect overheads
A19: Inputs - MV80
A21: Unit cost - luminaire | C21: ='DNSP Inputs O & M'!C31 -> 192.3128576 | D21: ='DNSP Inputs O & M'!D31 -> 197.5234228 | E21: ='DNSP Inputs O & M'!E31 -> 205.0697523 | F21: ='DNSP Inputs O & M'!F31 -> 207.9860286 | G21: ='DNSP Inputs O & M'!G31 -> 195.2724941 | H21: ='DNSP Inputs O & M'!H31 -> 190.574743
A22: Unit cost - miscellaneous materials (bulk lamp) | C22: ='DNSP Inputs O & M'!C32 -> 1.212947699 | D22: ='DNSP Inputs O & M'!D32 -> 1.24581156 | E22: ='DNSP Inputs O & M'!E32 -> 1.293407457 | F22: ='DNSP Inputs O & M'!F32 -> 1.311800874 | G22: ='DNSP Inputs O & M'!G32 -> 1.231614595 | H22: ='DNSP Inputs O & M'!H32 -> 1.201985134
A23: Number of men in crew | C23: ='DNSP Inputs O & M'!C34 -> 2 | D23: ='DNSP Inputs O & M'!D34 -> 2 | E23: ='DNSP Inputs O & M'!E34 -> 2 | F23: ='DNSP Inputs O & M'!F34 -> 2 | G23: ='DNSP Inputs O & M'!G34 -> 2 | H23: ='DNSP Inputs O & M'!H34 -> 2
A24: Number of luminaires replaced per day - urban | C24: 16 | D24: 16 | E24: 16 | F24: 16 | G24: 16 | H24: 16
A25: Number of luminaires replaced per day - rural | C25: 13 | D25: 13 | E25: 13 | F25: 13 | G25: 13 | H25: 13
A27: Other Capex unit costs Describe :……………………… | C27: 0 | D27: 0 | E27: 0 | F27: 0 | G27: 0 | H27: 0
A29: Forecast Quantities to be replaced
A30: Number of luminaires replaced per year - urban | C30: 192 | D30: 189 | E30: 186 | F30: 183 | G30: 180 | H30: 178
A31: Number of luminaires replaced per year - rural | C31: 6 | D31: 6 | E31: 6 | F31: 6 | G31: 6 | H31: 6
A33: MV80 Lights replaced with T5 Energy Efficient Lights
A34: Number of Lights MV80 replaced with T5 per year | D34: 196.1138995 | E34: 193.2898594 | F34: 190.5064854 | G34: 187.763192 | H34: 185.059402
A38: Inputs - S-HP150
A40: Unit cost - luminaire | C40: 227.5975062 | D40: 233.7640811 | E40: 242.6949752 | F40: 246.146316 | G40: 231.1001626 | H40: 225.5404905
A41: Unit cost - miscellaneous materials | C41: ='DNSP Inputs O & M'!C67 -> 2.425895397 | D41: ='DNSP Inputs O & M'!D67 -> 2.49162312 | E41: ='DNSP Inputs O & M'!E67 -> 2.586814914 | F41: ='DNSP Inputs O & M'!F67 -> 2.623601748 | G41: ='DNSP Inputs O & M'!G67 -> 2.46322919 | H41: ='DNSP Inputs O & M'!H67 -> 2.403970268
A42: Number of men in crew | C42: ='DNSP Inputs O & M'!C69 -> 2 | D42: ='DNSP Inputs O & M'!D69 -> 2 | E42: ='DNSP Inputs O & M'!E69 -> 2 | F42: ='DNSP Inputs O & M'!F69 -> 2 | G42: ='DNSP Inputs O & M'!G69 -> 2 | H42: ='DNSP Inputs O & M'!H69 -> 2
A43: Number of luminaires replaced per day - urban | C43: 16 | D43: 16 | E43: 16 | F43: 16 | G43: 16 | H43: 16
A44: Number of luminaires replaced per day - rural | C44: 13 | D44: 13 | E44: 13 | F44: 13 | G44: 13 | H44: 13
A46: Other Capex unit costs Describe :……………………… | C46: 0 | D46: 0 | E46: 0 | F46: 0 | G46: 0 | H46: 0
A48: Forecast Quantities to be replaced
A49: Number of luminaires replaced per year - urban | C49: 408 | D49: 413 | E49: 419 | F49: 425 | G49: 430 | H49: 436
A50: Number of luminaires replaced per year - rural | C50: 21 | D50: 22 | E50: 22 | F50: 22 | G50: 23 | H50: 23
A54: Inputs - S-HP250
A56: Unit cost - luminaire | C56: 230.9937597 | D56: 237.2523535 | E56: 246.3165161 | F56: 249.8193585 | G56: 234.5486835 | H56: 228.9060489
A57: Unit cost - miscellaneous materials | C57: ='DNSP Inputs O & M'!C98 -> 2.425895397 | D57: ='DNSP Inputs O & M'!D98 -> 2.49162312 | E57: ='DNSP Inputs O & M'!E98 -> 2.586814914 | F57: ='DNSP Inputs O & M'!F98 -> 2.623601748 | G57: ='DNSP Inputs O & M'!G98 -> 2.46322919 | H57: ='DNSP Inputs O & M'!H98 -> 2.403970268
A58: Number of men in crew | C58: ='DNSP Inputs O & M'!C100 -> 2 | D58: ='DNSP Inputs O & M'!D100 -> 2 | E58: ='DNSP Inputs O & M'!E100 -> 2 | F58: ='DNSP Inputs O & M'!F100 -> 2 | G58: ='DNSP Inputs O & M'!G100 -> 2 | H58: ='DNSP Inputs O & M'!H100 -> 2
A59: Number of luminaires replaced per day - urban | C59: 16 | D59: 16 | E59: 16 | F59: 16 | G59: 16 | H59: 16
A60: Number of luminaires replaced per day - rural | C60: 13 | D60: 13 | E60: 13 | F60: 13 | G60: 13 | H60: 13
A62: Other Capex unit costs Describe :……………………… | C62: 0 | D62: 0 | E62: 0 | F62: 0 | G62: 0 | H62: 0
A64: Forecast Quantities to be replaced
A65: Number of luminaires replaced per year - urban | C65: 121 | D65: 121 | E65: 121 | F65: 121 | G65: 121 | H65: 121
A66: Number of luminaires replaced per year - rural | C66: 10 | D66: 10 | E66: 11 | F66: 11 | G66: 11 | H66: 11
A70: Dedicated street lighting poles
A72: Cost of pole & bracket | C72: 598.1859349 | D72: 619.0488601 | E72: 642.6994561 | F72: 651.8392203 | G72: 611.9943303 | H72: 597.2713298
A73: Number of poles & brackets replaced per day | C73: 4 | D73: 4 | E73: 4 | F73: 4 | G73: 4 | H73: 4
A74: Cost of bracket on non-dedicated poles | C74: 47.85487479 | D74: 49.15146489 | E74: 51.02928344 | F74: 51.75496574 | G74: 48.59134678 | H74: 47.42236467
A75: Number of brackets replaced per day | C75: 20 | D75: 20 | E75: 20 | F75: 20 | G75: 20 | H75: 20
A77: Other poles & brackets Capex unit costs Describe :………………… | C77: 0 | D77: 0 | E77: 0 | F77: 0 | G77: 0 | H77: 0
A80: Forecast Quantities to be replaced
A81: Number of poles & brackets replaced per year - urban | C81: 321 | D81: 321 | E81: 321 | F81: 321 | G81: 321 | H81: 321
A82: Number of poles & brackets replaced per year - rural | C82: 17 | D82: 17 | E82: 17 | F82: 17 | G82: 17 | H82: 17
A84: Brackets on non-dedicated poles :
A85: Number of brackets replaced per year - urban | C85: 33 | D85: 33 | E85: 33 | F85: 33 | G85: 33 | H85: 33
A86: Number of brackets replaced per year - rural | C86: 2 | D86: 2 | E86: 2 | F86: 2 | G86: 2 | H86: 2
A90: Luminaire Replacements - Other Light types (excluding T5s)
A91: Number of luminaires replaced per year | D91: 0 | E91: 0 | F91: 0 | G91: 0 | H91: 0
A92: Forecast Capex | D92: 0 | E92: 0 | F92: 0 | G92: 0 | H92: 0
A95: ENERGY EFFICIENT LIGHTS
A97: Inputs - T5 (2 X 14W)
A99: Unit cost - luminaire | C99: ='DNSP Inputs O & M'!C151 -> 234.0989058 | D99: ='DNSP Inputs O & M'!D151 -> 240.4416311 | E99: ='DNSP Inputs O & M'!E151 -> 249.6276392 | F99: ='DNSP Inputs O & M'!F151 -> 253.1775687 | G99: ='DNSP Inputs O & M'!G151 -> 237.7016169 | H99: ='DNSP Inputs O & M'!H151 -> 231.9831309
A100: Unit cost - miscellaneous materials (bulk lamp) | C100: ='DNSP Inputs O & M'!C152 -> 1.212947699 | D100: ='DNSP Inputs O & M'!D152 -> 1.24581156 | E100: ='DNSP Inputs O & M'!E152 -> 1.293407457 | F100: ='DNSP Inputs O & M'!F152 -> 1.311800874 | G100: ='DNSP Inputs O & M'!G152 -> 1.231614595 | H100: ='DNSP Inputs O & M'!H152 -> 1.201985134
A101: Number of men in crew | C101: ='DNSP Inputs O & M'!C154 -> 2 | D101: ='DNSP Inputs O & M'!D154 -> 2 | E101: ='DNSP Inputs O & M'!E154 -> 2 | F101: ='DNSP Inputs O & M'!F154 -> 2 | G101: ='DNSP Inputs O & M'!G154 -> 2 | H101: ='DNSP Inputs O & M'!H154 -> 2
A102: Number of luminaires replaced per day - urban | C102: 16 | D102: 16 | E102: 16 | F102: 16 | G102: 16 | H102: 16
A103: Number of luminaires replaced per day - rural | C103: 13 | D103: 13 | E103: 13 | F103: 13 | G103: 13 | H103: 13
A105: Other Capex unit costs Describe :……………………… | D105: 0 | E105: 0 | F105: 0 | G105: 0 | H105: 0
A107: Forecast Quantities to be replaced
A108: Number of luminaires replaced per year - urban | C108: 487 | D108: 494 | E108: 501 | F108: 507 | G108: 514 | H108: 521
A109: Number of luminaires replaced per year - rural | C109: 15 | D109: 15 | E109: 15 | F109: 16 | G109: 16 | H109: 16
A113: Inputs -LED18W
A115: Unit cost - luminaire | C115: =D115/(1+'DNSP Inputs General'!K91) -> 306.32 | D115: ='DNSP Inputs O & M'!D184 -> 314.6194988 | E115: ='DNSP Inputs O & M'!E184 -> 326.6394526 | F115: ='DNSP Inputs O & M'!F184 -> 331.2845593 | G115: ='DNSP Inputs O & M'!G184 -> 311.0341717 | H115: ='DNSP Inputs O & M'!H184 -> 303.5514942
A116: Number of men in crew | C116: 2 | D116: ='DNSP Inputs O & M'!D186 -> 2 | E116: ='DNSP Inputs O & M'!E186 -> 2 | F116: ='DNSP Inputs O & M'!F186 -> 2 | G116: ='DNSP Inputs O & M'!G186 -> 2 | H116: ='DNSP Inputs O & M'!H186 -> 2
A117: Number of luminaires replaced per day - urban | C117: 16 | D117: 16 | E117: 16 | F117: 16 | G117: 16 | H117: 16
A118: Number of luminaires replaced per day - rural | C118: 13 | D118: 13 | E118: 13 | F118: 13 | G118: 13 | H118: 13
A120: Other Capex unit costs Describe :……………………… | D120: 0 | E120: 0 | F120: 0 | G120: 0 | H120: 0
A122: Forecast Quantities to be replaced
A123: Number of luminaires replaced per year - urban | C123: 3 | D123: 7 | E123: 10 | F123: 13 | G123: 16 | H123: 19
A124: Number of luminaires replaced per year - rural | C124: 0 | D124: 0 | E124: 0 | F124: 0 | G124: 0 | H124: 0
A127: VICROADS FRANGIBLE POLES
A129: Unit cost - frangible pole | C129: 1944 | D129: =C129*(1+'DNSP Inputs General'!K91) -> 1996.671147 | E129: =D129*(1+'DNSP Inputs General'!L91) -> 2072.953434 | F129: =E129*(1+'DNSP Inputs General'!M91) -> 2102.432695 | G129: =F129*(1+'DNSP Inputs General'!N91) -> 1973.917569 | H129: =G129*(1+'DNSP Inputs General'!O91) -> 1926.430219
A130: Number of poles frangible replaced per day | D130: 4 | E130: 4 | F130: 4 | G130: 4 | H130: 4
A132: Forecast Quantities to be replaced
A133: Number of frangible poles replaced per year - urban | D133: 46 | E133: 46 | F133: 46 | G133: 46 | H133: 46
A134: Number of frangible replaced per year - rural | D134: 4 | E134: 4 | F134: 4 | G134: 4 | H134: 4

Sheet PL Tariffs - Excl. RR
A1: ='DNSP Inputs O & M'!$A$3 -> Jemena | E1: Global Check | F1: =IF(SUM('Total RAB'!F1,'Depn & WACC Post 2004'!F1,'Cashflow Summary'!F1,'PL Tariff Components - Excl. RR'!W1)<1,"Ok","Error") -> Ok
A3: Public Lighting Tariffs | C3: Nominal Prices | J3: Nominal Price Movement | P3: Real Price Movement (Implied X Factor)
A4: Excluding Revenue Recovery | C4: Actual
A5: ='DNSP Inputs General'!A$40 -> Existing Lights | C5: ='DNSP Inputs General'!J$2 -> 2015 | D5: ='DNSP Inputs General'!K$2 -> 2016 | E5: ='DNSP Inputs General'!L$2 -> 2017 | F5: ='DNSP Inputs General'!M$2 -> 2018 | G5: ='DNSP Inputs General'!N$2 -> 2019 | H5: ='DNSP Inputs General'!O$2 -> 2020 | J5: =D5 -> 2016 | K5: =E5 -> 2017 | L5: 2018 | M5: 2019 | N5: 2020 | P5: =J5 -> 2016 | Q5: =K5 -> 2017 | R5: 2018 | S5: 2019 | T5: 2020
A6: ='DNSP Inputs General'!A41 -> Mercury Vapour 80 watt | C6: ='DNSP Inputs General'!E41 -> 48.83 | D6: ='Charges Summary'!D$31 -> 52.61461048 | E6: ='Charges Summary'!E$31 -> 53.77345784 | F6: ='Charges Summary'!F$31 -> 55.58538331 | G6: ='Charges Summary'!G$31 -> 56.43645262 | H6: ='Charges Summary'!H$31 -> 57.75740414 | J6: =IF(C6=0,"",D6/C6-1) -> 0.07750584639 | K6: =IF(D6=0,"",E6/D6-1) -> 0.0220252008 | L6: =IF(E6=0,"",F6/E6-1) -> 0.03369553575 | M6: =IF(F6=0,"",G6/F6-1) -> 0.01531102709 | N6: =IF(G6=0,"",H6/G6-1) -> 0.02340599843 | P6: =IF(C6=0,"",(D6/'Charges Summary'!D$4)/C6-1) -> 0.0530428211 | Q6: =IF(D6=0,"",(E6/'Charges Summary'!E$4)/(D6/'Charges Summary'!D$4)-1) -> -0.001178226269 | R6: =IF(E6=0,"",(F6/'Charges Summary'!F$4)/(E6/'Charges Summary'!E$4)-1) -> 0.01022715262 | S6: =IF(F6=0,"",(G6/'Charges Summary'!G$4)/(F6/'Charges Summary'!F$4)-1) -> -0.007739965544 | T6: =IF(G6=0,"",(H6/'Charges Summary'!H$4)/(G6/'Charges Summary'!G$4)-1) -> 0.0001712225806
A7: ='DNSP Inputs General'!A42 -> Sodium High Pressure 150 watt | C7: ='DNSP Inputs General'!E42 -> 91.54 | D7: ='Charges Summary'!D$55 -> 95.62551964 | E7: ='Charges Summary'!E$55 -> 99.21431989 | F7: ='Charges Summary'!F$55 -> 102.48122 | G7: ='Charges Summary'!G$55 -> 103.7342826 | H7: ='Charges Summary'!H$55 -> 106.0643876 | J7: 0.04463097703 | K7: 0.03752973337 | L7: 0.03292770727 | M7: 0.01222724166 | N7: 0.02246224623 | P7: =IF(C7=0,"",(D7/'Charges Summary'!D$4)/C7-1) -> 0.02091432241 | Q7: =IF(D7=0,"",(E7/'Charges Summary'!E$4)/(D7/'Charges Summary'!D$4)-1) -> 0.01397430099 | R7: =IF(E7=0,"",(F7/'Charges Summary'!F$4)/(E7/'Charges Summary'!E$4)-1) -> 0.009476756448 | S7: =IF(F7=0,"",(G7/'Charges Summary'!G$4)/(F7/'Charges Summary'!F$4)-1) -> -0.01075373861 | T7: =IF(G7=0,"",(H7/'Charges Summary'!H$4)/(G7/'Charges Summary'!G$4)-1) -> -0.0007511032565
A8: ='DNSP Inputs General'!A43 -> Sodium High Pressure 250 watt | C8: ='DNSP Inputs General'!E43 -> 93.95 | D8: ='Charges Summary'!D$71 -> 96.82789642 | E8: ='Charges Summary'!E$71 -> 100.4446582 | F8: ='Charges Summary'!F$71 -> 103.7388151 | G8: ='Charges Summary'!G$71 -> 105.0060205 | H8: ='Charges Summary'!H$71 -> 107.355394 | J8: 0.03063221304 | K8: 0.03735247715 | L8: 0.03279573964 | M8: 0.01221534538 | N8: 0.02237370305 | P8: =IF(C8=0,"",(D8/'Charges Summary'!D$4)/C8-1) -> 0.007233377694 | Q8: =IF(D8=0,"",(E8/'Charges Summary'!E$4)/(D8/'Charges Summary'!D$4)-1) -> 0.01380106909 | R8: =IF(E8=0,"",(F8/'Charges Summary'!F$4)/(E8/'Charges Summary'!E$4)-1) -> 0.00934778493 | S8: =IF(F8=0,"",(G8/'Charges Summary'!G$4)/(F8/'Charges Summary'!F$4)-1) -> -0.01076536481 | T8: =IF(G8=0,"",(H8/'Charges Summary'!H$4)/(G8/'Charges Summary'!G$4)-1) -> -0.0008376362024
A9: ='DNSP Inputs General'!A44 -> 55W Ind | C9: ='DNSP Inputs General'!E44 -> 61.03 | D9: =IF('DNSP Inputs General'!$B44='DNSP Inputs General'!$A$41,D$6,IF('DNSP Inputs General'!$B44='DNSP Inputs General'!$A$42,D$7,D$8))*'DNSP Inputs General'!$D44 -> 65.7682631 | E9: =IF('DNSP Inputs General'!$B44='DNSP Inputs General'!$A$41,E$6,IF('DNSP Inputs General'!$B44='DNSP Inputs General'!$A$42,E$7,E$8))*'DNSP Inputs General'!$D44 -> 67.2168223 | F9: =IF('DNSP Inputs General'!$B44='DNSP Inputs General'!$A$41,F$6,IF('DNSP Inputs General'!$B44='DNSP Inputs General'!$A$42,F$7,F$8))*'DNSP Inputs General'!$D44 -> 69.48172914 | G9: =IF('DNSP Inputs General'!$B44='DNSP Inputs General'!$A$41,G$6,IF('DNSP Inputs General'!$B44='DNSP Inputs General'!$A$42,G$7,G$8))*'DNSP Inputs General'!$D44 -> 70.54556578 | H9: =IF('DNSP Inputs General'!$B44='DNSP Inputs General'!$A$41,H$6,IF('DNSP Inputs General'!$B44='DNSP Inputs General'!$A$42,H$7,H$8))*'DNSP Inputs General'!$D44 -> 72.19675518 | J9: 0.07763826149 | K9: 0.0220252008 | L9: 0.03369553575 | M9: 0.01531102709 | N9: 0.02340599843 | P9: =IF(C9=0,"",(D9/'Charges Summary'!D$4)/C9-1) -> 0.05317222994 | Q9: =IF(D9=0,"",(E9/'Charges Summary'!E$4)/(D9/'Charges Summary'!D$4)-1) -> -0.001178226269 | R9: =IF(E9=0,"",(F9/'Charges Summary'!F$4)/(E9/'Charges Summary'!E$4)-1) -> 0.01022715262 | S9: =IF(F9=0,"",(G9/'Charges Summary'!G$4)/(F9/'Charges Summary'!F$4)-1) -> -0.007739965544 | T9: =IF(G9=0,"",(H9/'Charges Summary'!H$4)/(G9/'Charges Summary'!G$4)-1) -> 0.0001712225806
A10: ='DNSP Inputs General'!A45 -> Fluorescent 20 watt | C10: ='DNSP Inputs General'!E45 -> 61.03 | D10: =IF('DNSP Inputs General'!$B45='DNSP Inputs General'!$A$41,D$6,IF('DNSP Inputs General'!$B45='DNSP Inputs General'!$A$42,D$7,D$8))*'DNSP Inputs General'!$D45 -> 65.7682631 | E10: =IF('DNSP Inputs General'!$B45='DNSP Inputs General'!$A$41,E$6,IF('DNSP Inputs General'!$B45='DNSP Inputs General'!$A$42,E$7,E$8))*'DNSP Inputs General'!$D45 -> 67.2168223 | F10: =IF('DNSP Inputs General'!$B45='DNSP Inputs General'!$A$41,F$6,IF('DNSP Inputs General'!$B45='DNSP Inputs General'!$A$42,F$7,F$8))*'DNSP Inputs General'!$D45 -> 69.48172914 | G10: =IF('DNSP Inputs General'!$B45='DNSP Inputs General'!$A$41,G$6,IF('DNSP Inputs General'!$B45='DNSP Inputs General'!$A$42,G$7,G$8))*'DNSP Inputs General'!$D45 -> 70.54556578 | H10: =IF('DNSP Inputs General'!$B45='DNSP Inputs General'!$A$41,H$6,IF('DNSP Inputs General'!$B45='DNSP Inputs General'!$A$42,H$7,H$8))*'DNSP Inputs General'!$D45 -> 72.19675518 | J10: 0.07763826149 | K10: 0.0220252008 | L10: 0.03369553575 | M10: 0.01531102709 | N10: 0.02340599843 | P10: =IF(C10=0,"",(D10/'Charges Summary'!D$4)/C10-1) -> 0.05317222994 | Q10: =IF(D10=0,"",(E10/'Charges Summary'!E$4)/(D10/'Charges Summary'!D$4)-1) -> -0.001178226269 | R10: =IF(E10=0,"",(F10/'Charges Summary'!F$4)/(E10/'Charges Summary'!E$4)-1) -> 0.01022715262 | S10: =IF(F10=0,"",(G10/'Charges Summary'!G$4)/(F10/'Charges Summary'!F$4)-1) -> -0.007739965544 | T10: =IF(G10=0,"",(H10/'Charges Summary'!H$4)/(G10/'Charges Summary'!G$4)-1) -> 0.0001712225806
A11: ='DNSP Inputs General'!A46 -> Fluorescent 40 watt | C11: ='DNSP Inputs General'!E46 -> 61.03 | D11: =IF('DNSP Inputs General'!$B46='DNSP Inputs General'!$A$41,D$6,IF('DNSP Inputs General'!$B46='DNSP Inputs General'!$A$42,D$7,D$8))*'DNSP Inputs General'!$D46 -> 65.7682631 | E11: =IF('DNSP Inputs General'!$B46='DNSP Inputs General'!$A$41,E$6,IF('DNSP Inputs General'!$B46='DNSP Inputs General'!$A$42,E$7,E$8))*'DNSP Inputs General'!$D46 -> 67.2168223 | F11: =IF('DNSP Inputs General'!$B46='DNSP Inputs General'!$A$41,F$6,IF('DNSP Inputs General'!$B46='DNSP Inputs General'!$A$42,F$7,F$8))*'DNSP Inputs General'!$D46 -> 69.48172914 | G11: =IF('DNSP Inputs General'!$B46='DNSP Inputs General'!$A$41,G$6,IF('DNSP Inputs General'!$B46='DNSP Inputs General'!$A$42,G$7,G$8))*'DNSP Inputs General'!$D46 -> 70.54556578 | H11: =IF('DNSP Inputs General'!$B46='DNSP Inputs General'!$A$41,H$6,IF('DNSP Inputs General'!$B46='DNSP Inputs General'!$A$42,H$7,H$8))*'DNSP Inputs General'!$D46 -> 72.19675518 | J11: 0.07763826149 | K11: 0.0220252008 | L11: 0.03369553575 | M11: 0.01531102709 | N11: 0.02340599843 | P11: =IF(C11=0,"",(D11/'Charges Summary'!D$4)/C11-1) -> 0.05317222994 | Q11: =IF(D11=0,"",(E11/'Charges Summary'!E$4)/(D11/'Charges Summary'!D$4)-1) -> -0.001178226269 | R11: =IF(E11=0,"",(F11/'Charges Summary'!F$4)/(E11/'Charges Summary'!E$4)-1) -> 0.01022715262 | S11: =IF(F11=0,"",(G11/'Charges Summary'!G$4)/(F11/'Charges Summary'!F$4)-1) -> -0.007739965544 | T11: =IF(G11=0,"",(H11/'Charges Summary'!H$4)/(G11/'Charges Summary'!G$4)-1) -> 0.0001712225806
A12: ='DNSP Inputs General'!A47 -> Fluorescent 80 watt | C12: ='DNSP Inputs General'!E47 -> 61.03 | D12: =IF('DNSP Inputs General'!$B47='DNSP Inputs General'!$A$41,D$6,IF('DNSP Inputs General'!$B47='DNSP Inputs General'!$A$42,D$7,D$8))*'DNSP Inputs General'!$D47 -> 65.7682631 | E12: =IF('DNSP Inputs General'!$B47='DNSP Inputs General'!$A$41,E$6,IF('DNSP Inputs General'!$B47='DNSP Inputs General'!$A$42,E$7,E$8))*'DNSP Inputs General'!$D47 -> 67.2168223 | F12: =IF('DNSP Inputs General'!$B47='DNSP Inputs General'!$A$41,F$6,IF('DNSP Inputs General'!$B47='DNSP Inputs General'!$A$42,F$7,F$8))*'DNSP Inputs General'!$D47 -> 69.48172914 | G12: =IF('DNSP Inputs General'!$B47='DNSP Inputs General'!$A$41,G$6,IF('DNSP Inputs General'!$B47='DNSP Inputs General'!$A$42,G$7,G$8))*'DNSP Inputs General'!$D47 -> 70.54556578 | H12: =IF('DNSP Inputs General'!$B47='DNSP Inputs General'!$A$41,H$6,IF('DNSP Inputs General'!$B47='DNSP Inputs General'!$A$42,H$7,H$8))*'DNSP Inputs General'!$D47 -> 72.19675518 | J12: 0.07763826149 | K12: 0.0220252008 | L12: 0.03369553575 | M12: 0.01531102709 | N12: 0.02340599843 | P12: =IF(C12=0,"",(D12/'Charges Summary'!D$4)/C12-1) -> 0.05317222994 | Q12: =IF(D12=0,"",(E12/'Charges Summary'!E$4)/(D12/'Charges Summary'!D$4)-1) -> -0.001178226269 | R12: =IF(E12=0,"",(F12/'Charges Summary'!F$4)/(E12/'Charges Summary'!E$4)-1) -> 0.01022715262 | S12: =IF(F12=0,"",(G12/'Charges Summary'!G$4)/(F12/'Charges Summary'!F$4)-1) -> -0.007739965544 | T12: =IF(G12=0,"",(H12/'Charges Summary'!H$4)/(G12/'Charges Summary'!G$4)-1) -> 0.0001712225806
A13: ='DNSP Inputs General'!A48 -> Mercury Vapour 50 watt | C13: ='DNSP Inputs General'!E48 -> 61.03 | D13: =IF('DNSP Inputs General'!$B48='DNSP Inputs General'!$A$41,D$6,IF('DNSP Inputs General'!$B48='DNSP Inputs General'!$A$42,D$7,D$8))*'DNSP Inputs General'!$D48 -> 65.7682631 | E13: =IF('DNSP Inputs General'!$B48='DNSP Inputs General'!$A$41,E$6,IF('DNSP Inputs General'!$B48='DNSP Inputs General'!$A$42,E$7,E$8))*'DNSP Inputs General'!$D48 -> 67.2168223 | F13: =IF('DNSP Inputs General'!$B48='DNSP Inputs General'!$A$41,F$6,IF('DNSP Inputs General'!$B48='DNSP Inputs General'!$A$42,F$7,F$8))*'DNSP Inputs General'!$D48 -> 69.48172914 | G13: =IF('DNSP Inputs General'!$B48='DNSP Inputs General'!$A$41,G$6,IF('DNSP Inputs General'!$B48='DNSP Inputs General'!$A$42,G$7,G$8))*'DNSP Inputs General'!$D48 -> 70.54556578 | H13: =IF('DNSP Inputs General'!$B48='DNSP Inputs General'!$A$41,H$6,IF('DNSP Inputs General'!$B48='DNSP Inputs General'!$A$42,H$7,H$8))*'DNSP Inputs General'!$D48 -> 72.19675518 | J13: 0.07763826149 | K13: 0.0220252008 | L13: 0.03369553575 | M13: 0.01531102709 | N13: 0.02340599843 | P13: =IF(C13=0,"",(D13/'Charges Summary'!D$4)/C13-1) -> 0.05317222994 | Q13: =IF(D13=0,"",(E13/'Charges Summary'!E$4)/(D13/'Charges Summary'!D$4)-1) -> -0.001178226269 | R13: =IF(E13=0,"",(F13/'Charges Summary'!F$4)/(E13/'Charges Summary'!E$4)-1) -> 0.01022715262 | S13: =IF(F13=0,"",(G13/'Charges Summary'!G$4)/(F13/'Charges Summary'!F$4)-1) -> -0.007739965544 | T13: =IF(G13=0,"",(H13/'Charges Summary'!H$4)/(G13/'Charges Summary'!G$4)-1) -> 0.0001712225806
A14: ='DNSP Inputs General'!A49 -> Mercury Vapour 125 watt | C14: ='DNSP Inputs General'!E49 -> 71.77 | D14: =IF('DNSP Inputs General'!$B49='DNSP Inputs General'!$A$41,D$6,IF('DNSP Inputs General'!$B49='DNSP Inputs General'!$A$42,D$7,D$8))*'DNSP Inputs General'!$D49 -> 77.3434774 | E14: =IF('DNSP Inputs General'!$B49='DNSP Inputs General'!$A$41,E$6,IF('DNSP Inputs General'!$B49='DNSP Inputs General'!$A$42,E$7,E$8))*'DNSP Inputs General'!$D49 -> 79.04698302 | F14: =IF('DNSP Inputs General'!$B49='DNSP Inputs General'!$A$41,F$6,IF('DNSP Inputs General'!$B49='DNSP Inputs General'!$A$42,F$7,F$8))*'DNSP Inputs General'!$D49 -> 81.71051347 | G14: =IF('DNSP Inputs General'!$B49='DNSP Inputs General'!$A$41,G$6,IF('DNSP Inputs General'!$B49='DNSP Inputs General'!$A$42,G$7,G$8))*'DNSP Inputs General'!$D49 -> 82.96158535 | H14: =IF('DNSP Inputs General'!$B49='DNSP Inputs General'!$A$41,H$6,IF('DNSP Inputs General'!$B49='DNSP Inputs General'!$A$42,H$7,H$8))*'DNSP Inputs General'!$D49 -> 84.90338409 | J14: 0.0776574809 | K14: 0.0220252008 | L14: 0.03369553575 | M14: 0.01531102709 | N14: 0.02340599843 | P14: =IF(C14=0,"",(D14/'Charges Summary'!D$4)/C14-1) -> 0.053191013 | Q14: =IF(D14=0,"",(E14/'Charges Summary'!E$4)/(D14/'Charges Summary'!D$4)-1) -> -0.001178226269 | R14: =IF(E14=0,"",(F14/'Charges Summary'!F$4)/(E14/'Charges Summary'!E$4)-1) -> 0.01022715262 | S14: =IF(F14=0,"",(G14/'Charges Summary'!G$4)/(F14/'Charges Summary'!F$4)-1) -> -0.007739965544 | T14: =IF(G14=0,"",(H14/'Charges Summary'!H$4)/(G14/'Charges Summary'!G$4)-1) -> 0.0001712225806
A15: ='DNSP Inputs General'!A50 -> Mercury Vapour 250 watt | C15: ='DNSP Inputs General'!E50 -> 90.19 | D15: =IF('DNSP Inputs General'!$B50='DNSP Inputs General'!$A$41,D$6,IF('DNSP Inputs General'!$B50='DNSP Inputs General'!$A$42,D$7,D$8))*'DNSP Inputs General'!$D50 -> 92.95478056 | E15: =IF('DNSP Inputs General'!$B50='DNSP Inputs General'!$A$41,E$6,IF('DNSP Inputs General'!$B50='DNSP Inputs General'!$A$42,E$7,E$8))*'DNSP Inputs General'!$D50 -> 96.42687188 | F15: =IF('DNSP Inputs General'!$B50='DNSP Inputs General'!$A$41,F$6,IF('DNSP Inputs General'!$B50='DNSP Inputs General'!$A$42,F$7,F$8))*'DNSP Inputs General'!$D50 -> 99.58926246 | G15: =IF('DNSP Inputs General'!$B50='DNSP Inputs General'!$A$41,G$6,IF('DNSP Inputs General'!$B50='DNSP Inputs General'!$A$42,G$7,G$8))*'DNSP Inputs General'!$D50 -> 100.8057797 | H15: =IF('DNSP Inputs General'!$B50='DNSP Inputs General'!$A$41,H$6,IF('DNSP Inputs General'!$B50='DNSP Inputs General'!$A$42,H$7,H$8))*'DNSP Inputs General'!$D50 -> 103.0611783 | J15: 0.03065506773 | K15: 0.03735247715 | L15: 0.03279573964 | M15: 0.01221534538 | N15: 0.02237370305 | P15: =IF(C15=0,"",(D15/'Charges Summary'!D$4)/C15-1) -> 0.007255713504 | Q15: =IF(D15=0,"",(E15/'Charges Summary'!E$4)/(D15/'Charges Summary'!D$4)-1) -> 0.01380106909 | R15: =IF(E15=0,"",(F15/'Charges Summary'!F$4)/(E15/'Charges Summary'!E$4)-1) -> 0.00934778493 | S15: =IF(F15=0,"",(G15/'Charges Summary'!G$4)/(F15/'Charges Summary'!F$4)-1) -> -0.01076536481 | T15: =IF(G15=0,"",(H15/'Charges Summary'!H$4)/(G15/'Charges Summary'!G$4)-1) -> -0.0008376362024
A16: ='DNSP Inputs General'!A51 -> Mercury Vapour 400 watt | C16: ='DNSP Inputs General'!E51 -> 101.47 | D16: =IF('DNSP Inputs General'!$B51='DNSP Inputs General'!$A$41,D$6,IF('DNSP Inputs General'!$B51='DNSP Inputs General'!$A$42,D$7,D$8))*'DNSP Inputs General'!$D51 -> 104.5741281 | E16: =IF('DNSP Inputs General'!$B51='DNSP Inputs General'!$A$41,E$6,IF('DNSP Inputs General'!$B51='DNSP Inputs General'!$A$42,E$7,E$8))*'DNSP Inputs General'!$D51 -> 108.4802309 | F16: =IF('DNSP Inputs General'!$B51='DNSP Inputs General'!$A$41,F$6,IF('DNSP Inputs General'!$B51='DNSP Inputs General'!$A$42,F$7,F$8))*'DNSP Inputs General'!$D51 -> 112.0379203 | G16: =IF('DNSP Inputs General'!$B51='DNSP Inputs General'!$A$41,G$6,IF('DNSP Inputs General'!$B51='DNSP Inputs General'!$A$42,G$7,G$8))*'DNSP Inputs General'!$D51 -> 113.4065022 | H16: =IF('DNSP Inputs General'!$B51='DNSP Inputs General'!$A$41,H$6,IF('DNSP Inputs General'!$B51='DNSP Inputs General'!$A$42,H$7,H$8))*'DNSP Inputs General'!$D51 -> 115.9438256 | J16: 0.03059158499 | K16: 0.03735247715 | L16: 0.03279573964 | M16: 0.01221534538 | N16: 0.02237370305 | P16: =IF(C16=0,"",(D16/'Charges Summary'!D$4)/C16-1) -> 0.007193672032 | Q16: =IF(D16=0,"",(E16/'Charges Summary'!E$4)/(D16/'Charges Summary'!D$4)-1) -> 0.01380106909 | R16: =IF(E16=0,"",(F16/'Charges Summary'!F$4)/(E16/'Charges Summary'!E$4)-1) -> 0.00934778493 | S16: =IF(F16=0,"",(G16/'Charges Summary'!G$4)/(F16/'Charges Summary'!F$4)-1) -> -0.01076536481 | T16: =IF(G16=0,"",(H16/'Charges Summary'!H$4)/(G16/'Charges Summary'!G$4)-1) -> -0.0008376362024
A17: ='DNSP Inputs General'!A52 -> Sodium High Pressure 50 watt | C17: ='DNSP Inputs General'!E52 -> 112.91 | D17: =IF('DNSP Inputs General'!$B52='DNSP Inputs General'!$A$41,D$6,IF('DNSP Inputs General'!$B52='DNSP Inputs General'!$A$42,D$7,D$8))*'DNSP Inputs General'!$D52 -> 119.5318995 | E17: =IF('DNSP Inputs General'!$B52='DNSP Inputs General'!$A$41,E$6,IF('DNSP Inputs General'!$B52='DNSP Inputs General'!$A$42,E$7,E$8))*'DNSP Inputs General'!$D52 -> 124.0178999 | F17: =IF('DNSP Inputs General'!$B52='DNSP Inputs General'!$A$41,F$6,IF('DNSP Inputs General'!$B52='DNSP Inputs General'!$A$42,F$7,F$8))*'DNSP Inputs General'!$D52 -> 128.101525 | G17: =IF('DNSP Inputs General'!$B52='DNSP Inputs General'!$A$41,G$6,IF('DNSP Inputs General'!$B52='DNSP Inputs General'!$A$42,G$7,G$8))*'DNSP Inputs General'!$D52 -> 129.6678533 | H17: =IF('DNSP Inputs General'!$B52='DNSP Inputs General'!$A$41,H$6,IF('DNSP Inputs General'!$B52='DNSP Inputs General'!$A$42,H$7,H$8))*'DNSP Inputs General'!$D52 -> 132.5804845 | J17: 0.05864759141 | K17: 0.03752973337 | L17: 0.03292770727 | M17: 0.01222724166 | N17: 0.02246224623 | P17: =IF(C17=0,"",(D17/'Charges Summary'!D$4)/C17-1) -> 0.03461271227 | Q17: =IF(D17=0,"",(E17/'Charges Summary'!E$4)/(D17/'Charges Summary'!D$4)-1) -> 0.01397430099 | R17: =IF(E17=0,"",(F17/'Charges Summary'!F$4)/(E17/'Charges Summary'!E$4)-1) -> 0.009476756448 | S17: =IF(F17=0,"",(G17/'Charges Summary'!G$4)/(F17/'Charges Summary'!F$4)-1) -> -0.01075373861 | T17: =IF(G17=0,"",(H17/'Charges Summary'!H$4)/(G17/'Charges Summary'!G$4)-1) -> -0.0007511032565
A18: ='DNSP Inputs General'!A53 -> Sodium Low Pressure 90 watt | C18: ='DNSP Inputs General'!E53 -> 97.03 | D18: =IF('DNSP Inputs General'!$B53='DNSP Inputs General'!$A$41,D$6,IF('DNSP Inputs General'!$B53='DNSP Inputs General'!$A$42,D$7,D$8))*'DNSP Inputs General'!$D53 -> 101.3630508 | E18: =IF('DNSP Inputs General'!$B53='DNSP Inputs General'!$A$41,E$6,IF('DNSP Inputs General'!$B53='DNSP Inputs General'!$A$42,E$7,E$8))*'DNSP Inputs General'!$D53 -> 105.1671791 | F18: =IF('DNSP Inputs General'!$B53='DNSP Inputs General'!$A$41,F$6,IF('DNSP Inputs General'!$B53='DNSP Inputs General'!$A$42,F$7,F$8))*'DNSP Inputs General'!$D53 -> 108.6300932 | G18: =IF('DNSP Inputs General'!$B53='DNSP Inputs General'!$A$41,G$6,IF('DNSP Inputs General'!$B53='DNSP Inputs General'!$A$42,G$7,G$8))*'DNSP Inputs General'!$D53 -> 109.9583396 | H18: =IF('DNSP Inputs General'!$B53='DNSP Inputs General'!$A$41,H$6,IF('DNSP Inputs General'!$B53='DNSP Inputs General'!$A$42,H$7,H$8))*'DNSP Inputs General'!$D53 -> 112.4282509 | J18: 0.04465681558 | K18: 0.03752973337 | L18: 0.03292770727 | M18: 0.01222724166 | N18: 0.02246224623 | P18: =IF(C18=0,"",(D18/'Charges Summary'!D$4)/C18-1) -> 0.02093957434 | Q18: =IF(D18=0,"",(E18/'Charges Summary'!E$4)/(D18/'Charges Summary'!D$4)-1) -> 0.01397430099 | R18: =IF(E18=0,"",(F18/'Charges Summary'!F$4)/(E18/'Charges Summary'!E$4)-1) -> 0.009476756448 | S18: =IF(F18=0,"",(G18/'Charges Summary'!G$4)/(F18/'Charges Summary'!F$4)-1) -> -0.01075373861 | T18: =IF(G18=0,"",(H18/'Charges Summary'!H$4)/(G18/'Charges Summary'!G$4)-1) -> -0.0007511032565
A19: ='DNSP Inputs General'!A54 -> Sodium High Pressure 100 watt | C19: ='DNSP Inputs General'!E54 -> 125.41 | D19: =IF('DNSP Inputs General'!$B54='DNSP Inputs General'!$A$41,D$6,IF('DNSP Inputs General'!$B54='DNSP Inputs General'!$A$42,D$7,D$8))*'DNSP Inputs General'!$D54 -> 131.0069619 | E19: =IF('DNSP Inputs General'!$B54='DNSP Inputs General'!$A$41,E$6,IF('DNSP Inputs General'!$B54='DNSP Inputs General'!$A$42,E$7,E$8))*'DNSP Inputs General'!$D54 -> 135.9236183 | F19: =IF('DNSP Inputs General'!$B54='DNSP Inputs General'!$A$41,F$6,IF('DNSP Inputs General'!$B54='DNSP Inputs General'!$A$42,F$7,F$8))*'DNSP Inputs General'!$D54 -> 140.3992714 | G19: =IF('DNSP Inputs General'!$B54='DNSP Inputs General'!$A$41,G$6,IF('DNSP Inputs General'!$B54='DNSP Inputs General'!$A$42,G$7,G$8))*'DNSP Inputs General'!$D54 -> 142.1159672 | H19: =IF('DNSP Inputs General'!$B54='DNSP Inputs General'!$A$41,H$6,IF('DNSP Inputs General'!$B54='DNSP Inputs General'!$A$42,H$7,H$8))*'DNSP Inputs General'!$D54 -> 145.308211 | J19: 0.04462931108 | K19: 0.03752973337 | L19: 0.03292770727 | M19: 0.01222724166 | N19: 0.02246224623 | P19: =IF(C19=0,"",(D19/'Charges Summary'!D$4)/C19-1) -> 0.02091269429 | Q19: =IF(D19=0,"",(E19/'Charges Summary'!E$4)/(D19/'Charges Summary'!D$4)-1) -> 0.01397430099 | R19: =IF(E19=0,"",(F19/'Charges Summary'!F$4)/(E19/'Charges Summary'!E$4)-1) -> 0.009476756448 | S19: =IF(F19=0,"",(G19/'Charges Summary'!G$4)/(F19/'Charges Summary'!F$4)-1) -> -0.01075373861 | T19: =IF(G19=0,"",(H19/'Charges Summary'!H$4)/(G19/'Charges Summary'!G$4)-1) -> -0.0007511032565
A20: ='DNSP Inputs General'!A55 -> Sodium High Pressure 400 watt | C20: ='DNSP Inputs General'!E55 -> 124.96 | D20: =IF('DNSP Inputs General'!$B55='DNSP Inputs General'!$A$41,D$6,IF('DNSP Inputs General'!$B55='DNSP Inputs General'!$A$42,D$7,D$8))*'DNSP Inputs General'!$D55 -> 128.7811022 | E20: =IF('DNSP Inputs General'!$B55='DNSP Inputs General'!$A$41,E$6,IF('DNSP Inputs General'!$B55='DNSP Inputs General'!$A$42,E$7,E$8))*'DNSP Inputs General'!$D55 -> 133.5913954 | F20: =IF('DNSP Inputs General'!$B55='DNSP Inputs General'!$A$41,F$6,IF('DNSP Inputs General'!$B55='DNSP Inputs General'!$A$42,F$7,F$8))*'DNSP Inputs General'!$D55 -> 137.972624 | G20: =IF('DNSP Inputs General'!$B55='DNSP Inputs General'!$A$41,G$6,IF('DNSP Inputs General'!$B55='DNSP Inputs General'!$A$42,G$7,G$8))*'DNSP Inputs General'!$D55 -> 139.6580073 | H20: =IF('DNSP Inputs General'!$B55='DNSP Inputs General'!$A$41,H$6,IF('DNSP Inputs General'!$B55='DNSP Inputs General'!$A$42,H$7,H$8))*'DNSP Inputs General'!$D55 -> 142.7826741 | J20: 0.03057860301 | K20: 0.03735247715 | L20: 0.03279573964 | M20: 0.01221534538 | N20: 0.02237370305 | P20: =IF(C20=0,"",(D20/'Charges Summary'!D$4)/C20-1) -> 0.007180984792 | Q20: =IF(D20=0,"",(E20/'Charges Summary'!E$4)/(D20/'Charges Summary'!D$4)-1) -> 0.01380106909 | R20: =IF(E20=0,"",(F20/'Charges Summary'!F$4)/(E20/'Charges Summary'!E$4)-1) -> 0.00934778493 | S20: =IF(F20=0,"",(G20/'Charges Summary'!G$4)/(F20/'Charges Summary'!F$4)-1) -> -0.01076536481 | T20: =IF(G20=0,"",(H20/'Charges Summary'!H$4)/(G20/'Charges Summary'!G$4)-1) -> -0.0008376362024
A21: ='DNSP Inputs General'!A56 -> Metal Halide 70 watt | C21: ='DNSP Inputs General'!E56 -> 125.48 | D21: =IF('DNSP Inputs General'!$B56='DNSP Inputs General'!$A$41,D$6,IF('DNSP Inputs General'!$B56='DNSP Inputs General'!$A$42,D$7,D$8))*'DNSP Inputs General'!$D56 -> 135.2195489 | E21: =IF('DNSP Inputs General'!$B56='DNSP Inputs General'!$A$41,E$6,IF('DNSP Inputs General'!$B56='DNSP Inputs General'!$A$42,E$7,E$8))*'DNSP Inputs General'!$D56 -> 138.1977866 | F21: =IF('DNSP Inputs General'!$B56='DNSP Inputs General'!$A$41,F$6,IF('DNSP Inputs General'!$B56='DNSP Inputs General'!$A$42,F$7,F$8))*'DNSP Inputs General'!$D56 -> 142.8544351 | G21: =IF('DNSP Inputs General'!$B56='DNSP Inputs General'!$A$41,G$6,IF('DNSP Inputs General'!$B56='DNSP Inputs General'!$A$42,G$7,G$8))*'DNSP Inputs General'!$D56 -> 145.0416832 | H21: =IF('DNSP Inputs General'!$B56='DNSP Inputs General'!$A$41,H$6,IF('DNSP Inputs General'!$B56='DNSP Inputs General'!$A$42,H$7,H$8))*'DNSP Inputs General'!$D56 -> 148.4365286 | J21: 0.07761833703 | K21: 0.0220252008 | L21: 0.03369553575 | M21: 0.01531102709 | N21: 0.02340599843 | P21: =IF(C21=0,"",(D21/'Charges Summary'!D$4)/C21-1) -> 0.05315275783 | Q21: =IF(D21=0,"",(E21/'Charges Summary'!E$4)/(D21/'Charges Summary'!D$4)-1) -> -0.001178226269 | R21: =IF(E21=0,"",(F21/'Charges Summary'!F$4)/(E21/'Charges Summary'!E$4)-1) -> 0.01022715262 | S21: =IF(F21=0,"",(G21/'Charges Summary'!G$4)/(F21/'Charges Summary'!F$4)-1) -> -0.007739965544 | T21: =IF(G21=0,"",(H21/'Charges Summary'!H$4)/(G21/'Charges Summary'!G$4)-1) -> 0.0001712225806
A22: ='DNSP Inputs General'!A57 -> Metal Halide 150 watt | C22: ='DNSP Inputs General'!E57 -> 203.22 | D22: =IF('DNSP Inputs General'!$B57='DNSP Inputs General'!$A$41,D$6,IF('DNSP Inputs General'!$B57='DNSP Inputs General'!$A$42,D$7,D$8))*'DNSP Inputs General'!$D57 -> 212.2886536 | E22: =IF('DNSP Inputs General'!$B57='DNSP Inputs General'!$A$41,E$6,IF('DNSP Inputs General'!$B57='DNSP Inputs General'!$A$42,E$7,E$8))*'DNSP Inputs General'!$D57 -> 220.2557902 | F22: =IF('DNSP Inputs General'!$B57='DNSP Inputs General'!$A$41,F$6,IF('DNSP Inputs General'!$B57='DNSP Inputs General'!$A$42,F$7,F$8))*'DNSP Inputs General'!$D57 -> 227.5083083 | G22: =IF('DNSP Inputs General'!$B57='DNSP Inputs General'!$A$41,G$6,IF('DNSP Inputs General'!$B57='DNSP Inputs General'!$A$42,G$7,G$8))*'DNSP Inputs General'!$D57 -> 230.2901074 | H22: =IF('DNSP Inputs General'!$B57='DNSP Inputs General'!$A$41,H$6,IF('DNSP Inputs General'!$B57='DNSP Inputs General'!$A$42,H$7,H$8))*'DNSP Inputs General'!$D57 -> 235.4629405 | J22: 0.04462480855 | K22: 0.03752973337 | L22: 0.03292770727 | M22: 0.01222724166 | N22: 0.02246224623 | P22: =IF(C22=0,"",(D22/'Charges Summary'!D$4)/C22-1) -> 0.02090829398 | Q22: =IF(D22=0,"",(E22/'Charges Summary'!E$4)/(D22/'Charges Summary'!D$4)-1) -> 0.01397430099 | R22: =IF(E22=0,"",(F22/'Charges Summary'!F$4)/(E22/'Charges Summary'!E$4)-1) -> 0.009476756448 | S22: =IF(F22=0,"",(G22/'Charges Summary'!G$4)/(F22/'Charges Summary'!F$4)-1) -> -0.01075373861 | T22: =IF(G22=0,"",(H22/'Charges Summary'!H$4)/(G22/'Charges Summary'!G$4)-1) -> -0.0007511032565
A23: ='DNSP Inputs General'!A58 -> Metal Halide 250 watt | C23: ='DNSP Inputs General'!E58 -> 202 | D23: =IF('DNSP Inputs General'!$B58='DNSP Inputs General'!$A$41,D$6,IF('DNSP Inputs General'!$B58='DNSP Inputs General'!$A$42,D$7,D$8))*'DNSP Inputs General'!$D58 -> 208.1799773 | E23: =IF('DNSP Inputs General'!$B58='DNSP Inputs General'!$A$41,E$6,IF('DNSP Inputs General'!$B58='DNSP Inputs General'!$A$42,E$7,E$8))*'DNSP Inputs General'!$D58 -> 215.9560151 | F23: =IF('DNSP Inputs General'!$B58='DNSP Inputs General'!$A$41,F$6,IF('DNSP Inputs General'!$B58='DNSP Inputs General'!$A$42,F$7,F$8))*'DNSP Inputs General'!$D58 -> 223.0384524 | G23: =IF('DNSP Inputs General'!$B58='DNSP Inputs General'!$A$41,G$6,IF('DNSP Inputs General'!$B58='DNSP Inputs General'!$A$42,G$7,G$8))*'DNSP Inputs General'!$D58 -> 225.7629441 | H23: =IF('DNSP Inputs General'!$B58='DNSP Inputs General'!$A$41,H$6,IF('DNSP Inputs General'!$B58='DNSP Inputs General'!$A$42,H$7,H$8))*'DNSP Inputs General'!$D58 -> 230.8140972 | J23: 0.03059394699 | K23: 0.03735247715 | L23: 0.03279573964 | M23: 0.01221534538 | N23: 0.02237370305 | P23: =IF(C23=0,"",(D23/'Charges Summary'!D$4)/C23-1) -> 0.007195980415 | Q23: =IF(D23=0,"",(E23/'Charges Summary'!E$4)/(D23/'Charges Summary'!D$4)-1) -> 0.01380106909 | R23: =IF(E23=0,"",(F23/'Charges Summary'!F$4)/(E23/'Charges Summary'!E$4)-1) -> 0.00934778493 | S23: =IF(F23=0,"",(G23/'Charges Summary'!G$4)/(F23/'Charges Summary'!F$4)-1) -> -0.01076536481 | T23: =IF(G23=0,"",(H23/'Charges Summary'!H$4)/(G23/'Charges Summary'!G$4)-1) -> -0.0008376362024
A24: ='DNSP Inputs General'!A59 -> Incandescent 100 watt | C24: ='DNSP Inputs General'!E59 -> 76.17 | D24: =IF('DNSP Inputs General'!$B59='DNSP Inputs General'!$A$41,D$6,IF('DNSP Inputs General'!$B59='DNSP Inputs General'!$A$42,D$7,D$8))*'DNSP Inputs General'!$D59 -> 82.07879235 | E24: =IF('DNSP Inputs General'!$B59='DNSP Inputs General'!$A$41,E$6,IF('DNSP Inputs General'!$B59='DNSP Inputs General'!$A$42,E$7,E$8))*'DNSP Inputs General'!$D59 -> 83.88659423 | F24: =IF('DNSP Inputs General'!$B59='DNSP Inputs General'!$A$41,F$6,IF('DNSP Inputs General'!$B59='DNSP Inputs General'!$A$42,F$7,F$8))*'DNSP Inputs General'!$D59 -> 86.71319796 | G24: =IF('DNSP Inputs General'!$B59='DNSP Inputs General'!$A$41,G$6,IF('DNSP Inputs General'!$B59='DNSP Inputs General'!$A$42,G$7,G$8))*'DNSP Inputs General'!$D59 -> 88.04086609 | H24: =IF('DNSP Inputs General'!$B59='DNSP Inputs General'!$A$41,H$6,IF('DNSP Inputs General'!$B59='DNSP Inputs General'!$A$42,H$7,H$8))*'DNSP Inputs General'!$D59 -> 90.10155046 | J24: 0.0775737475 | K24: 0.0220252008 | L24: 0.03369553575 | M24: 0.01531102709 | N24: 0.02340599843 | P24: =IF(C24=0,"",(D24/'Charges Summary'!D$4)/C24-1) -> 0.05310918063 | Q24: =IF(D24=0,"",(E24/'Charges Summary'!E$4)/(D24/'Charges Summary'!D$4)-1) -> -0.001178226269 | R24: =IF(E24=0,"",(F24/'Charges Summary'!F$4)/(E24/'Charges Summary'!E$4)-1) -> 0.01022715262 | S24: =IF(F24=0,"",(G24/'Charges Summary'!G$4)/(F24/'Charges Summary'!F$4)-1) -> -0.007739965544 | T24: =IF(G24=0,"",(H24/'Charges Summary'!H$4)/(G24/'Charges Summary'!G$4)-1) -> 0.0001712225806
A25: ='DNSP Inputs General'!A60 -> Incandescent 150 watt | C25: ='DNSP Inputs General'!E60 -> 95.21 | D25: =IF('DNSP Inputs General'!$B60='DNSP Inputs General'!$A$41,D$6,IF('DNSP Inputs General'!$B60='DNSP Inputs General'!$A$42,D$7,D$8))*'DNSP Inputs General'!$D60 -> 102.5984904 | E25: =IF('DNSP Inputs General'!$B60='DNSP Inputs General'!$A$41,E$6,IF('DNSP Inputs General'!$B60='DNSP Inputs General'!$A$42,E$7,E$8))*'DNSP Inputs General'!$D60 -> 104.8582428 | F25: =IF('DNSP Inputs General'!$B60='DNSP Inputs General'!$A$41,F$6,IF('DNSP Inputs General'!$B60='DNSP Inputs General'!$A$42,F$7,F$8))*'DNSP Inputs General'!$D60 -> 108.3914975 | G25: =IF('DNSP Inputs General'!$B60='DNSP Inputs General'!$A$41,G$6,IF('DNSP Inputs General'!$B60='DNSP Inputs General'!$A$42,G$7,G$8))*'DNSP Inputs General'!$D60 -> 110.0510826 | H25: =IF('DNSP Inputs General'!$B60='DNSP Inputs General'!$A$41,H$6,IF('DNSP Inputs General'!$B60='DNSP Inputs General'!$A$42,H$7,H$8))*'DNSP Inputs General'!$D60 -> 112.6269381 | J25: 0.07760204216 | K25: 0.0220252008 | L25: 0.03369553575 | M25: 0.01531102709 | N25: 0.02340599843 | P25: =IF(C25=0,"",(D25/'Charges Summary'!D$4)/C25-1) -> 0.05313683291 | Q25: =IF(D25=0,"",(E25/'Charges Summary'!E$4)/(D25/'Charges Summary'!D$4)-1) -> -0.001178226269 | R25: =IF(E25=0,"",(F25/'Charges Summary'!F$4)/(E25/'Charges Summary'!E$4)-1) -> 0.01022715262 | S25: =IF(F25=0,"",(G25/'Charges Summary'!G$4)/(F25/'Charges Summary'!F$4)-1) -> -0.007739965544 | T25: =IF(G25=0,"",(H25/'Charges Summary'!H$4)/(G25/'Charges Summary'!G$4)-1) -> 0.0001712225806
A26: ='DNSP Inputs General'!A61 -> Sodium High Pressure 250 watt (24 hrs) | C26: ='DNSP Inputs General'!E61 -> 144.62 | D26: =IF('DNSP Inputs General'!$B61='DNSP Inputs General'!$A$41,D$6,IF('DNSP Inputs General'!$B61='DNSP Inputs General'!$A$42,D$7,D$8))*'DNSP Inputs General'!$D61 -> 151.0515184 | E26: =IF('DNSP Inputs General'!$B61='DNSP Inputs General'!$A$41,E$6,IF('DNSP Inputs General'!$B61='DNSP Inputs General'!$A$42,E$7,E$8))*'DNSP Inputs General'!$D61 -> 156.6936668 | F26: =IF('DNSP Inputs General'!$B61='DNSP Inputs General'!$A$41,F$6,IF('DNSP Inputs General'!$B61='DNSP Inputs General'!$A$42,F$7,F$8))*'DNSP Inputs General'!$D61 -> 161.8325515 | G26: =IF('DNSP Inputs General'!$B61='DNSP Inputs General'!$A$41,G$6,IF('DNSP Inputs General'!$B61='DNSP Inputs General'!$A$42,G$7,G$8))*'DNSP Inputs General'!$D61 -> 163.809392 | H26: =IF('DNSP Inputs General'!$B61='DNSP Inputs General'!$A$41,H$6,IF('DNSP Inputs General'!$B61='DNSP Inputs General'!$A$42,H$7,H$8))*'DNSP Inputs General'!$D61 -> 167.4744147 | J26: 0.04447184627 | K26: 0.03735247715 | L26: 0.03279573964 | M26: 0.01221534538 | N26: 0.02237370305 | P26: =IF(C26=0,"",(D26/'Charges Summary'!D$4)/C26-1) -> 0.02075880446 | Q26: =IF(D26=0,"",(E26/'Charges Summary'!E$4)/(D26/'Charges Summary'!D$4)-1) -> 0.01380106909 | R26: =IF(E26=0,"",(F26/'Charges Summary'!F$4)/(E26/'Charges Summary'!E$4)-1) -> 0.00934778493 | S26: =IF(F26=0,"",(G26/'Charges Summary'!G$4)/(F26/'Charges Summary'!F$4)-1) -> -0.01076536481 | T26: =IF(G26=0,"",(H26/'Charges Summary'!H$4)/(G26/'Charges Summary'!G$4)-1) -> -0.0008376362024
A27: ='DNSP Inputs General'!A62 -> Metal Halide 100 watt | C27: ='DNSP Inputs General'!E62 -> 200.52 | D27: =IF('DNSP Inputs General'!$B62='DNSP Inputs General'!$A$41,D$6,IF('DNSP Inputs General'!$B62='DNSP Inputs General'!$A$42,D$7,D$8))*'DNSP Inputs General'!$D62 -> 212.2886536 | E27: =IF('DNSP Inputs General'!$B62='DNSP Inputs General'!$A$41,E$6,IF('DNSP Inputs General'!$B62='DNSP Inputs General'!$A$42,E$7,E$8))*'DNSP Inputs General'!$D62 -> 220.2557902 | F27: =IF('DNSP Inputs General'!$B62='DNSP Inputs General'!$A$41,F$6,IF('DNSP Inputs General'!$B62='DNSP Inputs General'!$A$42,F$7,F$8))*'DNSP Inputs General'!$D62 -> 227.5083083 | G27: =IF('DNSP Inputs General'!$B62='DNSP Inputs General'!$A$41,G$6,IF('DNSP Inputs General'!$B62='DNSP Inputs General'!$A$42,G$7,G$8))*'DNSP Inputs General'!$D62 -> 230.2901074 | H27: =IF('DNSP Inputs General'!$B62='DNSP Inputs General'!$A$41,H$6,IF('DNSP Inputs General'!$B62='DNSP Inputs General'!$A$42,H$7,H$8))*'DNSP Inputs General'!$D62 -> 235.4629405 | J27: 0.05869067222 | K27: 0.03752973337 | L27: 0.03292770727 | M27: 0.01222724166 | N27: 0.02246224623 | P27: =IF(C27=0,"",(D27/'Charges Summary'!D$4)/C27-1) -> 0.034654815 | Q27: =IF(D27=0,"",(E27/'Charges Summary'!E$4)/(D27/'Charges Summary'!D$4)-1) -> 0.01397430099 | R27: =IF(E27=0,"",(F27/'Charges Summary'!F$4)/(E27/'Charges Summary'!E$4)-1) -> 0.009476756448 | S27: =IF(F27=0,"",(G27/'Charges Summary'!G$4)/(F27/'Charges Summary'!F$4)-1) -> -0.01075373861 | T27: =IF(G27=0,"",(H27/'Charges Summary'!H$4)/(G27/'Charges Summary'!G$4)-1) -> -0.0007511032565
A30: ='DNSP Inputs General'!A$67 -> Energy Efficient Lights
A31: ='DNSP Inputs General'!A68 -> T5 2X14W | C31: ='DNSP Inputs General'!E68 -> 30.01 | D31: ='Charges Summary'!D$89 -> 33.74435749 | E31: ='Charges Summary'!E$89 -> 35.82975776 | F31: ='Charges Summary'!F$89 -> 37.67595099 | G31: ='Charges Summary'!G$89 -> 38.74944812 | H31: ='Charges Summary'!H$89 -> 40.17241829 | J31: =IF(C31=0,"",D31/C31-1) -> 0.1244371041 | K31: =IF(D31=0,"",E31/D31-1) -> 0.06179996952 | L31: =IF(E31=0,"",F31/E31-1) -> 0.05152681315 | M31: =IF(F31=0,"",G31/F31-1) -> 0.02849290058 | N31: =IF(G31=0,"",H31/G31-1) -> 0.03672233391 | P31: =IF(C31=0,"",(D31/'Charges Summary'!D$4)/C31-1) -> 0.09890858058 | Q31: =IF(D31=0,"",(E31/'Charges Summary'!E$4)/(D31/'Charges Summary'!D$4)-1) -> 0.03769352073 | R31: =IF(E31=0,"",(F31/'Charges Summary'!F$4)/(E31/'Charges Summary'!E$4)-1) -> 0.02765359975 | S31: =IF(F31=0,"",(G31/'Charges Summary'!G$4)/(F31/'Charges Summary'!F$4)-1) -> 0.005142634859 | T31: =IF(G31=0,"",(H31/'Charges Summary'!H$4)/(G31/'Charges Summary'!G$4)-1) -> 0.01318523223
A32: ='DNSP Inputs General'!A69 -> T5 (2x24W) | D32: =D$31*'DNSP Inputs General'!$D69 -> 38.00444249 | E32: =E$31*'DNSP Inputs General'!$D69 -> 40.35311588 | F32: =F$31*'DNSP Inputs General'!$D69 -> 42.43238334 | G32: =G$31*'DNSP Inputs General'!$D69 -> 43.64140502 | H32: =H$31*'DNSP Inputs General'!$D69 -> 45.24401927 | J32: =IF(C32=0,"",D32/C32-1) ->  | K32: =IF(D32=0,"",E32/D32-1) -> 0.06179996952 | L32: =IF(E32=0,"",F32/E32-1) -> 0.05152681315 | M32: =IF(F32=0,"",G32/F32-1) -> 0.02849290058 | N32: =IF(G32=0,"",H32/G32-1) -> 0.03672233391 | P32: =IF(C32=0,"",(D32/'Charges Summary'!D$4)/C32-1) ->  | Q32: =IF(D32=0,"",(E32/'Charges Summary'!E$4)/(D32/'Charges Summary'!D$4)-1) -> 0.03769352073 | R32: =IF(E32=0,"",(F32/'Charges Summary'!F$4)/(E32/'Charges Summary'!E$4)-1) -> 0.02765359975 | S32: =IF(F32=0,"",(G32/'Charges Summary'!G$4)/(F32/'Charges Summary'!F$4)-1) -> 0.005142634859 | T32: =IF(G32=0,"",(H32/'Charges Summary'!H$4)/(G32/'Charges Summary'!G$4)-1) -> 0.01318523223
A33: ='DNSP Inputs General'!A70 -> LED 18W | D33: ='Charges Summary'!D$107 -> 19.79017139 | E33: ='Charges Summary'!E$107 -> 21.99587855 | F33: ='Charges Summary'!F$107 -> 24.02691256 | G33: ='Charges Summary'!G$107 -> 25.24564924 | H33: ='Charges Summary'!H$107 -> 26.54211245 | K33: 0.1114546768 | L33: 0.09233702599 | M33: 0.05072381558 | N33: 0.05135392634 | P33: =IF(C33=0,"",(D33/'Charges Summary'!D$4)/C33-1) ->  | Q33: =IF(D33=0,"",(E33/'Charges Summary'!E$4)/(D33/'Charges Summary'!D$4)-1) -> 0.08622089829 | R33: =IF(E33=0,"",(F33/'Charges Summary'!F$4)/(E33/'Charges Summary'!E$4)-1) -> 0.06753728279 | S33: =IF(F33=0,"",(G33/'Charges Summary'!G$4)/(F33/'Charges Summary'!F$4)-1) -> 0.02686883294 | T33: =IF(G33=0,"",(H33/'Charges Summary'!H$4)/(G33/'Charges Summary'!G$4)-1) -> 0.02748463805
A34: ='DNSP Inputs General'!A71 -> Compact Fluoro 32W | D34: =D$31*'DNSP Inputs General'!$D71 -> 29.1057526 | E34: =E$31*'DNSP Inputs General'!$D71 -> 30.90448722 | F34: =F$31*'DNSP Inputs General'!$D71 -> 32.49689696 | G34: =G$31*'DNSP Inputs General'!$D71 -> 33.42282782 | H34: =H$31*'DNSP Inputs General'!$D71 -> 34.65019206 | K34: 0.06179996952 | L34: 0.05152681315 | M34: 0.02849290058 | N34: 0.03672233391 | P34: =IF(C34=0,"",(D34/'Charges Summary'!D$4)/C34-1) ->  | Q34: =IF(D34=0,"",(E34/'Charges Summary'!E$4)/(D34/'Charges Summary'!D$4)-1) -> 0.03769352073 | R34: =IF(E34=0,"",(F34/'Charges Summary'!F$4)/(E34/'Charges Summary'!E$4)-1) -> 0.02765359975 | S34: =IF(F34=0,"",(G34/'Charges Summary'!G$4)/(F34/'Charges Summary'!F$4)-1) -> 0.005142634859 | T34: =IF(G34=0,"",(H34/'Charges Summary'!H$4)/(G34/'Charges Summary'!G$4)-1) -> 0.01318523223
A35: ='DNSP Inputs General'!A72 -> Compact Fluoro 42W | D35: =D$31*'DNSP Inputs General'!$D72 -> 32.82507599 | E35: =E$31*'DNSP Inputs General'!$D72 -> 34.85366469 | F35: =F$31*'DNSP Inputs General'!$D72 -> 36.64956296 | G35: =G$31*'DNSP Inputs General'!$D72 -> 37.69381531 | H35: =H$31*'DNSP Inputs General'!$D72 -> 39.07802018 | K35: 0.06179996952 | L35: 0.05152681315 | M35: 0.02849290058 | N35: 0.03672233391 | P35: =IF(C35=0,"",(D35/'Charges Summary'!D$4)/C35-1) ->  | Q35: =IF(D35=0,"",(E35/'Charges Summary'!E$4)/(D35/'Charges Summary'!D$4)-1) -> 0.03769352073 | R35: =IF(E35=0,"",(F35/'Charges Summary'!F$4)/(E35/'Charges Summary'!E$4)-1) -> 0.02765359975 | S35: =IF(F35=0,"",(G35/'Charges Summary'!G$4)/(F35/'Charges Summary'!F$4)-1) -> 0.005142634859 | T35: =IF(G35=0,"",(H35/'Charges Summary'!H$4)/(G35/'Charges Summary'!G$4)-1) -> 0.01318523223

Sheet PL Tariff Components - Excl. RR
A1: ='DNSP Inputs O & M'!$A$3 -> Jemena | E1: Global Check | F1: =IF(SUM('Total RAB'!F1,'Depn & WACC Post 2004'!F1,'Cashflow Summary'!F1,W1)<1,"Ok","Error") -> Ok | V1: Check | W1: =SUM(V6:Z35) -> 1.071143174e-12
A3: Public Lighting Tariffs | C3: Total Tariff | J3: Operations, maintenance and repair Tariff | P3: Replacement Tariff | V3: Check
A4: Excluding Revenue Recovery | C4: Actual
A5: ='DNSP Inputs General'!A$40 -> Existing Lights | C5: ='DNSP Inputs General'!J$2 -> 2015 | D5: ='DNSP Inputs General'!K$2 -> 2016 | E5: ='DNSP Inputs General'!L$2 -> 2017 | F5: ='DNSP Inputs General'!M$2 -> 2018 | G5: ='DNSP Inputs General'!N$2 -> 2019 | H5: ='DNSP Inputs General'!O$2 -> 2020 | J5: =D5 -> 2016 | K5: =E5 -> 2017 | L5: 2018 | M5: 2019 | N5: 2020 | P5: =J5 -> 2016 | Q5: =K5 -> 2017 | R5: 2018 | S5: 2019 | T5: 2020 | V5: =P5 -> 2016 | W5: =Q5 -> 2017 | X5: 2018 | Y5: 2019 | Z5: 2020
A6: ='DNSP Inputs General'!A41 -> Mercury Vapour 80 watt | C6: ='DNSP Inputs General'!E41 -> 48.83 | D6: ='Charges Summary'!D$31 -> 52.61461048 | E6: ='Charges Summary'!E$31 -> 53.77345784 | F6: ='Charges Summary'!F$31 -> 55.58538331 | G6: ='Charges Summary'!G$31 -> 56.43645262 | H6: ='Charges Summary'!H$31 -> 57.75740414 | J6: =SUM('Charges Summary'!D25,'Charges Summary'!D8) -> 34.6612347 | K6: =SUM('Charges Summary'!E25,'Charges Summary'!E8) -> 35.12888699 | L6: =SUM('Charges Summary'!F25,'Charges Summary'!F8) -> 36.22553931 | M6: =SUM('Charges Summary'!G25,'Charges Summary'!G8) -> 36.39295366 | N6: =SUM('Charges Summary'!H25,'Charges Summary'!H8) -> 37.0818306 | P6: =SUM('Charges Summary'!D27,'Charges Summary'!D11) -> 17.95337578 | Q6: =SUM('Charges Summary'!E27,'Charges Summary'!E11) -> 18.64457085 | R6: =SUM('Charges Summary'!F27,'Charges Summary'!F11) -> 19.359844 | S6: =SUM('Charges Summary'!G27,'Charges Summary'!G11) -> 20.04349896 | T6: =SUM('Charges Summary'!H27,'Charges Summary'!H11) -> 20.67557354 | V6: =ABS(D6-J6-P6) -> 3.552713679e-15 | W6: =ABS(E6-K6-Q6) -> 3.552713679e-15 | X6: 7.105427358e-15 | Y6: 3.552713679e-15 | Z6: 7.105427358e-15
A7: ='DNSP Inputs General'!A42 -> Sodium High Pressure 150 watt | C7: ='DNSP Inputs General'!E42 -> 91.54 | D7: ='Charges Summary'!D$55 -> 95.62551964 | E7: ='Charges Summary'!E$55 -> 99.21431989 | F7: ='Charges Summary'!F$55 -> 102.48122 | G7: ='Charges Summary'!G$55 -> 103.7342826 | H7: ='Charges Summary'!H$55 -> 106.0643876 | J7: =SUM('Charges Summary'!D49,'Charges Summary'!D8) -> 75.43562702 | K7: =SUM('Charges Summary'!E49,'Charges Summary'!E8) -> 78.29851662 | L7: =SUM('Charges Summary'!F49,'Charges Summary'!F8) -> 80.81239552 | M7: =SUM('Charges Summary'!G49,'Charges Summary'!G8) -> 81.34644272 | N7: =SUM('Charges Summary'!H49,'Charges Summary'!H8) -> 83.01344678 | P7: =SUM('Charges Summary'!D51,'Charges Summary'!D11) -> 20.18989262 | Q7: =SUM('Charges Summary'!E51,'Charges Summary'!E11) -> 20.91580327 | R7: =SUM('Charges Summary'!F51,'Charges Summary'!F11) -> 21.66882446 | S7: =SUM('Charges Summary'!G51,'Charges Summary'!G11) -> 22.3878399 | T7: =SUM('Charges Summary'!H51,'Charges Summary'!H11) -> 23.05094083 | V7: =ABS(D7-J7-P7) -> 3.552713679e-15 | W7: 3.552713679e-15 | X7: 7.105427358e-15 | Y7: 7.105427358e-15 | Z7: 1.421085472e-14
A8: ='DNSP Inputs General'!A43 -> Sodium High Pressure 250 watt | C8: ='DNSP Inputs General'!E43 -> 93.95 | D8: ='Charges Summary'!D$71 -> 96.82789642 | E8: ='Charges Summary'!E$71 -> 100.4446582 | F8: ='Charges Summary'!F$71 -> 103.7388151 | G8: ='Charges Summary'!G$71 -> 105.0060205 | H8: ='Charges Summary'!H$71 -> 107.355394 | J8: =SUM('Charges Summary'!D65,'Charges Summary'!D8) -> 75.70633227 | K8: =SUM('Charges Summary'!E65,'Charges Summary'!E8) -> 78.58272186 | L8: =SUM('Charges Summary'!F65,'Charges Summary'!F8) -> 81.10813273 | M8: =SUM('Charges Summary'!G65,'Charges Summary'!G8) -> 81.64159254 | N8: =SUM('Charges Summary'!H65,'Charges Summary'!H8) -> 83.3149404 | P8: =SUM('Charges Summary'!D67,'Charges Summary'!D11) -> 21.12156414 | Q8: =SUM('Charges Summary'!E67,'Charges Summary'!E11) -> 21.86193634 | R8: =SUM('Charges Summary'!F67,'Charges Summary'!F11) -> 22.63068233 | S8: =SUM('Charges Summary'!G67,'Charges Summary'!G11) -> 23.36442797 | T8: =SUM('Charges Summary'!H67,'Charges Summary'!H11) -> 24.04045364 | V8: 3.552713679e-15 | W8: 7.105427358e-15 | X8: 3.552713679e-15 | Y8: 0 | Z8: 7.105427358e-15
A9: ='DNSP Inputs General'!A44 -> 55W Ind | C9: ='DNSP Inputs General'!E44 -> 61.03 | D9: =IF('DNSP Inputs General'!$B44='DNSP Inputs General'!$A$41,D$6,IF('DNSP Inputs General'!$B44='DNSP Inputs General'!$A$42,D$7,D$8))*'DNSP Inputs General'!$D44 -> 65.7682631 | E9: =IF('DNSP Inputs General'!$B44='DNSP Inputs General'!$A$41,E$6,IF('DNSP Inputs General'!$B44='DNSP Inputs General'!$A$42,E$7,E$8))*'DNSP Inputs General'!$D44 -> 67.2168223 | F9: =IF('DNSP Inputs General'!$B44='DNSP Inputs General'!$A$41,F$6,IF('DNSP Inputs General'!$B44='DNSP Inputs General'!$A$42,F$7,F$8))*'DNSP Inputs General'!$D44 -> 69.48172914 | G9: =IF('DNSP Inputs General'!$B44='DNSP Inputs General'!$A$41,G$6,IF('DNSP Inputs General'!$B44='DNSP Inputs General'!$A$42,G$7,G$8))*'DNSP Inputs General'!$D44 -> 70.54556578 | H9: =IF('DNSP Inputs General'!$B44='DNSP Inputs General'!$A$41,H$6,IF('DNSP Inputs General'!$B44='DNSP Inputs General'!$A$42,H$7,H$8))*'DNSP Inputs General'!$D44 -> 72.19675518 | J9: =IF('DNSP Inputs General'!$B44='DNSP Inputs General'!$A$41,J$6,IF('DNSP Inputs General'!$B44='DNSP Inputs General'!$A$42,J$7,J$8))*'DNSP Inputs General'!$D44 -> 43.32654338 | K9: =IF('DNSP Inputs General'!$B44='DNSP Inputs General'!$A$41,K$6,IF('DNSP Inputs General'!$B44='DNSP Inputs General'!$A$42,K$7,K$8))*'DNSP Inputs General'!$D44 -> 43.91110873 | L9: =IF('DNSP Inputs General'!$B44='DNSP Inputs General'!$A$41,L$6,IF('DNSP Inputs General'!$B44='DNSP Inputs General'!$A$42,L$7,L$8))*'DNSP Inputs General'!$D44 -> 45.28192413 | M9: =IF('DNSP Inputs General'!$B44='DNSP Inputs General'!$A$41,M$6,IF('DNSP Inputs General'!$B44='DNSP Inputs General'!$A$42,M$7,M$8))*'DNSP Inputs General'!$D44 -> 45.49119207 | N9: =IF('DNSP Inputs General'!$B44='DNSP Inputs General'!$A$41,N$6,IF('DNSP Inputs General'!$B44='DNSP Inputs General'!$A$42,N$7,N$8))*'DNSP Inputs General'!$D44 -> 46.35228825 | P9: =IF('DNSP Inputs General'!$B44='DNSP Inputs General'!$A$41,P$6,IF('DNSP Inputs General'!$B44='DNSP Inputs General'!$A$42,P$7,P$8))*'DNSP Inputs General'!$D44 -> 22.44171972 | Q9: =IF('DNSP Inputs General'!$B44='DNSP Inputs General'!$A$41,Q$6,IF('DNSP Inputs General'!$B44='DNSP Inputs General'!$A$42,Q$7,Q$8))*'DNSP Inputs General'!$D44 -> 23.30571357 | R9: =IF('DNSP Inputs General'!$B44='DNSP Inputs General'!$A$41,R$6,IF('DNSP Inputs General'!$B44='DNSP Inputs General'!$A$42,R$7,R$8))*'DNSP Inputs General'!$D44 -> 24.199805 | S9: =IF('DNSP Inputs General'!$B44='DNSP Inputs General'!$A$41,S$6,IF('DNSP Inputs General'!$B44='DNSP Inputs General'!$A$42,S$7,S$8))*'DNSP Inputs General'!$D44 -> 25.0543737 | T9: =IF('DNSP Inputs General'!$B44='DNSP Inputs General'!$A$41,T$6,IF('DNSP Inputs General'!$B44='DNSP Inputs General'!$A$42,T$7,T$8))*'DNSP Inputs General'!$D44 -> 25.84446693 | V9: 1.421085472e-14 | W9: 0 | X9: 1.065814104e-14 | Y9: 3.552713679e-15 | Z9: 7.105427358e-15
A10: ='DNSP Inputs General'!A45 -> Fluorescent 20 watt | C10: ='DNSP Inputs General'!E45 -> 61.03 | D10: =IF('DNSP Inputs General'!$B45='DNSP Inputs General'!$A$41,D$6,IF('DNSP Inputs General'!$B45='DNSP Inputs General'!$A$42,D$7,D$8))*'DNSP Inputs General'!$D45 -> 65.7682631 | E10: =IF('DNSP Inputs General'!$B45='DNSP Inputs General'!$A$41,E$6,IF('DNSP Inputs General'!$B45='DNSP Inputs General'!$A$42,E$7,E$8))*'DNSP Inputs General'!$D45 -> 67.2168223 | F10: =IF('DNSP Inputs General'!$B45='DNSP Inputs General'!$A$41,F$6,IF('DNSP Inputs General'!$B45='DNSP Inputs General'!$A$42,F$7,F$8))*'DNSP Inputs General'!$D45 -> 69.48172914 | G10: =IF('DNSP Inputs General'!$B45='DNSP Inputs General'!$A$41,G$6,IF('DNSP Inputs General'!$B45='DNSP Inputs General'!$A$42,G$7,G$8))*'DNSP Inputs General'!$D45 -> 70.54556578 | H10: =IF('DNSP Inputs General'!$B45='DNSP Inputs General'!$A$41,H$6,IF('DNSP Inputs General'!$B45='DNSP Inputs General'!$A$42,H$7,H$8))*'DNSP Inputs General'!$D45 -> 72.19675518 | J10: =IF('DNSP Inputs General'!$B45='DNSP Inputs General'!$A$41,J$6,IF('DNSP Inputs General'!$B45='DNSP Inputs General'!$A$42,J$7,J$8))*'DNSP Inputs General'!$D45 -> 43.32654338 | K10: =IF('DNSP Inputs General'!$B45='DNSP Inputs General'!$A$41,K$6,IF('DNSP Inputs General'!$B45='DNSP Inputs General'!$A$42,K$7,K$8))*'DNSP Inputs General'!$D45 -> 43.91110873 | L10: =IF('DNSP Inputs General'!$B45='DNSP Inputs General'!$A$41,L$6,IF('DNSP Inputs General'!$B45='DNSP Inputs General'!$A$42,L$7,L$8))*'DNSP Inputs General'!$D45 -> 45.28192413 | M10: =IF('DNSP Inputs General'!$B45='DNSP Inputs General'!$A$41,M$6,IF('DNSP Inputs General'!$B45='DNSP Inputs General'!$A$42,M$7,M$8))*'DNSP Inputs General'!$D45 -> 45.49119207 | N10: =IF('DNSP Inputs General'!$B45='DNSP Inputs General'!$A$41,N$6,IF('DNSP Inputs General'!$B45='DNSP Inputs General'!$A$42,N$7,N$8))*'DNSP Inputs General'!$D45 -> 46.35228825 | P10: =IF('DNSP Inputs General'!$B45='DNSP Inputs General'!$A$41,P$6,IF('DNSP Inputs General'!$B45='DNSP Inputs General'!$A$42,P$7,P$8))*'DNSP Inputs General'!$D45 -> 22.44171972 | Q10: =IF('DNSP Inputs General'!$B45='DNSP Inputs General'!$A$41,Q$6,IF('DNSP Inputs General'!$B45='DNSP Inputs General'!$A$42,Q$7,Q$8))*'DNSP Inputs General'!$D45 -> 23.30571357 | R10: =IF('DNSP Inputs General'!$B45='DNSP Inputs General'!$A$41,R$6,IF('DNSP Inputs General'!$B45='DNSP Inputs General'!$A$42,R$7,R$8))*'DNSP Inputs General'!$D45 -> 24.199805 | S10: =IF('DNSP Inputs General'!$B45='DNSP Inputs General'!$A$41,S$6,IF('DNSP Inputs General'!$B45='DNSP Inputs General'!$A$42,S$7,S$8))*'DNSP Inputs General'!$D45 -> 25.0543737 | T10: =IF('DNSP Inputs General'!$B45='DNSP Inputs General'!$A$41,T$6,IF('DNSP Inputs General'!$B45='DNSP Inputs General'!$A$42,T$7,T$8))*'DNSP Inputs General'!$D45 -> 25.84446693 | V10: 1.421085472e-14 | W10: 0 | X10: 1.065814104e-14 | Y10: 3.552713679e-15 | Z10: 7.105427358e-15
A11: ='DNSP Inputs General'!A46 -> Fluorescent 40 watt | C11: ='DNSP Inputs General'!E46 -> 61.03 | D11: =IF('DNSP Inputs General'!$B46='DNSP Inputs General'!$A$41,D$6,IF('DNSP Inputs General'!$B46='DNSP Inputs General'!$A$42,D$7,D$8))*'DNSP Inputs General'!$D46 -> 65.7682631 | E11: =IF('DNSP Inputs General'!$B46='DNSP Inputs General'!$A$41,E$6,IF('DNSP Inputs General'!$B46='DNSP Inputs General'!$A$42,E$7,E$8))*'DNSP Inputs General'!$D46 -> 67.2168223 | F11: =IF('DNSP Inputs General'!$B46='DNSP Inputs General'!$A$41,F$6,IF('DNSP Inputs General'!$B46='DNSP Inputs General'!$A$42,F$7,F$8))*'DNSP Inputs General'!$D46 -> 69.48172914 | G11: =IF('DNSP Inputs General'!$B46='DNSP Inputs General'!$A$41,G$6,IF('DNSP Inputs General'!$B46='DNSP Inputs General'!$A$42,G$7,G$8))*'DNSP Inputs General'!$D46 -> 70.54556578 | H11: =IF('DNSP Inputs General'!$B46='DNSP Inputs General'!$A$41,H$6,IF('DNSP Inputs General'!$B46='DNSP Inputs General'!$A$42,H$7,H$8))*'DNSP Inputs General'!$D46 -> 72.19675518 | J11: =IF('DNSP Inputs General'!$B46='DNSP Inputs General'!$A$41,J$6,IF('DNSP Inputs General'!$B46='DNSP Inputs General'!$A$42,J$7,J$8))*'DNSP Inputs General'!$D46 -> 43.32654338 | K11: =IF('DNSP Inputs General'!$B46='DNSP Inputs General'!$A$41,K$6,IF('DNSP Inputs General'!$B46='DNSP Inputs General'!$A$42,K$7,K$8))*'DNSP Inputs General'!$D46 -> 43.91110873 | L11: =IF('DNSP Inputs General'!$B46='DNSP Inputs General'!$A$41,L$6,IF('DNSP Inputs General'!$B46='DNSP Inputs General'!$A$42,L$7,L$8))*'DNSP Inputs General'!$D46 -> 45.28192413 | M11: =IF('DNSP Inputs General'!$B46='DNSP Inputs General'!$A$41,M$6,IF('DNSP Inputs General'!$B46='DNSP Inputs General'!$A$42,M$7,M$8))*'DNSP Inputs General'!$D46 -> 45.49119207 | N11: =IF('DNSP Inputs General'!$B46='DNSP Inputs General'!$A$41,N$6,IF('DNSP Inputs General'!$B46='DNSP Inputs General'!$A$42,N$7,N$8))*'DNSP Inputs General'!$D46 -> 46.35228825 | P11: =IF('DNSP Inputs General'!$B46='DNSP Inputs General'!$A$41,P$6,IF('DNSP Inputs General'!$B46='DNSP Inputs General'!$A$42,P$7,P$8))*'DNSP Inputs General'!$D46 -> 22.44171972 | Q11: =IF('DNSP Inputs General'!$B46='DNSP Inputs General'!$A$41,Q$6,IF('DNSP Inputs General'!$B46='DNSP Inputs General'!$A$42,Q$7,Q$8))*'DNSP Inputs General'!$D46 -> 23.30571357 | R11: =IF('DNSP Inputs General'!$B46='DNSP Inputs General'!$A$41,R$6,IF('DNSP Inputs General'!$B46='DNSP Inputs General'!$A$42,R$7,R$8))*'DNSP Inputs General'!$D46 -> 24.199805 | S11: =IF('DNSP Inputs General'!$B46='DNSP Inputs General'!$A$41,S$6,IF('DNSP Inputs General'!$B46='DNSP Inputs General'!$A$42,S$7,S$8))*'DNSP Inputs General'!$D46 -> 25.0543737 | T11: =IF('DNSP Inputs General'!$B46='DNSP Inputs General'!$A$41,T$6,IF('DNSP Inputs General'!$B46='DNSP Inputs General'!$A$42,T$7,T$8))*'DNSP Inputs General'!$D46 -> 25.84446693 | V11: 1.421085472e-14 | W11: 0 | X11: 1.065814104e-14 | Y11: 3.552713679e-15 | Z11: 7.105427358e-15
A12: ='DNSP Inputs General'!A47 -> Fluorescent 80 watt | C12: ='DNSP Inputs General'!E47 -> 61.03 | D12: =IF('DNSP Inputs General'!$B47='DNSP Inputs General'!$A$41,D$6,IF('DNSP Inputs General'!$B47='DNSP Inputs General'!$A$42,D$7,D$8))*'DNSP Inputs General'!$D47 -> 65.7682631 | E12: =IF('DNSP Inputs General'!$B47='DNSP Inputs General'!$A$41,E$6,IF('DNSP Inputs General'!$B47='DNSP Inputs General'!$A$42,E$7,E$8))*'DNSP Inputs General'!$D47 -> 67.2168223 | F12: =IF('DNSP Inputs General'!$B47='DNSP Inputs General'!$A$41,F$6,IF('DNSP Inputs General'!$B47='DNSP Inputs General'!$A$42,F$7,F$8))*'DNSP Inputs General'!$D47 -> 69.48172914 | G12: =IF('DNSP Inputs General'!$B47='DNSP Inputs General'!$A$41,G$6,IF('DNSP Inputs General'!$B47='DNSP Inputs General'!$A$42,G$7,G$8))*'DNSP Inputs General'!$D47 -> 70.54556578 | H12: =IF('DNSP Inputs General'!$B47='DNSP Inputs General'!$A$41,H$6,IF('DNSP Inputs General'!$B47='DNSP Inputs General'!$A$42,H$7,H$8))*'DNSP Inputs General'!$D47 -> 72.19675518 | J12: =IF('DNSP Inputs General'!$B47='DNSP Inputs General'!$A$41,J$6,IF('DNSP Inputs General'!$B47='DNSP Inputs General'!$A$42,J$7,J$8))*'DNSP Inputs General'!$D47 -> 43.32654338 | K12: =IF('DNSP Inputs General'!$B47='DNSP Inputs General'!$A$41,K$6,IF('DNSP Inputs General'!$B47='DNSP Inputs General'!$A$42,K$7,K$8))*'DNSP Inputs General'!$D47 -> 43.91110873 | L12: =IF('DNSP Inputs General'!$B47='DNSP Inputs General'!$A$41,L$6,IF('DNSP Inputs General'!$B47='DNSP Inputs General'!$A$42,L$7,L$8))*'DNSP Inputs General'!$D47 -> 45.28192413 | M12: =IF('DNSP Inputs General'!$B47='DNSP Inputs General'!$A$41,M$6,IF('DNSP Inputs General'!$B47='DNSP Inputs General'!$A$42,M$7,M$8))*'DNSP Inputs General'!$D47 -> 45.49119207 | N12: =IF('DNSP Inputs General'!$B47='DNSP Inputs General'!$A$41,N$6,IF('DNSP Inputs General'!$B47='DNSP Inputs General'!$A$42,N$7,N$8))*'DNSP Inputs General'!$D47 -> 46.35228825 | P12: =IF('DNSP Inputs General'!$B47='DNSP Inputs General'!$A$41,P$6,IF('DNSP Inputs General'!$B47='DNSP Inputs General'!$A$42,P$7,P$8))*'DNSP Inputs General'!$D47 -> 22.44171972 | Q12: =IF('DNSP Inputs General'!$B47='DNSP Inputs General'!$A$41,Q$6,IF('DNSP Inputs General'!$B47='DNSP Inputs General'!$A$42,Q$7,Q$8))*'DNSP Inputs General'!$D47 -> 23.30571357 | R12: =IF('DNSP Inputs General'!$B47='DNSP Inputs General'!$A$41,R$6,IF('DNSP Inputs General'!$B47='DNSP Inputs General'!$A$42,R$7,R$8))*'DNSP Inputs General'!$D47 -> 24.199805 | S12: =IF('DNSP Inputs General'!$B47='DNSP Inputs General'!$A$41,S$6,IF('DNSP Inputs General'!$B47='DNSP Inputs General'!$A$42,S$7,S$8))*'DNSP Inputs General'!$D47 -> 25.0543737 | T12: =IF('DNSP Inputs General'!$B47='DNSP Inputs General'!$A$41,T$6,IF('DNSP Inputs General'!$B47='DNSP Inputs General'!$A$42,T$7,T$8))*'DNSP Inputs General'!$D47 -> 25.84446693 | V12: 1.421085472e-14 | W12: 0 | X12: 1.065814104e-14 | Y12: 3.552713679e-15 | Z12: 7.105427358e-15
A13: ='DNSP Inputs General'!A48 -> Mercury Vapour 50 watt | C13: ='DNSP Inputs General'!E48 -> 61.03 | D13: =IF('DNSP Inputs General'!$B48='DNSP Inputs General'!$A$41,D$6,IF('DNSP Inputs General'!$B48='DNSP Inputs General'!$A$42,D$7,D$8))*'DNSP Inputs General'!$D48 -> 65.7682631 | E13: =IF('DNSP Inputs General'!$B48='DNSP Inputs General'!$A$41,E$6,IF('DNSP Inputs General'!$B48='DNSP Inputs General'!$A$42,E$7,E$8))*'DNSP Inputs General'!$D48 -> 67.2168223 | F13: =IF('DNSP Inputs General'!$B48='DNSP Inputs General'!$A$41,F$6,IF('DNSP Inputs General'!$B48='DNSP Inputs General'!$A$42,F$7,F$8))*'DNSP Inputs General'!$D48 -> 69.48172914 | G13: =IF('DNSP Inputs General'!$B48='DNSP Inputs General'!$A$41,G$6,IF('DNSP Inputs General'!$B48='DNSP Inputs General'!$A$42,G$7,G$8))*'DNSP Inputs General'!$D48 -> 70.54556578 | H13: =IF('DNSP Inputs General'!$B48='DNSP Inputs General'!$A$41,H$6,IF('DNSP Inputs General'!$B48='DNSP Inputs General'!$A$42,H$7,H$8))*'DNSP Inputs General'!$D48 -> 72.19675518 | J13: =IF('DNSP Inputs General'!$B48='DNSP Inputs General'!$A$41,J$6,IF('DNSP Inputs General'!$B48='DNSP Inputs General'!$A$42,J$7,J$8))*'DNSP Inputs General'!$D48 -> 43.32654338 | K13: =IF('DNSP Inputs General'!$B48='DNSP Inputs General'!$A$41,K$6,IF('DNSP Inputs General'!$B48='DNSP Inputs General'!$A$42,K$7,K$8))*'DNSP Inputs General'!$D48 -> 43.91110873 | L13: =IF('DNSP Inputs General'!$B48='DNSP Inputs General'!$A$41,L$6,IF('DNSP Inputs General'!$B48='DNSP Inputs General'!$A$42,L$7,L$8))*'DNSP Inputs General'!$D48 -> 45.28192413 | M13: =IF('DNSP Inputs General'!$B48='DNSP Inputs General'!$A$41,M$6,IF('DNSP Inputs General'!$B48='DNSP Inputs General'!$A$42,M$7,M$8))*'DNSP Inputs General'!$D48 -> 45.49119207 | N13: =IF('DNSP Inputs General'!$B48='DNSP Inputs General'!$A$41,N$6,IF('DNSP Inputs General'!$B48='DNSP Inputs General'!$A$42,N$7,N$8))*'DNSP Inputs General'!$D48 -> 46.35228825 | P13: =IF('DNSP Inputs General'!$B48='DNSP Inputs General'!$A$41,P$6,IF('DNSP Inputs General'!$B48='DNSP Inputs General'!$A$42,P$7,P$8))*'DNSP Inputs General'!$D48 -> 22.44171972 | Q13: =IF('DNSP Inputs General'!$B48='DNSP Inputs General'!$A$41,Q$6,IF('DNSP Inputs General'!$B48='DNSP Inputs General'!$A$42,Q$7,Q$8))*'DNSP Inputs General'!$D48 -> 23.30571357 | R13: =IF('DNSP Inputs General'!$B48='DNSP Inputs General'!$A$41,R$6,IF('DNSP Inputs General'!$B48='DNSP Inputs General'!$A$42,R$7,R$8))*'DNSP Inputs General'!$D48 -> 24.199805 | S13: =IF('DNSP Inputs General'!$B48='DNSP Inputs General'!$A$41,S$6,IF('DNSP Inputs General'!$B48='DNSP Inputs General'!$A$42,S$7,S$8))*'DNSP Inputs General'!$D48 -> 25.0543737 | T13: =IF('DNSP Inputs General'!$B48='DNSP Inputs General'!$A$41,T$6,IF('DNSP Inputs General'!$B48='DNSP Inputs General'!$A$42,T$7,T$8))*'DNSP Inputs General'!$D48 -> 25.84446693 | V13: 1.421085472e-14 | W13: 0 | X13: 1.065814104e-14 | Y13: 3.552713679e-15 | Z13: 7.105427358e-15
A14: ='DNSP Inputs General'!A49 -> Mercury Vapour 125 watt | C14: ='DNSP Inputs General'!E49 -> 71.77 | D14: =IF('DNSP Inputs General'!$B49='DNSP Inputs General'!$A$41,D$6,IF('DNSP Inputs General'!$B49='DNSP Inputs General'!$A$42,D$7,D$8))*'DNSP Inputs General'!$D49 -> 77.3434774 | E14: =IF('DNSP Inputs General'!$B49='DNSP Inputs General'!$A$41,E$6,IF('DNSP Inputs General'!$B49='DNSP Inputs General'!$A$42,E$7,E$8))*'DNSP Inputs General'!$D49 -> 79.04698302 | F14: =IF('DNSP Inputs General'!$B49='DNSP Inputs General'!$A$41,F$6,IF('DNSP Inputs General'!$B49='DNSP Inputs General'!$A$42,F$7,F$8))*'DNSP Inputs General'!$D49 -> 81.71051347 | G14: =IF('DNSP Inputs General'!$B49='DNSP Inputs General'!$A$41,G$6,IF('DNSP Inputs General'!$B49='DNSP Inputs General'!$A$42,G$7,G$8))*'DNSP Inputs General'!$D49 -> 82.96158535 | H14: =IF('DNSP Inputs General'!$B49='DNSP Inputs General'!$A$41,H$6,IF('DNSP Inputs General'!$B49='DNSP Inputs General'!$A$42,H$7,H$8))*'DNSP Inputs General'!$D49 -> 84.90338409 | J14: =IF('DNSP Inputs General'!$B49='DNSP Inputs General'!$A$41,J$6,IF('DNSP Inputs General'!$B49='DNSP Inputs General'!$A$42,J$7,J$8))*'DNSP Inputs General'!$D49 -> 50.95201501 | K14: =IF('DNSP Inputs General'!$B49='DNSP Inputs General'!$A$41,K$6,IF('DNSP Inputs General'!$B49='DNSP Inputs General'!$A$42,K$7,K$8))*'DNSP Inputs General'!$D49 -> 51.63946387 | L14: =IF('DNSP Inputs General'!$B49='DNSP Inputs General'!$A$41,L$6,IF('DNSP Inputs General'!$B49='DNSP Inputs General'!$A$42,L$7,L$8))*'DNSP Inputs General'!$D49 -> 53.25154278 | M14: =IF('DNSP Inputs General'!$B49='DNSP Inputs General'!$A$41,M$6,IF('DNSP Inputs General'!$B49='DNSP Inputs General'!$A$42,M$7,M$8))*'DNSP Inputs General'!$D49 -> 53.49764188 | N14: =IF('DNSP Inputs General'!$B49='DNSP Inputs General'!$A$41,N$6,IF('DNSP Inputs General'!$B49='DNSP Inputs General'!$A$42,N$7,N$8))*'DNSP Inputs General'!$D49 -> 54.51029098 | P14: =IF('DNSP Inputs General'!$B49='DNSP Inputs General'!$A$41,P$6,IF('DNSP Inputs General'!$B49='DNSP Inputs General'!$A$42,P$7,P$8))*'DNSP Inputs General'!$D49 -> 26.39146239 | Q14: =IF('DNSP Inputs General'!$B49='DNSP Inputs General'!$A$41,Q$6,IF('DNSP Inputs General'!$B49='DNSP Inputs General'!$A$42,Q$7,Q$8))*'DNSP Inputs General'!$D49 -> 27.40751916 | R14: =IF('DNSP Inputs General'!$B49='DNSP Inputs General'!$A$41,R$6,IF('DNSP Inputs General'!$B49='DNSP Inputs General'!$A$42,R$7,R$8))*'DNSP Inputs General'!$D49 -> 28.45897068 | S14: =IF('DNSP Inputs General'!$B49='DNSP Inputs General'!$A$41,S$6,IF('DNSP Inputs General'!$B49='DNSP Inputs General'!$A$42,S$7,S$8))*'DNSP Inputs General'!$D49 -> 29.46394348 | T14: =IF('DNSP Inputs General'!$B49='DNSP Inputs General'!$A$41,T$6,IF('DNSP Inputs General'!$B49='DNSP Inputs General'!$A$42,T$7,T$8))*'DNSP Inputs General'!$D49 -> 30.39309311 | V14: 3.552713679e-15 | W14: 0 | X14: 7.105427358e-15 | Y14: 3.552713679e-15 | Z14: 1.065814104e-14
A15: ='DNSP Inputs General'!A50 -> Mercury Vapour 250 watt | C15: ='DNSP Inputs General'!E50 -> 90.19 | D15: =IF('DNSP Inputs General'!$B50='DNSP Inputs General'!$A$41,D$6,IF('DNSP Inputs General'!$B50='DNSP Inputs General'!$A$42,D$7,D$8))*'DNSP Inputs General'!$D50 -> 92.95478056 | E15: =IF('DNSP Inputs General'!$B50='DNSP Inputs General'!$A$41,E$6,IF('DNSP Inputs General'!$B50='DNSP Inputs General'!$A$42,E$7,E$8))*'DNSP Inputs General'!$D50 -> 96.42687188 | F15: =IF('DNSP Inputs General'!$B50='DNSP Inputs General'!$A$41,F$6,IF('DNSP Inputs General'!$B50='DNSP Inputs General'!$A$42,F$7,F$8))*'DNSP Inputs General'!$D50 -> 99.58926246 | G15: =IF('DNSP Inputs General'!$B50='DNSP Inputs General'!$A$41,G$6,IF('DNSP Inputs General'!$B50='DNSP Inputs General'!$A$42,G$7,G$8))*'DNSP Inputs General'!$D50 -> 100.8057797 | H15: =IF('DNSP Inputs General'!$B50='DNSP Inputs General'!$A$41,H$6,IF('DNSP Inputs General'!$B50='DNSP Inputs General'!$A$42,H$7,H$8))*'DNSP Inputs General'!$D50 -> 103.0611783 | J15: =IF('DNSP Inputs General'!$B50='DNSP Inputs General'!$A$41,J$6,IF('DNSP Inputs General'!$B50='DNSP Inputs General'!$A$42,J$7,J$8))*'DNSP Inputs General'!$D50 -> 72.67807898 | K15: =IF('DNSP Inputs General'!$B50='DNSP Inputs General'!$A$41,K$6,IF('DNSP Inputs General'!$B50='DNSP Inputs General'!$A$42,K$7,K$8))*'DNSP Inputs General'!$D50 -> 75.43941299 | L15: =IF('DNSP Inputs General'!$B50='DNSP Inputs General'!$A$41,L$6,IF('DNSP Inputs General'!$B50='DNSP Inputs General'!$A$42,L$7,L$8))*'DNSP Inputs General'!$D50 -> 77.86380742 | M15: =IF('DNSP Inputs General'!$B50='DNSP Inputs General'!$A$41,M$6,IF('DNSP Inputs General'!$B50='DNSP Inputs General'!$A$42,M$7,M$8))*'DNSP Inputs General'!$D50 -> 78.37592884 | N15: =IF('DNSP Inputs General'!$B50='DNSP Inputs General'!$A$41,N$6,IF('DNSP Inputs General'!$B50='DNSP Inputs General'!$A$42,N$7,N$8))*'DNSP Inputs General'!$D50 -> 79.98234279 | P15: =IF('DNSP Inputs General'!$B50='DNSP Inputs General'!$A$41,P$6,IF('DNSP Inputs General'!$B50='DNSP Inputs General'!$A$42,P$7,P$8))*'DNSP Inputs General'!$D50 -> 20.27670158 | Q15: =IF('DNSP Inputs General'!$B50='DNSP Inputs General'!$A$41,Q$6,IF('DNSP Inputs General'!$B50='DNSP Inputs General'!$A$42,Q$7,Q$8))*'DNSP Inputs General'!$D50 -> 20.98745889 | R15: =IF('DNSP Inputs General'!$B50='DNSP Inputs General'!$A$41,R$6,IF('DNSP Inputs General'!$B50='DNSP Inputs General'!$A$42,R$7,R$8))*'DNSP Inputs General'!$D50 -> 21.72545504 | S15: =IF('DNSP Inputs General'!$B50='DNSP Inputs General'!$A$41,S$6,IF('DNSP Inputs General'!$B50='DNSP Inputs General'!$A$42,S$7,S$8))*'DNSP Inputs General'!$D50 -> 22.42985085 | T15: =IF('DNSP Inputs General'!$B50='DNSP Inputs General'!$A$41,T$6,IF('DNSP Inputs General'!$B50='DNSP Inputs General'!$A$42,T$7,T$8))*'DNSP Inputs General'!$D50 -> 23.07883549 | V15: 3.552713679e-15 | W15: 1.065814104e-14 | X15: 3.552713679e-15 | Y15: 7.105427358e-15 | Z15: 0
A16: ='DNSP Inputs General'!A51 -> Mercury Vapour 400 watt | C16: ='DNSP Inputs General'!E51 -> 101.47 | D16: =IF('DNSP Inputs General'!$B51='DNSP Inputs General'!$A$41,D$6,IF('DNSP Inputs General'!$B51='DNSP Inputs General'!$A$42,D$7,D$8))*'DNSP Inputs General'!$D51 -> 104.5741281 | E16: =IF('DNSP Inputs General'!$B51='DNSP Inputs General'!$A$41,E$6,IF('DNSP Inputs General'!$B51='DNSP Inputs General'!$A$42,E$7,E$8))*'DNSP Inputs General'!$D51 -> 108.4802309 | F16: =IF('DNSP Inputs General'!$B51='DNSP Inputs General'!$A$41,F$6,IF('DNSP Inputs General'!$B51='DNSP Inputs General'!$A$42,F$7,F$8))*'DNSP Inputs General'!$D51 -> 112.0379203 | G16: =IF('DNSP Inputs General'!$B51='DNSP Inputs General'!$A$41,G$6,IF('DNSP Inputs General'!$B51='DNSP Inputs General'!$A$42,G$7,G$8))*'DNSP Inputs General'!$D51 -> 113.4065022 | H16: =IF('DNSP Inputs General'!$B51='DNSP Inputs General'!$A$41,H$6,IF('DNSP Inputs General'!$B51='DNSP Inputs General'!$A$42,H$7,H$8))*'DNSP Inputs General'!$D51 -> 115.9438256 | J16: =IF('DNSP Inputs General'!$B51='DNSP Inputs General'!$A$41,J$6,IF('DNSP Inputs General'!$B51='DNSP Inputs General'!$A$42,J$7,J$8))*'DNSP Inputs General'!$D51 -> 81.76283886 | K16: =IF('DNSP Inputs General'!$B51='DNSP Inputs General'!$A$41,K$6,IF('DNSP Inputs General'!$B51='DNSP Inputs General'!$A$42,K$7,K$8))*'DNSP Inputs General'!$D51 -> 84.86933961 | L16: =IF('DNSP Inputs General'!$B51='DNSP Inputs General'!$A$41,L$6,IF('DNSP Inputs General'!$B51='DNSP Inputs General'!$A$42,L$7,L$8))*'DNSP Inputs General'!$D51 -> 87.59678335 | M16: =IF('DNSP Inputs General'!$B51='DNSP Inputs General'!$A$41,M$6,IF('DNSP Inputs General'!$B51='DNSP Inputs General'!$A$42,M$7,M$8))*'DNSP Inputs General'!$D51 -> 88.17291995 | N16: =IF('DNSP Inputs General'!$B51='DNSP Inputs General'!$A$41,N$6,IF('DNSP Inputs General'!$B51='DNSP Inputs General'!$A$42,N$7,N$8))*'DNSP Inputs General'!$D51 -> 89.98013564 | P16: =IF('DNSP Inputs General'!$B51='DNSP Inputs General'!$A$41,P$6,IF('DNSP Inputs General'!$B51='DNSP Inputs General'!$A$42,P$7,P$8))*'DNSP Inputs General'!$D51 -> 22.81128927 | Q16: =IF('DNSP Inputs General'!$B51='DNSP Inputs General'!$A$41,Q$6,IF('DNSP Inputs General'!$B51='DNSP Inputs General'!$A$42,Q$7,Q$8))*'DNSP Inputs General'!$D51 -> 23.61089125 | R16: =IF('DNSP Inputs General'!$B51='DNSP Inputs General'!$A$41,R$6,IF('DNSP Inputs General'!$B51='DNSP Inputs General'!$A$42,R$7,R$8))*'DNSP Inputs General'!$D51 -> 24.44113691 | S16: =IF('DNSP Inputs General'!$B51='DNSP Inputs General'!$A$41,S$6,IF('DNSP Inputs General'!$B51='DNSP Inputs General'!$A$42,S$7,S$8))*'DNSP Inputs General'!$D51 -> 25.23358221 | T16: =IF('DNSP Inputs General'!$B51='DNSP Inputs General'!$A$41,T$6,IF('DNSP Inputs General'!$B51='DNSP Inputs General'!$A$42,T$7,T$8))*'DNSP Inputs General'!$D51 -> 25.96368993 | V16: 3.552713679e-15 | W16: 1.421085472e-14 | X16: 7.105427358e-15 | Y16: 0 | Z16: 7.105427358e-15
A17: ='DNSP Inputs General'!A52 -> Sodium High Pressure 50 watt | C17: ='DNSP Inputs General'!E52 -> 112.91 | D17: =IF('DNSP Inputs General'!$B52='DNSP Inputs General'!$A$41,D$6,IF('DNSP Inputs General'!$B52='DNSP Inputs General'!$A$42,D$7,D$8))*'DNSP Inputs General'!$D52 -> 119.5318995 | E17: =IF('DNSP Inputs General'!$B52='DNSP Inputs General'!$A$41,E$6,IF('DNSP Inputs General'!$B52='DNSP Inputs General'!$A$42,E$7,E$8))*'DNSP Inputs General'!$D52 -> 124.0178999 | F17: =IF('DNSP Inputs General'!$B52='DNSP Inputs General'!$A$41,F$6,IF('DNSP Inputs General'!$B52='DNSP Inputs General'!$A$42,F$7,F$8))*'DNSP Inputs General'!$D52 -> 128.101525 | G17: =IF('DNSP Inputs General'!$B52='DNSP Inputs General'!$A$41,G$6,IF('DNSP Inputs General'!$B52='DNSP Inputs General'!$A$42,G$7,G$8))*'DNSP Inputs General'!$D52 -> 129.6678533 | H17: =IF('DNSP Inputs General'!$B52='DNSP Inputs General'!$A$41,H$6,IF('DNSP Inputs General'!$B52='DNSP Inputs General'!$A$42,H$7,H$8))*'DNSP Inputs General'!$D52 -> 132.5804845 | J17: =IF('DNSP Inputs General'!$B52='DNSP Inputs General'!$A$41,J$6,IF('DNSP Inputs General'!$B52='DNSP Inputs General'!$A$42,J$7,J$8))*'DNSP Inputs General'!$D52 -> 94.29453377 | K17: =IF('DNSP Inputs General'!$B52='DNSP Inputs General'!$A$41,K$6,IF('DNSP Inputs General'!$B52='DNSP Inputs General'!$A$42,K$7,K$8))*'DNSP Inputs General'!$D52 -> 97.87314578 | L17: =IF('DNSP Inputs General'!$B52='DNSP Inputs General'!$A$41,L$6,IF('DNSP Inputs General'!$B52='DNSP Inputs General'!$A$42,L$7,L$8))*'DNSP Inputs General'!$D52 -> 101.0154944 | M17: =IF('DNSP Inputs General'!$B52='DNSP Inputs General'!$A$41,M$6,IF('DNSP Inputs General'!$B52='DNSP Inputs General'!$A$42,M$7,M$8))*'DNSP Inputs General'!$D52 -> 101.6830534 | N17: =IF('DNSP Inputs General'!$B52='DNSP Inputs General'!$A$41,N$6,IF('DNSP Inputs General'!$B52='DNSP Inputs General'!$A$42,N$7,N$8))*'DNSP Inputs General'!$D52 -> 103.7668085 | P17: =IF('DNSP Inputs General'!$B52='DNSP Inputs General'!$A$41,P$6,IF('DNSP Inputs General'!$B52='DNSP Inputs General'!$A$42,P$7,P$8))*'DNSP Inputs General'!$D52 -> 25.23736578 | Q17: =IF('DNSP Inputs General'!$B52='DNSP Inputs General'!$A$41,Q$6,IF('DNSP Inputs General'!$B52='DNSP Inputs General'!$A$42,Q$7,Q$8))*'DNSP Inputs General'!$D52 -> 26.14475409 | R17: =IF('DNSP Inputs General'!$B52='DNSP Inputs General'!$A$41,R$6,IF('DNSP Inputs General'!$B52='DNSP Inputs General'!$A$42,R$7,R$8))*'DNSP Inputs General'!$D52 -> 27.08603057 | S17: =IF('DNSP Inputs General'!$B52='DNSP Inputs General'!$A$41,S$6,IF('DNSP Inputs General'!$B52='DNSP Inputs General'!$A$42,S$7,S$8))*'DNSP Inputs General'!$D52 -> 27.98479987 | T17: =IF('DNSP Inputs General'!$B52='DNSP Inputs General'!$A$41,T$6,IF('DNSP Inputs General'!$B52='DNSP Inputs General'!$A$42,T$7,T$8))*'DNSP Inputs General'!$D52 -> 28.81367604 | V17: 3.552713679e-15 | W17: 1.065814104e-14 | X17: 0 | Y17: 7.105427358e-15 | Z17: 3.552713679e-15
A18: ='DNSP Inputs General'!A53 -> Sodium Low Pressure 90 watt | C18: ='DNSP Inputs General'!E53 -> 97.03 | D18: =IF('DNSP Inputs General'!$B53='DNSP Inputs General'!$A$41,D$6,IF('DNSP Inputs General'!$B53='DNSP Inputs General'!$A$42,D$7,D$8))*'DNSP Inputs General'!$D53 -> 101.3630508 | E18: =IF('DNSP Inputs General'!$B53='DNSP Inputs General'!$A$41,E$6,IF('DNSP Inputs General'!$B53='DNSP Inputs General'!$A$42,E$7,E$8))*'DNSP Inputs General'!$D53 -> 105.1671791 | F18: =IF('DNSP Inputs General'!$B53='DNSP Inputs General'!$A$41,F$6,IF('DNSP Inputs General'!$B53='DNSP Inputs General'!$A$42,F$7,F$8))*'DNSP Inputs General'!$D53 -> 108.6300932 | G18: =IF('DNSP Inputs General'!$B53='DNSP Inputs General'!$A$41,G$6,IF('DNSP Inputs General'!$B53='DNSP Inputs General'!$A$42,G$7,G$8))*'DNSP Inputs General'!$D53 -> 109.9583396 | H18: =IF('DNSP Inputs General'!$B53='DNSP Inputs General'!$A$41,H$6,IF('DNSP Inputs General'!$B53='DNSP Inputs General'!$A$42,H$7,H$8))*'DNSP Inputs General'!$D53 -> 112.4282509 | J18: =IF('DNSP Inputs General'!$B53='DNSP Inputs General'!$A$41,J$6,IF('DNSP Inputs General'!$B53='DNSP Inputs General'!$A$42,J$7,J$8))*'DNSP Inputs General'!$D53 -> 79.96176464 | K18: =IF('DNSP Inputs General'!$B53='DNSP Inputs General'!$A$41,K$6,IF('DNSP Inputs General'!$B53='DNSP Inputs General'!$A$42,K$7,K$8))*'DNSP Inputs General'!$D53 -> 82.99642762 | L18: =IF('DNSP Inputs General'!$B53='DNSP Inputs General'!$A$41,L$6,IF('DNSP Inputs General'!$B53='DNSP Inputs General'!$A$42,L$7,L$8))*'DNSP Inputs General'!$D53 -> 85.66113925 | M18: =IF('DNSP Inputs General'!$B53='DNSP Inputs General'!$A$41,M$6,IF('DNSP Inputs General'!$B53='DNSP Inputs General'!$A$42,M$7,M$8))*'DNSP Inputs General'!$D53 -> 86.22722928 | N18: =IF('DNSP Inputs General'!$B53='DNSP Inputs General'!$A$41,N$6,IF('DNSP Inputs General'!$B53='DNSP Inputs General'!$A$42,N$7,N$8))*'DNSP Inputs General'!$D53 -> 87.99425359 | P18: =IF('DNSP Inputs General'!$B53='DNSP Inputs General'!$A$41,P$6,IF('DNSP Inputs General'!$B53='DNSP Inputs General'!$A$42,P$7,P$8))*'DNSP Inputs General'!$D53 -> 21.40128618 | Q18: =IF('DNSP Inputs General'!$B53='DNSP Inputs General'!$A$41,Q$6,IF('DNSP Inputs General'!$B53='DNSP Inputs General'!$A$42,Q$7,Q$8))*'DNSP Inputs General'!$D53 -> 22.17075146 | R18: =IF('DNSP Inputs General'!$B53='DNSP Inputs General'!$A$41,R$6,IF('DNSP Inputs General'!$B53='DNSP Inputs General'!$A$42,R$7,R$8))*'DNSP Inputs General'!$D53 -> 22.96895393 | S18: =IF('DNSP Inputs General'!$B53='DNSP Inputs General'!$A$41,S$6,IF('DNSP Inputs General'!$B53='DNSP Inputs General'!$A$42,S$7,S$8))*'DNSP Inputs General'!$D53 -> 23.73111029 | T18: =IF('DNSP Inputs General'!$B53='DNSP Inputs General'!$A$41,T$6,IF('DNSP Inputs General'!$B53='DNSP Inputs General'!$A$42,T$7,T$8))*'DNSP Inputs General'!$D53 -> 24.43399728 | V18: 3.552713679e-15 | W18: 1.065814104e-14 | X18: 1.776356839e-14 | Y18: 3.552713679e-15 | Z18: 1.065814104e-14
A19: ='DNSP Inputs General'!A54 -> Sodium High Pressure 100 watt | C19: ='DNSP Inputs General'!E54 -> 125.41 | D19: =IF('DNSP Inputs General'!$B54='DNSP Inputs General'!$A$41,D$6,IF('DNSP Inputs General'!$B54='DNSP Inputs General'!$A$42,D$7,D$8))*'DNSP Inputs General'!$D54 -> 131.0069619 | E19: =IF('DNSP Inputs General'!$B54='DNSP Inputs General'!$A$41,E$6,IF('DNSP Inputs General'!$B54='DNSP Inputs General'!$A$42,E$7,E$8))*'DNSP Inputs General'!$D54 -> 135.9236183 | F19: =IF('DNSP Inputs General'!$B54='DNSP Inputs General'!$A$41,F$6,IF('DNSP Inputs General'!$B54='DNSP Inputs General'!$A$42,F$7,F$8))*'DNSP Inputs General'!$D54 -> 140.3992714 | G19: =IF('DNSP Inputs General'!$B54='DNSP Inputs General'!$A$41,G$6,IF('DNSP Inputs General'!$B54='DNSP Inputs General'!$A$42,G$7,G$8))*'DNSP Inputs General'!$D54 -> 142.1159672 | H19: =IF('DNSP Inputs General'!$B54='DNSP Inputs General'!$A$41,H$6,IF('DNSP Inputs General'!$B54='DNSP Inputs General'!$A$42,H$7,H$8))*'DNSP Inputs General'!$D54 -> 145.308211 | J19: =IF('DNSP Inputs General'!$B54='DNSP Inputs General'!$A$41,J$6,IF('DNSP Inputs General'!$B54='DNSP Inputs General'!$A$42,J$7,J$8))*'DNSP Inputs General'!$D54 -> 103.346809 | K19: =IF('DNSP Inputs General'!$B54='DNSP Inputs General'!$A$41,K$6,IF('DNSP Inputs General'!$B54='DNSP Inputs General'!$A$42,K$7,K$8))*'DNSP Inputs General'!$D54 -> 107.2689678 | L19: =IF('DNSP Inputs General'!$B54='DNSP Inputs General'!$A$41,L$6,IF('DNSP Inputs General'!$B54='DNSP Inputs General'!$A$42,L$7,L$8))*'DNSP Inputs General'!$D54 -> 110.7129819 | M19: =IF('DNSP Inputs General'!$B54='DNSP Inputs General'!$A$41,M$6,IF('DNSP Inputs General'!$B54='DNSP Inputs General'!$A$42,M$7,M$8))*'DNSP Inputs General'!$D54 -> 111.4446265 | N19: =IF('DNSP Inputs General'!$B54='DNSP Inputs General'!$A$41,N$6,IF('DNSP Inputs General'!$B54='DNSP Inputs General'!$A$42,N$7,N$8))*'DNSP Inputs General'!$D54 -> 113.7284221 | P19: =IF('DNSP Inputs General'!$B54='DNSP Inputs General'!$A$41,P$6,IF('DNSP Inputs General'!$B54='DNSP Inputs General'!$A$42,P$7,P$8))*'DNSP Inputs General'!$D54 -> 27.66015289 | Q19: =IF('DNSP Inputs General'!$B54='DNSP Inputs General'!$A$41,Q$6,IF('DNSP Inputs General'!$B54='DNSP Inputs General'!$A$42,Q$7,Q$8))*'DNSP Inputs General'!$D54 -> 28.65465048 | R19: =IF('DNSP Inputs General'!$B54='DNSP Inputs General'!$A$41,R$6,IF('DNSP Inputs General'!$B54='DNSP Inputs General'!$A$42,R$7,R$8))*'DNSP Inputs General'!$D54 -> 29.68628951 | S19: =IF('DNSP Inputs General'!$B54='DNSP Inputs General'!$A$41,S$6,IF('DNSP Inputs General'!$B54='DNSP Inputs General'!$A$42,S$7,S$8))*'DNSP Inputs General'!$D54 -> 30.67134066 | T19: =IF('DNSP Inputs General'!$B54='DNSP Inputs General'!$A$41,T$6,IF('DNSP Inputs General'!$B54='DNSP Inputs General'!$A$42,T$7,T$8))*'DNSP Inputs General'!$D54 -> 31.57978894 | V19: 7.105427358e-15 | W19: 1.421085472e-14 | X19: 7.105427358e-15 | Y19: 1.421085472e-14 | Z19: 7.105427358e-15
A20: ='DNSP Inputs General'!A55 -> Sodium High Pressure 400 watt | C20: ='DNSP Inputs General'!E55 -> 124.96 | D20: =IF('DNSP Inputs General'!$B55='DNSP Inputs General'!$A$41,D$6,IF('DNSP Inputs General'!$B55='DNSP Inputs General'!$A$42,D$7,D$8))*'DNSP Inputs General'!$D55 -> 128.7811022 | E20: =IF('DNSP Inputs General'!$B55='DNSP Inputs General'!$A$41,E$6,IF('DNSP Inputs General'!$B55='DNSP Inputs General'!$A$42,E$7,E$8))*'DNSP Inputs General'!$D55 -> 133.5913954 | F20: =IF('DNSP Inputs General'!$B55='DNSP Inputs General'!$A$41,F$6,IF('DNSP Inputs General'!$B55='DNSP Inputs General'!$A$42,F$7,F$8))*'DNSP Inputs General'!$D55 -> 137.972624 | G20: =IF('DNSP Inputs General'!$B55='DNSP Inputs General'!$A$41,G$6,IF('DNSP Inputs General'!$B55='DNSP Inputs General'!$A$42,G$7,G$8))*'DNSP Inputs General'!$D55 -> 139.6580073 | H20: =IF('DNSP Inputs General'!$B55='DNSP Inputs General'!$A$41,H$6,IF('DNSP Inputs General'!$B55='DNSP Inputs General'!$A$42,H$7,H$8))*'DNSP Inputs General'!$D55 -> 142.7826741 | J20: =IF('DNSP Inputs General'!$B55='DNSP Inputs General'!$A$41,J$6,IF('DNSP Inputs General'!$B55='DNSP Inputs General'!$A$42,J$7,J$8))*'DNSP Inputs General'!$D55 -> 100.6894219 | K20: =IF('DNSP Inputs General'!$B55='DNSP Inputs General'!$A$41,K$6,IF('DNSP Inputs General'!$B55='DNSP Inputs General'!$A$42,K$7,K$8))*'DNSP Inputs General'!$D55 -> 104.5150201 | L20: =IF('DNSP Inputs General'!$B55='DNSP Inputs General'!$A$41,L$6,IF('DNSP Inputs General'!$B55='DNSP Inputs General'!$A$42,L$7,L$8))*'DNSP Inputs General'!$D55 -> 107.8738165 | M20: =IF('DNSP Inputs General'!$B55='DNSP Inputs General'!$A$41,M$6,IF('DNSP Inputs General'!$B55='DNSP Inputs General'!$A$42,M$7,M$8))*'DNSP Inputs General'!$D55 -> 108.5833181 | N20: =IF('DNSP Inputs General'!$B55='DNSP Inputs General'!$A$41,N$6,IF('DNSP Inputs General'!$B55='DNSP Inputs General'!$A$42,N$7,N$8))*'DNSP Inputs General'!$D55 -> 110.8088707 | P20: =IF('DNSP Inputs General'!$B55='DNSP Inputs General'!$A$41,P$6,IF('DNSP Inputs General'!$B55='DNSP Inputs General'!$A$42,P$7,P$8))*'DNSP Inputs General'!$D55 -> 28.09168031 | Q20: =IF('DNSP Inputs General'!$B55='DNSP Inputs General'!$A$41,Q$6,IF('DNSP Inputs General'!$B55='DNSP Inputs General'!$A$42,Q$7,Q$8))*'DNSP Inputs General'!$D55 -> 29.07637533 | R20: =IF('DNSP Inputs General'!$B55='DNSP Inputs General'!$A$41,R$6,IF('DNSP Inputs General'!$B55='DNSP Inputs General'!$A$42,R$7,R$8))*'DNSP Inputs General'!$D55 -> 30.0988075 | S20: =IF('DNSP Inputs General'!$B55='DNSP Inputs General'!$A$41,S$6,IF('DNSP Inputs General'!$B55='DNSP Inputs General'!$A$42,S$7,S$8))*'DNSP Inputs General'!$D55 -> 31.0746892 | T20: =IF('DNSP Inputs General'!$B55='DNSP Inputs General'!$A$41,T$6,IF('DNSP Inputs General'!$B55='DNSP Inputs General'!$A$42,T$7,T$8))*'DNSP Inputs General'!$D55 -> 31.97380334 | V20: 3.552713679e-15 | W20: 1.421085472e-14 | X20: 3.552713679e-15 | Y20: 1.421085472e-14 | Z20: 1.065814104e-14
A21: ='DNSP Inputs General'!A56 -> Metal Halide 70 watt | C21: ='DNSP Inputs General'!E56 -> 125.48 | D21: =IF('DNSP Inputs General'!$B56='DNSP Inputs General'!$A$41,D$6,IF('DNSP Inputs General'!$B56='DNSP Inputs General'!$A$42,D$7,D$8))*'DNSP Inputs General'!$D56 -> 135.2195489 | E21: =IF('DNSP Inputs General'!$B56='DNSP Inputs General'!$A$41,E$6,IF('DNSP Inputs General'!$B56='DNSP Inputs General'!$A$42,E$7,E$8))*'DNSP Inputs General'!$D56 -> 138.1977866 | F21: =IF('DNSP Inputs General'!$B56='DNSP Inputs General'!$A$41,F$6,IF('DNSP Inputs General'!$B56='DNSP Inputs General'!$A$42,F$7,F$8))*'DNSP Inputs General'!$D56 -> 142.8544351 | G21: =IF('DNSP Inputs General'!$B56='DNSP Inputs General'!$A$41,G$6,IF('DNSP Inputs General'!$B56='DNSP Inputs General'!$A$42,G$7,G$8))*'DNSP Inputs General'!$D56 -> 145.0416832 | H21: =IF('DNSP Inputs General'!$B56='DNSP Inputs General'!$A$41,H$6,IF('DNSP Inputs General'!$B56='DNSP Inputs General'!$A$42,H$7,H$8))*'DNSP Inputs General'!$D56 -> 148.4365286 | J21: =IF('DNSP Inputs General'!$B56='DNSP Inputs General'!$A$41,J$6,IF('DNSP Inputs General'!$B56='DNSP Inputs General'!$A$42,J$7,J$8))*'DNSP Inputs General'!$D56 -> 89.07937318 | K21: =IF('DNSP Inputs General'!$B56='DNSP Inputs General'!$A$41,K$6,IF('DNSP Inputs General'!$B56='DNSP Inputs General'!$A$42,K$7,K$8))*'DNSP Inputs General'!$D56 -> 90.28123955 | L21: =IF('DNSP Inputs General'!$B56='DNSP Inputs General'!$A$41,L$6,IF('DNSP Inputs General'!$B56='DNSP Inputs General'!$A$42,L$7,L$8))*'DNSP Inputs General'!$D56 -> 93.09963602 | M21: =IF('DNSP Inputs General'!$B56='DNSP Inputs General'!$A$41,M$6,IF('DNSP Inputs General'!$B56='DNSP Inputs General'!$A$42,M$7,M$8))*'DNSP Inputs General'!$D56 -> 93.5298909 | N21: =IF('DNSP Inputs General'!$B56='DNSP Inputs General'!$A$41,N$6,IF('DNSP Inputs General'!$B56='DNSP Inputs General'!$A$42,N$7,N$8))*'DNSP Inputs General'!$D56 -> 95.30030464 | P21: =IF('DNSP Inputs General'!$B56='DNSP Inputs General'!$A$41,P$6,IF('DNSP Inputs General'!$B56='DNSP Inputs General'!$A$42,P$7,P$8))*'DNSP Inputs General'!$D56 -> 46.14017575 | Q21: =IF('DNSP Inputs General'!$B56='DNSP Inputs General'!$A$41,Q$6,IF('DNSP Inputs General'!$B56='DNSP Inputs General'!$A$42,Q$7,Q$8))*'DNSP Inputs General'!$D56 -> 47.9165471 | R21: =IF('DNSP Inputs General'!$B56='DNSP Inputs General'!$A$41,R$6,IF('DNSP Inputs General'!$B56='DNSP Inputs General'!$A$42,R$7,R$8))*'DNSP Inputs General'!$D56 -> 49.75479909 | S21: =IF('DNSP Inputs General'!$B56='DNSP Inputs General'!$A$41,S$6,IF('DNSP Inputs General'!$B56='DNSP Inputs General'!$A$42,S$7,S$8))*'DNSP Inputs General'!$D56 -> 51.51179234 | T21: =IF('DNSP Inputs General'!$B56='DNSP Inputs General'!$A$41,T$6,IF('DNSP Inputs General'!$B56='DNSP Inputs General'!$A$42,T$7,T$8))*'DNSP Inputs General'!$D56 -> 53.136224 | V21: 2.842170943e-14 | W21: 7.105427358e-15 | X21: 1.421085472e-14 | Y21: 7.105427358e-15 | Z21: 2.131628207e-14
A22: ='DNSP Inputs General'!A57 -> Metal Halide 150 watt | C22: ='DNSP Inputs General'!E57 -> 203.22 | D22: =IF('DNSP Inputs General'!$B57='DNSP Inputs General'!$A$41,D$6,IF('DNSP Inputs General'!$B57='DNSP Inputs General'!$A$42,D$7,D$8))*'DNSP Inputs General'!$D57 -> 212.2886536 | E22: =IF('DNSP Inputs General'!$B57='DNSP Inputs General'!$A$41,E$6,IF('DNSP Inputs General'!$B57='DNSP Inputs General'!$A$42,E$7,E$8))*'DNSP Inputs General'!$D57 -> 220.2557902 | F22: =IF('DNSP Inputs General'!$B57='DNSP Inputs General'!$A$41,F$6,IF('DNSP Inputs General'!$B57='DNSP Inputs General'!$A$42,F$7,F$8))*'DNSP Inputs General'!$D57 -> 227.5083083 | G22: =IF('DNSP Inputs General'!$B57='DNSP Inputs General'!$A$41,G$6,IF('DNSP Inputs General'!$B57='DNSP Inputs General'!$A$42,G$7,G$8))*'DNSP Inputs General'!$D57 -> 230.2901074 | H22: =IF('DNSP Inputs General'!$B57='DNSP Inputs General'!$A$41,H$6,IF('DNSP Inputs General'!$B57='DNSP Inputs General'!$A$42,H$7,H$8))*'DNSP Inputs General'!$D57 -> 235.4629405 | J22: =IF('DNSP Inputs General'!$B57='DNSP Inputs General'!$A$41,J$6,IF('DNSP Inputs General'!$B57='DNSP Inputs General'!$A$42,J$7,J$8))*'DNSP Inputs General'!$D57 -> 167.467092 | K22: =IF('DNSP Inputs General'!$B57='DNSP Inputs General'!$A$41,K$6,IF('DNSP Inputs General'!$B57='DNSP Inputs General'!$A$42,K$7,K$8))*'DNSP Inputs General'!$D57 -> 173.8227069 | L22: =IF('DNSP Inputs General'!$B57='DNSP Inputs General'!$A$41,L$6,IF('DNSP Inputs General'!$B57='DNSP Inputs General'!$A$42,L$7,L$8))*'DNSP Inputs General'!$D57 -> 179.403518 | M22: =IF('DNSP Inputs General'!$B57='DNSP Inputs General'!$A$41,M$6,IF('DNSP Inputs General'!$B57='DNSP Inputs General'!$A$42,M$7,M$8))*'DNSP Inputs General'!$D57 -> 180.5891028 | N22: =IF('DNSP Inputs General'!$B57='DNSP Inputs General'!$A$41,N$6,IF('DNSP Inputs General'!$B57='DNSP Inputs General'!$A$42,N$7,N$8))*'DNSP Inputs General'!$D57 -> 184.2898519 | P22: =IF('DNSP Inputs General'!$B57='DNSP Inputs General'!$A$41,P$6,IF('DNSP Inputs General'!$B57='DNSP Inputs General'!$A$42,P$7,P$8))*'DNSP Inputs General'!$D57 -> 44.82156162 | Q22: =IF('DNSP Inputs General'!$B57='DNSP Inputs General'!$A$41,Q$6,IF('DNSP Inputs General'!$B57='DNSP Inputs General'!$A$42,Q$7,Q$8))*'DNSP Inputs General'!$D57 -> 46.43308326 | R22: =IF('DNSP Inputs General'!$B57='DNSP Inputs General'!$A$41,R$6,IF('DNSP Inputs General'!$B57='DNSP Inputs General'!$A$42,R$7,R$8))*'DNSP Inputs General'!$D57 -> 48.1047903 | S22: =IF('DNSP Inputs General'!$B57='DNSP Inputs General'!$A$41,S$6,IF('DNSP Inputs General'!$B57='DNSP Inputs General'!$A$42,S$7,S$8))*'DNSP Inputs General'!$D57 -> 49.70100457 | T22: =IF('DNSP Inputs General'!$B57='DNSP Inputs General'!$A$41,T$6,IF('DNSP Inputs General'!$B57='DNSP Inputs General'!$A$42,T$7,T$8))*'DNSP Inputs General'!$D57 -> 51.17308865 | V22: 1.421085472e-14 | W22: 2.131628207e-14 | X22: 7.105427358e-15 | Y22: 3.552713679e-14 | Z22: 2.131628207e-14
A23: ='DNSP Inputs General'!A58 -> Metal Halide 250 watt | C23: ='DNSP Inputs General'!E58 -> 202 | D23: =IF('DNSP Inputs General'!$B58='DNSP Inputs General'!$A$41,D$6,IF('DNSP Inputs General'!$B58='DNSP Inputs General'!$A$42,D$7,D$8))*'DNSP Inputs General'!$D58 -> 208.1799773 | E23: =IF('DNSP Inputs General'!$B58='DNSP Inputs General'!$A$41,E$6,IF('DNSP Inputs General'!$B58='DNSP Inputs General'!$A$42,E$7,E$8))*'DNSP Inputs General'!$D58 -> 215.9560151 | F23: =IF('DNSP Inputs General'!$B58='DNSP Inputs General'!$A$41,F$6,IF('DNSP Inputs General'!$B58='DNSP Inputs General'!$A$42,F$7,F$8))*'DNSP Inputs General'!$D58 -> 223.0384524 | G23: =IF('DNSP Inputs General'!$B58='DNSP Inputs General'!$A$41,G$6,IF('DNSP Inputs General'!$B58='DNSP Inputs General'!$A$42,G$7,G$8))*'DNSP Inputs General'!$D58 -> 225.7629441 | H23: =IF('DNSP Inputs General'!$B58='DNSP Inputs General'!$A$41,H$6,IF('DNSP Inputs General'!$B58='DNSP Inputs General'!$A$42,H$7,H$8))*'DNSP Inputs General'!$D58 -> 230.8140972 | J23: =IF('DNSP Inputs General'!$B58='DNSP Inputs General'!$A$41,J$6,IF('DNSP Inputs General'!$B58='DNSP Inputs General'!$A$42,J$7,J$8))*'DNSP Inputs General'!$D58 -> 162.7686144 | K23: =IF('DNSP Inputs General'!$B58='DNSP Inputs General'!$A$41,K$6,IF('DNSP Inputs General'!$B58='DNSP Inputs General'!$A$42,K$7,K$8))*'DNSP Inputs General'!$D58 -> 168.952852 | L23: =IF('DNSP Inputs General'!$B58='DNSP Inputs General'!$A$41,L$6,IF('DNSP Inputs General'!$B58='DNSP Inputs General'!$A$42,L$7,L$8))*'DNSP Inputs General'!$D58 -> 174.3824854 | M23: =IF('DNSP Inputs General'!$B58='DNSP Inputs General'!$A$41,M$6,IF('DNSP Inputs General'!$B58='DNSP Inputs General'!$A$42,M$7,M$8))*'DNSP Inputs General'!$D58 -> 175.529424 | N23: =IF('DNSP Inputs General'!$B58='DNSP Inputs General'!$A$41,N$6,IF('DNSP Inputs General'!$B58='DNSP Inputs General'!$A$42,N$7,N$8))*'DNSP Inputs General'!$D58 -> 179.1271219 | P23: =IF('DNSP Inputs General'!$B58='DNSP Inputs General'!$A$41,P$6,IF('DNSP Inputs General'!$B58='DNSP Inputs General'!$A$42,P$7,P$8))*'DNSP Inputs General'!$D58 -> 45.4113629 | Q23: =IF('DNSP Inputs General'!$B58='DNSP Inputs General'!$A$41,Q$6,IF('DNSP Inputs General'!$B58='DNSP Inputs General'!$A$42,Q$7,Q$8))*'DNSP Inputs General'!$D58 -> 47.00316313 | R23: =IF('DNSP Inputs General'!$B58='DNSP Inputs General'!$A$41,R$6,IF('DNSP Inputs General'!$B58='DNSP Inputs General'!$A$42,R$7,R$8))*'DNSP Inputs General'!$D58 -> 48.65596701 | S23: =IF('DNSP Inputs General'!$B58='DNSP Inputs General'!$A$41,S$6,IF('DNSP Inputs General'!$B58='DNSP Inputs General'!$A$42,S$7,S$8))*'DNSP Inputs General'!$D58 -> 50.23352014 | T23: =IF('DNSP Inputs General'!$B58='DNSP Inputs General'!$A$41,T$6,IF('DNSP Inputs General'!$B58='DNSP Inputs General'!$A$42,T$7,T$8))*'DNSP Inputs General'!$D58 -> 51.68697532 | V23: 0 | W23: 1.421085472e-14 | X23: 1.421085472e-14 | Y23: 0 | Z23: 3.552713679e-14
A24: ='DNSP Inputs General'!A59 -> Incandescent 100 watt | C24: ='DNSP Inputs General'!E59 -> 76.17 | D24: =IF('DNSP Inputs General'!$B59='DNSP Inputs General'!$A$41,D$6,IF('DNSP Inputs General'!$B59='DNSP Inputs General'!$A$42,D$7,D$8))*'DNSP Inputs General'!$D59 -> 82.07879235 | E24: =IF('DNSP Inputs General'!$B59='DNSP Inputs General'!$A$41,E$6,IF('DNSP Inputs General'!$B59='DNSP Inputs General'!$A$42,E$7,E$8))*'DNSP Inputs General'!$D59 -> 83.88659423 | F24: =IF('DNSP Inputs General'!$B59='DNSP Inputs General'!$A$41,F$6,IF('DNSP Inputs General'!$B59='DNSP Inputs General'!$A$42,F$7,F$8))*'DNSP Inputs General'!$D59 -> 86.71319796 | G24: =IF('DNSP Inputs General'!$B59='DNSP Inputs General'!$A$41,G$6,IF('DNSP Inputs General'!$B59='DNSP Inputs General'!$A$42,G$7,G$8))*'DNSP Inputs General'!$D59 -> 88.04086609 | H24: =IF('DNSP Inputs General'!$B59='DNSP Inputs General'!$A$41,H$6,IF('DNSP Inputs General'!$B59='DNSP Inputs General'!$A$42,H$7,H$8))*'DNSP Inputs General'!$D59 -> 90.10155046 | J24: =IF('DNSP Inputs General'!$B59='DNSP Inputs General'!$A$41,J$6,IF('DNSP Inputs General'!$B59='DNSP Inputs General'!$A$42,J$7,J$8))*'DNSP Inputs General'!$D59 -> 54.07152614 | K24: =IF('DNSP Inputs General'!$B59='DNSP Inputs General'!$A$41,K$6,IF('DNSP Inputs General'!$B59='DNSP Inputs General'!$A$42,K$7,K$8))*'DNSP Inputs General'!$D59 -> 54.8010637 | L24: =IF('DNSP Inputs General'!$B59='DNSP Inputs General'!$A$41,L$6,IF('DNSP Inputs General'!$B59='DNSP Inputs General'!$A$42,L$7,L$8))*'DNSP Inputs General'!$D59 -> 56.51184132 | M24: =IF('DNSP Inputs General'!$B59='DNSP Inputs General'!$A$41,M$6,IF('DNSP Inputs General'!$B59='DNSP Inputs General'!$A$42,M$7,M$8))*'DNSP Inputs General'!$D59 -> 56.77300771 | N24: =IF('DNSP Inputs General'!$B59='DNSP Inputs General'!$A$41,N$6,IF('DNSP Inputs General'!$B59='DNSP Inputs General'!$A$42,N$7,N$8))*'DNSP Inputs General'!$D59 -> 57.84765574 | P24: =IF('DNSP Inputs General'!$B59='DNSP Inputs General'!$A$41,P$6,IF('DNSP Inputs General'!$B59='DNSP Inputs General'!$A$42,P$7,P$8))*'DNSP Inputs General'!$D59 -> 28.00726621 | Q24: =IF('DNSP Inputs General'!$B59='DNSP Inputs General'!$A$41,Q$6,IF('DNSP Inputs General'!$B59='DNSP Inputs General'!$A$42,Q$7,Q$8))*'DNSP Inputs General'!$D59 -> 29.08553053 | R24: =IF('DNSP Inputs General'!$B59='DNSP Inputs General'!$A$41,R$6,IF('DNSP Inputs General'!$B59='DNSP Inputs General'!$A$42,R$7,R$8))*'DNSP Inputs General'!$D59 -> 30.20135664 | S24: =IF('DNSP Inputs General'!$B59='DNSP Inputs General'!$A$41,S$6,IF('DNSP Inputs General'!$B59='DNSP Inputs General'!$A$42,S$7,S$8))*'DNSP Inputs General'!$D59 -> 31.26785838 | T24: =IF('DNSP Inputs General'!$B59='DNSP Inputs General'!$A$41,T$6,IF('DNSP Inputs General'!$B59='DNSP Inputs General'!$A$42,T$7,T$8))*'DNSP Inputs General'!$D59 -> 32.25389473 | V24: =ABS(D24-J24-P24) -> 7.105427358e-15 | W24: =ABS(E24-K24-Q24) -> 3.552713679e-15 | X24: =ABS(F24-L24-R24) -> 1.065814104e-14 | Y24: =ABS(G24-M24-S24) -> 7.105427358e-15 | Z24: =ABS(H24-N24-T24) -> 7.105427358e-15
A25: ='DNSP Inputs General'!A60 -> Incandescent 150 watt | C25: ='DNSP Inputs General'!E60 -> 95.21 | D25: =IF('DNSP Inputs General'!$B60='DNSP Inputs General'!$A$41,D$6,IF('DNSP Inputs General'!$B60='DNSP Inputs General'!$A$42,D$7,D$8))*'DNSP Inputs General'!$D60 -> 102.5984904 | E25: =IF('DNSP Inputs General'!$B60='DNSP Inputs General'!$A$41,E$6,IF('DNSP Inputs General'!$B60='DNSP Inputs General'!$A$42,E$7,E$8))*'DNSP Inputs General'!$D60 -> 104.8582428 | F25: =IF('DNSP Inputs General'!$B60='DNSP Inputs General'!$A$41,F$6,IF('DNSP Inputs General'!$B60='DNSP Inputs General'!$A$42,F$7,F$8))*'DNSP Inputs General'!$D60 -> 108.3914975 | G25: =IF('DNSP Inputs General'!$B60='DNSP Inputs General'!$A$41,G$6,IF('DNSP Inputs General'!$B60='DNSP Inputs General'!$A$42,G$7,G$8))*'DNSP Inputs General'!$D60 -> 110.0510826 | H25: =IF('DNSP Inputs General'!$B60='DNSP Inputs General'!$A$41,H$6,IF('DNSP Inputs General'!$B60='DNSP Inputs General'!$A$42,H$7,H$8))*'DNSP Inputs General'!$D60 -> 112.6269381 | J25: =IF('DNSP Inputs General'!$B60='DNSP Inputs General'!$A$41,J$6,IF('DNSP Inputs General'!$B60='DNSP Inputs General'!$A$42,J$7,J$8))*'DNSP Inputs General'!$D60 -> 67.58940767 | K25: =IF('DNSP Inputs General'!$B60='DNSP Inputs General'!$A$41,K$6,IF('DNSP Inputs General'!$B60='DNSP Inputs General'!$A$42,K$7,K$8))*'DNSP Inputs General'!$D60 -> 68.50132962 | L25: =IF('DNSP Inputs General'!$B60='DNSP Inputs General'!$A$41,L$6,IF('DNSP Inputs General'!$B60='DNSP Inputs General'!$A$42,L$7,L$8))*'DNSP Inputs General'!$D60 -> 70.63980165 | M25: =IF('DNSP Inputs General'!$B60='DNSP Inputs General'!$A$41,M$6,IF('DNSP Inputs General'!$B60='DNSP Inputs General'!$A$42,M$7,M$8))*'DNSP Inputs General'!$D60 -> 70.96625963 | N25: =IF('DNSP Inputs General'!$B60='DNSP Inputs General'!$A$41,N$6,IF('DNSP Inputs General'!$B60='DNSP Inputs General'!$A$42,N$7,N$8))*'DNSP Inputs General'!$D60 -> 72.30956967 | P25: =IF('DNSP Inputs General'!$B60='DNSP Inputs General'!$A$41,P$6,IF('DNSP Inputs General'!$B60='DNSP Inputs General'!$A$42,P$7,P$8))*'DNSP Inputs General'!$D60 -> 35.00908277 | Q25: =IF('DNSP Inputs General'!$B60='DNSP Inputs General'!$A$41,Q$6,IF('DNSP Inputs General'!$B60='DNSP Inputs General'!$A$42,Q$7,Q$8))*'DNSP Inputs General'!$D60 -> 36.35691317 | R25: =IF('DNSP Inputs General'!$B60='DNSP Inputs General'!$A$41,R$6,IF('DNSP Inputs General'!$B60='DNSP Inputs General'!$A$42,R$7,R$8))*'DNSP Inputs General'!$D60 -> 37.75169581 | S25: =IF('DNSP Inputs General'!$B60='DNSP Inputs General'!$A$41,S$6,IF('DNSP Inputs General'!$B60='DNSP Inputs General'!$A$42,S$7,S$8))*'DNSP Inputs General'!$D60 -> 39.08482298 | T25: =IF('DNSP Inputs General'!$B60='DNSP Inputs General'!$A$41,T$6,IF('DNSP Inputs General'!$B60='DNSP Inputs General'!$A$42,T$7,T$8))*'DNSP Inputs General'!$D60 -> 40.31736841 | V25: 1.421085472e-14 | W25: 7.105427358e-15 | X25: 2.131628207e-14 | Y25: 7.105427358e-15 | Z25: 1.421085472e-14
A26: ='DNSP Inputs General'!A61 -> Sodium High Pressure 250 watt (24 hrs) | C26: ='DNSP Inputs General'!E61 -> 144.62 | D26: =IF('DNSP Inputs General'!$B61='DNSP Inputs General'!$A$41,D$6,IF('DNSP Inputs General'!$B61='DNSP Inputs General'!$A$42,D$7,D$8))*'DNSP Inputs General'!$D61 -> 151.0515184 | E26: =IF('DNSP Inputs General'!$B61='DNSP Inputs General'!$A$41,E$6,IF('DNSP Inputs General'!$B61='DNSP Inputs General'!$A$42,E$7,E$8))*'DNSP Inputs General'!$D61 -> 156.6936668 | F26: =IF('DNSP Inputs General'!$B61='DNSP Inputs General'!$A$41,F$6,IF('DNSP Inputs General'!$B61='DNSP Inputs General'!$A$42,F$7,F$8))*'DNSP Inputs General'!$D61 -> 161.8325515 | G26: =IF('DNSP Inputs General'!$B61='DNSP Inputs General'!$A$41,G$6,IF('DNSP Inputs General'!$B61='DNSP Inputs General'!$A$42,G$7,G$8))*'DNSP Inputs General'!$D61 -> 163.809392 | H26: =IF('DNSP Inputs General'!$B61='DNSP Inputs General'!$A$41,H$6,IF('DNSP Inputs General'!$B61='DNSP Inputs General'!$A$42,H$7,H$8))*'DNSP Inputs General'!$D61 -> 167.4744147 | J26: =IF('DNSP Inputs General'!$B61='DNSP Inputs General'!$A$41,J$6,IF('DNSP Inputs General'!$B61='DNSP Inputs General'!$A$42,J$7,J$8))*'DNSP Inputs General'!$D61 -> 118.1018783 | K26: =IF('DNSP Inputs General'!$B61='DNSP Inputs General'!$A$41,K$6,IF('DNSP Inputs General'!$B61='DNSP Inputs General'!$A$42,K$7,K$8))*'DNSP Inputs General'!$D61 -> 122.5890461 | L26: =IF('DNSP Inputs General'!$B61='DNSP Inputs General'!$A$41,L$6,IF('DNSP Inputs General'!$B61='DNSP Inputs General'!$A$42,L$7,L$8))*'DNSP Inputs General'!$D61 -> 126.5286871 | M26: =IF('DNSP Inputs General'!$B61='DNSP Inputs General'!$A$41,M$6,IF('DNSP Inputs General'!$B61='DNSP Inputs General'!$A$42,M$7,M$8))*'DNSP Inputs General'!$D61 -> 127.3608844 | N26: =IF('DNSP Inputs General'!$B61='DNSP Inputs General'!$A$41,N$6,IF('DNSP Inputs General'!$B61='DNSP Inputs General'!$A$42,N$7,N$8))*'DNSP Inputs General'!$D61 -> 129.971307 | P26: =IF('DNSP Inputs General'!$B61='DNSP Inputs General'!$A$41,P$6,IF('DNSP Inputs General'!$B61='DNSP Inputs General'!$A$42,P$7,P$8))*'DNSP Inputs General'!$D61 -> 32.94964006 | Q26: =IF('DNSP Inputs General'!$B61='DNSP Inputs General'!$A$41,Q$6,IF('DNSP Inputs General'!$B61='DNSP Inputs General'!$A$42,Q$7,Q$8))*'DNSP Inputs General'!$D61 -> 34.10462069 | R26: =IF('DNSP Inputs General'!$B61='DNSP Inputs General'!$A$41,R$6,IF('DNSP Inputs General'!$B61='DNSP Inputs General'!$A$42,R$7,R$8))*'DNSP Inputs General'!$D61 -> 35.30386443 | S26: =IF('DNSP Inputs General'!$B61='DNSP Inputs General'!$A$41,S$6,IF('DNSP Inputs General'!$B61='DNSP Inputs General'!$A$42,S$7,S$8))*'DNSP Inputs General'!$D61 -> 36.44850764 | T26: =IF('DNSP Inputs General'!$B61='DNSP Inputs General'!$A$41,T$6,IF('DNSP Inputs General'!$B61='DNSP Inputs General'!$A$42,T$7,T$8))*'DNSP Inputs General'!$D61 -> 37.50310767 | V26: 7.105427358e-15 | W26: 7.105427358e-15 | X26: 7.105427358e-15 | Y26: 7.105427358e-15 | Z26: 1.421085472e-14
A27: ='DNSP Inputs General'!A62 -> Metal Halide 100 watt | C27: ='DNSP Inputs General'!E62 -> 200.52 | D27: =IF('DNSP Inputs General'!$B62='DNSP Inputs General'!$A$41,D$6,IF('DNSP Inputs General'!$B62='DNSP Inputs General'!$A$42,D$7,D$8))*'DNSP Inputs General'!$D62 -> 212.2886536 | E27: =IF('DNSP Inputs General'!$B62='DNSP Inputs General'!$A$41,E$6,IF('DNSP Inputs General'!$B62='DNSP Inputs General'!$A$42,E$7,E$8))*'DNSP Inputs General'!$D62 -> 220.2557902 | F27: =IF('DNSP Inputs General'!$B62='DNSP Inputs General'!$A$41,F$6,IF('DNSP Inputs General'!$B62='DNSP Inputs General'!$A$42,F$7,F$8))*'DNSP Inputs General'!$D62 -> 227.5083083 | G27: =IF('DNSP Inputs General'!$B62='DNSP Inputs General'!$A$41,G$6,IF('DNSP Inputs General'!$B62='DNSP Inputs General'!$A$42,G$7,G$8))*'DNSP Inputs General'!$D62 -> 230.2901074 | H27: =IF('DNSP Inputs General'!$B62='DNSP Inputs General'!$A$41,H$6,IF('DNSP Inputs General'!$B62='DNSP Inputs General'!$A$42,H$7,H$8))*'DNSP Inputs General'!$D62 -> 235.4629405 | J27: =IF('DNSP Inputs General'!$B62='DNSP Inputs General'!$A$41,J$6,IF('DNSP Inputs General'!$B62='DNSP Inputs General'!$A$42,J$7,J$8))*'DNSP Inputs General'!$D62 -> 167.467092 | K27: =IF('DNSP Inputs General'!$B62='DNSP Inputs General'!$A$41,K$6,IF('DNSP Inputs General'!$B62='DNSP Inputs General'!$A$42,K$7,K$8))*'DNSP Inputs General'!$D62 -> 173.8227069 | L27: =IF('DNSP Inputs General'!$B62='DNSP Inputs General'!$A$41,L$6,IF('DNSP Inputs General'!$B62='DNSP Inputs General'!$A$42,L$7,L$8))*'DNSP Inputs General'!$D62 -> 179.403518 | M27: =IF('DNSP Inputs General'!$B62='DNSP Inputs General'!$A$41,M$6,IF('DNSP Inputs General'!$B62='DNSP Inputs General'!$A$42,M$7,M$8))*'DNSP Inputs General'!$D62 -> 180.5891028 | N27: =IF('DNSP Inputs General'!$B62='DNSP Inputs General'!$A$41,N$6,IF('DNSP Inputs General'!$B62='DNSP Inputs General'!$A$42,N$7,N$8))*'DNSP Inputs General'!$D62 -> 184.2898519 | P27: =IF('DNSP Inputs General'!$B62='DNSP Inputs General'!$A$41,P$6,IF('DNSP Inputs General'!$B62='DNSP Inputs General'!$A$42,P$7,P$8))*'DNSP Inputs General'!$D62 -> 44.82156162 | Q27: =IF('DNSP Inputs General'!$B62='DNSP Inputs General'!$A$41,Q$6,IF('DNSP Inputs General'!$B62='DNSP Inputs General'!$A$42,Q$7,Q$8))*'DNSP Inputs General'!$D62 -> 46.43308326 | R27: =IF('DNSP Inputs General'!$B62='DNSP Inputs General'!$A$41,R$6,IF('DNSP Inputs General'!$B62='DNSP Inputs General'!$A$42,R$7,R$8))*'DNSP Inputs General'!$D62 -> 48.1047903 | S27: =IF('DNSP Inputs General'!$B62='DNSP Inputs General'!$A$41,S$6,IF('DNSP Inputs General'!$B62='DNSP Inputs General'!$A$42,S$7,S$8))*'DNSP Inputs General'!$D62 -> 49.70100457 | T27: =IF('DNSP Inputs General'!$B62='DNSP Inputs General'!$A$41,T$6,IF('DNSP Inputs General'!$B62='DNSP Inputs General'!$A$42,T$7,T$8))*'DNSP Inputs General'!$D62 -> 51.17308865 | V27: 1.421085472e-14 | W27: 2.131628207e-14 | X27: 7.105427358e-15 | Y27: 3.552713679e-14 | Z27: 2.131628207e-14
A30: ='DNSP Inputs General'!A$67 -> Energy Efficient Lights
A31: ='DNSP Inputs General'!A68 -> T5 2X14W | C31: ='DNSP Inputs General'!E68 -> 30.01 | D31: ='Charges Summary'!D$89 -> 33.74435749 | E31: ='Charges Summary'!E$89 -> 35.82975776 | F31: ='Charges Summary'!F$89 -> 37.67595099 | G31: ='Charges Summary'!G$89 -> 38.74944812 | H31: ='Charges Summary'!H$89 -> 40.17241829 | J31: =SUM('Charges Summary'!D83,'Charges Summary'!D8) -> 26.20497777 | K31: =SUM('Charges Summary'!E83,'Charges Summary'!E8) -> 27.29944343 | L31: =SUM('Charges Summary'!F83,'Charges Summary'!F8) -> 28.14579674 | M31: =SUM('Charges Summary'!G83,'Charges Summary'!G8) -> 28.25872422 | N31: =SUM('Charges Summary'!H83,'Charges Summary'!H8) -> 28.77703773 | P31: =SUM('Charges Summary'!D85,'Charges Summary'!D11) -> 7.539379725 | Q31: =SUM('Charges Summary'!E85,'Charges Summary'!E11) -> 8.530314332 | R31: =SUM('Charges Summary'!F85,'Charges Summary'!F11) -> 9.53015425 | S31: =SUM('Charges Summary'!G85,'Charges Summary'!G11) -> 10.4907239 | T31: =SUM('Charges Summary'!H85,'Charges Summary'!H11) -> 11.39538056 | V31: =ABS(D31-J31-P31) -> 3.552713679e-15 | W31: 3.552713679e-15 | X31: 1.776356839e-15 | Y31: 1.776356839e-15 | Z31: 1.776356839e-15
A32: ='DNSP Inputs General'!A69 -> T5 (2x24W) | D32: =D$31*'DNSP Inputs General'!$D69 -> 38.00444249 | E32: =E$31*'DNSP Inputs General'!$D69 -> 40.35311588 | F32: =F$31*'DNSP Inputs General'!$D69 -> 42.43238334 | G32: =G$31*'DNSP Inputs General'!$D69 -> 43.64140502 | H32: =H$31*'DNSP Inputs General'!$D69 -> 45.24401927 | J32: =J$31*'DNSP Inputs General'!$D69 -> 29.51324739 | K32: =K$31*'DNSP Inputs General'!$D69 -> 30.74588479 | L32: =L$31*'DNSP Inputs General'!$D69 -> 31.6990867 | M32: =M$31*'DNSP Inputs General'!$D69 -> 31.8262708 | N32: =N$31*'DNSP Inputs General'!$D69 -> 32.41001924 | P32: =P$31*'DNSP Inputs General'!$D69 -> 8.491195105 | Q32: =Q$31*'DNSP Inputs General'!$D69 -> 9.607231092 | R32: =R$31*'DNSP Inputs General'!$D69 -> 10.73329665 | S32: =S$31*'DNSP Inputs General'!$D69 -> 11.81513422 | T32: =T$31*'DNSP Inputs General'!$D69 -> 12.83400003 | V32: 7.105427358e-15 | W32: 1.776356839e-15 | X32: 3.552713679e-15 | Y32: 1.776356839e-15 | Z32: 1.776356839e-15
A33: ='DNSP Inputs General'!A70 -> LED 18W | D33: ='Charges Summary'!D$107 -> 19.79017139 | E33: ='Charges Summary'!E$107 -> 21.99587855 | F33: ='Charges Summary'!F$107 -> 24.02691256 | G33: ='Charges Summary'!G$107 -> 25.24564924 | H33: ='Charges Summary'!H$107 -> 26.54211245 | J33: =SUM('Charges Summary'!D101,'Charges Summary'!D8) -> 11.48391111 | K33: =SUM('Charges Summary'!E101,'Charges Summary'!E8) -> 12.54443894 | L33: =SUM('Charges Summary'!F101,'Charges Summary'!F8) -> 13.42067322 | M33: =SUM('Charges Summary'!G101,'Charges Summary'!G8) -> 13.5304896 | N33: =SUM('Charges Summary'!H101,'Charges Summary'!H8) -> 13.78299429 | P33: =SUM('Charges Summary'!D103,'Charges Summary'!D11) -> 8.306260278 | Q33: =SUM('Charges Summary'!E103,'Charges Summary'!E11) -> 9.451439605 | R33: =SUM('Charges Summary'!F103,'Charges Summary'!F11) -> 10.60623934 | S33: =SUM('Charges Summary'!G103,'Charges Summary'!G11) -> 11.71515964 | T33: =SUM('Charges Summary'!H103,'Charges Summary'!H11) -> 12.75911816 | V33: 1.776356839e-15 | W33: 0 | X33: 0 | Y33: 0 | Z33: 1.776356839e-15
A34: ='DNSP Inputs General'!A71 -> Compact Fluoro 32W | D34: =D$31*'DNSP Inputs General'!$D71 -> 29.1057526 | E34: =E$31*'DNSP Inputs General'!$D71 -> 30.90448722 | F34: =F$31*'DNSP Inputs General'!$D71 -> 32.49689696 | G34: =G$31*'DNSP Inputs General'!$D71 -> 33.42282782 | H34: =H$31*'DNSP Inputs General'!$D71 -> 34.65019206 | J34: =J$31*'DNSP Inputs General'!$D71 -> 22.60275959 | K34: =K$31*'DNSP Inputs General'!$D71 -> 23.54677657 | L34: =L$31*'DNSP Inputs General'!$D71 -> 24.27678751 | M34: =M$31*'DNSP Inputs General'!$D71 -> 24.37419163 | N34: =N$31*'DNSP Inputs General'!$D71 -> 24.82125614 | P34: =P$31*'DNSP Inputs General'!$D71 -> 6.502993013 | Q34: =Q$31*'DNSP Inputs General'!$D71 -> 7.357710651 | R34: =R$31*'DNSP Inputs General'!$D71 -> 8.220109447 | S34: =S$31*'DNSP Inputs General'!$D71 -> 9.048636187 | T34: =T$31*'DNSP Inputs General'!$D71 -> 9.828935915 | V34: 3.552713679e-15 | W34: 5.329070518e-15 | X34: 3.552713679e-15 | Y34: 5.329070518e-15 | Z34: 5.329070518e-15
A35: ='DNSP Inputs General'!A72 -> Compact Fluoro 42W | D35: =D$31*'DNSP Inputs General'!$D72 -> 32.82507599 | E35: =E$31*'DNSP Inputs General'!$D72 -> 34.85366469 | F35: =F$31*'DNSP Inputs General'!$D72 -> 36.64956296 | G35: =G$31*'DNSP Inputs General'!$D72 -> 37.69381531 | H35: =H$31*'DNSP Inputs General'!$D72 -> 39.07802018 | J35: =J$31*'DNSP Inputs General'!$D72 -> 25.49108801 | K35: =K$31*'DNSP Inputs General'!$D72 -> 26.55573766 | L35: =L$31*'DNSP Inputs General'!$D72 -> 27.37903417 | M35: =M$31*'DNSP Inputs General'!$D72 -> 27.48888522 | N35: =N$31*'DNSP Inputs General'!$D72 -> 27.99307856 | P35: =P$31*'DNSP Inputs General'!$D72 -> 7.333987985 | Q35: =Q$31*'DNSP Inputs General'!$D72 -> 8.297927032 | R35: =R$31*'DNSP Inputs General'!$D72 -> 9.270528785 | S35: =S$31*'DNSP Inputs General'!$D72 -> 10.20493009 | T35: =T$31*'DNSP Inputs General'!$D72 -> 11.08494162 | V35: =ABS(D35-J35-P35) -> 5.329070518e-15 | W35: =ABS(E35-K35-Q35) -> 7.105427358e-15 | X35: =ABS(F35-L35-R35) -> 5.329070518e-15 | Y35: =ABS(G35-M35-S35) -> 5.329070518e-15 | Z35: =ABS(H35-N35-T35) -> 1.776356839e-15

Sheet Output|Capex Forecast Model
A1: ='DNSP Inputs O & M'!$A$3 -> Jemena | E1: Check | F1: =SUM(C88) -> 0
A3: Inflation Rate
A4: Regulatory Period | C4: ='DNSP Inputs General'!J$2 -> 2015 | D4: ='DNSP Inputs General'!K$2 -> 2016 | E4: ='DNSP Inputs General'!L$2 -> 2017 | F4: ='DNSP Inputs General'!M$2 -> 2018 | G4: ='DNSP Inputs General'!N$2 -> 2019 | H4: ='DNSP Inputs General'!O$2 -> 2020
A5: Inflation Rate | C5: ='DNSP Inputs General'!B30/104-1 -> 0.02307692308
A7: Output for Capex Forecast Model | C7: Number of replacement units - total
A9: Number of replacement units - total | C9: ='DNSP Inputs General'!J$2 -> 2015 | D9: ='DNSP Inputs General'!K$2 -> 2016 | E9: ='DNSP Inputs General'!L$2 -> 2017 | F9: ='DNSP Inputs General'!M$2 -> 2018 | G9: ='DNSP Inputs General'!N$2 -> 2019 | H9: ='DNSP Inputs General'!O$2 -> 2020
A10: MV80 - urban | C10: ='DNSP Inputs Capex'!$D30 -> 189 | D10: ='DNSP Inputs Capex'!$D30 -> 189 | E10: ='DNSP Inputs Capex'!$D30 -> 189 | F10: ='DNSP Inputs Capex'!$D30 -> 189 | G10: ='DNSP Inputs Capex'!$D30 -> 189 | H10: ='DNSP Inputs Capex'!$D30 -> 189
A11: MV80 - rural | C11: ='DNSP Inputs Capex'!$D31 -> 6 | D11: ='DNSP Inputs Capex'!$D31 -> 6 | E11: ='DNSP Inputs Capex'!$D31 -> 6 | F11: ='DNSP Inputs Capex'!$D31 -> 6 | G11: ='DNSP Inputs Capex'!$D31 -> 6 | H11: ='DNSP Inputs Capex'!$D31 -> 6
A12: S-HP150 - urban | C12: ='DNSP Inputs Capex'!$D43 -> 16 | D12: ='DNSP Inputs Capex'!$D43 -> 16 | E12: ='DNSP Inputs Capex'!$D43 -> 16 | F12: ='DNSP Inputs Capex'!$D43 -> 16 | G12: ='DNSP Inputs Capex'!$D43 -> 16 | H12: ='DNSP Inputs Capex'!$D43 -> 16
A13: S-HP150 - rural | C13: ='DNSP Inputs Capex'!$D44 -> 13 | D13: ='DNSP Inputs Capex'!$D44 -> 13 | E13: ='DNSP Inputs Capex'!$D44 -> 13 | F13: ='DNSP Inputs Capex'!$D44 -> 13 | G13: ='DNSP Inputs Capex'!$D44 -> 13 | H13: ='DNSP Inputs Capex'!$D44 -> 13
A14: S-HP250 - urban | C14: ='DNSP Inputs Capex'!$D65 -> 121 | D14: ='DNSP Inputs Capex'!$D65 -> 121 | E14: ='DNSP Inputs Capex'!$D65 -> 121 | F14: ='DNSP Inputs Capex'!$D65 -> 121 | G14: ='DNSP Inputs Capex'!$D65 -> 121 | H14: ='DNSP Inputs Capex'!$D65 -> 121
A15: S-HP250 - rural | C15: ='DNSP Inputs Capex'!$D66 -> 10 | D15: ='DNSP Inputs Capex'!$D66 -> 10 | E15: ='DNSP Inputs Capex'!$D66 -> 10 | F15: ='DNSP Inputs Capex'!$D66 -> 10 | G15: ='DNSP Inputs Capex'!$D66 -> 10 | H15: ='DNSP Inputs Capex'!$D66 -> 10
A16: Poles and brackets (dedicated poles) - urban | C16: ='DNSP Inputs Capex'!$D81 -> 321 | D16: ='DNSP Inputs Capex'!$D81 -> 321 | E16: ='DNSP Inputs Capex'!$D81 -> 321 | F16: ='DNSP Inputs Capex'!$D81 -> 321 | G16: ='DNSP Inputs Capex'!$D81 -> 321 | H16: ='DNSP Inputs Capex'!$D81 -> 321
A17: Poles and brackets (dedicated poles) - rural | C17: ='DNSP Inputs Capex'!$D82 -> 17 | D17: ='DNSP Inputs Capex'!$D82 -> 17 | E17: ='DNSP Inputs Capex'!$D82 -> 17 | F17: ='DNSP Inputs Capex'!$D82 -> 17 | G17: ='DNSP Inputs Capex'!$D82 -> 17 | H17: ='DNSP Inputs Capex'!$D82 -> 17
A18: Brackets on non-dedicated poles - urban | C18: ='DNSP Inputs Capex'!$D85 -> 33 | D18: ='DNSP Inputs Capex'!$D85 -> 33 | E18: ='DNSP Inputs Capex'!$D85 -> 33 | F18: ='DNSP Inputs Capex'!$D85 -> 33 | G18: ='DNSP Inputs Capex'!$D85 -> 33 | H18: ='DNSP Inputs Capex'!$D85 -> 33
A19: Brackets on non-dedicated poles - rural | C19: ='DNSP Inputs Capex'!$D86 -> 2 | D19: ='DNSP Inputs Capex'!$D86 -> 2 | E19: ='DNSP Inputs Capex'!$D86 -> 2 | F19: ='DNSP Inputs Capex'!$D86 -> 2 | G19: ='DNSP Inputs Capex'!$D86 -> 2 | H19: ='DNSP Inputs Capex'!$D86 -> 2
A20: T5 (2 X 14W) - urban | C20: ='DNSP Inputs Capex'!$D108 -> 494 | D20: ='DNSP Inputs Capex'!$D108 -> 494 | E20: ='DNSP Inputs Capex'!$D108 -> 494 | F20: ='DNSP Inputs Capex'!$D108 -> 494 | G20: ='DNSP Inputs Capex'!$D108 -> 494 | H20: ='DNSP Inputs Capex'!$D108 -> 494
A21: T5 (2 X 14W) - rural | C21: ='DNSP Inputs Capex'!$D109 -> 15 | D21: ='DNSP Inputs Capex'!$D109 -> 15 | E21: ='DNSP Inputs Capex'!$D109 -> 15 | F21: ='DNSP Inputs Capex'!$D109 -> 15 | G21: ='DNSP Inputs Capex'!$D109 -> 15 | H21: ='DNSP Inputs Capex'!$D109 -> 15
A22: LED18W - urban | C22: ='DNSP Inputs Capex'!$D123 -> 7 | D22: ='DNSP Inputs Capex'!$D123 -> 7 | E22: ='DNSP Inputs Capex'!$D123 -> 7 | F22: ='DNSP Inputs Capex'!$D123 -> 7 | G22: ='DNSP Inputs Capex'!$D123 -> 7 | H22: ='DNSP Inputs Capex'!$D123 -> 7
A23: LED18W - rural | C23: ='DNSP Inputs Capex'!$D124 -> 0 | D23: ='DNSP Inputs Capex'!$D124 -> 0 | E23: ='DNSP Inputs Capex'!$D124 -> 0 | F23: ='DNSP Inputs Capex'!$D124 -> 0 | G23: ='DNSP Inputs Capex'!$D124 -> 0 | H23: ='DNSP Inputs Capex'!$D124 -> 0
C25: Replacement unit rates
C27: Real 2015 $
A29: Replacement unit rates | C29: ='DNSP Inputs General'!J$2 -> 2015 | D29: ='DNSP Inputs General'!K$2 -> 2016 | E29: ='DNSP Inputs General'!L$2 -> 2017 | F29: ='DNSP Inputs General'!M$2 -> 2018 | G29: ='DNSP Inputs General'!N$2 -> 2019 | H29: ='DNSP Inputs General'!O$2 -> 2020
A30: MV80 - urban | C30: ='DNSP Inputs Capex'!C21/'DNSP Inputs General'!J103+'DNSP Inputs Capex'!C22/'DNSP Inputs General'!J103+('DNSP Inputs Capex'!C23*'DNSP Inputs Capex'!C12/'DNSP Inputs General'!J95+'DNSP Inputs Capex'!C23/2*'DNSP Inputs Capex'!C13/'DNSP Inputs General'!J103)*'DNSP Inputs Capex'!C15/'DNSP Inputs Capex'!C24 -> 303.0225351 | D30: ='DNSP Inputs Capex'!D21/'DNSP Inputs General'!K103+'DNSP Inputs Capex'!D22/'DNSP Inputs General'!K103+('DNSP Inputs Capex'!D23*'DNSP Inputs Capex'!D12/'DNSP Inputs General'!K95+'DNSP Inputs Capex'!D23/2*'DNSP Inputs Capex'!D13/'DNSP Inputs General'!K103)*'DNSP Inputs Capex'!D15/'DNSP Inputs Capex'!D24 -> 303.0225351 | E30: ='DNSP Inputs Capex'!E21/'DNSP Inputs General'!L103+'DNSP Inputs Capex'!E22/'DNSP Inputs General'!L103+('DNSP Inputs Capex'!E23*'DNSP Inputs Capex'!E12/'DNSP Inputs General'!L95+'DNSP Inputs Capex'!E23/2*'DNSP Inputs Capex'!E13/'DNSP Inputs General'!L103)*'DNSP Inputs Capex'!E15/'DNSP Inputs Capex'!E24 -> 303.0225351 | F30: ='DNSP Inputs Capex'!F21/'DNSP Inputs General'!M103+'DNSP Inputs Capex'!F22/'DNSP Inputs General'!M103+('DNSP Inputs Capex'!F23*'DNSP Inputs Capex'!F12/'DNSP Inputs General'!M95+'DNSP Inputs Capex'!F23/2*'DNSP Inputs Capex'!F13/'DNSP Inputs General'!M103)*'DNSP Inputs Capex'!F15/'DNSP Inputs Capex'!F24 -> 303.0225351 | G30: ='DNSP Inputs Capex'!G21/'DNSP Inputs General'!N103+'DNSP Inputs Capex'!G22/'DNSP Inputs General'!N103+('DNSP Inputs Capex'!G23*'DNSP Inputs Capex'!G12/'DNSP Inputs General'!N95+'DNSP Inputs Capex'!G23/2*'DNSP Inputs Capex'!G13/'DNSP Inputs General'!N103)*'DNSP Inputs Capex'!G15/'DNSP Inputs Capex'!G24 -> 303.0225351 | H30: ='DNSP Inputs Capex'!H21/'DNSP Inputs General'!O103+'DNSP Inputs Capex'!H22/'DNSP Inputs General'!O103+('DNSP Inputs Capex'!H23*'DNSP Inputs Capex'!H12/'DNSP Inputs General'!O95+'DNSP Inputs Capex'!H23/2*'DNSP Inputs Capex'!H13/'DNSP Inputs General'!O103)*'DNSP Inputs Capex'!H15/'DNSP Inputs Capex'!H24 -> 303.0225351
A31: MV80 - rural | C31: =('DNSP Inputs Capex'!C21+'DNSP Inputs Capex'!C22)/'DNSP Inputs General'!J103*(1+'DNSP Inputs Capex'!C11)+('DNSP Inputs Capex'!C23*'DNSP Inputs Capex'!C12/'DNSP Inputs General'!J95+'DNSP Inputs Capex'!C23/2*'DNSP Inputs Capex'!C14/'DNSP Inputs General'!J103)*'DNSP Inputs Capex'!C15/'DNSP Inputs Capex'!C25 -> 344.9483811 | D31: =('DNSP Inputs Capex'!D21+'DNSP Inputs Capex'!D22)/'DNSP Inputs General'!K103*(1+'DNSP Inputs Capex'!D11)+('DNSP Inputs Capex'!D23*'DNSP Inputs Capex'!D12/'DNSP Inputs General'!K95+'DNSP Inputs Capex'!D23/2*'DNSP Inputs Capex'!D14/'DNSP Inputs General'!K103)*'DNSP Inputs Capex'!D15/'DNSP Inputs Capex'!D25 -> 344.9483811 | E31: =('DNSP Inputs Capex'!E21+'DNSP Inputs Capex'!E22)/'DNSP Inputs General'!L103*(1+'DNSP Inputs Capex'!E11)+('DNSP Inputs Capex'!E23*'DNSP Inputs Capex'!E12/'DNSP Inputs General'!L95+'DNSP Inputs Capex'!E23/2*'DNSP Inputs Capex'!E14/'DNSP Inputs General'!L103)*'DNSP Inputs Capex'!E15/'DNSP Inputs Capex'!E25 -> 344.9483811 | F31: =('DNSP Inputs Capex'!F21+'DNSP Inputs Capex'!F22)/'DNSP Inputs General'!M103*(1+'DNSP Inputs Capex'!F11)+('DNSP Inputs Capex'!F23*'DNSP Inputs Capex'!F12/'DNSP Inputs General'!M95+'DNSP Inputs Capex'!F23/2*'DNSP Inputs Capex'!F14/'DNSP Inputs General'!M103)*'DNSP Inputs Capex'!F15/'DNSP Inputs Capex'!F25 -> 344.9483811 | G31: =('DNSP Inputs Capex'!G21+'DNSP Inputs Capex'!G22)/'DNSP Inputs General'!N103*(1+'DNSP Inputs Capex'!G11)+('DNSP Inputs Capex'!G23*'DNSP Inputs Capex'!G12/'DNSP Inputs General'!N95+'DNSP Inputs Capex'!G23/2*'DNSP Inputs Capex'!G14/'DNSP Inputs General'!N103)*'DNSP Inputs Capex'!G15/'DNSP Inputs Capex'!G25 -> 344.9483811 | H31: =('DNSP Inputs Capex'!H21+'DNSP Inputs Capex'!H22)/'DNSP Inputs General'!O103*(1+'DNSP Inputs Capex'!H11)+('DNSP Inputs Capex'!H23*'DNSP Inputs Capex'!H12/'DNSP Inputs General'!O95+'DNSP Inputs Capex'!H23/2*'DNSP Inputs Capex'!H14/'DNSP Inputs General'!O103)*'DNSP Inputs Capex'!H15/'DNSP Inputs Capex'!H25 -> 344.9483811
A32: S-HP150 - urban | C32: ='DNSP Inputs Capex'!C40/'DNSP Inputs General'!J103+'DNSP Inputs Capex'!C41/'DNSP Inputs General'!J103+('DNSP Inputs Capex'!C42*'DNSP Inputs Capex'!C12/'DNSP Inputs General'!J95+'DNSP Inputs Capex'!C42/2*'DNSP Inputs Capex'!C13/'DNSP Inputs General'!J103)*'DNSP Inputs Capex'!C15/'DNSP Inputs Capex'!C43 -> 339.5201314 | D32: ='DNSP Inputs Capex'!D40/'DNSP Inputs General'!K103+'DNSP Inputs Capex'!D41/'DNSP Inputs General'!K103+('DNSP Inputs Capex'!D42*'DNSP Inputs Capex'!D12/'DNSP Inputs General'!K95+'DNSP Inputs Capex'!D42/2*'DNSP Inputs Capex'!D13/'DNSP Inputs General'!K103)*'DNSP Inputs Capex'!D15/'DNSP Inputs Capex'!D43 -> 339.5201314 | E32: ='DNSP Inputs Capex'!E40/'DNSP Inputs General'!L103+'DNSP Inputs Capex'!E41/'DNSP Inputs General'!L103+('DNSP Inputs Capex'!E42*'DNSP Inputs Capex'!E12/'DNSP Inputs General'!L95+'DNSP Inputs Capex'!E42/2*'DNSP Inputs Capex'!E13/'DNSP Inputs General'!L103)*'DNSP Inputs Capex'!E15/'DNSP Inputs Capex'!E43 -> 339.5201314 | F32: ='DNSP Inputs Capex'!F40/'DNSP Inputs General'!M103+'DNSP Inputs Capex'!F41/'DNSP Inputs General'!M103+('DNSP Inputs Capex'!F42*'DNSP Inputs Capex'!F12/'DNSP Inputs General'!M95+'DNSP Inputs Capex'!F42/2*'DNSP Inputs Capex'!F13/'DNSP Inputs General'!M103)*'DNSP Inputs Capex'!F15/'DNSP Inputs Capex'!F43 -> 339.5201314 | G32: ='DNSP Inputs Capex'!G40/'DNSP Inputs General'!N103+'DNSP Inputs Capex'!G41/'DNSP Inputs General'!N103+('DNSP Inputs Capex'!G42*'DNSP Inputs Capex'!G12/'DNSP Inputs General'!N95+'DNSP Inputs Capex'!G42/2*'DNSP Inputs Capex'!G13/'DNSP Inputs General'!N103)*'DNSP Inputs Capex'!G15/'DNSP Inputs Capex'!G43 -> 339.5201314 | H32: ='DNSP Inputs Capex'!H40/'DNSP Inputs General'!O103+'DNSP Inputs Capex'!H41/'DNSP Inputs General'!O103+('DNSP Inputs Capex'!H42*'DNSP Inputs Capex'!H12/'DNSP Inputs General'!O95+'DNSP Inputs Capex'!H42/2*'DNSP Inputs Capex'!H13/'DNSP Inputs General'!O103)*'DNSP Inputs Capex'!H15/'DNSP Inputs Capex'!H43 -> 339.5201314
A33: S-HP150 - rural | C33: =('DNSP Inputs Capex'!C40+'DNSP Inputs Capex'!C41)/'DNSP Inputs General'!J103*(1+'DNSP Inputs Capex'!C11)+('DNSP Inputs Capex'!C42*'DNSP Inputs Capex'!C12/'DNSP Inputs General'!J95+'DNSP Inputs Capex'!C42/2*'DNSP Inputs Capex'!C14/'DNSP Inputs General'!J103)*'DNSP Inputs Capex'!C15/'DNSP Inputs Capex'!C44 -> 383.2708572 | D33: =('DNSP Inputs Capex'!D40+'DNSP Inputs Capex'!D41)/'DNSP Inputs General'!K103*(1+'DNSP Inputs Capex'!D11)+('DNSP Inputs Capex'!D42*'DNSP Inputs Capex'!D12/'DNSP Inputs General'!K95+'DNSP Inputs Capex'!D42/2*'DNSP Inputs Capex'!D14/'DNSP Inputs General'!K103)*'DNSP Inputs Capex'!D15/'DNSP Inputs Capex'!D44 -> 383.2708572 | E33: =('DNSP Inputs Capex'!E40+'DNSP Inputs Capex'!E41)/'DNSP Inputs General'!L103*(1+'DNSP Inputs Capex'!E11)+('DNSP Inputs Capex'!E42*'DNSP Inputs Capex'!E12/'DNSP Inputs General'!L95+'DNSP Inputs Capex'!E42/2*'DNSP Inputs Capex'!E14/'DNSP Inputs General'!L103)*'DNSP Inputs Capex'!E15/'DNSP Inputs Capex'!E44 -> 383.2708572 | F33: =('DNSP Inputs Capex'!F40+'DNSP Inputs Capex'!F41)/'DNSP Inputs General'!M103*(1+'DNSP Inputs Capex'!F11)+('DNSP Inputs Capex'!F42*'DNSP Inputs Capex'!F12/'DNSP Inputs General'!M95+'DNSP Inputs Capex'!F42/2*'DNSP Inputs Capex'!F14/'DNSP Inputs General'!M103)*'DNSP Inputs Capex'!F15/'DNSP Inputs Capex'!F44 -> 383.2708572 | G33: =('DNSP Inputs Capex'!G40+'DNSP Inputs Capex'!G41)/'DNSP Inputs General'!N103*(1+'DNSP Inputs Capex'!G11)+('DNSP Inputs Capex'!G42*'DNSP Inputs Capex'!G12/'DNSP Inputs General'!N95+'DNSP Inputs Capex'!G42/2*'DNSP Inputs Capex'!G14/'DNSP Inputs General'!N103)*'DNSP Inputs Capex'!G15/'DNSP Inputs Capex'!G44 -> 383.2708572 | H33: =('DNSP Inputs Capex'!H40+'DNSP Inputs Capex'!H41)/'DNSP Inputs General'!O103*(1+'DNSP Inputs Capex'!H11)+('DNSP Inputs Capex'!H42*'DNSP Inputs Capex'!H12/'DNSP Inputs General'!O95+'DNSP Inputs Capex'!H42/2*'DNSP Inputs Capex'!H14/'DNSP Inputs General'!O103)*'DNSP Inputs Capex'!H15/'DNSP Inputs Capex'!H44 -> 383.2708572
A34: S-HP250 - urban | C34: ='DNSP Inputs Capex'!C56/'DNSP Inputs General'!J103+'DNSP Inputs Capex'!C57/'DNSP Inputs General'!J103+('DNSP Inputs Capex'!C58*'DNSP Inputs Capex'!C12/'DNSP Inputs General'!J95+'DNSP Inputs Capex'!C58/2*'DNSP Inputs Capex'!C13/'DNSP Inputs General'!J103)*'DNSP Inputs Capex'!C15/'DNSP Inputs Capex'!C59 -> 342.9163849 | D34: ='DNSP Inputs Capex'!D56/'DNSP Inputs General'!K103+'DNSP Inputs Capex'!D57/'DNSP Inputs General'!K103+('DNSP Inputs Capex'!D58*'DNSP Inputs Capex'!D12/'DNSP Inputs General'!K95+'DNSP Inputs Capex'!D58/2*'DNSP Inputs Capex'!D13/'DNSP Inputs General'!K103)*'DNSP Inputs Capex'!D15/'DNSP Inputs Capex'!D59 -> 342.9163849 | E34: ='DNSP Inputs Capex'!E56/'DNSP Inputs General'!L103+'DNSP Inputs Capex'!E57/'DNSP Inputs General'!L103+('DNSP Inputs Capex'!E58*'DNSP Inputs Capex'!E12/'DNSP Inputs General'!L95+'DNSP Inputs Capex'!E58/2*'DNSP Inputs Capex'!E13/'DNSP Inputs General'!L103)*'DNSP Inputs Capex'!E15/'DNSP Inputs Capex'!E59 -> 342.9163849 | F34: ='DNSP Inputs Capex'!F56/'DNSP Inputs General'!M103+'DNSP Inputs Capex'!F57/'DNSP Inputs General'!M103+('DNSP Inputs Capex'!F58*'DNSP Inputs Capex'!F12/'DNSP Inputs General'!M95+'DNSP Inputs Capex'!F58/2*'DNSP Inputs Capex'!F13/'DNSP Inputs General'!M103)*'DNSP Inputs Capex'!F15/'DNSP Inputs Capex'!F59 -> 342.9163849 | G34: ='DNSP Inputs Capex'!G56/'DNSP Inputs General'!N103+'DNSP Inputs Capex'!G57/'DNSP Inputs General'!N103+('DNSP Inputs Capex'!G58*'DNSP Inputs Capex'!G12/'DNSP Inputs General'!N95+'DNSP Inputs Capex'!G58/2*'DNSP Inputs Capex'!G13/'DNSP Inputs General'!N103)*'DNSP Inputs Capex'!G15/'DNSP Inputs Capex'!G59 -> 342.9163849 | H34: ='DNSP Inputs Capex'!H56/'DNSP Inputs General'!O103+'DNSP Inputs Capex'!H57/'DNSP Inputs General'!O103+('DNSP Inputs Capex'!H58*'DNSP Inputs Capex'!H12/'DNSP Inputs General'!O95+'DNSP Inputs Capex'!H58/2*'DNSP Inputs Capex'!H13/'DNSP Inputs General'!O103)*'DNSP Inputs Capex'!H15/'DNSP Inputs Capex'!H59 -> 342.9163849
A35: S-HP250 - rural | C35: =('DNSP Inputs Capex'!C56+'DNSP Inputs Capex'!C57)/'DNSP Inputs General'!J103*(1+'DNSP Inputs Capex'!C11)+('DNSP Inputs Capex'!C58*'DNSP Inputs Capex'!C12/'DNSP Inputs General'!J95+'DNSP Inputs Capex'!C58/2*'DNSP Inputs Capex'!C13/'DNSP Inputs General'!J103)*'DNSP Inputs Capex'!C15/'DNSP Inputs Capex'!C60 -> 379.8558438 | D35: =('DNSP Inputs Capex'!D56+'DNSP Inputs Capex'!D57)/'DNSP Inputs General'!K103*(1+'DNSP Inputs Capex'!D11)+('DNSP Inputs Capex'!D58*'DNSP Inputs Capex'!D12/'DNSP Inputs General'!K95+'DNSP Inputs Capex'!D58/2*'DNSP Inputs Capex'!D13/'DNSP Inputs General'!K103)*'DNSP Inputs Capex'!D15/'DNSP Inputs Capex'!D60 -> 379.8558438 | E35: =('DNSP Inputs Capex'!E56+'DNSP Inputs Capex'!E57)/'DNSP Inputs General'!L103*(1+'DNSP Inputs Capex'!E11)+('DNSP Inputs Capex'!E58*'DNSP Inputs Capex'!E12/'DNSP Inputs General'!L95+'DNSP Inputs Capex'!E58/2*'DNSP Inputs Capex'!E13/'DNSP Inputs General'!L103)*'DNSP Inputs Capex'!E15/'DNSP Inputs Capex'!E60 -> 379.8558438 | F35: =('DNSP Inputs Capex'!F56+'DNSP Inputs Capex'!F57)/'DNSP Inputs General'!M103*(1+'DNSP Inputs Capex'!F11)+('DNSP Inputs Capex'!F58*'DNSP Inputs Capex'!F12/'DNSP Inputs General'!M95+'DNSP Inputs Capex'!F58/2*'DNSP Inputs Capex'!F13/'DNSP Inputs General'!M103)*'DNSP Inputs Capex'!F15/'DNSP Inputs Capex'!F60 -> 379.8558438 | G35: =('DNSP Inputs Capex'!G56+'DNSP Inputs Capex'!G57)/'DNSP Inputs General'!N103*(1+'DNSP Inputs Capex'!G11)+('DNSP Inputs Capex'!G58*'DNSP Inputs Capex'!G12/'DNSP Inputs General'!N95+'DNSP Inputs Capex'!G58/2*'DNSP Inputs Capex'!G13/'DNSP Inputs General'!N103)*'DNSP Inputs Capex'!G15/'DNSP Inputs Capex'!G60 -> 379.8558438 | H35: =('DNSP Inputs Capex'!H56+'DNSP Inputs Capex'!H57)/'DNSP Inputs General'!O103*(1+'DNSP Inputs Capex'!H11)+('DNSP Inputs Capex'!H58*'DNSP Inputs Capex'!H12/'DNSP Inputs General'!O95+'DNSP Inputs Capex'!H58/2*'DNSP Inputs Capex'!H13/'DNSP Inputs General'!O103)*'DNSP Inputs Capex'!H15/'DNSP Inputs Capex'!H60 -> 379.8558438
A36: Poles and brackets (dedicated poles) - urban | C36: ='DNSP Inputs Capex'!C72/'DNSP Inputs General'!J103+('DNSP Inputs Capex'!C58*'DNSP Inputs Capex'!C12/'DNSP Inputs General'!J95+'DNSP Inputs Capex'!C58/2*'DNSP Inputs Capex'!C13/'DNSP Inputs General'!J103)*'DNSP Inputs Capex'!C15/'DNSP Inputs Capex'!C73 -> 1036.172854 | D36: ='DNSP Inputs Capex'!D72/'DNSP Inputs General'!K103+('DNSP Inputs Capex'!D58*'DNSP Inputs Capex'!D12/'DNSP Inputs General'!K95+'DNSP Inputs Capex'!D58/2*'DNSP Inputs Capex'!D13/'DNSP Inputs General'!K103)*'DNSP Inputs Capex'!D15/'DNSP Inputs Capex'!D73 -> 1040.705592 | E36: ='DNSP Inputs Capex'!E72/'DNSP Inputs General'!L103+('DNSP Inputs Capex'!E58*'DNSP Inputs Capex'!E12/'DNSP Inputs General'!L95+'DNSP Inputs Capex'!E58/2*'DNSP Inputs Capex'!E13/'DNSP Inputs General'!L103)*'DNSP Inputs Capex'!E15/'DNSP Inputs Capex'!E73 -> 1040.705592 | F36: ='DNSP Inputs Capex'!F72/'DNSP Inputs General'!M103+('DNSP Inputs Capex'!F58*'DNSP Inputs Capex'!F12/'DNSP Inputs General'!M95+'DNSP Inputs Capex'!F58/2*'DNSP Inputs Capex'!F13/'DNSP Inputs General'!M103)*'DNSP Inputs Capex'!F15/'DNSP Inputs Capex'!F73 -> 1040.705592 | G36: ='DNSP Inputs Capex'!G72/'DNSP Inputs General'!N103+('DNSP Inputs Capex'!G58*'DNSP Inputs Capex'!G12/'DNSP Inputs General'!N95+'DNSP Inputs Capex'!G58/2*'DNSP Inputs Capex'!G13/'DNSP Inputs General'!N103)*'DNSP Inputs Capex'!G15/'DNSP Inputs Capex'!G73 -> 1040.705592 | H36: ='DNSP Inputs Capex'!H72/'DNSP Inputs General'!O103+('DNSP Inputs Capex'!H58*'DNSP Inputs Capex'!H12/'DNSP Inputs General'!O95+'DNSP Inputs Capex'!H58/2*'DNSP Inputs Capex'!H13/'DNSP Inputs General'!O103)*'DNSP Inputs Capex'!H15/'DNSP Inputs Capex'!H73 -> 1040.705592
A37: Poles and brackets (dedicated poles) - rural | C37: ='DNSP Inputs Capex'!C72/'DNSP Inputs General'!J103+('DNSP Inputs Capex'!C58*'DNSP Inputs Capex'!C12/'DNSP Inputs General'!J95+'DNSP Inputs Capex'!C58/2*'DNSP Inputs Capex'!C14/'DNSP Inputs General'!J103)*'DNSP Inputs Capex'!C15/'DNSP Inputs Capex'!C73 -> 1058.861363 | D37: ='DNSP Inputs Capex'!D72/'DNSP Inputs General'!K103+('DNSP Inputs Capex'!D58*'DNSP Inputs Capex'!D12/'DNSP Inputs General'!K95+'DNSP Inputs Capex'!D58/2*'DNSP Inputs Capex'!D14/'DNSP Inputs General'!K103)*'DNSP Inputs Capex'!D15/'DNSP Inputs Capex'!D73 -> 1063.394101 | E37: ='DNSP Inputs Capex'!E72/'DNSP Inputs General'!L103+('DNSP Inputs Capex'!E58*'DNSP Inputs Capex'!E12/'DNSP Inputs General'!L95+'DNSP Inputs Capex'!E58/2*'DNSP Inputs Capex'!E14/'DNSP Inputs General'!L103)*'DNSP Inputs Capex'!E15/'DNSP Inputs Capex'!E73 -> 1063.394101 | F37: ='DNSP Inputs Capex'!F72/'DNSP Inputs General'!M103+('DNSP Inputs Capex'!F58*'DNSP Inputs Capex'!F12/'DNSP Inputs General'!M95+'DNSP Inputs Capex'!F58/2*'DNSP Inputs Capex'!F14/'DNSP Inputs General'!M103)*'DNSP Inputs Capex'!F15/'DNSP Inputs Capex'!F73 -> 1063.394101 | G37: ='DNSP Inputs Capex'!G72/'DNSP Inputs General'!N103+('DNSP Inputs Capex'!G58*'DNSP Inputs Capex'!G12/'DNSP Inputs General'!N95+'DNSP Inputs Capex'!G58/2*'DNSP Inputs Capex'!G14/'DNSP Inputs General'!N103)*'DNSP Inputs Capex'!G15/'DNSP Inputs Capex'!G73 -> 1063.394101 | H37: ='DNSP Inputs Capex'!H72/'DNSP Inputs General'!O103+('DNSP Inputs Capex'!H58*'DNSP Inputs Capex'!H12/'DNSP Inputs General'!O95+'DNSP Inputs Capex'!H58/2*'DNSP Inputs Capex'!H14/'DNSP Inputs General'!O103)*'DNSP Inputs Capex'!H15/'DNSP Inputs Capex'!H73 -> 1063.394101
A38: Brackets on non-dedicated poles - urban | C38: ='DNSP Inputs Capex'!C74/'DNSP Inputs General'!J103+('DNSP Inputs Capex'!C58*'DNSP Inputs Capex'!C12/'DNSP Inputs General'!J95+'DNSP Inputs Capex'!C58/2*'DNSP Inputs Capex'!C13/'DNSP Inputs General'!J103)*'DNSP Inputs Capex'!C15/'DNSP Inputs Capex'!C75 -> 135.4522586 | D38: ='DNSP Inputs Capex'!D74/'DNSP Inputs General'!K103+('DNSP Inputs Capex'!D58*'DNSP Inputs Capex'!D12/'DNSP Inputs General'!K95+'DNSP Inputs Capex'!D58/2*'DNSP Inputs Capex'!D13/'DNSP Inputs General'!K103)*'DNSP Inputs Capex'!D15/'DNSP Inputs Capex'!D75 -> 135.4522586 | E38: ='DNSP Inputs Capex'!E74/'DNSP Inputs General'!L103+('DNSP Inputs Capex'!E58*'DNSP Inputs Capex'!E12/'DNSP Inputs General'!L95+'DNSP Inputs Capex'!E58/2*'DNSP Inputs Capex'!E13/'DNSP Inputs General'!L103)*'DNSP Inputs Capex'!E15/'DNSP Inputs Capex'!E75 -> 135.4522586 | F38: ='DNSP Inputs Capex'!F74/'DNSP Inputs General'!M103+('DNSP Inputs Capex'!F58*'DNSP Inputs Capex'!F12/'DNSP Inputs General'!M95+'DNSP Inputs Capex'!F58/2*'DNSP Inputs Capex'!F13/'DNSP Inputs General'!M103)*'DNSP Inputs Capex'!F15/'DNSP Inputs Capex'!F75 -> 135.4522586 | G38: ='DNSP Inputs Capex'!G74/'DNSP Inputs General'!N103+('DNSP Inputs Capex'!G58*'DNSP Inputs Capex'!G12/'DNSP Inputs General'!N95+'DNSP Inputs Capex'!G58/2*'DNSP Inputs Capex'!G13/'DNSP Inputs General'!N103)*'DNSP Inputs Capex'!G15/'DNSP Inputs Capex'!G75 -> 135.4522586 | H38: ='DNSP Inputs Capex'!H74/'DNSP Inputs General'!O103+('DNSP Inputs Capex'!H58*'DNSP Inputs Capex'!H12/'DNSP Inputs General'!O95+'DNSP Inputs Capex'!H58/2*'DNSP Inputs Capex'!H13/'DNSP Inputs General'!O103)*'DNSP Inputs Capex'!H15/'DNSP Inputs Capex'!H75 -> 135.4522586
A39: Brackets on non-dedicated poles - rural | C39: ='DNSP Inputs Capex'!C74/'DNSP Inputs General'!J103+('DNSP Inputs Capex'!C58*'DNSP Inputs Capex'!C12/'DNSP Inputs General'!J95+'DNSP Inputs Capex'!C58/2*'DNSP Inputs Capex'!C14/'DNSP Inputs General'!J103)*'DNSP Inputs Capex'!C15/'DNSP Inputs Capex'!C75 -> 139.9899604 | D39: ='DNSP Inputs Capex'!D74/'DNSP Inputs General'!K103+('DNSP Inputs Capex'!D58*'DNSP Inputs Capex'!D12/'DNSP Inputs General'!K95+'DNSP Inputs Capex'!D58/2*'DNSP Inputs Capex'!D14/'DNSP Inputs General'!K103)*'DNSP Inputs Capex'!D15/'DNSP Inputs Capex'!D75 -> 139.9899604 | E39: ='DNSP Inputs Capex'!E74/'DNSP Inputs General'!L103+('DNSP Inputs Capex'!E58*'DNSP Inputs Capex'!E12/'DNSP Inputs General'!L95+'DNSP Inputs Capex'!E58/2*'DNSP Inputs Capex'!E14/'DNSP Inputs General'!L103)*'DNSP Inputs Capex'!E15/'DNSP Inputs Capex'!E75 -> 139.9899604 | F39: ='DNSP Inputs Capex'!F74/'DNSP Inputs General'!M103+('DNSP Inputs Capex'!F58*'DNSP Inputs Capex'!F12/'DNSP Inputs General'!M95+'DNSP Inputs Capex'!F58/2*'DNSP Inputs Capex'!F14/'DNSP Inputs General'!M103)*'DNSP Inputs Capex'!F15/'DNSP Inputs Capex'!F75 -> 139.9899604 | G39: ='DNSP Inputs Capex'!G74/'DNSP Inputs General'!N103+('DNSP Inputs Capex'!G58*'DNSP Inputs Capex'!G12/'DNSP Inputs General'!N95+'DNSP Inputs Capex'!G58/2*'DNSP Inputs Capex'!G14/'DNSP Inputs General'!N103)*'DNSP Inputs Capex'!G15/'DNSP Inputs Capex'!G75 -> 139.9899604 | H39: ='DNSP Inputs Capex'!H74/'DNSP Inputs General'!O103+('DNSP Inputs Capex'!H58*'DNSP Inputs Capex'!H12/'DNSP Inputs General'!O95+'DNSP Inputs Capex'!H58/2*'DNSP Inputs Capex'!H14/'DNSP Inputs General'!O103)*'DNSP Inputs Capex'!H15/'DNSP Inputs Capex'!H75 -> 139.9899604
A40: T5 (2 X 14W) - urban | C40: ='DNSP Inputs Capex'!C99/'DNSP Inputs General'!J103+'DNSP Inputs Capex'!C100/'DNSP Inputs General'!J103+('DNSP Inputs Capex'!C101*'DNSP Inputs Capex'!C12/'DNSP Inputs General'!J95+'DNSP Inputs Capex'!C101/2*'DNSP Inputs Capex'!C13/'DNSP Inputs General'!J103)*'DNSP Inputs Capex'!C15/'DNSP Inputs Capex'!C102 -> 344.8085833 | D40: ='DNSP Inputs Capex'!D99/'DNSP Inputs General'!K103+'DNSP Inputs Capex'!D100/'DNSP Inputs General'!K103+('DNSP Inputs Capex'!D101*'DNSP Inputs Capex'!D12/'DNSP Inputs General'!K95+'DNSP Inputs Capex'!D101/2*'DNSP Inputs Capex'!D13/'DNSP Inputs General'!K103)*'DNSP Inputs Capex'!D15/'DNSP Inputs Capex'!D102 -> 344.8085833 | E40: ='DNSP Inputs Capex'!E99/'DNSP Inputs General'!L103+'DNSP Inputs Capex'!E100/'DNSP Inputs General'!L103+('DNSP Inputs Capex'!E101*'DNSP Inputs Capex'!E12/'DNSP Inputs General'!L95+'DNSP Inputs Capex'!E101/2*'DNSP Inputs Capex'!E13/'DNSP Inputs General'!L103)*'DNSP Inputs Capex'!E15/'DNSP Inputs Capex'!E102 -> 344.8085833 | F40: ='DNSP Inputs Capex'!F99/'DNSP Inputs General'!M103+'DNSP Inputs Capex'!F100/'DNSP Inputs General'!M103+('DNSP Inputs Capex'!F101*'DNSP Inputs Capex'!F12/'DNSP Inputs General'!M95+'DNSP Inputs Capex'!F101/2*'DNSP Inputs Capex'!F13/'DNSP Inputs General'!M103)*'DNSP Inputs Capex'!F15/'DNSP Inputs Capex'!F102 -> 344.8085833 | G40: ='DNSP Inputs Capex'!G99/'DNSP Inputs General'!N103+'DNSP Inputs Capex'!G100/'DNSP Inputs General'!N103+('DNSP Inputs Capex'!G101*'DNSP Inputs Capex'!G12/'DNSP Inputs General'!N95+'DNSP Inputs Capex'!G101/2*'DNSP Inputs Capex'!G13/'DNSP Inputs General'!N103)*'DNSP Inputs Capex'!G15/'DNSP Inputs Capex'!G102 -> 344.8085833 | H40: ='DNSP Inputs Capex'!H99/'DNSP Inputs General'!O103+'DNSP Inputs Capex'!H100/'DNSP Inputs General'!O103+('DNSP Inputs Capex'!H101*'DNSP Inputs Capex'!H12/'DNSP Inputs General'!O95+'DNSP Inputs Capex'!H101/2*'DNSP Inputs Capex'!H13/'DNSP Inputs General'!O103)*'DNSP Inputs Capex'!H15/'DNSP Inputs Capex'!H102 -> 344.8085833
A41: T5 (2 X 14W) - rural | C41: =('DNSP Inputs Capex'!C99+'DNSP Inputs Capex'!C100)/'DNSP Inputs General'!J103*(1+'DNSP Inputs Capex'!C11)+('DNSP Inputs Capex'!C101*'DNSP Inputs Capex'!C12/'DNSP Inputs General'!J95+'DNSP Inputs Capex'!C101/2*'DNSP Inputs Capex'!C13/'DNSP Inputs General'!J103)*'DNSP Inputs Capex'!C15/'DNSP Inputs Capex'!C103 -> 381.8426521 | D41: =('DNSP Inputs Capex'!D99+'DNSP Inputs Capex'!D100)/'DNSP Inputs General'!K103*(1+'DNSP Inputs Capex'!D11)+('DNSP Inputs Capex'!D101*'DNSP Inputs Capex'!D12/'DNSP Inputs General'!K95+'DNSP Inputs Capex'!D101/2*'DNSP Inputs Capex'!D13/'DNSP Inputs General'!K103)*'DNSP Inputs Capex'!D15/'DNSP Inputs Capex'!D103 -> 381.8426521 | E41: =('DNSP Inputs Capex'!E99+'DNSP Inputs Capex'!E100)/'DNSP Inputs General'!L103*(1+'DNSP Inputs Capex'!E11)+('DNSP Inputs Capex'!E101*'DNSP Inputs Capex'!E12/'DNSP Inputs General'!L95+'DNSP Inputs Capex'!E101/2*'DNSP Inputs Capex'!E13/'DNSP Inputs General'!L103)*'DNSP Inputs Capex'!E15/'DNSP Inputs Capex'!E103 -> 381.8426521 | F41: =('DNSP Inputs Capex'!F99+'DNSP Inputs Capex'!F100)/'DNSP Inputs General'!M103*(1+'DNSP Inputs Capex'!F11)+('DNSP Inputs Capex'!F101*'DNSP Inputs Capex'!F12/'DNSP Inputs General'!M95+'DNSP Inputs Capex'!F101/2*'DNSP Inputs Capex'!F13/'DNSP Inputs General'!M103)*'DNSP Inputs Capex'!F15/'DNSP Inputs Capex'!F103 -> 381.8426521 | G41: =('DNSP Inputs Capex'!G99+'DNSP Inputs Capex'!G100)/'DNSP Inputs General'!N103*(1+'DNSP Inputs Capex'!G11)+('DNSP Inputs Capex'!G101*'DNSP Inputs Capex'!G12/'DNSP Inputs General'!N95+'DNSP Inputs Capex'!G101/2*'DNSP Inputs Capex'!G13/'DNSP Inputs General'!N103)*'DNSP Inputs Capex'!G15/'DNSP Inputs Capex'!G103 -> 381.8426521 | H41: =('DNSP Inputs Capex'!H99+'DNSP Inputs Capex'!H100)/'DNSP Inputs General'!O103*(1+'DNSP Inputs Capex'!H11)+('DNSP Inputs Capex'!H101*'DNSP Inputs Capex'!H12/'DNSP Inputs General'!O95+'DNSP Inputs Capex'!H101/2*'DNSP Inputs Capex'!H13/'DNSP Inputs General'!O103)*'DNSP Inputs Capex'!H15/'DNSP Inputs Capex'!H103 -> 381.8426521
A42: LED18W - urban | C42: ='DNSP Inputs Capex'!C115/'DNSP Inputs General'!J103+('DNSP Inputs Capex'!C116*'DNSP Inputs Capex'!C12/'DNSP Inputs General'!J95+'DNSP Inputs Capex'!C116/2*'DNSP Inputs Capex'!C13/'DNSP Inputs General'!J103)*'DNSP Inputs Capex'!C15/'DNSP Inputs Capex'!C117 -> 415.8167298 | D42: ='DNSP Inputs Capex'!D115/'DNSP Inputs General'!K103+('DNSP Inputs Capex'!D116*'DNSP Inputs Capex'!D12/'DNSP Inputs General'!K95+'DNSP Inputs Capex'!D116/2*'DNSP Inputs Capex'!D13/'DNSP Inputs General'!K103)*'DNSP Inputs Capex'!D15/'DNSP Inputs Capex'!D117 -> 415.8167298 | E42: ='DNSP Inputs Capex'!E115/'DNSP Inputs General'!L103+('DNSP Inputs Capex'!E116*'DNSP Inputs Capex'!E12/'DNSP Inputs General'!L95+'DNSP Inputs Capex'!E116/2*'DNSP Inputs Capex'!E13/'DNSP Inputs General'!L103)*'DNSP Inputs Capex'!E15/'DNSP Inputs Capex'!E117 -> 415.8167298 | F42: ='DNSP Inputs Capex'!F115/'DNSP Inputs General'!M103+('DNSP Inputs Capex'!F116*'DNSP Inputs Capex'!F12/'DNSP Inputs General'!M95+'DNSP Inputs Capex'!F116/2*'DNSP Inputs Capex'!F13/'DNSP Inputs General'!M103)*'DNSP Inputs Capex'!F15/'DNSP Inputs Capex'!F117 -> 415.8167298 | G42: ='DNSP Inputs Capex'!G115/'DNSP Inputs General'!N103+('DNSP Inputs Capex'!G116*'DNSP Inputs Capex'!G12/'DNSP Inputs General'!N95+'DNSP Inputs Capex'!G116/2*'DNSP Inputs Capex'!G13/'DNSP Inputs General'!N103)*'DNSP Inputs Capex'!G15/'DNSP Inputs Capex'!G117 -> 415.8167298 | H42: ='DNSP Inputs Capex'!H115/'DNSP Inputs General'!O103+('DNSP Inputs Capex'!H116*'DNSP Inputs Capex'!H12/'DNSP Inputs General'!O95+'DNSP Inputs Capex'!H116/2*'DNSP Inputs Capex'!H13/'DNSP Inputs General'!O103)*'DNSP Inputs Capex'!H15/'DNSP Inputs Capex'!H117 -> 415.8167298
A43: LED18W - rural | C43: ='DNSP Inputs Capex'!C115/'DNSP Inputs General'!J103*(1+'DNSP Inputs Capex'!C11)+('DNSP Inputs Capex'!C116*'DNSP Inputs Capex'!C12/'DNSP Inputs General'!J95+'DNSP Inputs Capex'!C116/2*'DNSP Inputs Capex'!C14/'DNSP Inputs General'!J103)*'DNSP Inputs Capex'!C15/'DNSP Inputs Capex'!C118 -> 463.3822855 | D43: ='DNSP Inputs Capex'!D115/'DNSP Inputs General'!K103*(1+'DNSP Inputs Capex'!D11)+('DNSP Inputs Capex'!D116*'DNSP Inputs Capex'!D12/'DNSP Inputs General'!K95+'DNSP Inputs Capex'!D116/2*'DNSP Inputs Capex'!D14/'DNSP Inputs General'!K103)*'DNSP Inputs Capex'!D15/'DNSP Inputs Capex'!D118 -> 463.3822855 | E43: ='DNSP Inputs Capex'!E115/'DNSP Inputs General'!L103*(1+'DNSP Inputs Capex'!E11)+('DNSP Inputs Capex'!E116*'DNSP Inputs Capex'!E12/'DNSP Inputs General'!L95+'DNSP Inputs Capex'!E116/2*'DNSP Inputs Capex'!E14/'DNSP Inputs General'!L103)*'DNSP Inputs Capex'!E15/'DNSP Inputs Capex'!E118 -> 463.3822855 | F43: ='DNSP Inputs Capex'!F115/'DNSP Inputs General'!M103*(1+'DNSP Inputs Capex'!F11)+('DNSP Inputs Capex'!F116*'DNSP Inputs Capex'!F12/'DNSP Inputs General'!M95+'DNSP Inputs Capex'!F116/2*'DNSP Inputs Capex'!F14/'DNSP Inputs General'!M103)*'DNSP Inputs Capex'!F15/'DNSP Inputs Capex'!F118 -> 463.3822855 | G43: ='DNSP Inputs Capex'!G115/'DNSP Inputs General'!N103*(1+'DNSP Inputs Capex'!G11)+('DNSP Inputs Capex'!G116*'DNSP Inputs Capex'!G12/'DNSP Inputs General'!N95+'DNSP Inputs Capex'!G116/2*'DNSP Inputs Capex'!G14/'DNSP Inputs General'!N103)*'DNSP Inputs Capex'!G15/'DNSP Inputs Capex'!G118 -> 463.3822855 | H43: ='DNSP Inputs Capex'!H115/'DNSP Inputs General'!O103*(1+'DNSP Inputs Capex'!H11)+('DNSP Inputs Capex'!H116*'DNSP Inputs Capex'!H12/'DNSP Inputs General'!O95+'DNSP Inputs Capex'!H116/2*'DNSP Inputs Capex'!H14/'DNSP Inputs General'!O103)*'DNSP Inputs Capex'!H15/'DNSP Inputs Capex'!H118 -> 463.3822855
C45: Capex
A47: Calculation = volume * unit rate | C47: Real 2015 $
A49: Capex | C49: ='DNSP Inputs General'!J$2 -> 2015 | D49: ='DNSP Inputs General'!K$2 -> 2016 | E49: ='DNSP Inputs General'!L$2 -> 2017 | F49: ='DNSP Inputs General'!M$2 -> 2018 | G49: ='DNSP Inputs General'!N$2 -> 2019 | H49: ='DNSP Inputs General'!O$2 -> 2020 | J49: Project mapping | K49: RAB asset class mapping | L49: Service classification
A50: MV80 - urban | C50: =C10*C30 -> 57271.25914 | D50: =D10*D30 -> 57271.25914 | E50: =E10*E30 -> 57271.25914 | F50: 57271.25914 | G50: 57271.25914 | H50: 57271.25914 | J50: Public lighting Replacement - Minor Rd | K50: Luminaires | L50: ACS - public lighting
A51: MV80 - rural | C51: =C11*C31 -> 2069.690287 | D51: =D11*D31 -> 2069.690287 | E51: 2069.690287 | F51: 2069.690287 | G51: 2069.690287 | H51: 2069.690287 | J51: Public lighting Replacement - Minor Rd | K51: Luminaires | L51: ACS - public lighting
A52: S-HP150 - urban | C52: =C12*C32 -> 5432.322102 | D52: =D12*D32 -> 5432.322102 | E52: 5432.322102 | F52: 5432.322102 | G52: 5432.322102 | H52: 5432.322102 | J52: Public lighting Replacement - Major Rd | K52: Luminaires | L52: ACS - public lighting
A53: S-HP150 - rural | C53: =C13*C33 -> 4982.521143 | D53: =D13*D33 -> 4982.521143 | E53: 4982.521143 | F53: 4982.521143 | G53: 4982.521143 | H53: 4982.521143 | J53: Public lighting Replacement - Major Rd | K53: Luminaires | L53: ACS - public lighting
A54: S-HP250 - urban | C54: =C14*C34 -> 41492.88258 | D54: =D14*D34 -> 41492.88258 | E54: 41492.88258 | F54: 41492.88258 | G54: 41492.88258 | H54: 41492.88258 | J54: Public lighting Replacement - Major Rd | K54: Luminaires | L54: ACS - public lighting
A55: S-HP250 - rural | C55: =C15*C35 -> 3798.558438 | D55: =D15*D35 -> 3798.558438 | E55: 3798.558438 | F55: 3798.558438 | G55: 3798.558438 | H55: 3798.558438 | J55: Public lighting Replacement - Major Rd | K55: Luminaires | L55: ACS - public lighting
A56: Poles and brackets (dedicated poles) - urban | C56: =C16*C36 -> 332611.4862 | D56: =D16*D36 -> 334066.4951 | E56: 334066.4951 | F56: 334066.4951 | G56: 334066.4951 | H56: 334066.4951 | J56: Public lighting Replacement (Dedicated) - Major Rd | K56: Poles and brackets | L56: ACS - public lighting
A57: Poles and brackets (dedicated poles) - rural | C57: =C17*C37 -> 18000.64317 | D57: =D17*D37 -> 18077.69972 | E57: 18077.69972 | F57: 18077.69972 | G57: 18077.69972 | H57: 18077.69972 | J57: Public lighting Replacement (Dedicated) - Major Rd | K57: Poles and brackets | L57: ACS - public lighting
A58: Brackets on non-dedicated poles - urban | C58: =C18*C38 -> 4469.924535 | D58: =D18*D38 -> 4469.924535 | E58: 4469.924535 | F58: 4469.924535 | G58: 4469.924535 | H58: 4469.924535 | J58: Public lighting Pole Replacement - Major Roads | K58: Poles and brackets | L58: ACS - public lighting
A59: Brackets on non-dedicated poles - rural | C59: =C19*C39 -> 279.9799208 | D59: =D19*D39 -> 279.9799208 | E59: 279.9799208 | F59: 279.9799208 | G59: 279.9799208 | H59: 279.9799208 | J59: Public lighting Pole Replacement - Major Roads | K59: Poles and brackets | L59: ACS - public lighting
A60: T5 (2 X 14W) - urban | C60: =C20*C40 -> 170335.4402 | D60: =D20*D40 -> 170335.4402 | E60: 170335.4402 | F60: 170335.4402 | G60: 170335.4402 | H60: 170335.4402 | J60: Public lighting Replacement - Minor Rd | K60: Luminaires and Ballasts | L60: ACS - public lighting
A61: T5 (2 X 14W) - rural | C61: =C21*C41 -> 5727.639782 | D61: =D21*D41 -> 5727.639782 | E61: 5727.639782 | F61: 5727.639782 | G61: 5727.639782 | H61: 5727.639782 | J61: Public lighting Replacement - Minor Rd | K61: Luminaires and Ballasts | L61: ACS - public lighting
A62: LED18W - urban | C62: =C22*C42 -> 2910.717109 | D62: =D22*D42 -> 2910.717109 | E62: 2910.717109 | F62: 2910.717109 | G62: 2910.717109 | H62: 2910.717109 | J62: Public lighting Replacement - Minor Rd | K62: Luminaires and Ballasts | L62: ACS - public lighting
A63: LED18W - rural | C63: =C23*C43 -> 0 | D63: =D23*D43 -> 0 | E63: 0 | F63: 0 | G63: 0 | H63: 0 | J63: Public lighting Replacement - Minor Rd | K63: Luminaires and Ballasts | L63: ACS - public lighting
A65: Input into capex forecast model | C65: Real 2014 $
J66: Service classification | K66: RAB asset class mapping | L66: Service code
A67: Capex | C67: ='DNSP Inputs General'!J$2 -> 2015 | D67: ='DNSP Inputs General'!K$2 -> 2016 | E67: ='DNSP Inputs General'!L$2 -> 2017 | F67: ='DNSP Inputs General'!M$2 -> 2018 | G67: ='DNSP Inputs General'!N$2 -> 2019 | H67: ='DNSP Inputs General'!O$2 -> 2020
A68: Public lighting Replacement - Major Rd | D68: =SUMIFS(D$50:D$63,$J$50:$J$63,$A68,$K$50:$K$63,$K68)/(1+$C$5) -> 0 | E68: =SUMIFS(E$50:E$63,$J$50:$J$63,$A68,$K$50:$K$63,$K68)/(1+$C$5) -> 0 | F68: 0 | G68: 0 | H68: 0 | J68: ACS - public lighting | K68: Poles and brackets | L68: RLJ
A69: Public lighting Replacement - Major Rd | D69: =SUMIFS(D$50:D$63,$J$50:$J$63,$A69,$K$50:$K$63,$K69)/(1+$C$5) -> 54449.75153 | E69: 54449.75153 | F69: 54449.75153 | G69: 54449.75153 | H69: 54449.75153 | J69: =J$68 -> ACS - public lighting | K69: Luminaires | L69: =L68 -> RLJ
A70: Public lighting Replacement - Major Rd | D70: 0 | E70: 0 | F70: 0 | G70: 0 | H70: 0 | J70: =J$68 -> ACS - public lighting | K70: Luminaires and Ballasts | L70: =L68 -> RLJ
A71: Public lighting Replacement - Minor Rd | D71: 0 | E71: 0 | F71: 0 | G71: 0 | H71: 0 | J71: ACS - public lighting | K71: =K$68 -> Poles and brackets | L71: RLM
A72: Public lighting Replacement - Minor Rd | D72: 58002.43177 | E72: 58002.43177 | F72: 58002.43177 | G72: 58002.43177 | H72: 58002.43177 | J72: ACS - public lighting | K72: =K$69 -> Luminaires | L72: =L71 -> RLM
A73: Public lighting Replacement - Minor Rd | D73: 174936.7941 | E73: 174936.7941 | F73: 174936.7941 | G73: 174936.7941 | H73: 174936.7941 | J73: ACS - public lighting | K73: =K$70 -> Luminaires and Ballasts | L73: =L71 -> RLM
A74: Public lighting Pole Replacement - Major Roads | D74: 4642.763754 | E74: 4642.763754 | F74: 4642.763754 | G74: 4642.763754 | H74: 4642.763754 | J74: ACS - public lighting | K74: =K$68 -> Poles and brackets | L74: RPA
A75: Public lighting Pole Replacement - Major Roads | D75: 0 | E75: 0 | F75: 0 | G75: 0 | H75: 0 | J75: ACS - public lighting | K75: =K$69 -> Luminaires | L75: =L74 -> RPA
A76: Public lighting Pole Replacement - Major Roads | D76: 0 | E76: 0 | F76: 0 | G76: 0 | H76: 0 | J76: ACS - public lighting | K76: =K$70 -> Luminaires and Ballasts | L76: =L74 -> RPA
A77: Public lighting Pole Replacement - Minor Roads | D77: 0 | E77: 0 | F77: 0 | G77: 0 | H77: 0 | J77: ACS - public lighting | K77: =K$68 -> Poles and brackets | L77: RPB
A78: Public lighting Pole Replacement - Minor Roads | D78: 0 | E78: 0 | F78: 0 | G78: 0 | H78: 0 | J78: ACS - public lighting | K78: =K$69 -> Luminaires | L78: =L77 -> RPB
A79: Public lighting Pole Replacement - Minor Roads | D79: 0 | E79: 0 | F79: 0 | G79: 0 | H79: 0 | J79: ACS - public lighting | K79: =K$70 -> Luminaires and Ballasts | L79: =L77 -> RPB
A80: Public lighting Replacement (Dedicated) - Major Rd | D80: 344201.0927 | E80: 344201.0927 | F80: 344201.0927 | G80: 344201.0927 | H80: 344201.0927 | J80: ACS - public lighting | K80: =K$68 -> Poles and brackets | L80: RLJ
A81: Public lighting Replacement (Dedicated) - Major Rd | D81: 0 | E81: 0 | F81: 0 | G81: 0 | H81: 0 | J81: ACS - public lighting | K81: =K$69 -> Luminaires | L81: =L80 -> RLJ
A82: Public lighting Replacement (Dedicated) - Major Rd | D82: 0 | E82: 0 | F82: 0 | G82: 0 | H82: 0 | J82: ACS - public lighting | K82: =K$70 -> Luminaires and Ballasts | L82: =L80 -> RLJ
A83: Public lighting Replacement (Dedicated) - Minor Rd | D83: 0 | E83: 0 | F83: 0 | G83: 0 | H83: 0 | J83: ACS - public lighting | K83: =K$68 -> Poles and brackets | L83: RLM
A84: Public lighting Replacement (Dedicated) - Minor Rd | D84: 0 | E84: 0 | F84: 0 | G84: 0 | H84: 0 | J84: ACS - public lighting | K84: =K$69 -> Luminaires | L84: =L83 -> RLM
A85: Public lighting Replacement (Dedicated) - Minor Rd | D85: =SUMIFS(D$50:D$63,$J$50:$J$63,$A85,$K$50:$K$63,$K85)/(1+$C$5) -> 0 | E85: 0 | F85: 0 | G85: 0 | H85: 0 | J85: ACS - public lighting | K85: =K$70 -> Luminaires and Ballasts | L85: =L83 -> RLM
A88: Check | C88: =SUM(D88:H88) -> 0 | D88: =SUM(D68:D85)-SUM(D50:D63)/(1+$C$5) -> 0 | E88: =SUM(E68:E85)-SUM(E50:E63)/(1+$C$5) -> 0 | F88: 0 | G88: 0 | H88: 0

Sheet Output|RIN
A1: ='DNSP Inputs O & M'!$A$3 -> Jemena | E1: Check | F1: =SUM(B17,B23) -> 0
A3: Output for RIN
C6: Real 2015 $
A7: TABLE 2.2.1 - REPLACEMENT EXPENDITURE, VOLUMES AND ASSET FAILURES BY ASSET CATEGORY
A8: ASSET GROUP | C8: EXPENDITURE ($0's, real December 2015) | I8: ASSET REPLACEMENTS (0's) | O8: ASSET FAILURES (0's)
A9: PUBLIC LIGHTING BY: Asset type ; Lighting obligation | C9: 2015 | D9: 2016 | E9: 2017 | F9: 2018 | G9: 2019 | H9: 2020 | I9: 2015 | J9: 2016 | K9: 2017 | L9: 2018 | M9: 2019 | N9: 2020 | O9: 2015 | P9: 2016 | Q9: 2017 | R9: 2018 | S9: 2019 | T9: 2020
A10: ASSET CATEGORY | C10: $dollars | D10: $dollars | E10: $dollars | F10: $dollars | G10: $dollars | H10: $dollars | I10: number | J10: number | K10: number | L10: number | M10: number | N10: number | O10: number | P10: number | Q10: number | R10: number | S10: number | T10: number
A11: Luminaires | C11: =SUM('Output|Capex Forecast Model'!C50:C55,'Output|Capex Forecast Model'!C60:C63) -> 294021.0307 | D11: =SUM('Output|Capex Forecast Model'!D50:D55,'Output|Capex Forecast Model'!D60:D63) -> 294021.0307 | E11: =SUM('Output|Capex Forecast Model'!E50:E55,'Output|Capex Forecast Model'!E60:E63) -> 294021.0307 | F11: =SUM('Output|Capex Forecast Model'!F50:F55,'Output|Capex Forecast Model'!F60:F63) -> 294021.0307 | G11: =SUM('Output|Capex Forecast Model'!G50:G55,'Output|Capex Forecast Model'!G60:G63) -> 294021.0307 | H11: =SUM('Output|Capex Forecast Model'!H50:H55,'Output|Capex Forecast Model'!H60:H63) -> 294021.0307 | I11: =SUM('Output|Capex Forecast Model'!C10:C15,'Output|Capex Forecast Model'!C20:C23) -> 871 | J11: =SUM('Output|Capex Forecast Model'!D10:D15,'Output|Capex Forecast Model'!D20:D23) -> 871 | K11: =SUM('Output|Capex Forecast Model'!E10:E15,'Output|Capex Forecast Model'!E20:E23) -> 871 | L11: =SUM('Output|Capex Forecast Model'!F10:F15,'Output|Capex Forecast Model'!F20:F23) -> 871 | M11: =SUM('Output|Capex Forecast Model'!G10:G15,'Output|Capex Forecast Model'!G20:G23) -> 871 | N11: =SUM('Output|Capex Forecast Model'!H10:H15,'Output|Capex Forecast Model'!H20:H23) -> 871 | O11: =I11 -> 871 | P11: =J11 -> 871 | Q11: =K11 -> 871 | R11: =L11 -> 871 | S11: =M11 -> 871 | T11: =N11 -> 871
A12: Brackets | C12: =SUM('Output|Capex Forecast Model'!C58:C59) -> 4749.904456 | D12: =SUM('Output|Capex Forecast Model'!D58:D59) -> 4749.904456 | E12: =SUM('Output|Capex Forecast Model'!E58:E59) -> 4749.904456 | F12: =SUM('Output|Capex Forecast Model'!F58:F59) -> 4749.904456 | G12: =SUM('Output|Capex Forecast Model'!G58:G59) -> 4749.904456 | H12: =SUM('Output|Capex Forecast Model'!H58:H59) -> 4749.904456 | I12: =SUM('Output|Capex Forecast Model'!C18:C19) -> 35 | J12: =SUM('Output|Capex Forecast Model'!D18:D19) -> 35 | K12: =SUM('Output|Capex Forecast Model'!E18:E19) -> 35 | L12: =SUM('Output|Capex Forecast Model'!F18:F19) -> 35 | M12: =SUM('Output|Capex Forecast Model'!G18:G19) -> 35 | N12: =SUM('Output|Capex Forecast Model'!H18:H19) -> 35 | O12: =I12 -> 35 | P12: 35 | Q12: 35 | R12: 35 | S12: 35 | T12: 35
A13: Lamps | O13: 0 | P13: 0 | Q13: 0 | R13: 0 | S13: 0 | T13: 0
A14: Poles / Columns | C14: =SUM('Output|Capex Forecast Model'!C56:C57) -> 350612.1294 | D14: =SUM('Output|Capex Forecast Model'!D56:D57) -> 352144.1948 | E14: =SUM('Output|Capex Forecast Model'!E56:E57) -> 352144.1948 | F14: =SUM('Output|Capex Forecast Model'!F56:F57) -> 352144.1948 | G14: =SUM('Output|Capex Forecast Model'!G56:G57) -> 352144.1948 | H14: =SUM('Output|Capex Forecast Model'!H56:H57) -> 352144.1948 | I14: =SUM('Output|Capex Forecast Model'!C16:C17) -> 338 | J14: =SUM('Output|Capex Forecast Model'!D16:D17) -> 338 | K14: =SUM('Output|Capex Forecast Model'!E16:E17) -> 338 | L14: =SUM('Output|Capex Forecast Model'!F16:F17) -> 338 | M14: =SUM('Output|Capex Forecast Model'!G16:G17) -> 338 | N14: =SUM('Output|Capex Forecast Model'!H16:H17) -> 338 | O14: 338 | P14: 338 | Q14: 338 | R14: 338 | S14: 338 | T14: 338
A15: Other | O15: 0 | P15: 0 | Q15: 0 | R15: 0 | S15: 0 | T15: 0
A17: Check | B17: =SUM(C17:N17) -> 0 | C17: =SUM(C11:C15)-SUM('Output|Capex Forecast Model'!C50:C63) -> 0 | D17: =SUM(D11:D15)-SUM('Output|Capex Forecast Model'!D50:D63) -> 0 | E17: =SUM(E11:E15)-SUM('Output|Capex Forecast Model'!E50:E63) -> 0 | F17: =SUM(F11:F15)-SUM('Output|Capex Forecast Model'!F50:F63) -> 0 | G17: =SUM(G11:G15)-SUM('Output|Capex Forecast Model'!G50:G63) -> 0 | H17: =SUM(H11:H15)-SUM('Output|Capex Forecast Model'!H50:H63) -> 0 | I17: =SUM(I11:I15)-SUM('Output|Capex Forecast Model'!C10:C23) -> 0 | J17: =SUM(J11:J15)-SUM('Output|Capex Forecast Model'!D10:D23) -> 0 | K17: =SUM(K11:K15)-SUM('Output|Capex Forecast Model'!E10:E23) -> 0 | L17: =SUM(L11:L15)-SUM('Output|Capex Forecast Model'!F10:F23) -> 0 | M17: =SUM(M11:M15)-SUM('Output|Capex Forecast Model'!G10:G23) -> 0 | N17: =SUM(N11:N15)-SUM('Output|Capex Forecast Model'!H10:H23) -> 0
A19: RIN E | C19: 2015 | D19: 2016 | E19: 2017 | F19: 2018 | G19: 2019 | H19: 2020
C20: $millions | D20: $millions | E20: $millions | F20: $millions | G20: $millions | H20: $millions
A21: Public lighting revenue | C21: ='Cashflow Summary'!J75/10^6 -> 3.831744866 | D21: ='Cashflow Summary'!K75/10^6 -> 4.051171727 | E21: ='Cashflow Summary'!L75/10^6 -> 4.152164782 | F21: ='Cashflow Summary'!M75/10^6 -> 4.243039565 | G21: ='Cashflow Summary'!N75/10^6 -> 4.248737172 | H21: ='Cashflow Summary'!O75/10^6 -> 4.293565002
A23: Check | B23: =SUM(C23:H23) -> 0 | C23: =C21-'Cashflow Summary'!J75/10^6 -> 0 | D23: =D21-'Cashflow Summary'!K75/10^6 -> 0 | E23: =E21-'Cashflow Summary'!L75/10^6 -> 0 | F23: =F21-'Cashflow Summary'!M75/10^6 -> 0 | G23: =G21-'Cashflow Summary'!N75/10^6 -> 0 | H23: =H21-'Cashflow Summary'!O75/10^6 -> 0

Sheet Cashflow Summary
A1: ='DNSP Inputs O & M'!$A$3 -> Jemena | E1: Check | F1: =SUM(C163,C169,C192) -> 1.001171768e-08
C2: ='DNSP Inputs General'!J$2 -> 2015 | D2: ='DNSP Inputs General'!K$2 -> 2016 | E2: ='DNSP Inputs General'!L$2 -> 2017 | F2: ='DNSP Inputs General'!M$2 -> 2018 | G2: ='DNSP Inputs General'!N$2 -> 2019 | H2: ='DNSP Inputs General'!O$2 -> 2020 | J2: =C2 -> 2015 | K2: =D2 -> 2016 | L2: 2017 | M2: 2018 | N2: 2019 | O2: 2020
A4: Public Lighting - Revenue | C4: Revenue - Nominal | J4: Revenue - Real 2015 $
A5: Including Revenue Recovery | C5: =C$2 -> 2015 | D5: =D$2 -> 2016 | E5: 2017 | F5: 2018 | G5: 2019 | H5: 2020 | J5: =J$2 -> 2015 | K5: 2016 | L5: 2017 | M5: 2018 | N5: 2019 | O5: 2020
A6: ='DNSP Inputs General'!A$40 -> Existing Lights
A7: ='DNSP Inputs General'!A$41 -> Mercury Vapour 80 watt | C7: =#REF! ->  | D7: =#REF! ->  | E7: =#REF! ->  | F7: =#REF! ->  | G7: =#REF! ->  | H7: =#REF! ->  | J7: =C7 ->  | K7: =D7/'Charges Summary'!D$4 ->  | L7: =E7/'Charges Summary'!E$4 ->  | M7: =F7/'Charges Summary'!F$4 ->  | N7: =G7/'Charges Summary'!G$4 ->  | O7: =H7/'Charges Summary'!H$4 -> 
A8: ='DNSP Inputs General'!A$42 -> Sodium High Pressure 150 watt | C8: =#REF! ->  | D8: =#REF! ->  | E8: =#REF! ->  | F8: =#REF! ->  | G8: =#REF! ->  | H8: =#REF! ->  | K8: =D8/'Charges Summary'!D$4 ->  | L8: =E8/'Charges Summary'!E$4 ->  | M8: =F8/'Charges Summary'!F$4 ->  | N8: =G8/'Charges Summary'!G$4 ->  | O8: =H8/'Charges Summary'!H$4 -> 
A9: ='DNSP Inputs General'!A$43 -> Sodium High Pressure 250 watt | C9: =#REF! ->  | D9: =#REF! ->  | E9: =#REF! ->  | F9: =#REF! ->  | G9: =#REF! ->  | H9: =#REF! ->  | K9: =D9/'Charges Summary'!D$4 ->  | L9: =E9/'Charges Summary'!E$4 ->  | M9: =F9/'Charges Summary'!F$4 ->  | N9: =G9/'Charges Summary'!G$4 ->  | O9: =H9/'Charges Summary'!H$4 -> 
A10: ='DNSP Inputs General'!A$44 -> 55W Ind | C10: =#REF! ->  | D10: =#REF! ->  | E10: =#REF! ->  | F10: =#REF! ->  | G10: =#REF! ->  | H10: =#REF! ->  | K10: =D10/'Charges Summary'!D$4 ->  | L10: =E10/'Charges Summary'!E$4 ->  | M10: =F10/'Charges Summary'!F$4 ->  | N10: =G10/'Charges Summary'!G$4 ->  | O10: =H10/'Charges Summary'!H$4 -> 
A11: ='DNSP Inputs General'!A$45 -> Fluorescent 20 watt | C11: =#REF! ->  | D11: =#REF! ->  | E11: =#REF! ->  | F11: =#REF! ->  | G11: =#REF! ->  | H11: =#REF! ->  | K11: =D11/'Charges Summary'!D$4 ->  | L11: =E11/'Charges Summary'!E$4 ->  | M11: =F11/'Charges Summary'!F$4 ->  | N11: =G11/'Charges Summary'!G$4 ->  | O11: =H11/'Charges Summary'!H$4 -> 
A12: ='DNSP Inputs General'!A$46 -> Fluorescent 40 watt | C12: =#REF! ->  | D12: =#REF! ->  | E12: =#REF! ->  | F12: =#REF! ->  | G12: =#REF! ->  | H12: =#REF! ->  | K12: =D12/'Charges Summary'!D$4 ->  | L12: =E12/'Charges Summary'!E$4 ->  | M12: =F12/'Charges Summary'!F$4 ->  | N12: =G12/'Charges Summary'!G$4 ->  | O12: =H12/'Charges Summary'!H$4 -> 
A13: ='DNSP Inputs General'!A$47 -> Fluorescent 80 watt | C13: =#REF! ->  | D13: =#REF! ->  | E13: =#REF! ->  | F13: =#REF! ->  | G13: =#REF! ->  | H13: =#REF! ->  | K13: =D13/'Charges Summary'!D$4 ->  | L13: =E13/'Charges Summary'!E$4 ->  | M13: =F13/'Charges Summary'!F$4 ->  | N13: =G13/'Charges Summary'!G$4 ->  | O13: =H13/'Charges Summary'!H$4 -> 
A14: ='DNSP Inputs General'!A$48 -> Mercury Vapour 50 watt | C14: =#REF! ->  | D14: =#REF! ->  | E14: =#REF! ->  | F14: =#REF! ->  | G14: =#REF! ->  | H14: =#REF! ->  | K14: =D14/'Charges Summary'!D$4 ->  | L14: =E14/'Charges Summary'!E$4 ->  | M14: =F14/'Charges Summary'!F$4 ->  | N14: =G14/'Charges Summary'!G$4 ->  | O14: =H14/'Charges Summary'!H$4 -> 
A15: ='DNSP Inputs General'!A$49 -> Mercury Vapour 125 watt | C15: =#REF! ->  | D15: =#REF! ->  | E15: =#REF! ->  | F15: =#REF! ->  | G15: =#REF! ->  | H15: =#REF! ->  | K15: =D15/'Charges Summary'!D$4 ->  | L15: =E15/'Charges Summary'!E$4 ->  | M15: =F15/'Charges Summary'!F$4 ->  | N15: =G15/'Charges Summary'!G$4 ->  | O15: =H15/'Charges Summary'!H$4 -> 
A16: ='DNSP Inputs General'!A$50 -> Mercury Vapour 250 watt | C16: =#REF! ->  | D16: =#REF! ->  | E16: =#REF! ->  | F16: =#REF! ->  | G16: =#REF! ->  | H16: =#REF! ->  | K16: =D16/'Charges Summary'!D$4 ->  | L16: =E16/'Charges Summary'!E$4 ->  | M16: =F16/'Charges Summary'!F$4 ->  | N16: =G16/'Charges Summary'!G$4 ->  | O16: =H16/'Charges Summary'!H$4 -> 
A17: ='DNSP Inputs General'!A$51 -> Mercury Vapour 400 watt | C17: =#REF! ->  | D17: =#REF! ->  | E17: =#REF! ->  | F17: =#REF! ->  | G17: =#REF! ->  | H17: =#REF! ->  | K17: =D17/'Charges Summary'!D$4 ->  | L17: =E17/'Charges Summary'!E$4 ->  | M17: =F17/'Charges Summary'!F$4 ->  | N17: =G17/'Charges Summary'!G$4 ->  | O17: =H17/'Charges Summary'!H$4 -> 
A18: ='DNSP Inputs General'!A$52 -> Sodium High Pressure 50 watt | C18: =#REF! ->  | D18: =#REF! ->  | E18: =#REF! ->  | F18: =#REF! ->  | G18: =#REF! ->  | H18: =#REF! ->  | K18: =D18/'Charges Summary'!D$4 ->  | L18: =E18/'Charges Summary'!E$4 ->  | M18: =F18/'Charges Summary'!F$4 ->  | N18: =G18/'Charges Summary'!G$4 ->  | O18: =H18/'Charges Summary'!H$4 -> 
A19: ='DNSP Inputs General'!A$53 -> Sodium Low Pressure 90 watt | C19: =#REF! ->  | D19: =#REF! ->  | E19: =#REF! ->  | F19: =#REF! ->  | G19: =#REF! ->  | H19: =#REF! ->  | K19: =D19/'Charges Summary'!D$4 ->  | L19: =E19/'Charges Summary'!E$4 ->  | M19: =F19/'Charges Summary'!F$4 ->  | N19: =G19/'Charges Summary'!G$4 ->  | O19: =H19/'Charges Summary'!H$4 -> 
A20: ='DNSP Inputs General'!A$54 -> Sodium High Pressure 100 watt | C20: =#REF! ->  | D20: =#REF! ->  | E20: =#REF! ->  | F20: =#REF! ->  | G20: =#REF! ->  | H20: =#REF! ->  | K20: =D20/'Charges Summary'!D$4 ->  | L20: =E20/'Charges Summary'!E$4 ->  | M20: =F20/'Charges Summary'!F$4 ->  | N20: =G20/'Charges Summary'!G$4 ->  | O20: =H20/'Charges Summary'!H$4 -> 
A21: ='DNSP Inputs General'!A$55 -> Sodium High Pressure 400 watt | C21: =#REF! ->  | D21: =#REF! ->  | E21: =#REF! ->  | F21: =#REF! ->  | G21: =#REF! ->  | H21: =#REF! ->  | K21: =D21/'Charges Summary'!D$4 ->  | L21: =E21/'Charges Summary'!E$4 ->  | M21: =F21/'Charges Summary'!F$4 ->  | N21: =G21/'Charges Summary'!G$4 ->  | O21: =H21/'Charges Summary'!H$4 -> 
A22: ='DNSP Inputs General'!A$56 -> Metal Halide 70 watt | C22: =#REF! ->  | D22: =#REF! ->  | E22: =#REF! ->  | F22: =#REF! ->  | G22: =#REF! ->  | H22: =#REF! ->  | K22: =D22/'Charges Summary'!D$4 ->  | L22: =E22/'Charges Summary'!E$4 ->  | M22: =F22/'Charges Summary'!F$4 ->  | N22: =G22/'Charges Summary'!G$4 ->  | O22: =H22/'Charges Summary'!H$4 -> 
A23: ='DNSP Inputs General'!A$57 -> Metal Halide 150 watt | C23: =#REF! ->  | D23: =#REF! ->  | E23: =#REF! ->  | F23: =#REF! ->  | G23: =#REF! ->  | H23: =#REF! ->  | K23: =D23/'Charges Summary'!D$4 ->  | L23: =E23/'Charges Summary'!E$4 ->  | M23: =F23/'Charges Summary'!F$4 ->  | N23: =G23/'Charges Summary'!G$4 ->  | O23: =H23/'Charges Summary'!H$4 -> 
A24: ='DNSP Inputs General'!A$58 -> Metal Halide 250 watt | C24: =#REF! ->  | D24: =#REF! ->  | E24: =#REF! ->  | F24: =#REF! ->  | G24: =#REF! ->  | H24: =#REF! ->  | K24: =D24/'Charges Summary'!D$4 ->  | L24: =E24/'Charges Summary'!E$4 ->  | M24: =F24/'Charges Summary'!F$4 ->  | N24: =G24/'Charges Summary'!G$4 ->  | O24: =H24/'Charges Summary'!H$4 -> 
A25: ='DNSP Inputs General'!A$59 -> Incandescent 100 watt | C25: =#REF! ->  | D25: =#REF! ->  | E25: =#REF! ->  | F25: =#REF! ->  | G25: =#REF! ->  | H25: =#REF! ->  | K25: =D25/'Charges Summary'!D$4 ->  | L25: =E25/'Charges Summary'!E$4 ->  | M25: =F25/'Charges Summary'!F$4 ->  | N25: =G25/'Charges Summary'!G$4 ->  | O25: =H25/'Charges Summary'!H$4 -> 
A26: ='DNSP Inputs General'!A$60 -> Incandescent 150 watt | C26: =#REF! ->  | D26: =#REF! ->  | E26: =#REF! ->  | F26: =#REF! ->  | G26: =#REF! ->  | H26: =#REF! ->  | K26: =D26/'Charges Summary'!D$4 ->  | L26: =E26/'Charges Summary'!E$4 ->  | M26: =F26/'Charges Summary'!F$4 ->  | N26: =G26/'Charges Summary'!G$4 ->  | O26: =H26/'Charges Summary'!H$4 -> 
A27: ='DNSP Inputs General'!A$61 -> Sodium High Pressure 250 watt (24 hrs) | C27: =#REF! ->  | D27: =#REF! ->  | E27: =#REF! ->  | F27: =#REF! ->  | G27: =#REF! ->  | H27: =#REF! ->  | K27: =D27/'Charges Summary'!D$4 ->  | L27: =E27/'Charges Summary'!E$4 ->  | M27: =F27/'Charges Summary'!F$4 ->  | N27: =G27/'Charges Summary'!G$4 ->  | O27: =H27/'Charges Summary'!H$4 -> 
A28: ='DNSP Inputs General'!A$62 -> Metal Halide 100 watt | C28: =#REF! ->  | D28: =#REF! ->  | E28: =#REF! ->  | F28: =#REF! ->  | G28: =#REF! ->  | H28: =#REF! ->  | K28: =D28/'Charges Summary'!D$4 ->  | L28: =E28/'Charges Summary'!E$4 ->  | M28: =F28/'Charges Summary'!F$4 ->  | N28: =G28/'Charges Summary'!G$4 ->  | O28: =H28/'Charges Summary'!H$4 -> 
A31: ='DNSP Inputs General'!A$67 -> Energy Efficient Lights
A32: ='DNSP Inputs General'!A$68 -> T5 2X14W | C32: =#REF! ->  | D32: =#REF! ->  | E32: =#REF! ->  | F32: =#REF! ->  | G32: =#REF! ->  | H32: =#REF! ->  | J32: =C32 ->  | K32: =D32/'Charges Summary'!D$4 ->  | L32: =E32/'Charges Summary'!E$4 ->  | M32: =F32/'Charges Summary'!F$4 ->  | N32: =G32/'Charges Summary'!G$4 ->  | O32: =H32/'Charges Summary'!H$4 -> 
A33: ='DNSP Inputs General'!A$69 -> T5 (2x24W) | C33: =#REF! ->  | D33: =#REF! ->  | E33: =#REF! ->  | F33: =#REF! ->  | G33: =#REF! ->  | H33: =#REF! ->  | J33: =C33 ->  | K33: =D33/'Charges Summary'!D$4 ->  | L33: =E33/'Charges Summary'!E$4 ->  | M33: =F33/'Charges Summary'!F$4 ->  | N33: =G33/'Charges Summary'!G$4 ->  | O33: =H33/'Charges Summary'!H$4 -> 
A34: ='DNSP Inputs General'!A$70 -> LED 18W | C34: =#REF! ->  | D34: =#REF! ->  | E34: =#REF! ->  | F34: =#REF! ->  | G34: =#REF! ->  | H34: =#REF! ->  | K34: =D34/'Charges Summary'!D$4 ->  | L34: =E34/'Charges Summary'!E$4 ->  | M34: =F34/'Charges Summary'!F$4 ->  | N34: =G34/'Charges Summary'!G$4 ->  | O34: =H34/'Charges Summary'!H$4 -> 
A35: ='DNSP Inputs General'!A$71 -> Compact Fluoro 32W | C35: =#REF! ->  | D35: =#REF! ->  | E35: =#REF! ->  | F35: =#REF! ->  | G35: =#REF! ->  | H35: =#REF! ->  | K35: =D35/'Charges Summary'!D$4 ->  | L35: =E35/'Charges Summary'!E$4 ->  | M35: =F35/'Charges Summary'!F$4 ->  | N35: =G35/'Charges Summary'!G$4 ->  | O35: =H35/'Charges Summary'!H$4 -> 
A36: ='DNSP Inputs General'!A$72 -> Compact Fluoro 42W | C36: =#REF! ->  | D36: =#REF! ->  | E36: =#REF! ->  | F36: =#REF! ->  | G36: =#REF! ->  | H36: =#REF! ->  | K36: =D36/'Charges Summary'!D$4 ->  | L36: =E36/'Charges Summary'!E$4 ->  | M36: =F36/'Charges Summary'!F$4 ->  | N36: =G36/'Charges Summary'!G$4 ->  | O36: =H36/'Charges Summary'!H$4 -> 
A38: Total Revenue | C38: =SUM(C7:C37) ->  | D38: =SUM(D7:D37) ->  | J38: =IF(SUM(J7:J36)=0,"",SUM(J7:J36)) ->  | K38: =SUM(K7:K36) ->  | L38: =SUM(L7:L36) ->  | M38: =SUM(M7:M36) ->  | N38: =SUM(N7:N36) ->  | O38: =SUM(O7:O36) -> 
A41: Public Lighting - Revenue | C41: Revenue - Nominal | J41: Revenue - Real 2015 $
A42: Excluding Revenue Recovery | C42: =C$2 -> 2015 | D42: =D$2 -> 2016 | E42: 2017 | F42: 2018 | G42: 2019 | H42: 2020 | J42: =J$2 -> 2015 | K42: 2016 | L42: 2017 | M42: 2018 | N42: 2019 | O42: 2020
A43: ='DNSP Inputs General'!A$40 -> Existing Lights
A44: ='DNSP Inputs General'!A$41 -> Mercury Vapour 80 watt | C44: =IF('PL Tariffs - Excl. RR'!C6=0,"",'DNSP Inputs General'!J41*'PL Tariffs - Excl. RR'!C6) -> 665016.7857 | D44: ='DNSP Inputs General'!K41*'PL Tariffs - Excl. RR'!D6 -> 706241.0181 | E44: ='DNSP Inputs General'!L41*'PL Tariffs - Excl. RR'!E6 -> 711402.2542 | F44: ='DNSP Inputs General'!M41*'PL Tariffs - Excl. RR'!F6 -> 724783.9583 | G44: ='DNSP Inputs General'!N41*'PL Tariffs - Excl. RR'!G6 -> 725284.4566 | H44: ='DNSP Inputs General'!O41*'PL Tariffs - Excl. RR'!H6 -> 731571.9128 | J44: =C44 -> 665016.7857 | K44: =D44/'Charges Summary'!D$4 -> 690206.9595 | L44: =E44/'Charges Summary'!E$4 -> 679466.4696 | M44: =F44/'Charges Summary'!F$4 -> 676531.0941 | N44: =G44/'Charges Summary'!G$4 -> 661628.1221 | O44: =H44/'Charges Summary'!H$4 -> 652212.3315
A45: ='DNSP Inputs General'!A$42 -> Sodium High Pressure 150 watt | C45: =IF('PL Tariffs - Excl. RR'!C7=0,"",'DNSP Inputs General'!J42*'PL Tariffs - Excl. RR'!C7) -> 1418078.663 | D45: ='DNSP Inputs General'!K42*'PL Tariffs - Excl. RR'!D7 -> 1502009.889 | E45: ='DNSP Inputs General'!L42*'PL Tariffs - Excl. RR'!E7 -> 1579498.964 | F45: ='DNSP Inputs General'!M42*'PL Tariffs - Excl. RR'!F7 -> 1653061.239 | G45: ='DNSP Inputs General'!N42*'PL Tariffs - Excl. RR'!G7 -> 1694864.296 | H45: ='DNSP Inputs General'!O42*'PL Tariffs - Excl. RR'!H7 -> 1754813.337 | J45: 1418078.663 | K45: =D45/'Charges Summary'!D$4 -> 1467909.187 | L45: =E45/'Charges Summary'!E$4 -> 1508593.174 | M45: =F45/'Charges Summary'!F$4 -> 1543007.838 | N45: =G45/'Charges Summary'!G$4 -> 1546110.455 | O45: =H45/'Charges Summary'!H$4 -> 1564454.4
A46: ='DNSP Inputs General'!A$43 -> Sodium High Pressure 250 watt | C46: =IF('PL Tariffs - Excl. RR'!C8=0,"",'DNSP Inputs General'!J43*'PL Tariffs - Excl. RR'!C8) -> 444614.6002 | D46: ='DNSP Inputs General'!K43*'PL Tariffs - Excl. RR'!D8 -> 459197.196 | E46: ='DNSP Inputs General'!L43*'PL Tariffs - Excl. RR'!E8 -> 477299.3284 | F46: ='DNSP Inputs General'!M43*'PL Tariffs - Excl. RR'!F8 -> 493885.6671 | G46: ='DNSP Inputs General'!N43*'PL Tariffs - Excl. RR'!G8 -> 500816.6273 | H46: ='DNSP Inputs General'!O43*'PL Tariffs - Excl. RR'!H8 -> 512894.7333 | J46: 444614.6002 | K46: =D46/'Charges Summary'!D$4 -> 448771.8674 | L46: =E46/'Charges Summary'!E$4 -> 455872.7327 | M46: =F46/'Charges Summary'!F$4 -> 461004.9752 | N46: =G46/'Charges Summary'!G$4 -> 456861.2516 | O46: =H46/'Charges Summary'!H$4 -> 457256.852
A47: ='DNSP Inputs General'!A$44 -> 55W Ind | C47: =IF('PL Tariffs - Excl. RR'!C9=0,"",'DNSP Inputs General'!J44*'PL Tariffs - Excl. RR'!C9) -> 0 | D47: ='DNSP Inputs General'!K44*'PL Tariffs - Excl. RR'!D9 -> 0 | E47: ='DNSP Inputs General'!L44*'PL Tariffs - Excl. RR'!E9 -> 0 | F47: ='DNSP Inputs General'!M44*'PL Tariffs - Excl. RR'!F9 -> 0 | G47: ='DNSP Inputs General'!N44*'PL Tariffs - Excl. RR'!G9 -> 0 | H47: ='DNSP Inputs General'!O44*'PL Tariffs - Excl. RR'!H9 -> 0 | J47: 0 | K47: =D47/'Charges Summary'!D$4 -> 0 | L47: =E47/'Charges Summary'!E$4 -> 0 | M47: =F47/'Charges Summary'!F$4 -> 0 | N47: =G47/'Charges Summary'!G$4 -> 0 | O47: =H47/'Charges Summary'!H$4 -> 0
A48: ='DNSP Inputs General'!A$45 -> Fluorescent 20 watt | C48: =IF('PL Tariffs - Excl. RR'!C10=0,"",'DNSP Inputs General'!J45*'PL Tariffs - Excl. RR'!C10) -> 0 | D48: ='DNSP Inputs General'!K45*'PL Tariffs - Excl. RR'!D10 -> 0 | E48: ='DNSP Inputs General'!L45*'PL Tariffs - Excl. RR'!E10 -> 0 | F48: ='DNSP Inputs General'!M45*'PL Tariffs - Excl. RR'!F10 -> 0 | G48: ='DNSP Inputs General'!N45*'PL Tariffs - Excl. RR'!G10 -> 0 | H48: ='DNSP Inputs General'!O45*'PL Tariffs - Excl. RR'!H10 -> 0 | J48: 0 | K48: =D48/'Charges Summary'!D$4 -> 0 | L48: =E48/'Charges Summary'!E$4 -> 0 | M48: =F48/'Charges Summary'!F$4 -> 0 | N48: =G48/'Charges Summary'!G$4 -> 0 | O48: =H48/'Charges Summary'!H$4 -> 0
A49: ='DNSP Inputs General'!A$46 -> Fluorescent 40 watt | C49: =IF('PL Tariffs - Excl. RR'!C11=0,"",'DNSP Inputs General'!J46*'PL Tariffs - Excl. RR'!C11) -> 1306.494074 | D49: ='DNSP Inputs General'!K46*'PL Tariffs - Excl. RR'!D11 -> 0 | E49: ='DNSP Inputs General'!L46*'PL Tariffs - Excl. RR'!E11 -> 0 | F49: ='DNSP Inputs General'!M46*'PL Tariffs - Excl. RR'!F11 -> 0 | G49: ='DNSP Inputs General'!N46*'PL Tariffs - Excl. RR'!G11 -> 0 | H49: ='DNSP Inputs General'!O46*'PL Tariffs - Excl. RR'!H11 -> 0 | J49: 1306.494074 | K49: =D49/'Charges Summary'!D$4 -> 0 | L49: =E49/'Charges Summary'!E$4 -> 0 | M49: =F49/'Charges Summary'!F$4 -> 0 | N49: =G49/'Charges Summary'!G$4 -> 0 | O49: =H49/'Charges Summary'!H$4 -> 0
A50: ='DNSP Inputs General'!A$47 -> Fluorescent 80 watt | C50: =IF('PL Tariffs - Excl. RR'!C12=0,"",'DNSP Inputs General'!J47*'PL Tariffs - Excl. RR'!C12) -> 0 | D50: ='DNSP Inputs General'!K47*'PL Tariffs - Excl. RR'!D12 -> 0 | E50: ='DNSP Inputs General'!L47*'PL Tariffs - Excl. RR'!E12 -> 0 | F50: ='DNSP Inputs General'!M47*'PL Tariffs - Excl. RR'!F12 -> 0 | G50: ='DNSP Inputs General'!N47*'PL Tariffs - Excl. RR'!G12 -> 0 | H50: ='DNSP Inputs General'!O47*'PL Tariffs - Excl. RR'!H12 -> 0 | J50: 0 | K50: =D50/'Charges Summary'!D$4 -> 0 | L50: =E50/'Charges Summary'!E$4 -> 0 | M50: =F50/'Charges Summary'!F$4 -> 0 | N50: =G50/'Charges Summary'!G$4 -> 0 | O50: =H50/'Charges Summary'!H$4 -> 0
A51: ='DNSP Inputs General'!A$48 -> Mercury Vapour 50 watt | C51: =IF('PL Tariffs - Excl. RR'!C13=0,"",'DNSP Inputs General'!J48*'PL Tariffs - Excl. RR'!C13) -> 1037.51 | D51: ='DNSP Inputs General'!K48*'PL Tariffs - Excl. RR'!D13 -> 0 | E51: ='DNSP Inputs General'!L48*'PL Tariffs - Excl. RR'!E13 -> 0 | F51: ='DNSP Inputs General'!M48*'PL Tariffs - Excl. RR'!F13 -> 0 | G51: ='DNSP Inputs General'!N48*'PL Tariffs - Excl. RR'!G13 -> 0 | H51: ='DNSP Inputs General'!O48*'PL Tariffs - Excl. RR'!H13 -> 0 | J51: 1037.51 | K51: =D51/'Charges Summary'!D$4 -> 0 | L51: =E51/'Charges Summary'!E$4 -> 0 | M51: =F51/'Charges Summary'!F$4 -> 0 | N51: =G51/'Charges Summary'!G$4 -> 0 | O51: =H51/'Charges Summary'!H$4 -> 0
A52: ='DNSP Inputs General'!A$49 -> Mercury Vapour 125 watt | C52: =IF('PL Tariffs - Excl. RR'!C14=0,"",'DNSP Inputs General'!J49*'PL Tariffs - Excl. RR'!C14) -> 25818.82688 | D52: ='DNSP Inputs General'!K49*'PL Tariffs - Excl. RR'!D14 -> 27423.18847 | E52: ='DNSP Inputs General'!L49*'PL Tariffs - Excl. RR'!E14 -> 27623.59817 | F52: ='DNSP Inputs General'!M49*'PL Tariffs - Excl. RR'!F14 -> 28143.20689 | G52: ='DNSP Inputs General'!N49*'PL Tariffs - Excl. RR'!G14 -> 28162.64113 | H52: ='DNSP Inputs General'!O49*'PL Tariffs - Excl. RR'!H14 -> 28406.78172 | J52: 25818.82688 | K52: =D52/'Charges Summary'!D$4 -> 26800.58938 | L52: =E52/'Charges Summary'!E$4 -> 26383.53845 | M52: =F52/'Charges Summary'!F$4 -> 26269.55844 | N52: =G52/'Charges Summary'!G$4 -> 25690.87921 | O52: =H52/'Charges Summary'!H$4 -> 25325.26606
A53: ='DNSP Inputs General'!A$50 -> Mercury Vapour 250 watt | C53: =IF('PL Tariffs - Excl. RR'!C15=0,"",'DNSP Inputs General'!J50*'PL Tariffs - Excl. RR'!C15) -> 12545.85398 | D53: ='DNSP Inputs General'!K50*'PL Tariffs - Excl. RR'!D15 -> 11034.88493 | E53: ='DNSP Inputs General'!L50*'PL Tariffs - Excl. RR'!E15 -> 9768.961413 | F53: ='DNSP Inputs General'!M50*'PL Tariffs - Excl. RR'!F15 -> 8610.275925 | G53: ='DNSP Inputs General'!N50*'PL Tariffs - Excl. RR'!G15 -> 7437.795327 | H53: ='DNSP Inputs General'!O50*'PL Tariffs - Excl. RR'!H15 -> 6489.453587 | J53: 12545.85398 | K53: =D53/'Charges Summary'!D$4 -> 10784.35574 | L53: =E53/'Charges Summary'!E$4 -> 9330.419864 | M53: =F53/'Charges Summary'!F$4 -> 8037.042384 | N53: =G53/'Charges Summary'!G$4 -> 6784.999333 | O53: =H53/'Charges Summary'!H$4 -> 5785.489547
A54: ='DNSP Inputs General'!A$51 -> Mercury Vapour 400 watt | C54: =IF('PL Tariffs - Excl. RR'!C16=0,"",'DNSP Inputs General'!J51*'PL Tariffs - Excl. RR'!C16) -> 20551.75192 | D54: ='DNSP Inputs General'!K51*'PL Tariffs - Excl. RR'!D16 -> 20140.35058 | E54: ='DNSP Inputs General'!L51*'PL Tariffs - Excl. RR'!E16 -> 19866.66458 | F54: ='DNSP Inputs General'!M51*'PL Tariffs - Excl. RR'!F16 -> 19510.61604 | G54: ='DNSP Inputs General'!N51*'PL Tariffs - Excl. RR'!G16 -> 18779.1307 | H54: ='DNSP Inputs General'!O51*'PL Tariffs - Excl. RR'!H16 -> 18256.46714 | J54: 20551.75192 | K54: =D54/'Charges Summary'!D$4 -> 19683.09654 | L54: =E54/'Charges Summary'!E$4 -> 18974.82383 | M54: =F54/'Charges Summary'!F$4 -> 18211.68676 | N54: =G54/'Charges Summary'!G$4 -> 17130.93513 | O54: =H54/'Charges Summary'!H$4 -> 16276.03902
A55: ='DNSP Inputs General'!A$52 -> Sodium High Pressure 50 watt | C55: =IF('PL Tariffs - Excl. RR'!C17=0,"",'DNSP Inputs General'!J52*'PL Tariffs - Excl. RR'!C17) -> 0 | D55: ='DNSP Inputs General'!K52*'PL Tariffs - Excl. RR'!D17 -> 0 | E55: ='DNSP Inputs General'!L52*'PL Tariffs - Excl. RR'!E17 -> 0 | F55: ='DNSP Inputs General'!M52*'PL Tariffs - Excl. RR'!F17 -> 0 | G55: ='DNSP Inputs General'!N52*'PL Tariffs - Excl. RR'!G17 -> 0 | H55: ='DNSP Inputs General'!O52*'PL Tariffs - Excl. RR'!H17 -> 0 | J55: 0 | K55: =D55/'Charges Summary'!D$4 -> 0 | L55: =E55/'Charges Summary'!E$4 -> 0 | M55: =F55/'Charges Summary'!F$4 -> 0 | N55: =G55/'Charges Summary'!G$4 -> 0 | O55: =H55/'Charges Summary'!H$4 -> 0
A56: ='DNSP Inputs General'!A$53 -> Sodium Low Pressure 90 watt | C56: =IF('PL Tariffs - Excl. RR'!C18=0,"",'DNSP Inputs General'!J53*'PL Tariffs - Excl. RR'!C18) -> 0 | D56: ='DNSP Inputs General'!K53*'PL Tariffs - Excl. RR'!D18 -> 0 | E56: ='DNSP Inputs General'!L53*'PL Tariffs - Excl. RR'!E18 -> 0 | F56: ='DNSP Inputs General'!M53*'PL Tariffs - Excl. RR'!F18 -> 0 | G56: ='DNSP Inputs General'!N53*'PL Tariffs - Excl. RR'!G18 -> 0 | H56: ='DNSP Inputs General'!O53*'PL Tariffs - Excl. RR'!H18 -> 0 | J56: 0 | K56: =D56/'Charges Summary'!D$4 -> 0 | L56: =E56/'Charges Summary'!E$4 -> 0 | M56: =F56/'Charges Summary'!F$4 -> 0 | N56: =G56/'Charges Summary'!G$4 -> 0 | O56: =H56/'Charges Summary'!H$4 -> 0
A57: ='DNSP Inputs General'!A$54 -> Sodium High Pressure 100 watt | C57: =IF('PL Tariffs - Excl. RR'!C19=0,"",'DNSP Inputs General'!J54*'PL Tariffs - Excl. RR'!C19) -> 146100.0415 | D57: ='DNSP Inputs General'!K54*'PL Tariffs - Excl. RR'!D19 -> 150422.6521 | E57: ='DNSP Inputs General'!L54*'PL Tariffs - Excl. RR'!E19 -> 153820.5953 | F57: ='DNSP Inputs General'!M54*'PL Tariffs - Excl. RR'!F19 -> 156597.6029 | G57: ='DNSP Inputs General'!N54*'PL Tariffs - Excl. RR'!G19 -> 156229.7816 | H57: ='DNSP Inputs General'!O54*'PL Tariffs - Excl. RR'!H19 -> 157438.8111 | J57: 146100.0415 | K57: =D57/'Charges Summary'!D$4 -> 147007.5494 | L57: =E57/'Charges Summary'!E$4 -> 146915.3861 | M57: =F57/'Charges Summary'!F$4 -> 146172.037 | N57: =G57/'Charges Summary'!G$4 -> 142517.8991 | O57: =H57/'Charges Summary'!H$4 -> 140360.1372
A58: ='DNSP Inputs General'!A$55 -> Sodium High Pressure 400 watt | C58: =IF('PL Tariffs - Excl. RR'!C20=0,"",'DNSP Inputs General'!J55*'PL Tariffs - Excl. RR'!C20) -> 35988.48 | D58: ='DNSP Inputs General'!K55*'PL Tariffs - Excl. RR'!D20 -> 37088.95744 | E58: ='DNSP Inputs General'!L55*'PL Tariffs - Excl. RR'!E20 -> 38474.32188 | F58: ='DNSP Inputs General'!M55*'PL Tariffs - Excl. RR'!F20 -> 39736.11572 | G58: ='DNSP Inputs General'!N55*'PL Tariffs - Excl. RR'!G20 -> 40221.5061 | H58: ='DNSP Inputs General'!O55*'PL Tariffs - Excl. RR'!H20 -> 41121.41013 | J58: 35988.48 | K58: =D58/'Charges Summary'!D$4 -> 36246.91273 | L58: =E58/'Charges Summary'!E$4 -> 36747.15887 | M58: =F58/'Charges Summary'!F$4 -> 37090.66341 | N58: =G58/'Charges Summary'!G$4 -> 36691.36889 | O58: =H58/'Charges Summary'!H$4 -> 36660.63487
A59: ='DNSP Inputs General'!A$56 -> Metal Halide 70 watt | C59: =IF('PL Tariffs - Excl. RR'!C21=0,"",'DNSP Inputs General'!J56*'PL Tariffs - Excl. RR'!C21) -> 1505.76 | D59: ='DNSP Inputs General'!K56*'PL Tariffs - Excl. RR'!D21 -> 1622.634587 | E59: ='DNSP Inputs General'!L56*'PL Tariffs - Excl. RR'!E21 -> 1658.37344 | F59: ='DNSP Inputs General'!M56*'PL Tariffs - Excl. RR'!F21 -> 1714.253221 | G59: ='DNSP Inputs General'!N56*'PL Tariffs - Excl. RR'!G21 -> 1740.500199 | H59: ='DNSP Inputs General'!O56*'PL Tariffs - Excl. RR'!H21 -> 1781.238344 | J59: 1505.76 | K59: =D59/'Charges Summary'!D$4 -> 1585.795297 | L59: =E59/'Charges Summary'!E$4 -> 1583.926871 | M59: =F59/'Charges Summary'!F$4 -> 1600.125933 | N59: =G59/'Charges Summary'!G$4 -> 1587.741013 | O59: =H59/'Charges Summary'!H$4 -> 1588.01287
A60: ='DNSP Inputs General'!A$57 -> Metal Halide 150 watt | C60: =IF('PL Tariffs - Excl. RR'!C22=0,"",'DNSP Inputs General'!J57*'PL Tariffs - Excl. RR'!C22) -> 6706.26 | D60: ='DNSP Inputs General'!K57*'PL Tariffs - Excl. RR'!D22 -> 7005.525569 | E60: ='DNSP Inputs General'!L57*'PL Tariffs - Excl. RR'!E22 -> 7268.441075 | F60: ='DNSP Inputs General'!M57*'PL Tariffs - Excl. RR'!F22 -> 7507.774175 | G60: ='DNSP Inputs General'!N57*'PL Tariffs - Excl. RR'!G22 -> 7599.573545 | H60: ='DNSP Inputs General'!O57*'PL Tariffs - Excl. RR'!H22 -> 7770.277037 | J60: 6706.26 | K60: =D60/'Charges Summary'!D$4 -> 6846.476456 | L60: =E60/'Charges Summary'!E$4 -> 6942.151178 | M60: =F60/'Charges Summary'!F$4 -> 7007.940254 | N60: =G60/'Charges Summary'!G$4 -> 6932.578697 | O60: =H60/'Charges Summary'!H$4 -> 6927.371614
A61: ='DNSP Inputs General'!A$58 -> Metal Halide 250 watt | C61: =IF('PL Tariffs - Excl. RR'!C23=0,"",'DNSP Inputs General'!J58*'PL Tariffs - Excl. RR'!C23) -> 14544 | D61: ='DNSP Inputs General'!K58*'PL Tariffs - Excl. RR'!D23 -> 14988.95837 | E61: ='DNSP Inputs General'!L58*'PL Tariffs - Excl. RR'!E23 -> 15548.83309 | F61: ='DNSP Inputs General'!M58*'PL Tariffs - Excl. RR'!F23 -> 16058.76857 | G61: ='DNSP Inputs General'!N58*'PL Tariffs - Excl. RR'!G23 -> 16254.93198 | H61: ='DNSP Inputs General'!O58*'PL Tariffs - Excl. RR'!H23 -> 16618.615 | J61: 14544 | K61: =D61/'Charges Summary'!D$4 -> 14648.65834 | L61: =E61/'Charges Summary'!E$4 -> 14850.82548 | M61: =F61/'Charges Summary'!F$4 -> 14989.64781 | N61: =G61/'Charges Summary'!G$4 -> 14828.27878 | O61: =H61/'Charges Summary'!H$4 -> 14815.85808
A62: ='DNSP Inputs General'!A$59 -> Incandescent 100 watt | C62: =IF('PL Tariffs - Excl. RR'!C24=0,"",'DNSP Inputs General'!J59*'PL Tariffs - Excl. RR'!C24) -> 0 | D62: ='DNSP Inputs General'!K59*'PL Tariffs - Excl. RR'!D24 -> 0 | E62: ='DNSP Inputs General'!L59*'PL Tariffs - Excl. RR'!E24 -> 0 | F62: ='DNSP Inputs General'!M59*'PL Tariffs - Excl. RR'!F24 -> 0 | G62: ='DNSP Inputs General'!N59*'PL Tariffs - Excl. RR'!G24 -> 0 | H62: ='DNSP Inputs General'!O59*'PL Tariffs - Excl. RR'!H24 -> 0 | J62: 0 | K62: =D62/'Charges Summary'!D$4 -> 0 | L62: =E62/'Charges Summary'!E$4 -> 0 | M62: =F62/'Charges Summary'!F$4 -> 0 | N62: =G62/'Charges Summary'!G$4 -> 0 | O62: =H62/'Charges Summary'!H$4 -> 0
A63: ='DNSP Inputs General'!A$60 -> Incandescent 150 watt | C63: =IF('PL Tariffs - Excl. RR'!C25=0,"",'DNSP Inputs General'!J60*'PL Tariffs - Excl. RR'!C25) -> 0 | D63: ='DNSP Inputs General'!K60*'PL Tariffs - Excl. RR'!D25 -> 0 | E63: ='DNSP Inputs General'!L60*'PL Tariffs - Excl. RR'!E25 -> 0 | F63: ='DNSP Inputs General'!M60*'PL Tariffs - Excl. RR'!F25 -> 0 | G63: ='DNSP Inputs General'!N60*'PL Tariffs - Excl. RR'!G25 -> 0 | H63: ='DNSP Inputs General'!O60*'PL Tariffs - Excl. RR'!H25 -> 0 | J63: 0 | K63: =D63/'Charges Summary'!D$4 -> 0 | L63: =E63/'Charges Summary'!E$4 -> 0 | M63: =F63/'Charges Summary'!F$4 -> 0 | N63: =G63/'Charges Summary'!G$4 -> 0 | O63: =H63/'Charges Summary'!H$4 -> 0
A64: ='DNSP Inputs General'!A$61 -> Sodium High Pressure 250 watt (24 hrs) | C64: =IF('PL Tariffs - Excl. RR'!C26=0,"",'DNSP Inputs General'!J61*'PL Tariffs - Excl. RR'!C26) -> 0 | D64: ='DNSP Inputs General'!K61*'PL Tariffs - Excl. RR'!D26 -> 0 | E64: ='DNSP Inputs General'!L61*'PL Tariffs - Excl. RR'!E26 -> 0 | F64: ='DNSP Inputs General'!M61*'PL Tariffs - Excl. RR'!F26 -> 0 | G64: ='DNSP Inputs General'!N61*'PL Tariffs - Excl. RR'!G26 -> 0 | H64: ='DNSP Inputs General'!O61*'PL Tariffs - Excl. RR'!H26 -> 0 | J64: 0 | K64: =D64/'Charges Summary'!D$4 -> 0 | L64: =E64/'Charges Summary'!E$4 -> 0 | M64: =F64/'Charges Summary'!F$4 -> 0 | N64: =G64/'Charges Summary'!G$4 -> 0 | O64: =H64/'Charges Summary'!H$4 -> 0
A65: ='DNSP Inputs General'!A$62 -> Metal Halide 100 watt | C65: =IF('PL Tariffs - Excl. RR'!C27=0,"",'DNSP Inputs General'!J62*'PL Tariffs - Excl. RR'!C27) -> 0 | D65: ='DNSP Inputs General'!K62*'PL Tariffs - Excl. RR'!D27 -> 0 | E65: ='DNSP Inputs General'!L62*'PL Tariffs - Excl. RR'!E27 -> 0 | F65: ='DNSP Inputs General'!M62*'PL Tariffs - Excl. RR'!F27 -> 0 | G65: ='DNSP Inputs General'!N62*'PL Tariffs - Excl. RR'!G27 -> 0 | H65: ='DNSP Inputs General'!O62*'PL Tariffs - Excl. RR'!H27 -> 0 | J65: 0 | K65: =D65/'Charges Summary'!D$4 -> 0 | L65: =E65/'Charges Summary'!E$4 -> 0 | M65: =F65/'Charges Summary'!F$4 -> 0 | N65: =G65/'Charges Summary'!G$4 -> 0 | O65: =H65/'Charges Summary'!H$4 -> 0
A68: ='DNSP Inputs General'!A$67 -> Energy Efficient Lights
A69: ='DNSP Inputs General'!A$68 -> T5 2X14W | C69: =IF('PL Tariffs - Excl. RR'!C31=0,"",'DNSP Inputs General'!J68*'PL Tariffs - Excl. RR'!C31) -> 1037929.839 | D69: ='DNSP Inputs General'!K68*'PL Tariffs - Excl. RR'!D31 -> 1183957.227 | E69: ='DNSP Inputs General'!L68*'PL Tariffs - Excl. RR'!E31 -> 1274271.719 | F69: ='DNSP Inputs General'!M68*'PL Tariffs - Excl. RR'!F31 -> 1357960.33 | G69: ='DNSP Inputs General'!N68*'PL Tariffs - Excl. RR'!G31 -> 1415195.719 | H69: ='DNSP Inputs General'!O68*'PL Tariffs - Excl. RR'!H31 -> 1486389.118 | J69: =C69 -> 1037929.839 | K69: =D69/'Charges Summary'!D$4 -> 1157077.395 | L69: =E69/'Charges Summary'!E$4 -> 1217067.983 | M69: =F69/'Charges Summary'!F$4 -> 1267553.423 | N69: =G69/'Charges Summary'!G$4 -> 1290987.664 | O69: =H69/'Charges Summary'!H$4 -> 1325148.349
A70: ='DNSP Inputs General'!A$69 -> T5 (2x24W) | C70: =IF('PL Tariffs - Excl. RR'!C32=0,"",'DNSP Inputs General'!J69*'PL Tariffs - Excl. RR'!C32) ->  | D70: ='DNSP Inputs General'!K69*'PL Tariffs - Excl. RR'!D32 -> 12655.47935 | E70: ='DNSP Inputs General'!L69*'PL Tariffs - Excl. RR'!E32 -> 13437.58759 | F70: ='DNSP Inputs General'!M69*'PL Tariffs - Excl. RR'!F32 -> 14129.98365 | G70: ='DNSP Inputs General'!N69*'PL Tariffs - Excl. RR'!G32 -> 14532.58787 | H70: ='DNSP Inputs General'!O69*'PL Tariffs - Excl. RR'!H32 -> 15066.25842 | J70: =C70 ->  | K70: =D70/'Charges Summary'!D$4 -> 12368.15719 | L70: =E70/'Charges Summary'!E$4 -> 12834.35658 | M70: =F70/'Charges Summary'!F$4 -> 13189.27274 | N70: =G70/'Charges Summary'!G$4 -> 13257.10035 | O70: =H70/'Charges Summary'!H$4 -> 13431.8983
A71: ='DNSP Inputs General'!A$70 -> LED 18W | C71: =IF('PL Tariffs - Excl. RR'!C33=0,"",'DNSP Inputs General'!J70*'PL Tariffs - Excl. RR'!C33) ->  | D71: ='DNSP Inputs General'!K70*'PL Tariffs - Excl. RR'!D33 -> 9030.768041 | E71: ='DNSP Inputs General'!L70*'PL Tariffs - Excl. RR'!E33 -> 14764.8571 | F71: ='DNSP Inputs General'!M70*'PL Tariffs - Excl. RR'!F33 -> 21217.93437 | G71: ='DNSP Inputs General'!N70*'PL Tariffs - Excl. RR'!G33 -> 27565.08414 | H71: ='DNSP Inputs General'!O70*'PL Tariffs - Excl. RR'!H33 -> 34442.43709 | K71: =D71/'Charges Summary'!D$4 -> 8825.739077 | L71: =E71/'Charges Summary'!E$4 -> 14102.04321 | M71: =F71/'Charges Summary'!F$4 -> 19805.33949 | N71: =G71/'Charges Summary'!G$4 -> 25145.76824 | O71: =H71/'Charges Summary'!H$4 -> 30706.18459
A72: ='DNSP Inputs General'!A$71 -> Compact Fluoro 32W | C72: =IF('PL Tariffs - Excl. RR'!C34=0,"",'DNSP Inputs General'!J71*'PL Tariffs - Excl. RR'!C34) ->  | D72: ='DNSP Inputs General'!K71*'PL Tariffs - Excl. RR'!D34 -> 232.8460208 | E72: ='DNSP Inputs General'!L71*'PL Tariffs - Excl. RR'!E34 -> 247.2358978 | F72: ='DNSP Inputs General'!M71*'PL Tariffs - Excl. RR'!F34 -> 259.9751757 | G72: ='DNSP Inputs General'!N71*'PL Tariffs - Excl. RR'!G34 -> 267.3826225 | H72: ='DNSP Inputs General'!O71*'PL Tariffs - Excl. RR'!H34 -> 277.2015365 | K72: =D72/'Charges Summary'!D$4 -> 227.559629 | L72: =E72/'Charges Summary'!E$4 -> 236.1371526 | M72: =F72/'Charges Summary'!F$4 -> 242.6671949 | N72: =G72/'Charges Summary'!G$4 -> 243.9151436 | O72: =H72/'Charges Summary'!H$4 -> 247.1312215
A73: ='DNSP Inputs General'!A$72 -> Compact Fluoro 42W | C73: =IF('PL Tariffs - Excl. RR'!C35=0,"",'DNSP Inputs General'!J72*'PL Tariffs - Excl. RR'!C35) ->  | D73: ='DNSP Inputs General'!K72*'PL Tariffs - Excl. RR'!D35 -> 2232.105168 | E73: ='DNSP Inputs General'!L72*'PL Tariffs - Excl. RR'!E35 -> 2370.049199 | F73: ='DNSP Inputs General'!M72*'PL Tariffs - Excl. RR'!F35 -> 2492.170281 | G73: ='DNSP Inputs General'!N72*'PL Tariffs - Excl. RR'!G35 -> 2563.179441 | H73: ='DNSP Inputs General'!O72*'PL Tariffs - Excl. RR'!H35 -> 2657.305372 | J73: =C73 ->  | K73: =D73/'Charges Summary'!D$4 -> 2181.428834 | L73: =E73/'Charges Summary'!E$4 -> 2263.654567 | M73: =F73/'Charges Summary'!F$4 -> 2326.252765 | N73: =G73/'Charges Summary'!G$4 -> 2338.215833 | O73: =H73/'Charges Summary'!H$4 -> 2369.045752
A75: Total Revenue | C75: =IF(SUM(C44:C73)=0,"",SUM(C44:C73)) -> 3831744.866 | D75: =SUM(D44:D73) -> 4145283.68 | E75: =SUM(E44:E73) -> 4347321.785 | F75: =SUM(F44:F73) -> 4545669.871 | G75: =SUM(G44:G73) -> 4657515.194 | H75: =SUM(H44:H73) -> 4815995.358 | J75: =IF(SUM(J44:J73)=0,"",SUM(J44:J73)) -> 3831744.866 | K75: =SUM(K44:K73) -> 4051171.727 | L75: =SUM(L44:L73) -> 4152164.782 | M75: =SUM(M44:M73) -> 4243039.565 | N75: =SUM(N44:N73) -> 4248737.172 | O75: =SUM(O44:O73) -> 4293565.002
A78: Public Lighting - O & M | D78: Forecast O & M - Nominal | K78: Forecast O & M - Real 2015 $
A79: Excluding Revenue Recovery | D79: =D$2 -> 2016 | E79: 2017 | F79: 2018 | G79: 2019 | H79: 2020 | K79: =K$2 -> 2016 | L79: 2017 | M79: 2018 | N79: 2019 | O79: 2020
A81: Unit cost
A82: ='DNSP Inputs General'!A$41 -> Mercury Vapour 80 watt | D82: =SUM('Charges Summary'!D25,'Charges Summary'!D8) -> 34.6612347 | E82: =SUM('Charges Summary'!E25,'Charges Summary'!E8) -> 35.12888699 | F82: =SUM('Charges Summary'!F25,'Charges Summary'!F8) -> 36.22553931 | G82: =SUM('Charges Summary'!G25,'Charges Summary'!G8) -> 36.39295366 | H82: =SUM('Charges Summary'!H25,'Charges Summary'!H8) -> 37.0818306
A83: ='DNSP Inputs General'!A$42 -> Sodium High Pressure 150 watt | D83: =SUM('Charges Summary'!D49,'Charges Summary'!D8) -> 75.43562702 | E83: =SUM('Charges Summary'!E49,'Charges Summary'!E8) -> 78.29851662 | F83: =SUM('Charges Summary'!F49,'Charges Summary'!F8) -> 80.81239552 | G83: =SUM('Charges Summary'!G49,'Charges Summary'!G8) -> 81.34644272 | H83: =SUM('Charges Summary'!H49,'Charges Summary'!H8) -> 83.01344678
A84: ='DNSP Inputs General'!A$43 -> Sodium High Pressure 250 watt | D84: =SUM('Charges Summary'!D65,'Charges Summary'!D8) -> 75.70633227 | E84: =SUM('Charges Summary'!E65,'Charges Summary'!E8) -> 78.58272186 | F84: =SUM('Charges Summary'!F65,'Charges Summary'!F8) -> 81.10813273 | G84: =SUM('Charges Summary'!G65,'Charges Summary'!G8) -> 81.64159254 | H84: =SUM('Charges Summary'!H65,'Charges Summary'!H8) -> 83.3149404
A86: ='DNSP Inputs General'!A$40 -> Existing Lights
A87: ='DNSP Inputs General'!A$41 -> Mercury Vapour 80 watt | D87: =D82*'DNSP Inputs General'!K41 -> 465254.5265 | E87: =E82*'DNSP Inputs General'!L41 -> 464741.7219 | F87: =F82*'DNSP Inputs General'!M41 -> 472348.812 | G87: =G82*'DNSP Inputs General'!N41 -> 467698.489 | H87: =H82*'DNSP Inputs General'!O41 -> 469689.1445 | K87: =D87/'Charges Summary'!D$4 -> 454691.6759 | L87: =E87/'Charges Summary'!E$4 -> 443878.8536 | M87: =F87/'Charges Summary'!F$4 -> 440901.9473 | N87: =G87/'Charges Summary'!G$4 -> 426649.8064 | O87: =H87/'Charges Summary'!H$4 -> 418738.1263
A88: ='DNSP Inputs General'!A$42 -> Sodium High Pressure 150 watt | D88: =D83*'DNSP Inputs General'!K42 -> 1184883.054 | E88: =E83*'DNSP Inputs General'!L42 -> 1246517.902 | F88: =F83*'DNSP Inputs General'!M42 -> 1303534.82 | G88: =G83*'DNSP Inputs General'!N42 -> 1329080.203 | H88: =H83*'DNSP Inputs General'!O42 -> 1373440.293 | K88: =D88/'Charges Summary'!D$4 -> 1157982.203 | L88: =E88/'Charges Summary'!E$4 -> 1190560.071 | M88: =F88/'Charges Summary'!F$4 -> 1216751.32 | N88: =G88/'Charges Summary'!G$4 -> 1212430.283 | O88: =H88/'Charges Summary'!H$4 -> 1224452.005
A89: ='DNSP Inputs General'!A$43 -> Sodium High Pressure 250 watt | D89: =D84*'DNSP Inputs General'!K43 -> 359030.1637 | E89: =E84*'DNSP Inputs General'!L43 -> 373414.386 | F89: =F84*'DNSP Inputs General'!M43 -> 386144.224 | G89: =G84*'DNSP Inputs General'!N43 -> 389382.1213 | H89: =H84*'DNSP Inputs General'!O43 -> 398040.4946 | K89: =D89/'Charges Summary'!D$4 -> 350878.9653 | L89: =E89/'Charges Summary'!E$4 -> 356651.3222 | M89: =F89/'Charges Summary'!F$4 -> 360436.474 | N89: =G89/'Charges Summary'!G$4 -> 355207.0631 | O89: =H89/'Charges Summary'!H$4 -> 354861.7907
A90: ='DNSP Inputs General'!A$44 -> 55W Ind | D90: =IF('DNSP Inputs General'!$B44='DNSP Inputs General'!$A$41,D$82,IF('DNSP Inputs General'!$B44='DNSP Inputs General'!$A$42,D$83,D$84))*'DNSP Inputs General'!$D44*'DNSP Inputs General'!K44 -> 0 | E90: =IF('DNSP Inputs General'!$B44='DNSP Inputs General'!$A$41,E$82,IF('DNSP Inputs General'!$B44='DNSP Inputs General'!$A$42,E$83,E$84))*'DNSP Inputs General'!$D44*'DNSP Inputs General'!L44 -> 0 | F90: =IF('DNSP Inputs General'!$B44='DNSP Inputs General'!$A$41,F$82,IF('DNSP Inputs General'!$B44='DNSP Inputs General'!$A$42,F$83,F$84))*'DNSP Inputs General'!$D44*'DNSP Inputs General'!M44 -> 0 | G90: =IF('DNSP Inputs General'!$B44='DNSP Inputs General'!$A$41,G$82,IF('DNSP Inputs General'!$B44='DNSP Inputs General'!$A$42,G$83,G$84))*'DNSP Inputs General'!$D44*'DNSP Inputs General'!N44 -> 0 | H90: =IF('DNSP Inputs General'!$B44='DNSP Inputs General'!$A$41,H$82,IF('DNSP Inputs General'!$B44='DNSP Inputs General'!$A$42,H$83,H$84))*'DNSP Inputs General'!$D44*'DNSP Inputs General'!O44 -> 0 | K90: =D90/'Charges Summary'!D$4 -> 0 | L90: =E90/'Charges Summary'!E$4 -> 0 | M90: =F90/'Charges Summary'!F$4 -> 0 | N90: =G90/'Charges Summary'!G$4 -> 0 | O90: =H90/'Charges Summary'!H$4 -> 0
A91: ='DNSP Inputs General'!A$45 -> Fluorescent 20 watt | D91: =IF('DNSP Inputs General'!$B45='DNSP Inputs General'!$A$41,D$82,IF('DNSP Inputs General'!$B45='DNSP Inputs General'!$A$42,D$83,D$84))*'DNSP Inputs General'!$D45*'DNSP Inputs General'!K45 -> 0 | E91: =IF('DNSP Inputs General'!$B45='DNSP Inputs General'!$A$41,E$82,IF('DNSP Inputs General'!$B45='DNSP Inputs General'!$A$42,E$83,E$84))*'DNSP Inputs General'!$D45*'DNSP Inputs General'!L45 -> 0 | F91: =IF('DNSP Inputs General'!$B45='DNSP Inputs General'!$A$41,F$82,IF('DNSP Inputs General'!$B45='DNSP Inputs General'!$A$42,F$83,F$84))*'DNSP Inputs General'!$D45*'DNSP Inputs General'!M45 -> 0 | G91: =IF('DNSP Inputs General'!$B45='DNSP Inputs General'!$A$41,G$82,IF('DNSP Inputs General'!$B45='DNSP Inputs General'!$A$42,G$83,G$84))*'DNSP Inputs General'!$D45*'DNSP Inputs General'!N45 -> 0 | H91: =IF('DNSP Inputs General'!$B45='DNSP Inputs General'!$A$41,H$82,IF('DNSP Inputs General'!$B45='DNSP Inputs General'!$A$42,H$83,H$84))*'DNSP Inputs General'!$D45*'DNSP Inputs General'!O45 -> 0 | K91: =D91/'Charges Summary'!D$4 -> 0 | L91: =E91/'Charges Summary'!E$4 -> 0 | M91: =F91/'Charges Summary'!F$4 -> 0 | N91: =G91/'Charges Summary'!G$4 -> 0 | O91: =H91/'Charges Summary'!H$4 -> 0
A92: ='DNSP Inputs General'!A$46 -> Fluorescent 40 watt | D92: =IF('DNSP Inputs General'!$B46='DNSP Inputs General'!$A$41,D$82,IF('DNSP Inputs General'!$B46='DNSP Inputs General'!$A$42,D$83,D$84))*'DNSP Inputs General'!$D46*'DNSP Inputs General'!K46 -> 0 | E92: =IF('DNSP Inputs General'!$B46='DNSP Inputs General'!$A$41,E$82,IF('DNSP Inputs General'!$B46='DNSP Inputs General'!$A$42,E$83,E$84))*'DNSP Inputs General'!$D46*'DNSP Inputs General'!L46 -> 0 | F92: =IF('DNSP Inputs General'!$B46='DNSP Inputs General'!$A$41,F$82,IF('DNSP Inputs General'!$B46='DNSP Inputs General'!$A$42,F$83,F$84))*'DNSP Inputs General'!$D46*'DNSP Inputs General'!M46 -> 0 | G92: =IF('DNSP Inputs General'!$B46='DNSP Inputs General'!$A$41,G$82,IF('DNSP Inputs General'!$B46='DNSP Inputs General'!$A$42,G$83,G$84))*'DNSP Inputs General'!$D46*'DNSP Inputs General'!N46 -> 0 | H92: =IF('DNSP Inputs General'!$B46='DNSP Inputs General'!$A$41,H$82,IF('DNSP Inputs General'!$B46='DNSP Inputs General'!$A$42,H$83,H$84))*'DNSP Inputs General'!$D46*'DNSP Inputs General'!O46 -> 0 | K92: =D92/'Charges Summary'!D$4 -> 0 | L92: =E92/'Charges Summary'!E$4 -> 0 | M92: =F92/'Charges Summary'!F$4 -> 0 | N92: =G92/'Charges Summary'!G$4 -> 0 | O92: =H92/'Charges Summary'!H$4 -> 0
A93: ='DNSP Inputs General'!A$47 -> Fluorescent 80 watt | D93: =IF('DNSP Inputs General'!$B47='DNSP Inputs General'!$A$41,D$82,IF('DNSP Inputs General'!$B47='DNSP Inputs General'!$A$42,D$83,D$84))*'DNSP Inputs General'!$D47*'DNSP Inputs General'!K47 -> 0 | E93: =IF('DNSP Inputs General'!$B47='DNSP Inputs General'!$A$41,E$82,IF('DNSP Inputs General'!$B47='DNSP Inputs General'!$A$42,E$83,E$84))*'DNSP Inputs General'!$D47*'DNSP Inputs General'!L47 -> 0 | F93: =IF('DNSP Inputs General'!$B47='DNSP Inputs General'!$A$41,F$82,IF('DNSP Inputs General'!$B47='DNSP Inputs General'!$A$42,F$83,F$84))*'DNSP Inputs General'!$D47*'DNSP Inputs General'!M47 -> 0 | G93: =IF('DNSP Inputs General'!$B47='DNSP Inputs General'!$A$41,G$82,IF('DNSP Inputs General'!$B47='DNSP Inputs General'!$A$42,G$83,G$84))*'DNSP Inputs General'!$D47*'DNSP Inputs General'!N47 -> 0 | H93: =IF('DNSP Inputs General'!$B47='DNSP Inputs General'!$A$41,H$82,IF('DNSP Inputs General'!$B47='DNSP Inputs General'!$A$42,H$83,H$84))*'DNSP Inputs General'!$D47*'DNSP Inputs General'!O47 -> 0 | K93: =D93/'Charges Summary'!D$4 -> 0 | L93: =E93/'Charges Summary'!E$4 -> 0 | M93: =F93/'Charges Summary'!F$4 -> 0 | N93: =G93/'Charges Summary'!G$4 -> 0 | O93: =H93/'Charges Summary'!H$4 -> 0
A94: ='DNSP Inputs General'!A$48 -> Mercury Vapour 50 watt | D94: =IF('DNSP Inputs General'!$B48='DNSP Inputs General'!$A$41,D$82,IF('DNSP Inputs General'!$B48='DNSP Inputs General'!$A$42,D$83,D$84))*'DNSP Inputs General'!$D48*'DNSP Inputs General'!K48 -> 0 | E94: =IF('DNSP Inputs General'!$B48='DNSP Inputs General'!$A$41,E$82,IF('DNSP Inputs General'!$B48='DNSP Inputs General'!$A$42,E$83,E$84))*'DNSP Inputs General'!$D48*'DNSP Inputs General'!L48 -> 0 | F94: =IF('DNSP Inputs General'!$B48='DNSP Inputs General'!$A$41,F$82,IF('DNSP Inputs General'!$B48='DNSP Inputs General'!$A$42,F$83,F$84))*'DNSP Inputs General'!$D48*'DNSP Inputs General'!M48 -> 0 | G94: =IF('DNSP Inputs General'!$B48='DNSP Inputs General'!$A$41,G$82,IF('DNSP Inputs General'!$B48='DNSP Inputs General'!$A$42,G$83,G$84))*'DNSP Inputs General'!$D48*'DNSP Inputs General'!N48 -> 0 | H94: =IF('DNSP Inputs General'!$B48='DNSP Inputs General'!$A$41,H$82,IF('DNSP Inputs General'!$B48='DNSP Inputs General'!$A$42,H$83,H$84))*'DNSP Inputs General'!$D48*'DNSP Inputs General'!O48 -> 0 | K94: =D94/'Charges Summary'!D$4 -> 0 | L94: =E94/'Charges Summary'!E$4 -> 0 | M94: =F94/'Charges Summary'!F$4 -> 0 | N94: =G94/'Charges Summary'!G$4 -> 0 | O94: =H94/'Charges Summary'!H$4 -> 0
A95: ='DNSP Inputs General'!A$49 -> Mercury Vapour 125 watt | D95: =IF('DNSP Inputs General'!$B49='DNSP Inputs General'!$A$41,D$82,IF('DNSP Inputs General'!$B49='DNSP Inputs General'!$A$42,D$83,D$84))*'DNSP Inputs General'!$D49*'DNSP Inputs General'!K49 -> 18065.73427 | E95: =IF('DNSP Inputs General'!$B49='DNSP Inputs General'!$A$41,E$82,IF('DNSP Inputs General'!$B49='DNSP Inputs General'!$A$42,E$83,E$84))*'DNSP Inputs General'!$D49*'DNSP Inputs General'!L49 -> 18045.82218 | F95: =IF('DNSP Inputs General'!$B49='DNSP Inputs General'!$A$41,F$82,IF('DNSP Inputs General'!$B49='DNSP Inputs General'!$A$42,F$83,F$84))*'DNSP Inputs General'!$D49*'DNSP Inputs General'!M49 -> 18341.20387 | G95: =IF('DNSP Inputs General'!$B49='DNSP Inputs General'!$A$41,G$82,IF('DNSP Inputs General'!$B49='DNSP Inputs General'!$A$42,G$83,G$84))*'DNSP Inputs General'!$D49*'DNSP Inputs General'!N49 -> 18160.63282 | H95: =IF('DNSP Inputs General'!$B49='DNSP Inputs General'!$A$41,H$82,IF('DNSP Inputs General'!$B49='DNSP Inputs General'!$A$42,H$83,H$84))*'DNSP Inputs General'!$D49*'DNSP Inputs General'!O49 -> 18237.92955 | K95: =D95/'Charges Summary'!D$4 -> 17655.58103 | L95: =E95/'Charges Summary'!E$4 -> 17235.72144 | M95: =F95/'Charges Summary'!F$4 -> 17120.1288 | N95: =G95/'Charges Summary'!G$4 -> 16566.72121 | O95: =H95/'Charges Summary'!H$4 -> 16259.51235
A96: ='DNSP Inputs General'!A$50 -> Mercury Vapour 250 watt | D96: =IF('DNSP Inputs General'!$B50='DNSP Inputs General'!$A$41,D$82,IF('DNSP Inputs General'!$B50='DNSP Inputs General'!$A$42,D$83,D$84))*'DNSP Inputs General'!$D50*'DNSP Inputs General'!K50 -> 8627.789055 | E96: =IF('DNSP Inputs General'!$B50='DNSP Inputs General'!$A$41,E$82,IF('DNSP Inputs General'!$B50='DNSP Inputs General'!$A$42,E$83,E$84))*'DNSP Inputs General'!$D50*'DNSP Inputs General'!L50 -> 7642.731743 | F96: =IF('DNSP Inputs General'!$B50='DNSP Inputs General'!$A$41,F$82,IF('DNSP Inputs General'!$B50='DNSP Inputs General'!$A$42,F$83,F$84))*'DNSP Inputs General'!$D50*'DNSP Inputs General'!M50 -> 6731.939267 | G96: =IF('DNSP Inputs General'!$B50='DNSP Inputs General'!$A$41,G$82,IF('DNSP Inputs General'!$B50='DNSP Inputs General'!$A$42,G$83,G$84))*'DNSP Inputs General'!$D50*'DNSP Inputs General'!N50 -> 5782.844188 | H96: =IF('DNSP Inputs General'!$B50='DNSP Inputs General'!$A$41,H$82,IF('DNSP Inputs General'!$B50='DNSP Inputs General'!$A$42,H$83,H$84))*'DNSP Inputs General'!$D50*'DNSP Inputs General'!O50 -> 5036.248469 | K96: =D96/'Charges Summary'!D$4 -> 8431.909077 | L96: =E96/'Charges Summary'!E$4 -> 7299.639444 | M96: =F96/'Charges Summary'!F$4 -> 6283.756953 | N96: =G96/'Charges Summary'!G$4 -> 5275.298961 | O96: =H96/'Charges Summary'!H$4 -> 4489.925458
A97: ='DNSP Inputs General'!A$51 -> Mercury Vapour 400 watt | D97: =IF('DNSP Inputs General'!$B51='DNSP Inputs General'!$A$41,D$82,IF('DNSP Inputs General'!$B51='DNSP Inputs General'!$A$42,D$83,D$84))*'DNSP Inputs General'!$D51*'DNSP Inputs General'!K51 -> 15747.03293 | E97: =IF('DNSP Inputs General'!$B51='DNSP Inputs General'!$A$41,E$82,IF('DNSP Inputs General'!$B51='DNSP Inputs General'!$A$42,E$83,E$84))*'DNSP Inputs General'!$D51*'DNSP Inputs General'!L51 -> 15542.65409 | F97: =IF('DNSP Inputs General'!$B51='DNSP Inputs General'!$A$41,F$82,IF('DNSP Inputs General'!$B51='DNSP Inputs General'!$A$42,F$83,F$84))*'DNSP Inputs General'!$D51*'DNSP Inputs General'!M51 -> 15254.3639 | G97: =IF('DNSP Inputs General'!$B51='DNSP Inputs General'!$A$41,G$82,IF('DNSP Inputs General'!$B51='DNSP Inputs General'!$A$42,G$83,G$84))*'DNSP Inputs General'!$D51*'DNSP Inputs General'!N51 -> 14600.66889 | H97: =IF('DNSP Inputs General'!$B51='DNSP Inputs General'!$A$41,H$82,IF('DNSP Inputs General'!$B51='DNSP Inputs General'!$A$42,H$83,H$84))*'DNSP Inputs General'!$D51*'DNSP Inputs General'!O51 -> 14168.23519 | K97: =D97/'Charges Summary'!D$4 -> 15389.52205 | L97: =E97/'Charges Summary'!E$4 -> 14844.92387 | M97: =F97/'Charges Summary'!F$4 -> 14238.79679 | N97: =G97/'Charges Summary'!G$4 -> 13319.20607 | O97: =H97/'Charges Summary'!H$4 -> 12631.29099
A98: ='DNSP Inputs General'!A$52 -> Sodium High Pressure 50 watt | D98: =IF('DNSP Inputs General'!$B52='DNSP Inputs General'!$A$41,D$82,IF('DNSP Inputs General'!$B52='DNSP Inputs General'!$A$42,D$83,D$84))*'DNSP Inputs General'!$D52*'DNSP Inputs General'!K52 -> 0 | E98: =IF('DNSP Inputs General'!$B52='DNSP Inputs General'!$A$41,E$82,IF('DNSP Inputs General'!$B52='DNSP Inputs General'!$A$42,E$83,E$84))*'DNSP Inputs General'!$D52*'DNSP Inputs General'!L52 -> 0 | F98: =IF('DNSP Inputs General'!$B52='DNSP Inputs General'!$A$41,F$82,IF('DNSP Inputs General'!$B52='DNSP Inputs General'!$A$42,F$83,F$84))*'DNSP Inputs General'!$D52*'DNSP Inputs General'!M52 -> 0 | G98: =IF('DNSP Inputs General'!$B52='DNSP Inputs General'!$A$41,G$82,IF('DNSP Inputs General'!$B52='DNSP Inputs General'!$A$42,G$83,G$84))*'DNSP Inputs General'!$D52*'DNSP Inputs General'!N52 -> 0 | H98: =IF('DNSP Inputs General'!$B52='DNSP Inputs General'!$A$41,H$82,IF('DNSP Inputs General'!$B52='DNSP Inputs General'!$A$42,H$83,H$84))*'DNSP Inputs General'!$D52*'DNSP Inputs General'!O52 -> 0 | K98: =D98/'Charges Summary'!D$4 -> 0 | L98: =E98/'Charges Summary'!E$4 -> 0 | M98: =F98/'Charges Summary'!F$4 -> 0 | N98: =G98/'Charges Summary'!G$4 -> 0 | O98: =H98/'Charges Summary'!H$4 -> 0
A99: ='DNSP Inputs General'!A$53 -> Sodium Low Pressure 90 watt | D99: =IF('DNSP Inputs General'!$B53='DNSP Inputs General'!$A$41,D$82,IF('DNSP Inputs General'!$B53='DNSP Inputs General'!$A$42,D$83,D$84))*'DNSP Inputs General'!$D53*'DNSP Inputs General'!K53 -> 0 | E99: =IF('DNSP Inputs General'!$B53='DNSP Inputs General'!$A$41,E$82,IF('DNSP Inputs General'!$B53='DNSP Inputs General'!$A$42,E$83,E$84))*'DNSP Inputs General'!$D53*'DNSP Inputs General'!L53 -> 0 | F99: =IF('DNSP Inputs General'!$B53='DNSP Inputs General'!$A$41,F$82,IF('DNSP Inputs General'!$B53='DNSP Inputs General'!$A$42,F$83,F$84))*'DNSP Inputs General'!$D53*'DNSP Inputs General'!M53 -> 0 | G99: =IF('DNSP Inputs General'!$B53='DNSP Inputs General'!$A$41,G$82,IF('DNSP Inputs General'!$B53='DNSP Inputs General'!$A$42,G$83,G$84))*'DNSP Inputs General'!$D53*'DNSP Inputs General'!N53 -> 0 | H99: =IF('DNSP Inputs General'!$B53='DNSP Inputs General'!$A$41,H$82,IF('DNSP Inputs General'!$B53='DNSP Inputs General'!$A$42,H$83,H$84))*'DNSP Inputs General'!$D53*'DNSP Inputs General'!O53 -> 0 | K99: =D99/'Charges Summary'!D$4 -> 0 | L99: =E99/'Charges Summary'!E$4 -> 0 | M99: =F99/'Charges Summary'!F$4 -> 0 | N99: =G99/'Charges Summary'!G$4 -> 0 | O99: =H99/'Charges Summary'!H$4 -> 0
A100: ='DNSP Inputs General'!A$54 -> Sodium High Pressure 100 watt | D100: =IF('DNSP Inputs General'!$B54='DNSP Inputs General'!$A$41,D$82,IF('DNSP Inputs General'!$B54='DNSP Inputs General'!$A$42,D$83,D$84))*'DNSP Inputs General'!$D54*'DNSP Inputs General'!K54 -> 118663.1678 | E100: =IF('DNSP Inputs General'!$B54='DNSP Inputs General'!$A$41,E$82,IF('DNSP Inputs General'!$B54='DNSP Inputs General'!$A$42,E$83,E$84))*'DNSP Inputs General'!$D54*'DNSP Inputs General'!L54 -> 121393.0051 | F100: =IF('DNSP Inputs General'!$B54='DNSP Inputs General'!$A$41,F$82,IF('DNSP Inputs General'!$B54='DNSP Inputs General'!$A$42,F$83,F$84))*'DNSP Inputs General'!$D54*'DNSP Inputs General'!M54 -> 123486.3073 | G100: =IF('DNSP Inputs General'!$B54='DNSP Inputs General'!$A$41,G$82,IF('DNSP Inputs General'!$B54='DNSP Inputs General'!$A$42,G$83,G$84))*'DNSP Inputs General'!$D54*'DNSP Inputs General'!N54 -> 122512.4102 | H100: =IF('DNSP Inputs General'!$B54='DNSP Inputs General'!$A$41,H$82,IF('DNSP Inputs General'!$B54='DNSP Inputs General'!$A$42,H$83,H$84))*'DNSP Inputs General'!$D54*'DNSP Inputs General'!O54 -> 123222.6825 | K100: =D100/'Charges Summary'!D$4 -> 115969.1127 | L100: =E100/'Charges Summary'!E$4 -> 115943.5131 | M100: =F100/'Charges Summary'!F$4 -> 115265.143 | N100: =G100/'Charges Summary'!G$4 -> 111759.8139 | O100: =H100/'Charges Summary'!H$4 -> 109855.7116
A101: ='DNSP Inputs General'!A$55 -> Sodium High Pressure 400 watt | D101: =IF('DNSP Inputs General'!$B55='DNSP Inputs General'!$A$41,D$82,IF('DNSP Inputs General'!$B55='DNSP Inputs General'!$A$42,D$83,D$84))*'DNSP Inputs General'!$D55*'DNSP Inputs General'!K55 -> 28998.55351 | E101: =IF('DNSP Inputs General'!$B55='DNSP Inputs General'!$A$41,E$82,IF('DNSP Inputs General'!$B55='DNSP Inputs General'!$A$42,E$83,E$84))*'DNSP Inputs General'!$D55*'DNSP Inputs General'!L55 -> 30100.32578 | F101: =IF('DNSP Inputs General'!$B55='DNSP Inputs General'!$A$41,F$82,IF('DNSP Inputs General'!$B55='DNSP Inputs General'!$A$42,F$83,F$84))*'DNSP Inputs General'!$D55*'DNSP Inputs General'!M55 -> 31067.65916 | G101: =IF('DNSP Inputs General'!$B55='DNSP Inputs General'!$A$41,G$82,IF('DNSP Inputs General'!$B55='DNSP Inputs General'!$A$42,G$83,G$84))*'DNSP Inputs General'!$D55*'DNSP Inputs General'!N55 -> 31271.99561 | H101: =IF('DNSP Inputs General'!$B55='DNSP Inputs General'!$A$41,H$82,IF('DNSP Inputs General'!$B55='DNSP Inputs General'!$A$42,H$83,H$84))*'DNSP Inputs General'!$D55*'DNSP Inputs General'!O55 -> 31912.95477 | K101: =D101/'Charges Summary'!D$4 -> 28340.18832 | L101: =E101/'Charges Summary'!E$4 -> 28749.0825 | M101: =F101/'Charges Summary'!F$4 -> 28999.3138 | N101: =G101/'Charges Summary'!G$4 -> 28527.33371 | O101: =H101/'Charges Summary'!H$4 -> 28451.09588
A102: ='DNSP Inputs General'!A$56 -> Metal Halide 70 watt | D102: =IF('DNSP Inputs General'!$B56='DNSP Inputs General'!$A$41,D$82,IF('DNSP Inputs General'!$B56='DNSP Inputs General'!$A$42,D$83,D$84))*'DNSP Inputs General'!$D56*'DNSP Inputs General'!K56 -> 1068.952478 | E102: =IF('DNSP Inputs General'!$B56='DNSP Inputs General'!$A$41,E$82,IF('DNSP Inputs General'!$B56='DNSP Inputs General'!$A$42,E$83,E$84))*'DNSP Inputs General'!$D56*'DNSP Inputs General'!L56 -> 1083.374875 | F102: =IF('DNSP Inputs General'!$B56='DNSP Inputs General'!$A$41,F$82,IF('DNSP Inputs General'!$B56='DNSP Inputs General'!$A$42,F$83,F$84))*'DNSP Inputs General'!$D56*'DNSP Inputs General'!M56 -> 1117.195632 | G102: =IF('DNSP Inputs General'!$B56='DNSP Inputs General'!$A$41,G$82,IF('DNSP Inputs General'!$B56='DNSP Inputs General'!$A$42,G$83,G$84))*'DNSP Inputs General'!$D56*'DNSP Inputs General'!N56 -> 1122.358691 | H102: =IF('DNSP Inputs General'!$B56='DNSP Inputs General'!$A$41,H$82,IF('DNSP Inputs General'!$B56='DNSP Inputs General'!$A$42,H$83,H$84))*'DNSP Inputs General'!$D56*'DNSP Inputs General'!O56 -> 1143.603656 | K102: =D102/'Charges Summary'!D$4 -> 1044.683643 | L102: =E102/'Charges Summary'!E$4 -> 1034.740749 | M102: =F102/'Charges Summary'!F$4 -> 1042.817759 | N102: =G102/'Charges Summary'!G$4 -> 1023.852181 | O102: =H102/'Charges Summary'!H$4 -> 1019.547625
A103: ='DNSP Inputs General'!A$57 -> Metal Halide 150 watt | D103: =IF('DNSP Inputs General'!$B57='DNSP Inputs General'!$A$41,D$82,IF('DNSP Inputs General'!$B57='DNSP Inputs General'!$A$42,D$83,D$84))*'DNSP Inputs General'!$D57*'DNSP Inputs General'!K57 -> 5526.414035 | E103: =IF('DNSP Inputs General'!$B57='DNSP Inputs General'!$A$41,E$82,IF('DNSP Inputs General'!$B57='DNSP Inputs General'!$A$42,E$83,E$84))*'DNSP Inputs General'!$D57*'DNSP Inputs General'!L57 -> 5736.149328 | F103: =IF('DNSP Inputs General'!$B57='DNSP Inputs General'!$A$41,F$82,IF('DNSP Inputs General'!$B57='DNSP Inputs General'!$A$42,F$83,F$84))*'DNSP Inputs General'!$D57*'DNSP Inputs General'!M57 -> 5920.316096 | G103: =IF('DNSP Inputs General'!$B57='DNSP Inputs General'!$A$41,G$82,IF('DNSP Inputs General'!$B57='DNSP Inputs General'!$A$42,G$83,G$84))*'DNSP Inputs General'!$D57*'DNSP Inputs General'!N57 -> 5959.440394 | H103: =IF('DNSP Inputs General'!$B57='DNSP Inputs General'!$A$41,H$82,IF('DNSP Inputs General'!$B57='DNSP Inputs General'!$A$42,H$83,H$84))*'DNSP Inputs General'!$D57*'DNSP Inputs General'!O57 -> 6081.565111 | K103: =D103/'Charges Summary'!D$4 -> 5400.945754 | L103: =E103/'Charges Summary'!E$4 -> 5478.646026 | M103: =F103/'Charges Summary'!F$4 -> 5526.168011 | N103: =G103/'Charges Summary'!G$4 -> 5436.395776 | O103: =H103/'Charges Summary'!H$4 -> 5421.848066
A104: ='DNSP Inputs General'!A$58 -> Metal Halide 250 watt | D104: =IF('DNSP Inputs General'!$B58='DNSP Inputs General'!$A$41,D$82,IF('DNSP Inputs General'!$B58='DNSP Inputs General'!$A$42,D$83,D$84))*'DNSP Inputs General'!$D58*'DNSP Inputs General'!K58 -> 11719.34024 | E104: =IF('DNSP Inputs General'!$B58='DNSP Inputs General'!$A$41,E$82,IF('DNSP Inputs General'!$B58='DNSP Inputs General'!$A$42,E$83,E$84))*'DNSP Inputs General'!$D58*'DNSP Inputs General'!L58 -> 12164.60534 | F104: =IF('DNSP Inputs General'!$B58='DNSP Inputs General'!$A$41,F$82,IF('DNSP Inputs General'!$B58='DNSP Inputs General'!$A$42,F$83,F$84))*'DNSP Inputs General'!$D58*'DNSP Inputs General'!M58 -> 12555.53895 | G104: =IF('DNSP Inputs General'!$B58='DNSP Inputs General'!$A$41,G$82,IF('DNSP Inputs General'!$B58='DNSP Inputs General'!$A$42,G$83,G$84))*'DNSP Inputs General'!$D58*'DNSP Inputs General'!N58 -> 12638.11853 | H104: =IF('DNSP Inputs General'!$B58='DNSP Inputs General'!$A$41,H$82,IF('DNSP Inputs General'!$B58='DNSP Inputs General'!$A$42,H$83,H$84))*'DNSP Inputs General'!$D58*'DNSP Inputs General'!O58 -> 12897.15277 | K104: =D104/'Charges Summary'!D$4 -> 11453.27159 | L104: =E104/'Charges Summary'!E$4 -> 11618.52018 | M104: =F104/'Charges Summary'!F$4 -> 11719.64749 | N104: =G104/'Charges Summary'!G$4 -> 11528.90366 | O104: =H104/'Charges Summary'!H$4 -> 11498.09326
A105: ='DNSP Inputs General'!A$59 -> Incandescent 100 watt | D105: =IF('DNSP Inputs General'!$B59='DNSP Inputs General'!$A$41,D$82,IF('DNSP Inputs General'!$B59='DNSP Inputs General'!$A$42,D$83,D$84))*'DNSP Inputs General'!$D59*'DNSP Inputs General'!K59 -> 0 | E105: =IF('DNSP Inputs General'!$B59='DNSP Inputs General'!$A$41,E$82,IF('DNSP Inputs General'!$B59='DNSP Inputs General'!$A$42,E$83,E$84))*'DNSP Inputs General'!$D59*'DNSP Inputs General'!L59 -> 0 | F105: =IF('DNSP Inputs General'!$B59='DNSP Inputs General'!$A$41,F$82,IF('DNSP Inputs General'!$B59='DNSP Inputs General'!$A$42,F$83,F$84))*'DNSP Inputs General'!$D59*'DNSP Inputs General'!M59 -> 0 | G105: =IF('DNSP Inputs General'!$B59='DNSP Inputs General'!$A$41,G$82,IF('DNSP Inputs General'!$B59='DNSP Inputs General'!$A$42,G$83,G$84))*'DNSP Inputs General'!$D59*'DNSP Inputs General'!N59 -> 0 | H105: =IF('DNSP Inputs General'!$B59='DNSP Inputs General'!$A$41,H$82,IF('DNSP Inputs General'!$B59='DNSP Inputs General'!$A$42,H$83,H$84))*'DNSP Inputs General'!$D59*'DNSP Inputs General'!O59 -> 0 | K105: =D105/'Charges Summary'!D$4 -> 0 | L105: =E105/'Charges Summary'!E$4 -> 0 | M105: =F105/'Charges Summary'!F$4 -> 0 | N105: =G105/'Charges Summary'!G$4 -> 0 | O105: =H105/'Charges Summary'!H$4 -> 0
A106: ='DNSP Inputs General'!A$60 -> Incandescent 150 watt | D106: =IF('DNSP Inputs General'!$B60='DNSP Inputs General'!$A$41,D$82,IF('DNSP Inputs General'!$B60='DNSP Inputs General'!$A$42,D$83,D$84))*'DNSP Inputs General'!$D60*'DNSP Inputs General'!K60 -> 0 | E106: =IF('DNSP Inputs General'!$B60='DNSP Inputs General'!$A$41,E$82,IF('DNSP Inputs General'!$B60='DNSP Inputs General'!$A$42,E$83,E$84))*'DNSP Inputs General'!$D60*'DNSP Inputs General'!L60 -> 0 | F106: =IF('DNSP Inputs General'!$B60='DNSP Inputs General'!$A$41,F$82,IF('DNSP Inputs General'!$B60='DNSP Inputs General'!$A$42,F$83,F$84))*'DNSP Inputs General'!$D60*'DNSP Inputs General'!M60 -> 0 | G106: =IF('DNSP Inputs General'!$B60='DNSP Inputs General'!$A$41,G$82,IF('DNSP Inputs General'!$B60='DNSP Inputs General'!$A$42,G$83,G$84))*'DNSP Inputs General'!$D60*'DNSP Inputs General'!N60 -> 0 | H106: =IF('DNSP Inputs General'!$B60='DNSP Inputs General'!$A$41,H$82,IF('DNSP Inputs General'!$B60='DNSP Inputs General'!$A$42,H$83,H$84))*'DNSP Inputs General'!$D60*'DNSP Inputs General'!O60 -> 0 | K106: =D106/'Charges Summary'!D$4 -> 0 | L106: =E106/'Charges Summary'!E$4 -> 0 | M106: =F106/'Charges Summary'!F$4 -> 0 | N106: =G106/'Charges Summary'!G$4 -> 0 | O106: =H106/'Charges Summary'!H$4 -> 0
A107: ='DNSP Inputs General'!A$61 -> Sodium High Pressure 250 watt (24 hrs) | D107: =IF('DNSP Inputs General'!$B61='DNSP Inputs General'!$A$41,D$82,IF('DNSP Inputs General'!$B61='DNSP Inputs General'!$A$42,D$83,D$84))*'DNSP Inputs General'!$D61*'DNSP Inputs General'!K61 -> 0 | E107: =IF('DNSP Inputs General'!$B61='DNSP Inputs General'!$A$41,E$82,IF('DNSP Inputs General'!$B61='DNSP Inputs General'!$A$42,E$83,E$84))*'DNSP Inputs General'!$D61*'DNSP Inputs General'!L61 -> 0 | F107: =IF('DNSP Inputs General'!$B61='DNSP Inputs General'!$A$41,F$82,IF('DNSP Inputs General'!$B61='DNSP Inputs General'!$A$42,F$83,F$84))*'DNSP Inputs General'!$D61*'DNSP Inputs General'!M61 -> 0 | G107: =IF('DNSP Inputs General'!$B61='DNSP Inputs General'!$A$41,G$82,IF('DNSP Inputs General'!$B61='DNSP Inputs General'!$A$42,G$83,G$84))*'DNSP Inputs General'!$D61*'DNSP Inputs General'!N61 -> 0 | H107: =IF('DNSP Inputs General'!$B61='DNSP Inputs General'!$A$41,H$82,IF('DNSP Inputs General'!$B61='DNSP Inputs General'!$A$42,H$83,H$84))*'DNSP Inputs General'!$D61*'DNSP Inputs General'!O61 -> 0 | K107: =D107/'Charges Summary'!D$4 -> 0 | L107: =E107/'Charges Summary'!E$4 -> 0 | M107: =F107/'Charges Summary'!F$4 -> 0 | N107: =G107/'Charges Summary'!G$4 -> 0 | O107: =H107/'Charges Summary'!H$4 -> 0
A108: ='DNSP Inputs General'!A$62 -> Metal Halide 100 watt | D108: =IF('DNSP Inputs General'!$B62='DNSP Inputs General'!$A$41,D$82,IF('DNSP Inputs General'!$B62='DNSP Inputs General'!$A$42,D$83,D$84))*'DNSP Inputs General'!$D62*'DNSP Inputs General'!K62 -> 0 | E108: =IF('DNSP Inputs General'!$B62='DNSP Inputs General'!$A$41,E$82,IF('DNSP Inputs General'!$B62='DNSP Inputs General'!$A$42,E$83,E$84))*'DNSP Inputs General'!$D62*'DNSP Inputs General'!L62 -> 0 | F108: =IF('DNSP Inputs General'!$B62='DNSP Inputs General'!$A$41,F$82,IF('DNSP Inputs General'!$B62='DNSP Inputs General'!$A$42,F$83,F$84))*'DNSP Inputs General'!$D62*'DNSP Inputs General'!M62 -> 0 | G108: =IF('DNSP Inputs General'!$B62='DNSP Inputs General'!$A$41,G$82,IF('DNSP Inputs General'!$B62='DNSP Inputs General'!$A$42,G$83,G$84))*'DNSP Inputs General'!$D62*'DNSP Inputs General'!N62 -> 0 | H108: =IF('DNSP Inputs General'!$B62='DNSP Inputs General'!$A$41,H$82,IF('DNSP Inputs General'!$B62='DNSP Inputs General'!$A$42,H$83,H$84))*'DNSP Inputs General'!$D62*'DNSP Inputs General'!O62 -> 0 | K108: =D108/'Charges Summary'!D$4 -> 0 | L108: =E108/'Charges Summary'!E$4 -> 0 | M108: =F108/'Charges Summary'!F$4 -> 0 | N108: =G108/'Charges Summary'!G$4 -> 0 | O108: =H108/'Charges Summary'!H$4 -> 0
A111: ='DNSP Inputs General'!A$67 -> Energy Efficient Lights
A112: ='DNSP Inputs General'!A$68 -> T5 2X14W | D112: =SUM('Charges Summary'!D83,'Charges Summary'!D8)*'DNSP Inputs General'!$D68*'DNSP Inputs General'!K68 -> 919429.9464 | E112: =SUM('Charges Summary'!E83,'Charges Summary'!E8)*'DNSP Inputs General'!$D68*'DNSP Inputs General'!L68 -> 970894.3316 | F112: =SUM('Charges Summary'!F83,'Charges Summary'!F8)*'DNSP Inputs General'!$D68*'DNSP Inputs General'!M68 -> 1014463.455 | G112: =SUM('Charges Summary'!G83,'Charges Summary'!G8)*'DNSP Inputs General'!$D68*'DNSP Inputs General'!N68 -> 1032056.648 | H112: =SUM('Charges Summary'!H83,'Charges Summary'!H8)*'DNSP Inputs General'!$D68*'DNSP Inputs General'!O68 -> 1064757.303 | K112: =D112/'Charges Summary'!D$4 -> 898555.7784 | L112: =E112/'Charges Summary'!E$4 -> 927309.6058 | M112: =F112/'Charges Summary'!F$4 -> 946925.0298 | N112: =G112/'Charges Summary'!G$4 -> 941475.7147 | O112: =H112/'Charges Summary'!H$4 -> 949254.3803
A113: ='DNSP Inputs General'!A$69 -> T5 (2x24W) | D113: =SUM('Charges Summary'!D$83,'Charges Summary'!D$8)*'DNSP Inputs General'!$D69*'DNSP Inputs General'!K69 -> 9827.91138 | E113: =SUM('Charges Summary'!E$83,'Charges Summary'!E$8)*'DNSP Inputs General'!$D69*'DNSP Inputs General'!L69 -> 10238.37963 | F113: =SUM('Charges Summary'!F$83,'Charges Summary'!F$8)*'DNSP Inputs General'!$D69*'DNSP Inputs General'!M69 -> 10555.79587 | G113: =SUM('Charges Summary'!G$83,'Charges Summary'!G$8)*'DNSP Inputs General'!$D69*'DNSP Inputs General'!N69 -> 10598.14818 | H113: =SUM('Charges Summary'!H$83,'Charges Summary'!H$8)*'DNSP Inputs General'!$D69*'DNSP Inputs General'!O69 -> 10792.53641 | K113: =D113/'Charges Summary'!D$4 -> 9604.784568 | L113: =E113/'Charges Summary'!E$4 -> 9778.765282 | M113: =F113/'Charges Summary'!F$4 -> 9853.038339 | N113: =G113/'Charges Summary'!G$4 -> 9667.976215 | O113: =H113/'Charges Summary'!H$4 -> 9621.781822
A114: ='DNSP Inputs General'!A$70 -> LED 18W | D114: =SUM('Charges Summary'!D$101,'Charges Summary'!D$8)*'DNSP Inputs General'!$D70*'DNSP Inputs General'!K70 -> 5240.406231 | E114: =SUM('Charges Summary'!E$101,'Charges Summary'!E$8)*'DNSP Inputs General'!$D70*'DNSP Inputs General'!L70 -> 8420.525146 | F114: =SUM('Charges Summary'!F$101,'Charges Summary'!F$8)*'DNSP Inputs General'!$D70*'DNSP Inputs General'!M70 -> 11851.66687 | G114: =SUM('Charges Summary'!G$101,'Charges Summary'!G$8)*'DNSP Inputs General'!$D70*'DNSP Inputs General'!N70 -> 14773.59844 | H114: =SUM('Charges Summary'!H$101,'Charges Summary'!H$8)*'DNSP Inputs General'!$D70*'DNSP Inputs General'!O70 -> 17885.53622 | K114: =D114/'Charges Summary'!D$4 -> 5121.431294 | L114: =E114/'Charges Summary'!E$4 -> 8042.516677 | M114: =F114/'Charges Summary'!F$4 -> 11062.63606 | N114: =G114/'Charges Summary'!G$4 -> 13476.95805 | O114: =H114/'Charges Summary'!H$4 -> 15945.34601
A115: ='DNSP Inputs General'!A$71 -> Compact Fluoro 32W | D115: =SUM('Charges Summary'!D$83,'Charges Summary'!D$8)*'DNSP Inputs General'!$D71*'DNSP Inputs General'!K71 -> 180.8220767 | E115: =SUM('Charges Summary'!E$83,'Charges Summary'!E$8)*'DNSP Inputs General'!$D71*'DNSP Inputs General'!L71 -> 188.3742126 | F115: =SUM('Charges Summary'!F$83,'Charges Summary'!F$8)*'DNSP Inputs General'!$D71*'DNSP Inputs General'!M71 -> 194.2143001 | G115: =SUM('Charges Summary'!G$83,'Charges Summary'!G$8)*'DNSP Inputs General'!$D71*'DNSP Inputs General'!N71 -> 194.993533 | H115: =SUM('Charges Summary'!H$83,'Charges Summary'!H$8)*'DNSP Inputs General'!$D71*'DNSP Inputs General'!O71 -> 198.5700491 | K115: =D115/'Charges Summary'!D$4 -> 176.7168043 | L115: =E115/'Charges Summary'!E$4 -> 179.917846 | M115: =F115/'Charges Summary'!F$4 -> 181.2843833 | N115: =G115/'Charges Summary'!G$4 -> 177.8794567 | O115: =H115/'Charges Summary'!H$4 -> 177.0295339
A116: ='DNSP Inputs General'!A$72 -> Compact Fluoro 42W | D116: =SUM('Charges Summary'!D$83,'Charges Summary'!D$8)*'DNSP Inputs General'!$D72*'DNSP Inputs General'!K72 -> 1733.393985 | E116: =SUM('Charges Summary'!E$83,'Charges Summary'!E$8)*'DNSP Inputs General'!$D72*'DNSP Inputs General'!L72 -> 1805.790161 | F116: =SUM('Charges Summary'!F$83,'Charges Summary'!F$8)*'DNSP Inputs General'!$D72*'DNSP Inputs General'!M72 -> 1861.774324 | G116: =SUM('Charges Summary'!G$83,'Charges Summary'!G$8)*'DNSP Inputs General'!$D72*'DNSP Inputs General'!N72 -> 1869.244195 | H116: =SUM('Charges Summary'!H$83,'Charges Summary'!H$8)*'DNSP Inputs General'!$D72*'DNSP Inputs General'!O72 -> 1903.529342 | K116: =D116/'Charges Summary'!D$4 -> 1694.040081 | L116: =E116/'Charges Summary'!E$4 -> 1724.725861 | M116: =F116/'Charges Summary'!F$4 -> 1737.825742 | N116: =G116/'Charges Summary'!G$4 -> 1705.185483 | O116: =H116/'Charges Summary'!H$4 -> 1697.037965
A118: Total O & M | D118: =SUM(D87:D116) -> 3153997.209 | E118: =SUM(E87:E116) -> 3287930.079 | F118: =SUM(F87:F116) -> 3415429.287 | G118: =SUM(G87:G116) -> 3457701.915 | H118: =SUM(H87:H116) -> 3549407.779 | K118: =SUM(K87:K116) -> 3082390.81 | L118: =SUM(L87:L116) -> 3140330.566 | M118: =SUM(M87:M116) -> 3188045.328 | N118: =SUM(N87:N116) -> 3154228.392 | O118: =SUM(O87:O116) -> 3164374.523
A121: Public Lighting - Capital Charge | D121: Capital Charge - Nominal | K121: Capital Charge - Real 2015 $
A122: Excluding Revenue Recovery | D122: =D$2 -> 2016 | E122: 2017 | F122: 2018 | G122: 2019 | H122: 2020 | K122: =K$2 -> 2016 | L122: 2017 | M122: 2018 | N122: 2019 | O122: 2020
A124: Unit cost
A125: ='DNSP Inputs General'!A$41 -> Mercury Vapour 80 watt | D125: =SUM('Charges Summary'!D27,'Charges Summary'!D11) -> 17.95337578 | E125: =SUM('Charges Summary'!E27,'Charges Summary'!E11) -> 18.64457085 | F125: =SUM('Charges Summary'!F27,'Charges Summary'!F11) -> 19.359844 | G125: =SUM('Charges Summary'!G27,'Charges Summary'!G11) -> 20.04349896 | H125: =SUM('Charges Summary'!H27,'Charges Summary'!H11) -> 20.67557354
A126: ='DNSP Inputs General'!A$42 -> Sodium High Pressure 150 watt | D126: =SUM('Charges Summary'!D51,'Charges Summary'!D11) -> 20.18989262 | E126: =SUM('Charges Summary'!E51,'Charges Summary'!E11) -> 20.91580327 | F126: =SUM('Charges Summary'!F51,'Charges Summary'!F11) -> 21.66882446 | G126: =SUM('Charges Summary'!G51,'Charges Summary'!G11) -> 22.3878399 | H126: =SUM('Charges Summary'!H51,'Charges Summary'!H11) -> 23.05094083
A127: ='DNSP Inputs General'!A$43 -> Sodium High Pressure 250 watt | D127: =SUM('Charges Summary'!D67,'Charges Summary'!D11) -> 21.12156414 | E127: =SUM('Charges Summary'!E67,'Charges Summary'!E11) -> 21.86193634 | F127: =SUM('Charges Summary'!F67,'Charges Summary'!F11) -> 22.63068233 | G127: =SUM('Charges Summary'!G67,'Charges Summary'!G11) -> 23.36442797 | H127: =SUM('Charges Summary'!H67,'Charges Summary'!H11) -> 24.04045364
A129: ='DNSP Inputs General'!A$40 -> Existing Lights
A130: ='DNSP Inputs General'!A$41 -> Mercury Vapour 80 watt | D130: =D125*'DNSP Inputs General'!K41 -> 240986.4916 | E130: =E125*'DNSP Inputs General'!L41 -> 246660.5323 | F130: =F125*'DNSP Inputs General'!M41 -> 252435.1463 | G130: =G125*'DNSP Inputs General'!N41 -> 257585.9676 | H130: =H125*'DNSP Inputs General'!O41 -> 261882.7683 | K130: =D130/'Charges Summary'!D$4 -> 235515.2836 | L130: =E130/'Charges Summary'!E$4 -> 235587.616 | M130: =F130/'Charges Summary'!F$4 -> 235629.1468 | N130: =G130/'Charges Summary'!G$4 -> 234978.3157 | O130: =H130/'Charges Summary'!H$4 -> 233474.2052
A131: ='DNSP Inputs General'!A$42 -> Sodium High Pressure 150 watt | D131: =D126*'DNSP Inputs General'!K42 -> 317126.8349 | E131: =E126*'DNSP Inputs General'!L42 -> 332981.0619 | F131: =F126*'DNSP Inputs General'!M42 -> 349526.4187 | G131: =G126*'DNSP Inputs General'!N42 -> 365784.0933 | H131: =H126*'DNSP Inputs General'!O42 -> 381373.0444 | K131: =D131/'Charges Summary'!D$4 -> 309926.9836 | L131: =E131/'Charges Summary'!E$4 -> 318033.1033 | M131: =F131/'Charges Summary'!F$4 -> 326256.5179 | N131: =G131/'Charges Summary'!G$4 -> 333680.1727 | O131: =H131/'Charges Summary'!H$4 -> 340002.395
A132: ='DNSP Inputs General'!A$43 -> Sodium High Pressure 250 watt | D132: =D127*'DNSP Inputs General'!K43 -> 100167.0323 | E132: =E127*'DNSP Inputs General'!L43 -> 103884.9424 | F132: =F127*'DNSP Inputs General'!M43 -> 107741.4431 | G132: =G127*'DNSP Inputs General'!N43 -> 111434.5059 | H132: =H127*'DNSP Inputs General'!O43 -> 114854.2387 | K132: =D132/'Charges Summary'!D$4 -> 97892.90207 | L132: =E132/'Charges Summary'!E$4 -> 99221.41048 | M132: =F132/'Charges Summary'!F$4 -> 100568.5012 | N132: =G132/'Charges Summary'!G$4 -> 101654.1885 | O132: =H132/'Charges Summary'!H$4 -> 102395.0613
A133: ='DNSP Inputs General'!A$44 -> 55W Ind | D133: =IF('DNSP Inputs General'!$B44='DNSP Inputs General'!$A$41,D$125,IF('DNSP Inputs General'!$B44='DNSP Inputs General'!$A$42,D$126,D$127))*'DNSP Inputs General'!$D44*'DNSP Inputs General'!K44 -> 0 | E133: =IF('DNSP Inputs General'!$B44='DNSP Inputs General'!$A$41,E$125,IF('DNSP Inputs General'!$B44='DNSP Inputs General'!$A$42,E$126,E$127))*'DNSP Inputs General'!$D44*'DNSP Inputs General'!L44 -> 0 | F133: =IF('DNSP Inputs General'!$B44='DNSP Inputs General'!$A$41,F$125,IF('DNSP Inputs General'!$B44='DNSP Inputs General'!$A$42,F$126,F$127))*'DNSP Inputs General'!$D44*'DNSP Inputs General'!M44 -> 0 | G133: =IF('DNSP Inputs General'!$B44='DNSP Inputs General'!$A$41,G$125,IF('DNSP Inputs General'!$B44='DNSP Inputs General'!$A$42,G$126,G$127))*'DNSP Inputs General'!$D44*'DNSP Inputs General'!N44 -> 0 | H133: =IF('DNSP Inputs General'!$B44='DNSP Inputs General'!$A$41,H$125,IF('DNSP Inputs General'!$B44='DNSP Inputs General'!$A$42,H$126,H$127))*'DNSP Inputs General'!$D44*'DNSP Inputs General'!O44 -> 0 | K133: =D133/'Charges Summary'!D$4 -> 0 | L133: =E133/'Charges Summary'!E$4 -> 0 | M133: =F133/'Charges Summary'!F$4 -> 0 | N133: =G133/'Charges Summary'!G$4 -> 0 | O133: =H133/'Charges Summary'!H$4 -> 0
A134: ='DNSP Inputs General'!A$45 -> Fluorescent 20 watt | D134: =IF('DNSP Inputs General'!$B45='DNSP Inputs General'!$A$41,D$125,IF('DNSP Inputs General'!$B45='DNSP Inputs General'!$A$42,D$126,D$127))*'DNSP Inputs General'!$D45*'DNSP Inputs General'!K45 -> 0 | E134: =IF('DNSP Inputs General'!$B45='DNSP Inputs General'!$A$41,E$125,IF('DNSP Inputs General'!$B45='DNSP Inputs General'!$A$42,E$126,E$127))*'DNSP Inputs General'!$D45*'DNSP Inputs General'!L45 -> 0 | F134: =IF('DNSP Inputs General'!$B45='DNSP Inputs General'!$A$41,F$125,IF('DNSP Inputs General'!$B45='DNSP Inputs General'!$A$42,F$126,F$127))*'DNSP Inputs General'!$D45*'DNSP Inputs General'!M45 -> 0 | G134: =IF('DNSP Inputs General'!$B45='DNSP Inputs General'!$A$41,G$125,IF('DNSP Inputs General'!$B45='DNSP Inputs General'!$A$42,G$126,G$127))*'DNSP Inputs General'!$D45*'DNSP Inputs General'!N45 -> 0 | H134: =IF('DNSP Inputs General'!$B45='DNSP Inputs General'!$A$41,H$125,IF('DNSP Inputs General'!$B45='DNSP Inputs General'!$A$42,H$126,H$127))*'DNSP Inputs General'!$D45*'DNSP Inputs General'!O45 -> 0 | K134: =D134/'Charges Summary'!D$4 -> 0 | L134: =E134/'Charges Summary'!E$4 -> 0 | M134: =F134/'Charges Summary'!F$4 -> 0 | N134: =G134/'Charges Summary'!G$4 -> 0 | O134: =H134/'Charges Summary'!H$4 -> 0
A135: ='DNSP Inputs General'!A$46 -> Fluorescent 40 watt | D135: =IF('DNSP Inputs General'!$B46='DNSP Inputs General'!$A$41,D$125,IF('DNSP Inputs General'!$B46='DNSP Inputs General'!$A$42,D$126,D$127))*'DNSP Inputs General'!$D46*'DNSP Inputs General'!K46 -> 0 | E135: =IF('DNSP Inputs General'!$B46='DNSP Inputs General'!$A$41,E$125,IF('DNSP Inputs General'!$B46='DNSP Inputs General'!$A$42,E$126,E$127))*'DNSP Inputs General'!$D46*'DNSP Inputs General'!L46 -> 0 | F135: =IF('DNSP Inputs General'!$B46='DNSP Inputs General'!$A$41,F$125,IF('DNSP Inputs General'!$B46='DNSP Inputs General'!$A$42,F$126,F$127))*'DNSP Inputs General'!$D46*'DNSP Inputs General'!M46 -> 0 | G135: =IF('DNSP Inputs General'!$B46='DNSP Inputs General'!$A$41,G$125,IF('DNSP Inputs General'!$B46='DNSP Inputs General'!$A$42,G$126,G$127))*'DNSP Inputs General'!$D46*'DNSP Inputs General'!N46 -> 0 | H135: =IF('DNSP Inputs General'!$B46='DNSP Inputs General'!$A$41,H$125,IF('DNSP Inputs General'!$B46='DNSP Inputs General'!$A$42,H$126,H$127))*'DNSP Inputs General'!$D46*'DNSP Inputs General'!O46 -> 0 | K135: =D135/'Charges Summary'!D$4 -> 0 | L135: =E135/'Charges Summary'!E$4 -> 0 | M135: =F135/'Charges Summary'!F$4 -> 0 | N135: =G135/'Charges Summary'!G$4 -> 0 | O135: =H135/'Charges Summary'!H$4 -> 0
A136: ='DNSP Inputs General'!A$47 -> Fluorescent 80 watt | D136: =IF('DNSP Inputs General'!$B47='DNSP Inputs General'!$A$41,D$125,IF('DNSP Inputs General'!$B47='DNSP Inputs General'!$A$42,D$126,D$127))*'DNSP Inputs General'!$D47*'DNSP Inputs General'!K47 -> 0 | E136: =IF('DNSP Inputs General'!$B47='DNSP Inputs General'!$A$41,E$125,IF('DNSP Inputs General'!$B47='DNSP Inputs General'!$A$42,E$126,E$127))*'DNSP Inputs General'!$D47*'DNSP Inputs General'!L47 -> 0 | F136: =IF('DNSP Inputs General'!$B47='DNSP Inputs General'!$A$41,F$125,IF('DNSP Inputs General'!$B47='DNSP Inputs General'!$A$42,F$126,F$127))*'DNSP Inputs General'!$D47*'DNSP Inputs General'!M47 -> 0 | G136: =IF('DNSP Inputs General'!$B47='DNSP Inputs General'!$A$41,G$125,IF('DNSP Inputs General'!$B47='DNSP Inputs General'!$A$42,G$126,G$127))*'DNSP Inputs General'!$D47*'DNSP Inputs General'!N47 -> 0 | H136: =IF('DNSP Inputs General'!$B47='DNSP Inputs General'!$A$41,H$125,IF('DNSP Inputs General'!$B47='DNSP Inputs General'!$A$42,H$126,H$127))*'DNSP Inputs General'!$D47*'DNSP Inputs General'!O47 -> 0 | K136: =D136/'Charges Summary'!D$4 -> 0 | L136: =E136/'Charges Summary'!E$4 -> 0 | M136: =F136/'Charges Summary'!F$4 -> 0 | N136: =G136/'Charges Summary'!G$4 -> 0 | O136: =H136/'Charges Summary'!H$4 -> 0
A137: ='DNSP Inputs General'!A$48 -> Mercury Vapour 50 watt | D137: =IF('DNSP Inputs General'!$B48='DNSP Inputs General'!$A$41,D$125,IF('DNSP Inputs General'!$B48='DNSP Inputs General'!$A$42,D$126,D$127))*'DNSP Inputs General'!$D48*'DNSP Inputs General'!K48 -> 0 | E137: =IF('DNSP Inputs General'!$B48='DNSP Inputs General'!$A$41,E$125,IF('DNSP Inputs General'!$B48='DNSP Inputs General'!$A$42,E$126,E$127))*'DNSP Inputs General'!$D48*'DNSP Inputs General'!L48 -> 0 | F137: =IF('DNSP Inputs General'!$B48='DNSP Inputs General'!$A$41,F$125,IF('DNSP Inputs General'!$B48='DNSP Inputs General'!$A$42,F$126,F$127))*'DNSP Inputs General'!$D48*'DNSP Inputs General'!M48 -> 0 | G137: =IF('DNSP Inputs General'!$B48='DNSP Inputs General'!$A$41,G$125,IF('DNSP Inputs General'!$B48='DNSP Inputs General'!$A$42,G$126,G$127))*'DNSP Inputs General'!$D48*'DNSP Inputs General'!N48 -> 0 | H137: =IF('DNSP Inputs General'!$B48='DNSP Inputs General'!$A$41,H$125,IF('DNSP Inputs General'!$B48='DNSP Inputs General'!$A$42,H$126,H$127))*'DNSP Inputs General'!$D48*'DNSP Inputs General'!O48 -> 0 | K137: =D137/'Charges Summary'!D$4 -> 0 | L137: =E137/'Charges Summary'!E$4 -> 0 | M137: =F137/'Charges Summary'!F$4 -> 0 | N137: =G137/'Charges Summary'!G$4 -> 0 | O137: =H137/'Charges Summary'!H$4 -> 0
A138: ='DNSP Inputs General'!A$49 -> Mercury Vapour 125 watt | D138: =IF('DNSP Inputs General'!$B49='DNSP Inputs General'!$A$41,D$125,IF('DNSP Inputs General'!$B49='DNSP Inputs General'!$A$42,D$126,D$127))*'DNSP Inputs General'!$D49*'DNSP Inputs General'!K49 -> 9357.454195 | E138: =IF('DNSP Inputs General'!$B49='DNSP Inputs General'!$A$41,E$125,IF('DNSP Inputs General'!$B49='DNSP Inputs General'!$A$42,E$126,E$127))*'DNSP Inputs General'!$D49*'DNSP Inputs General'!L49 -> 9577.775988 | F138: =IF('DNSP Inputs General'!$B49='DNSP Inputs General'!$A$41,F$125,IF('DNSP Inputs General'!$B49='DNSP Inputs General'!$A$42,F$126,F$127))*'DNSP Inputs General'!$D49*'DNSP Inputs General'!M49 -> 9802.003021 | G138: =IF('DNSP Inputs General'!$B49='DNSP Inputs General'!$A$41,G$125,IF('DNSP Inputs General'!$B49='DNSP Inputs General'!$A$42,G$126,G$127))*'DNSP Inputs General'!$D49*'DNSP Inputs General'!N49 -> 10002.00831 | H138: =IF('DNSP Inputs General'!$B49='DNSP Inputs General'!$A$41,H$125,IF('DNSP Inputs General'!$B49='DNSP Inputs General'!$A$42,H$126,H$127))*'DNSP Inputs General'!$D49*'DNSP Inputs General'!O49 -> 10168.85217 | K138: =D138/'Charges Summary'!D$4 -> 9145.008352 | L138: =E138/'Charges Summary'!E$4 -> 9147.817004 | M138: =F138/'Charges Summary'!F$4 -> 9149.429637 | N138: =G138/'Charges Summary'!G$4 -> 9124.158002 | O138: =H138/'Charges Summary'!H$4 -> 9065.753711
A139: ='DNSP Inputs General'!A$50 -> Mercury Vapour 250 watt | D139: =IF('DNSP Inputs General'!$B50='DNSP Inputs General'!$A$41,D$125,IF('DNSP Inputs General'!$B50='DNSP Inputs General'!$A$42,D$126,D$127))*'DNSP Inputs General'!$D50*'DNSP Inputs General'!K50 -> 2407.095872 | E139: =IF('DNSP Inputs General'!$B50='DNSP Inputs General'!$A$41,E$125,IF('DNSP Inputs General'!$B50='DNSP Inputs General'!$A$42,E$126,E$127))*'DNSP Inputs General'!$D50*'DNSP Inputs General'!L50 -> 2126.229671 | F139: =IF('DNSP Inputs General'!$B50='DNSP Inputs General'!$A$41,F$125,IF('DNSP Inputs General'!$B50='DNSP Inputs General'!$A$42,F$126,F$127))*'DNSP Inputs General'!$D50*'DNSP Inputs General'!M50 -> 1878.336658 | G139: =IF('DNSP Inputs General'!$B50='DNSP Inputs General'!$A$41,G$125,IF('DNSP Inputs General'!$B50='DNSP Inputs General'!$A$42,G$126,G$127))*'DNSP Inputs General'!$D50*'DNSP Inputs General'!N50 -> 1654.951138 | H139: =IF('DNSP Inputs General'!$B50='DNSP Inputs General'!$A$41,H$125,IF('DNSP Inputs General'!$B50='DNSP Inputs General'!$A$42,H$126,H$127))*'DNSP Inputs General'!$D50*'DNSP Inputs General'!O50 -> 1453.205118 | K139: =D139/'Charges Summary'!D$4 -> 2352.446659 | L139: =E139/'Charges Summary'!E$4 -> 2030.780419 | M139: =F139/'Charges Summary'!F$4 -> 1753.285431 | N139: =G139/'Charges Summary'!G$4 -> 1509.700372 | O139: =H139/'Charges Summary'!H$4 -> 1295.564088
A140: ='DNSP Inputs General'!A$51 -> Mercury Vapour 400 watt | D140: =IF('DNSP Inputs General'!$B51='DNSP Inputs General'!$A$41,D$125,IF('DNSP Inputs General'!$B51='DNSP Inputs General'!$A$42,D$126,D$127))*'DNSP Inputs General'!$D51*'DNSP Inputs General'!K51 -> 4393.317654 | E140: =IF('DNSP Inputs General'!$B51='DNSP Inputs General'!$A$41,E$125,IF('DNSP Inputs General'!$B51='DNSP Inputs General'!$A$42,E$126,E$127))*'DNSP Inputs General'!$D51*'DNSP Inputs General'!L51 -> 4324.010497 | F140: =IF('DNSP Inputs General'!$B51='DNSP Inputs General'!$A$41,F$125,IF('DNSP Inputs General'!$B51='DNSP Inputs General'!$A$42,F$126,F$127))*'DNSP Inputs General'!$D51*'DNSP Inputs General'!M51 -> 4256.252141 | G140: =IF('DNSP Inputs General'!$B51='DNSP Inputs General'!$A$41,G$125,IF('DNSP Inputs General'!$B51='DNSP Inputs General'!$A$42,G$126,G$127))*'DNSP Inputs General'!$D51*'DNSP Inputs General'!N51 -> 4178.46181 | H140: =IF('DNSP Inputs General'!$B51='DNSP Inputs General'!$A$41,H$125,IF('DNSP Inputs General'!$B51='DNSP Inputs General'!$A$42,H$126,H$127))*'DNSP Inputs General'!$D51*'DNSP Inputs General'!O51 -> 4088.23195 | K140: =D140/'Charges Summary'!D$4 -> 4293.574491 | L140: =E140/'Charges Summary'!E$4 -> 4129.899969 | M140: =F140/'Charges Summary'!F$4 -> 3972.889969 | N140: =G140/'Charges Summary'!G$4 -> 3811.729061 | O140: =H140/'Charges Summary'!H$4 -> 3644.748035
A141: ='DNSP Inputs General'!A$52 -> Sodium High Pressure 50 watt | D141: =IF('DNSP Inputs General'!$B52='DNSP Inputs General'!$A$41,D$125,IF('DNSP Inputs General'!$B52='DNSP Inputs General'!$A$42,D$126,D$127))*'DNSP Inputs General'!$D52*'DNSP Inputs General'!K52 -> 0 | E141: =IF('DNSP Inputs General'!$B52='DNSP Inputs General'!$A$41,E$125,IF('DNSP Inputs General'!$B52='DNSP Inputs General'!$A$42,E$126,E$127))*'DNSP Inputs General'!$D52*'DNSP Inputs General'!L52 -> 0 | F141: =IF('DNSP Inputs General'!$B52='DNSP Inputs General'!$A$41,F$125,IF('DNSP Inputs General'!$B52='DNSP Inputs General'!$A$42,F$126,F$127))*'DNSP Inputs General'!$D52*'DNSP Inputs General'!M52 -> 0 | G141: =IF('DNSP Inputs General'!$B52='DNSP Inputs General'!$A$41,G$125,IF('DNSP Inputs General'!$B52='DNSP Inputs General'!$A$42,G$126,G$127))*'DNSP Inputs General'!$D52*'DNSP Inputs General'!N52 -> 0 | H141: =IF('DNSP Inputs General'!$B52='DNSP Inputs General'!$A$41,H$125,IF('DNSP Inputs General'!$B52='DNSP Inputs General'!$A$42,H$126,H$127))*'DNSP Inputs General'!$D52*'DNSP Inputs General'!O52 -> 0 | K141: =D141/'Charges Summary'!D$4 -> 0 | L141: =E141/'Charges Summary'!E$4 -> 0 | M141: =F141/'Charges Summary'!F$4 -> 0 | N141: =G141/'Charges Summary'!G$4 -> 0 | O141: =H141/'Charges Summary'!H$4 -> 0
A142: ='DNSP Inputs General'!A$53 -> Sodium Low Pressure 90 watt | D142: =IF('DNSP Inputs General'!$B53='DNSP Inputs General'!$A$41,D$125,IF('DNSP Inputs General'!$B53='DNSP Inputs General'!$A$42,D$126,D$127))*'DNSP Inputs General'!$D53*'DNSP Inputs General'!K53 -> 0 | E142: =IF('DNSP Inputs General'!$B53='DNSP Inputs General'!$A$41,E$125,IF('DNSP Inputs General'!$B53='DNSP Inputs General'!$A$42,E$126,E$127))*'DNSP Inputs General'!$D53*'DNSP Inputs General'!L53 -> 0 | F142: =IF('DNSP Inputs General'!$B53='DNSP Inputs General'!$A$41,F$125,IF('DNSP Inputs General'!$B53='DNSP Inputs General'!$A$42,F$126,F$127))*'DNSP Inputs General'!$D53*'DNSP Inputs General'!M53 -> 0 | G142: =IF('DNSP Inputs General'!$B53='DNSP Inputs General'!$A$41,G$125,IF('DNSP Inputs General'!$B53='DNSP Inputs General'!$A$42,G$126,G$127))*'DNSP Inputs General'!$D53*'DNSP Inputs General'!N53 -> 0 | H142: =IF('DNSP Inputs General'!$B53='DNSP Inputs General'!$A$41,H$125,IF('DNSP Inputs General'!$B53='DNSP Inputs General'!$A$42,H$126,H$127))*'DNSP Inputs General'!$D53*'DNSP Inputs General'!O53 -> 0 | K142: =D142/'Charges Summary'!D$4 -> 0 | L142: =E142/'Charges Summary'!E$4 -> 0 | M142: =F142/'Charges Summary'!F$4 -> 0 | N142: =G142/'Charges Summary'!G$4 -> 0 | O142: =H142/'Charges Summary'!H$4 -> 0
A143: ='DNSP Inputs General'!A$54 -> Sodium High Pressure 100 watt | D143: =IF('DNSP Inputs General'!$B54='DNSP Inputs General'!$A$41,D$125,IF('DNSP Inputs General'!$B54='DNSP Inputs General'!$A$42,D$126,D$127))*'DNSP Inputs General'!$D54*'DNSP Inputs General'!K54 -> 31759.48435 | E143: =IF('DNSP Inputs General'!$B54='DNSP Inputs General'!$A$41,E$125,IF('DNSP Inputs General'!$B54='DNSP Inputs General'!$A$42,E$126,E$127))*'DNSP Inputs General'!$D54*'DNSP Inputs General'!L54 -> 32427.59023 | F143: =IF('DNSP Inputs General'!$B54='DNSP Inputs General'!$A$41,F$125,IF('DNSP Inputs General'!$B54='DNSP Inputs General'!$A$42,F$126,F$127))*'DNSP Inputs General'!$D54*'DNSP Inputs General'!M54 -> 33111.29559 | G143: =IF('DNSP Inputs General'!$B54='DNSP Inputs General'!$A$41,G$125,IF('DNSP Inputs General'!$B54='DNSP Inputs General'!$A$42,G$126,G$127))*'DNSP Inputs General'!$D54*'DNSP Inputs General'!N54 -> 33717.37144 | H143: =IF('DNSP Inputs General'!$B54='DNSP Inputs General'!$A$41,H$125,IF('DNSP Inputs General'!$B54='DNSP Inputs General'!$A$42,H$126,H$127))*'DNSP Inputs General'!$D54*'DNSP Inputs General'!O54 -> 34216.12853 | K143: =D143/'Charges Summary'!D$4 -> 31038.43669 | L143: =E143/'Charges Summary'!E$4 -> 30971.87298 | M143: =F143/'Charges Summary'!F$4 -> 30906.89408 | N143: =G143/'Charges Summary'!G$4 -> 30758.08525 | O143: =H143/'Charges Summary'!H$4 -> 30504.42557
A144: ='DNSP Inputs General'!A$55 -> Sodium High Pressure 400 watt | D144: =IF('DNSP Inputs General'!$B55='DNSP Inputs General'!$A$41,D$125,IF('DNSP Inputs General'!$B55='DNSP Inputs General'!$A$42,D$126,D$127))*'DNSP Inputs General'!$D55*'DNSP Inputs General'!K55 -> 8090.403929 | E144: =IF('DNSP Inputs General'!$B55='DNSP Inputs General'!$A$41,E$125,IF('DNSP Inputs General'!$B55='DNSP Inputs General'!$A$42,E$126,E$127))*'DNSP Inputs General'!$D55*'DNSP Inputs General'!L55 -> 8373.996096 | F144: =IF('DNSP Inputs General'!$B55='DNSP Inputs General'!$A$41,F$125,IF('DNSP Inputs General'!$B55='DNSP Inputs General'!$A$42,F$126,F$127))*'DNSP Inputs General'!$D55*'DNSP Inputs General'!M55 -> 8668.456559 | G144: =IF('DNSP Inputs General'!$B55='DNSP Inputs General'!$A$41,G$125,IF('DNSP Inputs General'!$B55='DNSP Inputs General'!$A$42,G$126,G$127))*'DNSP Inputs General'!$D55*'DNSP Inputs General'!N55 -> 8949.510491 | H144: =IF('DNSP Inputs General'!$B55='DNSP Inputs General'!$A$41,H$125,IF('DNSP Inputs General'!$B55='DNSP Inputs General'!$A$42,H$126,H$127))*'DNSP Inputs General'!$D55*'DNSP Inputs General'!O55 -> 9208.455361 | K144: =D144/'Charges Summary'!D$4 -> 7906.72441 | L144: =E144/'Charges Summary'!E$4 -> 7998.076378 | M144: =F144/'Charges Summary'!F$4 -> 8091.349612 | N144: =G144/'Charges Summary'!G$4 -> 8164.03518 | O144: =H144/'Charges Summary'!H$4 -> 8209.538987
A145: ='DNSP Inputs General'!A$56 -> Metal Halide 70 watt | D145: =IF('DNSP Inputs General'!$B56='DNSP Inputs General'!$A$41,D$125,IF('DNSP Inputs General'!$B56='DNSP Inputs General'!$A$42,D$126,D$127))*'DNSP Inputs General'!$D56*'DNSP Inputs General'!K56 -> 553.682109 | E145: =IF('DNSP Inputs General'!$B56='DNSP Inputs General'!$A$41,E$125,IF('DNSP Inputs General'!$B56='DNSP Inputs General'!$A$42,E$126,E$127))*'DNSP Inputs General'!$D56*'DNSP Inputs General'!L56 -> 574.9985652 | F145: =IF('DNSP Inputs General'!$B56='DNSP Inputs General'!$A$41,F$125,IF('DNSP Inputs General'!$B56='DNSP Inputs General'!$A$42,F$126,F$127))*'DNSP Inputs General'!$D56*'DNSP Inputs General'!M56 -> 597.0575891 | G145: =IF('DNSP Inputs General'!$B56='DNSP Inputs General'!$A$41,G$125,IF('DNSP Inputs General'!$B56='DNSP Inputs General'!$A$42,G$126,G$127))*'DNSP Inputs General'!$D56*'DNSP Inputs General'!N56 -> 618.141508 | H145: =IF('DNSP Inputs General'!$B56='DNSP Inputs General'!$A$41,H$125,IF('DNSP Inputs General'!$B56='DNSP Inputs General'!$A$42,H$126,H$127))*'DNSP Inputs General'!$D56*'DNSP Inputs General'!O56 -> 637.634688 | K145: =D145/'Charges Summary'!D$4 -> 541.1116533 | L145: =E145/'Charges Summary'!E$4 -> 549.1861219 | M145: =F145/'Charges Summary'!F$4 -> 557.3081735 | N145: =G145/'Charges Summary'!G$4 -> 563.888832 | O145: =H145/'Charges Summary'!H$4 -> 568.4652448
A146: ='DNSP Inputs General'!A$57 -> Metal Halide 150 watt | D146: =IF('DNSP Inputs General'!$B57='DNSP Inputs General'!$A$41,D$125,IF('DNSP Inputs General'!$B57='DNSP Inputs General'!$A$42,D$126,D$127))*'DNSP Inputs General'!$D57*'DNSP Inputs General'!K57 -> 1479.111533 | E146: =IF('DNSP Inputs General'!$B57='DNSP Inputs General'!$A$41,E$125,IF('DNSP Inputs General'!$B57='DNSP Inputs General'!$A$42,E$126,E$127))*'DNSP Inputs General'!$D57*'DNSP Inputs General'!L57 -> 1532.291747 | F146: =IF('DNSP Inputs General'!$B57='DNSP Inputs General'!$A$41,F$125,IF('DNSP Inputs General'!$B57='DNSP Inputs General'!$A$42,F$126,F$127))*'DNSP Inputs General'!$D57*'DNSP Inputs General'!M57 -> 1587.45808 | G146: =IF('DNSP Inputs General'!$B57='DNSP Inputs General'!$A$41,G$125,IF('DNSP Inputs General'!$B57='DNSP Inputs General'!$A$42,G$126,G$127))*'DNSP Inputs General'!$D57*'DNSP Inputs General'!N57 -> 1640.133151 | H146: =IF('DNSP Inputs General'!$B57='DNSP Inputs General'!$A$41,H$125,IF('DNSP Inputs General'!$B57='DNSP Inputs General'!$A$42,H$126,H$127))*'DNSP Inputs General'!$D57*'DNSP Inputs General'!O57 -> 1688.711925 | K146: =D146/'Charges Summary'!D$4 -> 1445.530701 | L146: =E146/'Charges Summary'!E$4 -> 1463.505152 | M146: =F146/'Charges Summary'!F$4 -> 1481.772243 | N146: =G146/'Charges Summary'!G$4 -> 1496.182921 | O146: =H146/'Charges Summary'!H$4 -> 1505.523548
A147: ='DNSP Inputs General'!A$58 -> Metal Halide 250 watt | D147: =IF('DNSP Inputs General'!$B58='DNSP Inputs General'!$A$41,D$125,IF('DNSP Inputs General'!$B58='DNSP Inputs General'!$A$42,D$126,D$127))*'DNSP Inputs General'!$D58*'DNSP Inputs General'!K58 -> 3269.618129 | E147: =IF('DNSP Inputs General'!$B58='DNSP Inputs General'!$A$41,E$125,IF('DNSP Inputs General'!$B58='DNSP Inputs General'!$A$42,E$126,E$127))*'DNSP Inputs General'!$D58*'DNSP Inputs General'!L58 -> 3384.227746 | F147: =IF('DNSP Inputs General'!$B58='DNSP Inputs General'!$A$41,F$125,IF('DNSP Inputs General'!$B58='DNSP Inputs General'!$A$42,F$126,F$127))*'DNSP Inputs General'!$D58*'DNSP Inputs General'!M58 -> 3503.229624 | G147: =IF('DNSP Inputs General'!$B58='DNSP Inputs General'!$A$41,G$125,IF('DNSP Inputs General'!$B58='DNSP Inputs General'!$A$42,G$126,G$127))*'DNSP Inputs General'!$D58*'DNSP Inputs General'!N58 -> 3616.81345 | H147: =IF('DNSP Inputs General'!$B58='DNSP Inputs General'!$A$41,H$125,IF('DNSP Inputs General'!$B58='DNSP Inputs General'!$A$42,H$126,H$127))*'DNSP Inputs General'!$D58*'DNSP Inputs General'!O58 -> 3721.462223 | K147: =D147/'Charges Summary'!D$4 -> 3195.386744 | L147: =E147/'Charges Summary'!E$4 -> 3232.305303 | M147: =F147/'Charges Summary'!F$4 -> 3270.000313 | N147: =G147/'Charges Summary'!G$4 -> 3299.37512 | O147: =H147/'Charges Summary'!H$4 -> 3317.764816
A148: ='DNSP Inputs General'!A$59 -> Incandescent 100 watt | D148: =IF('DNSP Inputs General'!$B59='DNSP Inputs General'!$A$41,D$125,IF('DNSP Inputs General'!$B59='DNSP Inputs General'!$A$42,D$126,D$127))*'DNSP Inputs General'!$D59*'DNSP Inputs General'!K59 -> 0 | E148: =IF('DNSP Inputs General'!$B59='DNSP Inputs General'!$A$41,E$125,IF('DNSP Inputs General'!$B59='DNSP Inputs General'!$A$42,E$126,E$127))*'DNSP Inputs General'!$D59*'DNSP Inputs General'!L59 -> 0 | F148: =IF('DNSP Inputs General'!$B59='DNSP Inputs General'!$A$41,F$125,IF('DNSP Inputs General'!$B59='DNSP Inputs General'!$A$42,F$126,F$127))*'DNSP Inputs General'!$D59*'DNSP Inputs General'!M59 -> 0 | G148: =IF('DNSP Inputs General'!$B59='DNSP Inputs General'!$A$41,G$125,IF('DNSP Inputs General'!$B59='DNSP Inputs General'!$A$42,G$126,G$127))*'DNSP Inputs General'!$D59*'DNSP Inputs General'!N59 -> 0 | H148: =IF('DNSP Inputs General'!$B59='DNSP Inputs General'!$A$41,H$125,IF('DNSP Inputs General'!$B59='DNSP Inputs General'!$A$42,H$126,H$127))*'DNSP Inputs General'!$D59*'DNSP Inputs General'!O59 -> 0 | K148: =D148/'Charges Summary'!D$4 -> 0 | L148: =E148/'Charges Summary'!E$4 -> 0 | M148: =F148/'Charges Summary'!F$4 -> 0 | N148: =G148/'Charges Summary'!G$4 -> 0 | O148: =H148/'Charges Summary'!H$4 -> 0
A149: ='DNSP Inputs General'!A$60 -> Incandescent 150 watt | D149: =IF('DNSP Inputs General'!$B60='DNSP Inputs General'!$A$41,D$125,IF('DNSP Inputs General'!$B60='DNSP Inputs General'!$A$42,D$126,D$127))*'DNSP Inputs General'!$D60*'DNSP Inputs General'!K60 -> 0 | E149: =IF('DNSP Inputs General'!$B60='DNSP Inputs General'!$A$41,E$125,IF('DNSP Inputs General'!$B60='DNSP Inputs General'!$A$42,E$126,E$127))*'DNSP Inputs General'!$D60*'DNSP Inputs General'!L60 -> 0 | F149: =IF('DNSP Inputs General'!$B60='DNSP Inputs General'!$A$41,F$125,IF('DNSP Inputs General'!$B60='DNSP Inputs General'!$A$42,F$126,F$127))*'DNSP Inputs General'!$D60*'DNSP Inputs General'!M60 -> 0 | G149: =IF('DNSP Inputs General'!$B60='DNSP Inputs General'!$A$41,G$125,IF('DNSP Inputs General'!$B60='DNSP Inputs General'!$A$42,G$126,G$127))*'DNSP Inputs General'!$D60*'DNSP Inputs General'!N60 -> 0 | H149: =IF('DNSP Inputs General'!$B60='DNSP Inputs General'!$A$41,H$125,IF('DNSP Inputs General'!$B60='DNSP Inputs General'!$A$42,H$126,H$127))*'DNSP Inputs General'!$D60*'DNSP Inputs General'!O60 -> 0 | K149: =D149/'Charges Summary'!D$4 -> 0 | L149: =E149/'Charges Summary'!E$4 -> 0 | M149: =F149/'Charges Summary'!F$4 -> 0 | N149: =G149/'Charges Summary'!G$4 -> 0 | O149: =H149/'Charges Summary'!H$4 -> 0
A150: ='DNSP Inputs General'!A$61 -> Sodium High Pressure 250 watt (24 hrs) | D150: =IF('DNSP Inputs General'!$B61='DNSP Inputs General'!$A$41,D$125,IF('DNSP Inputs General'!$B61='DNSP Inputs General'!$A$42,D$126,D$127))*'DNSP Inputs General'!$D61*'DNSP Inputs General'!K61 -> 0 | E150: =IF('DNSP Inputs General'!$B61='DNSP Inputs General'!$A$41,E$125,IF('DNSP Inputs General'!$B61='DNSP Inputs General'!$A$42,E$126,E$127))*'DNSP Inputs General'!$D61*'DNSP Inputs General'!L61 -> 0 | F150: =IF('DNSP Inputs General'!$B61='DNSP Inputs General'!$A$41,F$125,IF('DNSP Inputs General'!$B61='DNSP Inputs General'!$A$42,F$126,F$127))*'DNSP Inputs General'!$D61*'DNSP Inputs General'!M61 -> 0 | G150: =IF('DNSP Inputs General'!$B61='DNSP Inputs General'!$A$41,G$125,IF('DNSP Inputs General'!$B61='DNSP Inputs General'!$A$42,G$126,G$127))*'DNSP Inputs General'!$D61*'DNSP Inputs General'!N61 -> 0 | H150: =IF('DNSP Inputs General'!$B61='DNSP Inputs General'!$A$41,H$125,IF('DNSP Inputs General'!$B61='DNSP Inputs General'!$A$42,H$126,H$127))*'DNSP Inputs General'!$D61*'DNSP Inputs General'!O61 -> 0 | K150: =D150/'Charges Summary'!D$4 -> 0 | L150: =E150/'Charges Summary'!E$4 -> 0 | M150: =F150/'Charges Summary'!F$4 -> 0 | N150: =G150/'Charges Summary'!G$4 -> 0 | O150: =H150/'Charges Summary'!H$4 -> 0
A151: ='DNSP Inputs General'!A$62 -> Metal Halide 100 watt | D151: =IF('DNSP Inputs General'!$B62='DNSP Inputs General'!$A$41,D$125,IF('DNSP Inputs General'!$B62='DNSP Inputs General'!$A$42,D$126,D$127))*'DNSP Inputs General'!$D62*'DNSP Inputs General'!K62 -> 0 | E151: =IF('DNSP Inputs General'!$B62='DNSP Inputs General'!$A$41,E$125,IF('DNSP Inputs General'!$B62='DNSP Inputs General'!$A$42,E$126,E$127))*'DNSP Inputs General'!$D62*'DNSP Inputs General'!L62 -> 0 | F151: =IF('DNSP Inputs General'!$B62='DNSP Inputs General'!$A$41,F$125,IF('DNSP Inputs General'!$B62='DNSP Inputs General'!$A$42,F$126,F$127))*'DNSP Inputs General'!$D62*'DNSP Inputs General'!M62 -> 0 | G151: =IF('DNSP Inputs General'!$B62='DNSP Inputs General'!$A$41,G$125,IF('DNSP Inputs General'!$B62='DNSP Inputs General'!$A$42,G$126,G$127))*'DNSP Inputs General'!$D62*'DNSP Inputs General'!N62 -> 0 | H151: =IF('DNSP Inputs General'!$B62='DNSP Inputs General'!$A$41,H$125,IF('DNSP Inputs General'!$B62='DNSP Inputs General'!$A$42,H$126,H$127))*'DNSP Inputs General'!$D62*'DNSP Inputs General'!O62 -> 0 | K151: =D151/'Charges Summary'!D$4 -> 0 | L151: =E151/'Charges Summary'!E$4 -> 0 | M151: =F151/'Charges Summary'!F$4 -> 0 | N151: =G151/'Charges Summary'!G$4 -> 0 | O151: =H151/'Charges Summary'!H$4 -> 0
A154: ='DNSP Inputs General'!A$67 -> Energy Efficient Lights
A155: ='DNSP Inputs General'!A$68 -> T5 2X14W | D155: =SUM('Charges Summary'!D85,'Charges Summary'!D11)*'DNSP Inputs General'!$D68*'DNSP Inputs General'!K68 -> 264527.2802 | E155: =SUM('Charges Summary'!E85,'Charges Summary'!E11)*'DNSP Inputs General'!$D68*'DNSP Inputs General'!L68 -> 303377.3877 | F155: =SUM('Charges Summary'!F85,'Charges Summary'!F11)*'DNSP Inputs General'!$D68*'DNSP Inputs General'!M68 -> 343496.8744 | G155: =SUM('Charges Summary'!G85,'Charges Summary'!G11)*'DNSP Inputs General'!$D68*'DNSP Inputs General'!N68 -> 383139.0709 | H155: =SUM('Charges Summary'!H85,'Charges Summary'!H11)*'DNSP Inputs General'!$D68*'DNSP Inputs General'!O68 -> 421631.8155 | K155: =D155/'Charges Summary'!D$4 -> 258521.6167 | L155: =E155/'Charges Summary'!E$4 -> 289758.377 | M155: =F155/'Charges Summary'!F$4 -> 320628.3936 | N155: =G155/'Charges Summary'!G$4 -> 349511.949 | O155: =H155/'Charges Summary'!H$4 -> 375893.9684
A156: ='DNSP Inputs General'!A$69 -> T5 (2x24W) | D156: =SUM('Charges Summary'!D$85,'Charges Summary'!D$11)*'DNSP Inputs General'!$D69*'DNSP Inputs General'!K69 -> 2827.56797 | E156: =SUM('Charges Summary'!E$85,'Charges Summary'!E$11)*'DNSP Inputs General'!$D69*'DNSP Inputs General'!L69 -> 3199.207954 | F156: =SUM('Charges Summary'!F$85,'Charges Summary'!F$11)*'DNSP Inputs General'!$D69*'DNSP Inputs General'!M69 -> 3574.187783 | G156: =SUM('Charges Summary'!G$85,'Charges Summary'!G$11)*'DNSP Inputs General'!$D69*'DNSP Inputs General'!N69 -> 3934.439696 | H156: =SUM('Charges Summary'!H$85,'Charges Summary'!H$11)*'DNSP Inputs General'!$D69*'DNSP Inputs General'!O69 -> 4273.72201 | K156: =D156/'Charges Summary'!D$4 -> 2763.372618 | L156: =E156/'Charges Summary'!E$4 -> 3055.591293 | M156: =F156/'Charges Summary'!F$4 -> 3336.234396 | N156: =G156/'Charges Summary'!G$4 -> 3589.124134 | O156: =H156/'Charges Summary'!H$4 -> 3810.116473
A157: ='DNSP Inputs General'!A$70 -> LED 18W | D157: =SUM('Charges Summary'!D$103,'Charges Summary'!D$11)*'DNSP Inputs General'!$D70*'DNSP Inputs General'!K70 -> 3790.36181 | E157: =SUM('Charges Summary'!E$103,'Charges Summary'!E$11)*'DNSP Inputs General'!$D70*'DNSP Inputs General'!L70 -> 6344.331956 | F157: =SUM('Charges Summary'!F$103,'Charges Summary'!F$11)*'DNSP Inputs General'!$D70*'DNSP Inputs General'!M70 -> 9366.267497 | G157: =SUM('Charges Summary'!G$103,'Charges Summary'!G$11)*'DNSP Inputs General'!$D70*'DNSP Inputs General'!N70 -> 12791.4857 | H157: =SUM('Charges Summary'!H$103,'Charges Summary'!H$11)*'DNSP Inputs General'!$D70*'DNSP Inputs General'!O70 -> 16556.90086 | K157: =D157/'Charges Summary'!D$4 -> 3704.307783 | L157: =E157/'Charges Summary'!E$4 -> 6059.526535 | M157: =F157/'Charges Summary'!F$4 -> 8742.703428 | N157: =G157/'Charges Summary'!G$4 -> 11668.81019 | O157: =H157/'Charges Summary'!H$4 -> 14760.83858
A158: ='DNSP Inputs General'!A$71 -> Compact Fluoro 32W | D158: =SUM('Charges Summary'!D$85,'Charges Summary'!D$11)*'DNSP Inputs General'!$D71*'DNSP Inputs General'!K71 -> 52.02394411 | E158: =SUM('Charges Summary'!E$85,'Charges Summary'!E$11)*'DNSP Inputs General'!$D71*'DNSP Inputs General'!L71 -> 58.86168521 | F158: =SUM('Charges Summary'!F$85,'Charges Summary'!F$11)*'DNSP Inputs General'!$D71*'DNSP Inputs General'!M71 -> 65.76087558 | G158: =SUM('Charges Summary'!G$85,'Charges Summary'!G$11)*'DNSP Inputs General'!$D71*'DNSP Inputs General'!N71 -> 72.38908949 | H158: =SUM('Charges Summary'!H$85,'Charges Summary'!H$11)*'DNSP Inputs General'!$D71*'DNSP Inputs General'!O71 -> 78.63148732 | K158: =D158/'Charges Summary'!D$4 -> 50.84282471 | L158: =E158/'Charges Summary'!E$4 -> 56.2193066 | M158: =F158/'Charges Summary'!F$4 -> 61.38281152 | N158: =G158/'Charges Summary'!G$4 -> 66.03568697 | O158: =H158/'Charges Summary'!H$4 -> 70.10168758
A159: ='DNSP Inputs General'!A$72 -> Compact Fluoro 42W | D159: =SUM('Charges Summary'!D$85,'Charges Summary'!D$11)*'DNSP Inputs General'!$D72*'DNSP Inputs General'!K72 -> 498.711183 | E159: =SUM('Charges Summary'!E$85,'Charges Summary'!E$11)*'DNSP Inputs General'!$D72*'DNSP Inputs General'!L72 -> 564.2590381 | F159: =SUM('Charges Summary'!F$85,'Charges Summary'!F$11)*'DNSP Inputs General'!$D72*'DNSP Inputs General'!M72 -> 630.3959574 | G159: =SUM('Charges Summary'!G$85,'Charges Summary'!G$11)*'DNSP Inputs General'!$D72*'DNSP Inputs General'!N72 -> 693.9352461 | H159: =SUM('Charges Summary'!H$85,'Charges Summary'!H$11)*'DNSP Inputs General'!$D72*'DNSP Inputs General'!O72 -> 753.7760301 | K159: =D159/'Charges Summary'!D$4 -> 487.3887532 | L159: =E159/'Charges Summary'!E$4 -> 538.9287064 | M159: =F159/'Charges Summary'!F$4 -> 588.4270228 | N159: =G159/'Charges Summary'!G$4 -> 633.0303504 | O159: =H159/'Charges Summary'!H$4 -> 672.0077868
D160: =SUM('Charges Summary'!D$85,'Charges Summary'!D$11)*'DNSP Inputs General'!$D73*'DNSP Inputs General'!K73 -> 0 | E160: =SUM('Charges Summary'!E$85,'Charges Summary'!E$11)*'DNSP Inputs General'!$D73*'DNSP Inputs General'!L73 -> 0 | F160: =SUM('Charges Summary'!F$85,'Charges Summary'!F$11)*'DNSP Inputs General'!$D73*'DNSP Inputs General'!M73 -> 0 | G160: =SUM('Charges Summary'!G$85,'Charges Summary'!G$11)*'DNSP Inputs General'!$D73*'DNSP Inputs General'!N73 -> 0 | H160: =SUM('Charges Summary'!H$85,'Charges Summary'!H$11)*'DNSP Inputs General'!$D73*'DNSP Inputs General'!O73 -> 0 | K160: =D160/'Charges Summary'!D$4 -> 0 | L160: =E160/'Charges Summary'!E$4 -> 0 | M160: =F160/'Charges Summary'!F$4 -> 0 | N160: =G160/'Charges Summary'!G$4 -> 0 | O160: =H160/'Charges Summary'!H$4 -> 0
A161: Total Capital Charge | D161: =SUM(D130:D159) -> 991286.4716 | E161: =SUM(E130:E159) -> 1059391.705 | F161: =SUM(F130:F159) -> 1130240.584 | G161: =SUM(G130:G159) -> 1199813.279 | H161: =SUM(H130:H159) -> 1266587.579 | K161: =SUM(K130:K159) -> 968780.9176 | L161: =SUM(L130:L159) -> 1011834.216 | M161: =SUM(M130:M159) -> 1054994.237 | N161: =SUM(N130:N159) -> 1094508.781 | O161: =SUM(O130:O159) -> 1129190.478
A163: Check | C163: =SUM(D163:O163) -> 7.916241884e-09 | D163: =ABS(D75-SUM(D118,D161)) -> 4.656612873e-10 | E163: =ABS(E75-SUM(E118,E161)) -> 9.313225746e-10 | F163: =ABS(F75-SUM(F118,F161)) -> 0 | G163: =ABS(G75-SUM(G118,G161)) -> 9.313225746e-10 | H163: =ABS(H75-SUM(H118,H161)) -> 9.313225746e-10 | K163: =ABS(K75-SUM(K118,K161)) -> 9.313225746e-10 | L163: =ABS(L75-SUM(L118,L161)) -> 0 | M163: =ABS(M75-SUM(M118,M161)) -> 0 | N163: =ABS(N75-SUM(N118,N161)) -> 1.862645149e-09 | O163: =ABS(O75-SUM(O118,O161)) -> 1.862645149e-09
A165: Public Lighting - Capital Expenditure | D165: Forecast Capital Expenditure - Nominal | K165: Forecast Capital Expenditure - Real 2015 $
D166: =D$2 -> 2016 | E166: 2017 | F166: 2018 | G166: 2019 | H166: 2020 | K166: =K$2 -> 2016 | L166: 2017 | M166: 2018 | N166: 2019 | O166: 2020
A168: Total Capital Expenditure | D168: =K168*'Charges Summary'!D$4 -> 916090.3555 | E168: =L168*'Charges Summary'!E$4 -> 971634.2685 | F168: =M168*'Charges Summary'!F$4 -> 1013257.517 | G168: =N168*'Charges Summary'!G$4 -> 997854.5611 | H168: =O168*'Charges Summary'!H$4 -> 1012352.577 | K168: ='DNSP Inputs General'!K14 -> 895292.0075 | L168: ='DNSP Inputs General'!L14 -> 928016.3259 | M168: ='DNSP Inputs General'!M14 -> 945799.3772 | N168: ='DNSP Inputs General'!N14 -> 910275.4559 | O168: ='DNSP Inputs General'!O14 -> 902534.4239
A169: Check | C169: =SUM(D169:H169) -> 1.164153218e-10 | D169: =ABS(D168-D176) -> 1.164153218e-10 | E169: =ABS(E168-E176) -> 0 | F169: =ABS(F168-F176) -> 0 | G169: =ABS(G168-G176) -> 0 | H169: =ABS(H168-H176) -> 0
A172: Public Lighting - RAB | D172: RAB - Historical Cost ($)
D173: =D$2 -> 2016 | E173: 2017 | F173: 2018 | G173: 2019 | H173: 2020
A175: Opening RAB | D175: ='Total RAB'!N139 -> 6829739.454 | E175: =D178 -> 7258638.337 | F175: =E178 -> 7706341.519 | G175: 8156961.908 | H175: 8552897.178
A176: Capex | D176: ='Total RAB'!N140 -> 916090.3555 | E176: ='Total RAB'!O140 -> 971634.2685 | F176: ='Total RAB'!P140 -> 1013257.517 | G176: ='Total RAB'!Q140 -> 997854.5611 | H176: ='Total RAB'!R140 -> 1012352.577
A177: Depreciation | D177: ='Total RAB'!N141 -> 487191.4732 | E177: ='Total RAB'!O141 -> 523931.0861 | F177: ='Total RAB'!P141 -> 562637.1284 | G177: ='Total RAB'!Q141 -> 601919.2902 | H177: ='Total RAB'!R141 -> 641248.2135
A178: Closing RAB | D178: =D175+D176-D177 -> 7258638.337 | E178: =E175+E176-E177 -> 7706341.519 | F178: =F175+F176-F177 -> 8156961.908 | G178: =G175+G176-G177 -> 8552897.178 | H178: =H175+H176-H177 -> 8924001.542
A180: Average RAB | D180: =SUM(D175,D178)/2 -> 7044188.896 | E180: =SUM(E175,E178)/2 -> 7482489.928 | F180: =SUM(F175,F178)/2 -> 7931651.713 | G180: =SUM(G175,G178)/2 -> 8354929.543 | H180: =SUM(H175,H178)/2 -> 8738449.36
A182: =WACC!A$8 -> Nominal Pre Tax WACC | D182: =WACC!E$8 -> 0.07156182294 | E182: =WACC!F$8 -> 0.07156182294 | F182: =WACC!G$8 -> 0.07156182294 | G182: =WACC!H$8 -> 0.07156182294 | H182: =WACC!I$8 -> 0.07156182294
A184: Capital Charge | D184: Capital Charge - Nominal
D185: =D$2 -> 2016 | E185: 2017 | F185: 2018 | G185: 2019 | H185: 2020
A187: Depreciation | D187: =D177 -> 487191.4732 | E187: =E177 -> 523931.0861 | F187: =F177 -> 562637.1284 | G187: =G177 -> 601919.2902 | H187: =H177 -> 641248.2135
A188: Return | D188: =D182*D180 -> 504094.9985 | E188: =E182*E180 -> 535460.6193 | F188: =F182*F180 -> 567603.4555 | G188: =G182*G180 -> 597893.9886 | H188: =H182*H180 -> 625339.3659
D190: =SUM(D187:D189) -> 991286.4716 | E190: =SUM(E187:E189) -> 1059391.705 | F190: =SUM(F187:F189) -> 1130240.584 | G190: =SUM(G187:G189) -> 1199813.279 | H190: =SUM(H187:H189) -> 1266587.579
A192: Check | C192: =SUM(D192:H192) -> 1.979060471e-09 | D192: =ABS(D161-D190)*IF('DNSP Inputs General'!K75=0,0,1) -> 5.820766091e-10 | E192: =ABS(E161-E190)*IF('DNSP Inputs General'!L75=0,0,1) -> 6.98491931e-10 | F192: =ABS(F161-F190)*IF('DNSP Inputs General'!M75=0,0,1) -> 2.328306437e-10 | G192: =ABS(G161-G190)*IF('DNSP Inputs General'!N75=0,0,1) -> 2.328306437e-10 | H192: =ABS(H161-H190)*IF('DNSP Inputs General'!O75=0,0,1) -> 2.328306437e-10

Sheet Charges Summary
A1: ='DNSP Inputs O & M'!$A$3 -> Jemena | D1: ='DNSP Inputs General'!K$2 -> 2016 | E1: ='DNSP Inputs General'!L$2 -> 2017 | F1: ='DNSP Inputs General'!M$2 -> 2018 | G1: ='DNSP Inputs General'!N$2 -> 2019 | H1: ='DNSP Inputs General'!O$2 -> 2020
A2: Nominal $
A4: ='Total RAB'!A20 -> CPI Index | D4: =(1+WACC!E6) -> 1.023230798 | E4: =D4*(1+WACC!F6) -> 1.047001266 | F4: =E4*(1+WACC!G6) -> 1.071323942 | G4: =F4*(1+WACC!H6) -> 1.096211652 | H4: =G4*(1+WACC!I6) -> 1.121677524
